Workbook

Sheet PREENCHER
A4: ANEXO III – PLANILHA DE ANÁLISE DE PREÇOS – MÉDIA COMPARATIVA
A5: PREÇOS COMPARATIVOS | U5: ANÁLISE ESTATÍSTICA
A6: ITEM | B6: ESPECIFICAÇÃO | C6: UN | D6: QTDE | E6: VALORES UNITÁRIOS PESQUISADOS (R$) | O6: MÉDIA DOS VALORES PESQUISADOS (R$) | Q6: VALOR CONTRATADO PELA SJMG/TRF6 (R$) | S6: OBSERVAÇÃO | AF6: MENORES PREÇOS | AQ6: PREÇOS FORMATADO PARA TEXTO | BB6: MÉDIA A SER UTILIZADA | BG6: OBSERVAÇÕES
E7: PESQUISA 1 | F7: PESQUISA 2 | G7: PESQUISA 3 | H7: PESQUISA 3 | I7: PESQUISA 5 | J7: PESQUISA 6 | K7: PESQUISA 7 | L7: PESQUISA 8 | M7: PESQUISA 9 | N7: PESQUISA 10 | O7: UNITÁRIO | P7: TOTAL | Q7: UNITÁRIO | R7: TOTAL | U7: NÚMERO DE COTAÇÕES AVALIADAS | V7: NÚMERO DE COTAÇÕES UTILIZADAS | W7: MENOR VALOR CONSIDERADO | X7: MAIOR VALOR CONSIDERADO | Y7: MÉDIA | Z7: MEDIANA | AA7: DESVIO PADRÃO | AB7: COEFICIENTE DE VARIAÇÃO | AF7: 1º | AG7: 2º | AH7: 3º | AI7: 4º | AJ7: 5º | AK7: 6º | AL7: MÉDIA DO 1º, 2º E 3º | AM7: MÉDIA DO 2º, 3º E 4º | AN7: MÉDIA DO 3º, 4º E 5º | AO7: MÉDIA DO 4º, 5º E 6º | AQ7: PREÇO 1 | AR7: PREÇO 2 | AS7: PREÇO 3 | AT7: PREÇO 4 | AU7: PREÇO 5 | AV7: PREÇO 6 | AW7: PREÇO 7 | AX7: PREÇO 8 | AY7: PREÇO 9 | AZ7: PREÇO 10 | BB7: SEM ARRED | BC7: COM ARRED | BE7: OBSERVAÇÃO | BG7: MENOS DE TRÊS PREÇOS COMPARATIVOS VÁLIDOS | BJ7: PREÇO CONTRATADO É SUPERIOR AO PESQUISADO
A8: 1 | B8: PÃO DE QUEIJO CONGELADO | C8: QUILO | D8: 462 | E8: 22.82 | F8: 19 | H8: 41.65 | O8: =IF(ISERROR(ROUND(AVERAGE(E8:N8),2)),"",ROUND(AVERAGE(E8:N8),2)) -> 27.82 | P8: =IF(ISERROR(ROUND(O8*D8,2)),"",ROUND(O8*D8,2)) -> 12852.84 | R8: =IF(A8="","",ROUND(Q8*D8,2)) -> 0 | S8: Com relação a pesquisa 1 e 3 o valor foi proporcional a 1 kg. | U8: =IF(ISERROR(COUNTA(E8:N8)),"",COUNTA(E8:N8)) -> 3 | V8: =IF(ISERROR(COUNT(E8:N8)),"",COUNT(E8:N8)) -> 3 | W8: =IF(ISERROR(MIN(E8:N8)),"",MIN(E8:N8)) -> 19 | X8: =IF(ISERROR(MAX(E8:N8)),"",MAX(E8:N8)) -> 41.65 | Y8: =IF(ISERROR(ROUND(AVERAGE(E8:N8),2)),"",ROUND(AVERAGE(E8:N8),2)) -> 27.82 | Z8: =IF(ISERROR(MEDIAN(E8:N8)),"",MEDIAN(E8:N8)) -> 22.82 | AA8: =IF(ISERROR(STDEV(E8:N8)),"",STDEV(E8:N8)) -> 12.12561888 | AB8: =IF(ISERROR(AA8/Y8),"",AA8/Y8) -> 0.435859773 | AF8: =IF(COUNT(E8:N8)<1,"",SMALL(E8:N8,1)) -> 19 | AG8: =IF(COUNT(E8:N8)<2,"",SMALL(E8:N8,2)) -> 22.82 | AH8: =IF(COUNT(E8:N8)<3,"",SMALL(E8:N8,3)) -> 41.65 | AI8: =IF(COUNT(E8:N8)<4,"",SMALL(E8:N8,4)) ->  | AJ8: =IF(COUNT(E8:N8)<5,"",SMALL(E8:N8,5)) ->  | AK8: =IF(COUNT(E8:N8)<6,"",SMALL(E8:N8,6)) ->  | AL8: =IF(COUNT(E8:N8)<3,"",AVERAGE(AF8:AH8)) -> 27.82333333 | AM8: =IF(COUNT(E8:N8)<4,"",AVERAGE(AG8:AI8)) ->  | AN8: =IF(COUNT(E8:N8)<5,"",AVERAGE(AH8:AJ8)) ->  | AO8: =IF(COUNT(E8:N8)<6,"",AVERAGE(AI8:AK8)) ->  | AQ8: =IF(E8>=1000,TEXT(E8,"0.000,00"),TEXT(E8,"0,00")) -> 22,82 | AR8: =IF(F8>=1000,TEXT(F8,"0.000,00"),TEXT(F8,"0,00")) -> 19,00 | AS8: =IF(G8>=1000,TEXT(G8,"0.000,00"),TEXT(G8,"0,00")) -> 0,00 | AT8: =IF(H8>=1000,TEXT(H8,"0.000,00"),TEXT(H8,"0,00")) -> 41,65 | AU8: =IF(I8>=1000,TEXT(I8,"0.000,00"),TEXT(I8,"0,00")) -> 0,00 | AV8: =IF(J8>=1000,TEXT(J8,"0.000,00"),TEXT(J8,"0,00")) -> 0,00 | AW8: =IF(K8>=1000,TEXT(K8,"0.000,00"),TEXT(K8,"0,00")) -> 0,00 | AX8: =IF(L8>=1000,TEXT(L8,"0.000,00"),TEXT(L8,"0,00")) -> 0,00 | AY8: =IF(M8>=1000,TEXT(M8,"0.000,00"),TEXT(M8,"0,00")) -> 0,00 | AZ8: =IF(N8>=1000,TEXT(N8,"0.000,00"),TEXT(N8,"0,00")) -> 0,00 | BB8: =IF(PREENCHER!AL8="",#REF!,IF(PREENCHER!AM8="",#REF!,IF(PREENCHER!AN8="",#REF!,IF(STDEV(PREENCHER!$AF8:$AH8)/AVERAGE(PREENCHER!$AF8:$AH8)>#REF!,IF(STDEV(PREENCHER!$AG8:$AI8)/AVERAGE(PREENCHER!$AG8:$AI8)>#REF!,IF(STDEV(PREENCHER!$AH8:$AJ8)/AVERAGE(PREENCHER!$AH8:$AJ8)>#REF!,IF(STDEV(PREENCHER!$AI8:$AK8)/AVERAGE(PREENCHER!$AI8:$AK8)>#REF!,#REF!,AVERAGE(PREENCHER!$AI8:$AK8)),AVERAGE(PREENCHER!$AH8:$AJ8)),AVERAGE(PREENCHER!$AG8:$AI8)),AVERAGE(PREENCHER!$AF8:$AH8))))) ->  | BC8: =IF(ISERROR(ROUND(BB8,2)),"",ROUND(BB8,2)) ->  | BE8: Valor desconsiderado do cálculo da média comparativa. | BG8: =IF(ISERROR(IF(COUNT(E8:N8)=2,"Apenas dois preços comparativos válidos. ","")),"",IF(COUNT(E8:N8)=2,"Apenas dois preços comparativos válidos. ","")) ->  | BH8: =IF(ISERROR(IF(COUNT(E8:N8)=1,"Apenas um preço comparativo válido. ","")),"",IF(COUNT(E8:N8)=1,"Apenas um preço comparativo válido. ","")) ->  | BI8: =IF(A8="","",IF(ISERROR(IF(COUNT(E8:N8)=0,"Nenhum preço comparativo válido. ","")),"",IF(COUNT(E8:N8)=0,"Nenhum preço comparativo válido. ",""))) ->  | BJ8: =IF(ISERROR(IF(R8>P8,(R8-P8)/P8,"")),"",IF(R8>P8,(R8-P8)/P8,"")) ->  | BK8: =IF(ISERROR(IF(BJ8="","","Neste item, o valor contratado pelo TJDFT é "&TEXT(BJ8,"0,00%")&" superior à média comparativa.")),"",IF(BJ8="","","Neste item, o valor contratado pelo TJDFT é "&TEXT(BJ8,"0,00%")&" superior à média comparativa.")) -> 
A9: 2 | B9: BOLO CASEIRO | C9: UNIDADE | D9: 40 | E9: 18.37 | F9: 22.69 | H9: 30 | I9: 20 | J9: 38.33 | O9: =IF(ISERROR(ROUND(AVERAGE(E9:N9),2)),"",ROUND(AVERAGE(E9:N9),2)) -> 25.88 | P9: =IF(ISERROR(ROUND(O9*D9,2)),"",ROUND(O9*D9,2)) -> 1035.2 | R9: =IF(A9="","",ROUND(Q9*D9,2)) -> 0 | S9: =IF(A9="","",CONCATENATE($BG9,$BH9,$BI9,$BK9)) ->  | U9: =IF(ISERROR(COUNTA(E9:N9)),"",COUNTA(E9:N9)) -> 5 | V9: =IF(ISERROR(COUNT(E9:N9)),"",COUNT(E9:N9)) -> 5 | W9: =IF(ISERROR(MIN(E9:N9)),"",MIN(E9:N9)) -> 18.37 | X9: =IF(ISERROR(MAX(E9:N9)),"",MAX(E9:N9)) -> 38.33 | Y9: =IF(ISERROR(ROUND(AVERAGE(E9:N9),2)),"",ROUND(AVERAGE(E9:N9),2)) -> 25.88 | Z9: =IF(ISERROR(MEDIAN(E9:N9)),"",MEDIAN(E9:N9)) -> 22.69 | AA9: =IF(ISERROR(STDEV(E9:N9)),"",STDEV(E9:N9)) -> 8.263284456 | AB9: =IF(ISERROR(AA9/Y9),"",AA9/Y9) -> 0.3192922896 | AF9: =IF(COUNT(E9:N9)<1,"",SMALL(E9:N9,1)) -> 18.37 | AG9: =IF(COUNT(E9:N9)<2,"",SMALL(E9:N9,2)) -> 20 | AH9: =IF(COUNT(E9:N9)<3,"",SMALL(E9:N9,3)) -> 22.69 | AI9: =IF(COUNT(E9:N9)<4,"",SMALL(E9:N9,4)) -> 30 | AJ9: =IF(COUNT(E9:N9)<5,"",SMALL(E9:N9,5)) -> 38.33 | AK9: =IF(COUNT(E9:N9)<6,"",SMALL(E9:N9,6)) ->  | AL9: =IF(COUNT(E9:N9)<3,"",AVERAGE(AF9:AH9)) -> 20.35333333 | AM9: =IF(COUNT(E9:N9)<4,"",AVERAGE(AG9:AI9)) -> 24.23 | AN9: =IF(COUNT(E9:N9)<5,"",AVERAGE(AH9:AJ9)) -> 30.34 | AO9: =IF(COUNT(E9:N9)<6,"",AVERAGE(AI9:AK9)) ->  | AQ9: =IF(E9>=1000,TEXT(E9,"0.000,00"),TEXT(E9,"0,00")) -> 18,37 | AR9: =IF(F9>=1000,TEXT(F9,"0.000,00"),TEXT(F9,"0,00")) -> 22,69 | AS9: =IF(G9>=1000,TEXT(G9,"0.000,00"),TEXT(G9,"0,00")) -> 0,00 | AT9: =IF(H9>=1000,TEXT(H9,"0.000,00"),TEXT(H9,"0,00")) -> 30,00 | AU9: =IF(I9>=1000,TEXT(I9,"0.000,00"),TEXT(I9,"0,00")) -> 20,00 | AV9: =IF(J9>=1000,TEXT(J9,"0.000,00"),TEXT(J9,"0,00")) -> 38,33 | AW9: =IF(K9>=1000,TEXT(K9,"0.000,00"),TEXT(K9,"0,00")) -> 0,00 | AX9: =IF(L9>=1000,TEXT(L9,"0.000,00"),TEXT(L9,"0,00")) -> 0,00 | AY9: =IF(M9>=1000,TEXT(M9,"0.000,00"),TEXT(M9,"0,00")) -> 0,00 | AZ9: =IF(N9>=1000,TEXT(N9,"0.000,00"),TEXT(N9,"0,00")) -> 0,00 | BB9: =IF(PREENCHER!AL9="",#REF!,IF(PREENCHER!AM9="",#REF!,IF(PREENCHER!AN9="",#REF!,IF(STDEV(PREENCHER!$AF9:$AH9)/AVERAGE(PREENCHER!$AF9:$AH9)>#REF!,IF(STDEV(PREENCHER!$AG9:$AI9)/AVERAGE(PREENCHER!$AG9:$AI9)>#REF!,IF(STDEV(PREENCHER!$AH9:$AJ9)/AVERAGE(PREENCHER!$AH9:$AJ9)>#REF!,IF(STDEV(PREENCHER!$AI9:$AK9)/AVERAGE(PREENCHER!$AI9:$AK9)>#REF!,#REF!,AVERAGE(PREENCHER!$AI9:$AK9)),AVERAGE(PREENCHER!$AH9:$AJ9)),AVERAGE(PREENCHER!$AG9:$AI9)),AVERAGE(PREENCHER!$AF9:$AH9))))) ->  | BC9: =IF(ISERROR(ROUND(BB9,2)),"",ROUND(BB9,2)) ->  | BG9: =IF(ISERROR(IF(COUNT(E9:N9)=2,"Apenas dois preços comparativos válidos. ","")),"",IF(COUNT(E9:N9)=2,"Apenas dois preços comparativos válidos. ","")) ->  | BH9: =IF(ISERROR(IF(COUNT(E9:N9)=1,"Apenas um preço comparativo válido. ","")),"",IF(COUNT(E9:N9)=1,"Apenas um preço comparativo válido. ","")) ->  | BI9: =IF(A9="","",IF(ISERROR(IF(COUNT(E9:N9)=0,"Nenhum preço comparativo válido. ","")),"",IF(COUNT(E9:N9)=0,"Nenhum preço comparativo válido. ",""))) ->  | BJ9: =IF(ISERROR(IF(R9>P9,(R9-P9)/P9,"")),"",IF(R9>P9,(R9-P9)/P9,"")) ->  | BK9: =IF(ISERROR(IF(BJ9="","","Neste item, o valor contratado pelo TJDFT é "&TEXT(BJ9,"0,00%")&" superior à média comparativa.")),"",IF(BJ9="","","Neste item, o valor contratado pelo TJDFT é "&TEXT(BJ9,"0,00%")&" superior à média comparativa.")) -> 
A10: 3 | B10: SANDUÍCHE NATURAL | C10: UNIDADE | D10: 800 | E10: 8.1 | F10: 10.9 | H10: 3.56 | O10: =IF(ISERROR(ROUND(AVERAGE(E10:N10),2)),"",ROUND(AVERAGE(E10:N10),2)) -> 7.52 | P10: =IF(ISERROR(ROUND(O10*D10,2)),"",ROUND(O10*D10,2)) -> 6016 | R10: =IF(A10="","",ROUND(Q10*D10,2)) -> 0 | S10: =IF(A10="","",CONCATENATE($BG10,$BH10,$BI10,$BK10)) ->  | U10: =IF(ISERROR(COUNTA(E10:N10)),"",COUNTA(E10:N10)) -> 3 | V10: =IF(ISERROR(COUNT(E10:N10)),"",COUNT(E10:N10)) -> 3 | W10: =IF(ISERROR(MIN(E10:N10)),"",MIN(E10:N10)) -> 3.56 | X10: =IF(ISERROR(MAX(E10:N10)),"",MAX(E10:N10)) -> 10.9 | Y10: =IF(ISERROR(ROUND(AVERAGE(E10:N10),2)),"",ROUND(AVERAGE(E10:N10),2)) -> 7.52 | Z10: =IF(ISERROR(MEDIAN(E10:N10)),"",MEDIAN(E10:N10)) -> 8.1 | AA10: =IF(ISERROR(STDEV(E10:N10)),"",STDEV(E10:N10)) -> 3.704213817 | AB10: =IF(ISERROR(AA10/Y10),"",AA10/Y10) -> 0.4925816246 | AF10: =IF(COUNT(E10:N10)<1,"",SMALL(E10:N10,1)) -> 3.56 | AG10: =IF(COUNT(E10:N10)<2,"",SMALL(E10:N10,2)) -> 8.1 | AH10: =IF(COUNT(E10:N10)<3,"",SMALL(E10:N10,3)) -> 10.9 | AI10: =IF(COUNT(E10:N10)<4,"",SMALL(E10:N10,4)) ->  | AJ10: =IF(COUNT(E10:N10)<5,"",SMALL(E10:N10,5)) ->  | AK10: =IF(COUNT(E10:N10)<6,"",SMALL(E10:N10,6)) ->  | AL10: =IF(COUNT(E10:N10)<3,"",AVERAGE(AF10:AH10)) -> 7.52 | AM10: =IF(COUNT(E10:N10)<4,"",AVERAGE(AG10:AI10)) ->  | AN10: =IF(COUNT(E10:N10)<5,"",AVERAGE(AH10:AJ10)) ->  | AO10: =IF(COUNT(E10:N10)<6,"",AVERAGE(AI10:AK10)) ->  | AQ10: =IF(E10>=1000,TEXT(E10,"0.000,00"),TEXT(E10,"0,00")) -> 8,10 | AR10: =IF(F10>=1000,TEXT(F10,"0.000,00"),TEXT(F10,"0,00")) -> 10,90 | AS10: =IF(G10>=1000,TEXT(G10,"0.000,00"),TEXT(G10,"0,00")) -> 0,00 | AT10: =IF(H10>=1000,TEXT(H10,"0.000,00"),TEXT(H10,"0,00")) -> 3,56 | AU10: =IF(I10>=1000,TEXT(I10,"0.000,00"),TEXT(I10,"0,00")) -> 0,00 | AV10: =IF(J10>=1000,TEXT(J10,"0.000,00"),TEXT(J10,"0,00")) -> 0,00 | AW10: =IF(K10>=1000,TEXT(K10,"0.000,00"),TEXT(K10,"0,00")) -> 0,00 | AX10: =IF(L10>=1000,TEXT(L10,"0.000,00"),TEXT(L10,"0,00")) -> 0,00 | AY10: =IF(M10>=1000,TEXT(M10,"0.000,00"),TEXT(M10,"0,00")) -> 0,00 | AZ10: =IF(N10>=1000,TEXT(N10,"0.000,00"),TEXT(N10,"0,00")) -> 0,00 | BB10: =IF(PREENCHER!AL10="",#REF!,IF(PREENCHER!AM10="",#REF!,IF(PREENCHER!AN10="",#REF!,IF(STDEV(PREENCHER!$AF10:$AH10)/AVERAGE(PREENCHER!$AF10:$AH10)>#REF!,IF(STDEV(PREENCHER!$AG10:$AI10)/AVERAGE(PREENCHER!$AG10:$AI10)>#REF!,IF(STDEV(PREENCHER!$AH10:$AJ10)/AVERAGE(PREENCHER!$AH10:$AJ10)>#REF!,IF(STDEV(PREENCHER!$AI10:$AK10)/AVERAGE(PREENCHER!$AI10:$AK10)>#REF!,#REF!,AVERAGE(PREENCHER!$AI10:$AK10)),AVERAGE(PREENCHER!$AH10:$AJ10)),AVERAGE(PREENCHER!$AG10:$AI10)),AVERAGE(PREENCHER!$AF10:$AH10))))) ->  | BC10: =IF(ISERROR(ROUND(BB10,2)),"",ROUND(BB10,2)) ->  | BG10: =IF(ISERROR(IF(COUNT(E10:N10)=2,"Apenas dois preços comparativos válidos. ","")),"",IF(COUNT(E10:N10)=2,"Apenas dois preços comparativos válidos. ","")) ->  | BH10: =IF(ISERROR(IF(COUNT(E10:N10)=1,"Apenas um preço comparativo válido. ","")),"",IF(COUNT(E10:N10)=1,"Apenas um preço comparativo válido. ","")) ->  | BI10: =IF(A10="","",IF(ISERROR(IF(COUNT(E10:N10)=0,"Nenhum preço comparativo válido. ","")),"",IF(COUNT(E10:N10)=0,"Nenhum preço comparativo válido. ",""))) ->  | BJ10: =IF(ISERROR(IF(R10>P10,(R10-P10)/P10,"")),"",IF(R10>P10,(R10-P10)/P10,"")) ->  | BK10: =IF(ISERROR(IF(BJ10="","","Neste item, o valor contratado pelo TJDFT é "&TEXT(BJ10,"0,00%")&" superior à média comparativa.")),"",IF(BJ10="","","Neste item, o valor contratado pelo TJDFT é "&TEXT(BJ10,"0,00%")&" superior à média comparativa.")) -> 
A11: 4 | B11: EMPADA DE FRANGO | C11: CENTENA | D11: 52 | E11: 106 | F11: 52.23 | H11: 65 | O11: =IF(ISERROR(ROUND(AVERAGE(E11:N11),2)),"",ROUND(AVERAGE(E11:N11),2)) -> 74.41 | P11: =IF(ISERROR(ROUND(O11*D11,2)),"",ROUND(O11*D11,2)) -> 3869.32 | R11: =IF(A11="","",ROUND(Q11*D11,2)) -> 0 | S11: Com relação a pesquisa converteu-se de quilo para centena, utilizando a média do peso por unidade e adequando o valor a essa nova métrica. | U11: =IF(ISERROR(COUNTA(E11:N11)),"",COUNTA(E11:N11)) -> 3 | V11: =IF(ISERROR(COUNT(E11:N11)),"",COUNT(E11:N11)) -> 3 | W11: =IF(ISERROR(MIN(E11:N11)),"",MIN(E11:N11)) -> 52.23 | X11: =IF(ISERROR(MAX(E11:N11)),"",MAX(E11:N11)) -> 106 | Y11: =IF(ISERROR(ROUND(AVERAGE(E11:N11),2)),"",ROUND(AVERAGE(E11:N11),2)) -> 74.41 | Z11: =IF(ISERROR(MEDIAN(E11:N11)),"",MEDIAN(E11:N11)) -> 65 | AA11: =IF(ISERROR(STDEV(E11:N11)),"",STDEV(E11:N11)) -> 28.09295819 | AB11: =IF(ISERROR(AA11/Y11),"",AA11/Y11) -> 0.3775427791 | AF11: =IF(COUNT(E11:N11)<1,"",SMALL(E11:N11,1)) -> 52.23 | AG11: =IF(COUNT(E11:N11)<2,"",SMALL(E11:N11,2)) -> 65 | AH11: =IF(COUNT(E11:N11)<3,"",SMALL(E11:N11,3)) -> 106 | AI11: =IF(COUNT(E11:N11)<4,"",SMALL(E11:N11,4)) ->  | AJ11: =IF(COUNT(E11:N11)<5,"",SMALL(E11:N11,5)) ->  | AK11: =IF(COUNT(E11:N11)<6,"",SMALL(E11:N11,6)) ->  | AL11: =IF(COUNT(E11:N11)<3,"",AVERAGE(AF11:AH11)) -> 74.41 | AM11: =IF(COUNT(E11:N11)<4,"",AVERAGE(AG11:AI11)) ->  | AN11: =IF(COUNT(E11:N11)<5,"",AVERAGE(AH11:AJ11)) ->  | AO11: =IF(COUNT(E11:N11)<6,"",AVERAGE(AI11:AK11)) ->  | AQ11: =IF(E11>=1000,TEXT(E11,"0.000,00"),TEXT(E11,"0,00")) -> 106,00 | AR11: =IF(F11>=1000,TEXT(F11,"0.000,00"),TEXT(F11,"0,00")) -> 52,23 | AS11: =IF(G11>=1000,TEXT(G11,"0.000,00"),TEXT(G11,"0,00")) -> 0,00 | AT11: =IF(H11>=1000,TEXT(H11,"0.000,00"),TEXT(H11,"0,00")) -> 65,00 | AU11: =IF(I11>=1000,TEXT(I11,"0.000,00"),TEXT(I11,"0,00")) -> 0,00 | AV11: =IF(J11>=1000,TEXT(J11,"0.000,00"),TEXT(J11,"0,00")) -> 0,00 | AW11: =IF(K11>=1000,TEXT(K11,"0.000,00"),TEXT(K11,"0,00")) -> 0,00 | AX11: =IF(L11>=1000,TEXT(L11,"0.000,00"),TEXT(L11,"0,00")) -> 0,00 | AY11: =IF(M11>=1000,TEXT(M11,"0.000,00"),TEXT(M11,"0,00")) -> 0,00 | AZ11: =IF(N11>=1000,TEXT(N11,"0.000,00"),TEXT(N11,"0,00")) -> 0,00 | BB11: =IF(PREENCHER!AL11="",#REF!,IF(PREENCHER!AM11="",#REF!,IF(PREENCHER!AN11="",#REF!,IF(STDEV(PREENCHER!$AF11:$AH11)/AVERAGE(PREENCHER!$AF11:$AH11)>#REF!,IF(STDEV(PREENCHER!$AG11:$AI11)/AVERAGE(PREENCHER!$AG11:$AI11)>#REF!,IF(STDEV(PREENCHER!$AH11:$AJ11)/AVERAGE(PREENCHER!$AH11:$AJ11)>#REF!,IF(STDEV(PREENCHER!$AI11:$AK11)/AVERAGE(PREENCHER!$AI11:$AK11)>#REF!,#REF!,AVERAGE(PREENCHER!$AI11:$AK11)),AVERAGE(PREENCHER!$AH11:$AJ11)),AVERAGE(PREENCHER!$AG11:$AI11)),AVERAGE(PREENCHER!$AF11:$AH11))))) ->  | BC11: =IF(ISERROR(ROUND(BB11,2)),"",ROUND(BB11,2)) ->  | BG11: =IF(ISERROR(IF(COUNT(E11:N11)=2,"Apenas dois preços comparativos válidos. ","")),"",IF(COUNT(E11:N11)=2,"Apenas dois preços comparativos válidos. ","")) ->  | BH11: =IF(ISERROR(IF(COUNT(E11:N11)=1,"Apenas um preço comparativo válido. ","")),"",IF(COUNT(E11:N11)=1,"Apenas um preço comparativo válido. ","")) ->  | BI11: =IF(A11="","",IF(ISERROR(IF(COUNT(E11:N11)=0,"Nenhum preço comparativo válido. ","")),"",IF(COUNT(E11:N11)=0,"Nenhum preço comparativo válido. ",""))) ->  | BJ11: =IF(ISERROR(IF(R11>P11,(R11-P11)/P11,"")),"",IF(R11>P11,(R11-P11)/P11,"")) ->  | BK11: =IF(ISERROR(IF(BJ11="","","Neste item, o valor contratado pelo TJDFT é "&TEXT(BJ11,"0,00%")&" superior à média comparativa.")),"",IF(BJ11="","","Neste item, o valor contratado pelo TJDFT é "&TEXT(BJ11,"0,00%")&" superior à média comparativa.")) -> 
A12: 5 | B12: BROINHA DE MILHO | C12: QUILO | D12: 6 | E12: 17.06 | F12: 24 | H12: 32.99 | O12: =IF(ISERROR(ROUND(AVERAGE(E12:N12),2)),"",ROUND(AVERAGE(E12:N12),2)) -> 24.68 | P12: =IF(ISERROR(ROUND(O12*D12,2)),"",ROUND(O12*D12,2)) -> 148.08 | R12: =IF(A12="","",ROUND(Q12*D12,2)) -> 0 | S12: Com relação a pesquisa 1 converteu-se de unidade para quilo, utilizando a média do peso por unidade e adequando o valor a essa nova métrica. | U12: =IF(ISERROR(COUNTA(E12:N12)),"",COUNTA(E12:N12)) -> 3 | V12: =IF(ISERROR(COUNT(E12:N12)),"",COUNT(E12:N12)) -> 3 | W12: =IF(ISERROR(MIN(E12:N12)),"",MIN(E12:N12)) -> 17.06 | X12: =IF(ISERROR(MAX(E12:N12)),"",MAX(E12:N12)) -> 32.99 | Y12: =IF(ISERROR(ROUND(AVERAGE(E12:N12),2)),"",ROUND(AVERAGE(E12:N12),2)) -> 24.68 | Z12: =IF(ISERROR(MEDIAN(E12:N12)),"",MEDIAN(E12:N12)) -> 24 | AA12: =IF(ISERROR(STDEV(E12:N12)),"",STDEV(E12:N12)) -> 7.986953946 | AB12: =IF(ISERROR(AA12/Y12),"",AA12/Y12) -> 0.3236205002 | AF12: =IF(COUNT(E12:N12)<1,"",SMALL(E12:N12,1)) -> 17.06 | AG12: =IF(COUNT(E12:N12)<2,"",SMALL(E12:N12,2)) -> 24 | AH12: =IF(COUNT(E12:N12)<3,"",SMALL(E12:N12,3)) -> 32.99 | AI12: =IF(COUNT(E12:N12)<4,"",SMALL(E12:N12,4)) ->  | AJ12: =IF(COUNT(E12:N12)<5,"",SMALL(E12:N12,5)) ->  | AK12: =IF(COUNT(E12:N12)<6,"",SMALL(E12:N12,6)) ->  | AL12: =IF(COUNT(E12:N12)<3,"",AVERAGE(AF12:AH12)) -> 24.68333333 | AM12: =IF(COUNT(E12:N12)<4,"",AVERAGE(AG12:AI12)) ->  | AN12: =IF(COUNT(E12:N12)<5,"",AVERAGE(AH12:AJ12)) ->  | AO12: =IF(COUNT(E12:N12)<6,"",AVERAGE(AI12:AK12)) ->  | AQ12: =IF(E12>=1000,TEXT(E12,"0.000,00"),TEXT(E12,"0,00")) -> 17,06 | AR12: =IF(F12>=1000,TEXT(F12,"0.000,00"),TEXT(F12,"0,00")) -> 24,00 | AS12: =IF(G12>=1000,TEXT(G12,"0.000,00"),TEXT(G12,"0,00")) -> 0,00 | AT12: =IF(H12>=1000,TEXT(H12,"0.000,00"),TEXT(H12,"0,00")) -> 32,99 | AU12: =IF(I12>=1000,TEXT(I12,"0.000,00"),TEXT(I12,"0,00")) -> 0,00 | AV12: =IF(J12>=1000,TEXT(J12,"0.000,00"),TEXT(J12,"0,00")) -> 0,00 | AW12: =IF(K12>=1000,TEXT(K12,"0.000,00"),TEXT(K12,"0,00")) -> 0,00 | AX12: =IF(L12>=1000,TEXT(L12,"0.000,00"),TEXT(L12,"0,00")) -> 0,00 | AY12: =IF(M12>=1000,TEXT(M12,"0.000,00"),TEXT(M12,"0,00")) -> 0,00 | AZ12: =IF(N12>=1000,TEXT(N12,"0.000,00"),TEXT(N12,"0,00")) -> 0,00 | BB12: =IF(PREENCHER!AL12="",#REF!,IF(PREENCHER!AM12="",#REF!,IF(PREENCHER!AN12="",#REF!,IF(STDEV(PREENCHER!$AF12:$AH12)/AVERAGE(PREENCHER!$AF12:$AH12)>#REF!,IF(STDEV(PREENCHER!$AG12:$AI12)/AVERAGE(PREENCHER!$AG12:$AI12)>#REF!,IF(STDEV(PREENCHER!$AH12:$AJ12)/AVERAGE(PREENCHER!$AH12:$AJ12)>#REF!,IF(STDEV(PREENCHER!$AI12:$AK12)/AVERAGE(PREENCHER!$AI12:$AK12)>#REF!,#REF!,AVERAGE(PREENCHER!$AI12:$AK12)),AVERAGE(PREENCHER!$AH12:$AJ12)),AVERAGE(PREENCHER!$AG12:$AI12)),AVERAGE(PREENCHER!$AF12:$AH12))))) ->  | BC12: =IF(ISERROR(ROUND(BB12,2)),"",ROUND(BB12,2)) ->  | BG12: =IF(ISERROR(IF(COUNT(E12:N12)=2,"Apenas dois preços comparativos válidos. ","")),"",IF(COUNT(E12:N12)=2,"Apenas dois preços comparativos válidos. ","")) ->  | BH12: =IF(ISERROR(IF(COUNT(E12:N12)=1,"Apenas um preço comparativo válido. ","")),"",IF(COUNT(E12:N12)=1,"Apenas um preço comparativo válido. ","")) ->  | BI12: =IF(A12="","",IF(ISERROR(IF(COUNT(E12:N12)=0,"Nenhum preço comparativo válido. ","")),"",IF(COUNT(E12:N12)=0,"Nenhum preço comparativo válido. ",""))) ->  | BJ12: =IF(ISERROR(IF(R12>P12,(R12-P12)/P12,"")),"",IF(R12>P12,(R12-P12)/P12,"")) ->  | BK12: =IF(ISERROR(IF(BJ12="","","Neste item, o valor contratado pelo TJDFT é "&TEXT(BJ12,"0,00%")&" superior à média comparativa.")),"",IF(BJ12="","","Neste item, o valor contratado pelo TJDFT é "&TEXT(BJ12,"0,00%")&" superior à média comparativa.")) -> 
A13: 6 | B13: BOLINHO RECHEADO | C13: UNIDADE | D13: 1580 | E13: 2.61 | F13: 2.7 | H13: 2.4 | O13: =IF(ISERROR(ROUND(AVERAGE(E13:N13),2)),"",ROUND(AVERAGE(E13:N13),2)) -> 2.57 | P13: =IF(ISERROR(ROUND(O13*D13,2)),"",ROUND(O13*D13,2)) -> 4060.6 | R13: =IF(A13="","",ROUND(Q13*D13,2)) -> 0 | S13: =IF(A13="","",CONCATENATE($BG13,$BH13,$BI13,$BK13)) ->  | U13: =IF(ISERROR(COUNTA(E13:N13)),"",COUNTA(E13:N13)) -> 3 | V13: =IF(ISERROR(COUNT(E13:N13)),"",COUNT(E13:N13)) -> 3 | W13: =IF(ISERROR(MIN(E13:N13)),"",MIN(E13:N13)) -> 2.4 | X13: =IF(ISERROR(MAX(E13:N13)),"",MAX(E13:N13)) -> 2.7 | Y13: =IF(ISERROR(ROUND(AVERAGE(E13:N13),2)),"",ROUND(AVERAGE(E13:N13),2)) -> 2.57 | Z13: =IF(ISERROR(MEDIAN(E13:N13)),"",MEDIAN(E13:N13)) -> 2.61 | AA13: =IF(ISERROR(STDEV(E13:N13)),"",STDEV(E13:N13)) -> 0.1539480432 | AB13: =IF(ISERROR(AA13/Y13),"",AA13/Y13) -> 0.05990196233 | AF13: =IF(COUNT(E13:N13)<1,"",SMALL(E13:N13,1)) -> 2.4 | AG13: =IF(COUNT(E13:N13)<2,"",SMALL(E13:N13,2)) -> 2.61 | AH13: =IF(COUNT(E13:N13)<3,"",SMALL(E13:N13,3)) -> 2.7 | AI13: =IF(COUNT(E13:N13)<4,"",SMALL(E13:N13,4)) ->  | AJ13: =IF(COUNT(E13:N13)<5,"",SMALL(E13:N13,5)) ->  | AK13: =IF(COUNT(E13:N13)<6,"",SMALL(E13:N13,6)) ->  | AL13: =IF(COUNT(E13:N13)<3,"",AVERAGE(AF13:AH13)) -> 2.57 | AM13: =IF(COUNT(E13:N13)<4,"",AVERAGE(AG13:AI13)) ->  | AN13: =IF(COUNT(E13:N13)<5,"",AVERAGE(AH13:AJ13)) ->  | AO13: =IF(COUNT(E13:N13)<6,"",AVERAGE(AI13:AK13)) ->  | AQ13: =IF(E13>=1000,TEXT(E13,"0.000,00"),TEXT(E13,"0,00")) -> 2,61 | AR13: =IF(F13>=1000,TEXT(F13,"0.000,00"),TEXT(F13,"0,00")) -> 2,70 | AS13: =IF(G13>=1000,TEXT(G13,"0.000,00"),TEXT(G13,"0,00")) -> 0,00 | AT13: =IF(H13>=1000,TEXT(H13,"0.000,00"),TEXT(H13,"0,00")) -> 2,40 | AU13: =IF(I13>=1000,TEXT(I13,"0.000,00"),TEXT(I13,"0,00")) -> 0,00 | AV13: =IF(J13>=1000,TEXT(J13,"0.000,00"),TEXT(J13,"0,00")) -> 0,00 | AW13: =IF(K13>=1000,TEXT(K13,"0.000,00"),TEXT(K13,"0,00")) -> 0,00 | AX13: =IF(L13>=1000,TEXT(L13,"0.000,00"),TEXT(L13,"0,00")) -> 0,00 | AY13: =IF(M13>=1000,TEXT(M13,"0.000,00"),TEXT(M13,"0,00")) -> 0,00 | AZ13: =IF(N13>=1000,TEXT(N13,"0.000,00"),TEXT(N13,"0,00")) -> 0,00 | BB13: =IF(PREENCHER!AL13="",#REF!,IF(PREENCHER!AM13="",#REF!,IF(PREENCHER!AN13="",#REF!,IF(STDEV(PREENCHER!$AF13:$AH13)/AVERAGE(PREENCHER!$AF13:$AH13)>#REF!,IF(STDEV(PREENCHER!$AG13:$AI13)/AVERAGE(PREENCHER!$AG13:$AI13)>#REF!,IF(STDEV(PREENCHER!$AH13:$AJ13)/AVERAGE(PREENCHER!$AH13:$AJ13)>#REF!,IF(STDEV(PREENCHER!$AI13:$AK13)/AVERAGE(PREENCHER!$AI13:$AK13)>#REF!,#REF!,AVERAGE(PREENCHER!$AI13:$AK13)),AVERAGE(PREENCHER!$AH13:$AJ13)),AVERAGE(PREENCHER!$AG13:$AI13)),AVERAGE(PREENCHER!$AF13:$AH13))))) ->  | BC13: =IF(ISERROR(ROUND(BB13,2)),"",ROUND(BB13,2)) ->  | BG13: =IF(ISERROR(IF(COUNT(E13:N13)=2,"Apenas dois preços comparativos válidos. ","")),"",IF(COUNT(E13:N13)=2,"Apenas dois preços comparativos válidos. ","")) ->  | BH13: =IF(ISERROR(IF(COUNT(E13:N13)=1,"Apenas um preço comparativo válido. ","")),"",IF(COUNT(E13:N13)=1,"Apenas um preço comparativo válido. ","")) ->  | BI13: =IF(A13="","",IF(ISERROR(IF(COUNT(E13:N13)=0,"Nenhum preço comparativo válido. ","")),"",IF(COUNT(E13:N13)=0,"Nenhum preço comparativo válido. ",""))) ->  | BJ13: =IF(ISERROR(IF(R13>P13,(R13-P13)/P13,"")),"",IF(R13>P13,(R13-P13)/P13,"")) ->  | BK13: =IF(ISERROR(IF(BJ13="","","Neste item, o valor contratado pelo TJDFT é "&TEXT(BJ13,"0,00%")&" superior à média comparativa.")),"",IF(BJ13="","","Neste item, o valor contratado pelo TJDFT é "&TEXT(BJ13,"0,00%")&" superior à média comparativa.")) -> 
A14: 7 | B14: ESFIRRA DE CARNE | C14: CENTENA | D14: 7 | E14: 100 | F14: 94 | H14: 69.36 | O14: =IF(ISERROR(ROUND(AVERAGE(E14:N14),2)),"",ROUND(AVERAGE(E14:N14),2)) -> 87.77 | P14: =IF(ISERROR(ROUND(O14*D14,2)),"",ROUND(O14*D14,2)) -> 614.39 | R14: =IF(A14="","",ROUND(Q14*D14,2)) -> 0 | S14: Com relação a pesquisa 2, converteu-se de quilo para centena, utilizando a média do peso por unidade e adequando o valor a essa nova métrica. | U14: =IF(ISERROR(COUNTA(E14:N14)),"",COUNTA(E14:N14)) -> 3 | V14: =IF(ISERROR(COUNT(E14:N14)),"",COUNT(E14:N14)) -> 3 | W14: =IF(ISERROR(MIN(E14:N14)),"",MIN(E14:N14)) -> 69.36 | X14: =IF(ISERROR(MAX(E14:N14)),"",MAX(E14:N14)) -> 100 | Y14: =IF(ISERROR(ROUND(AVERAGE(E14:N14),2)),"",ROUND(AVERAGE(E14:N14),2)) -> 87.79 | Z14: =IF(ISERROR(MEDIAN(E14:N14)),"",MEDIAN(E14:N14)) -> 94 | AA14: =IF(ISERROR(STDEV(E14:N14)),"",STDEV(E14:N14)) -> 16.23750391 | AB14: =IF(ISERROR(AA14/Y14),"",AA14/Y14) -> 0.1849584681 | AF14: =IF(COUNT(E14:N14)<1,"",SMALL(E14:N14,1)) -> 69.36 | AG14: =IF(COUNT(E14:N14)<2,"",SMALL(E14:N14,2)) -> 94 | AH14: =IF(COUNT(E14:N14)<3,"",SMALL(E14:N14,3)) -> 100 | AI14: =IF(COUNT(E14:N14)<4,"",SMALL(E14:N14,4)) ->  | AJ14: =IF(COUNT(E14:N14)<5,"",SMALL(E14:N14,5)) ->  | AK14: =IF(COUNT(E14:N14)<6,"",SMALL(E14:N14,6)) ->  | AL14: =IF(COUNT(E14:N14)<3,"",AVERAGE(AF14:AH14)) -> 87.78666667 | AM14: =IF(COUNT(E14:N14)<4,"",AVERAGE(AG14:AI14)) ->  | AN14: =IF(COUNT(E14:N14)<5,"",AVERAGE(AH14:AJ14)) ->  | AO14: =IF(COUNT(E14:N14)<6,"",AVERAGE(AI14:AK14)) ->  | AQ14: =IF(E14>=1000,TEXT(E14,"0.000,00"),TEXT(E14,"0,00")) -> 100,00 | AR14: =IF(F14>=1000,TEXT(F14,"0.000,00"),TEXT(F14,"0,00")) -> 94,00 | AS14: =IF(G14>=1000,TEXT(G14,"0.000,00"),TEXT(G14,"0,00")) -> 0,00 | AT14: =IF(H14>=1000,TEXT(H14,"0.000,00"),TEXT(H14,"0,00")) -> 69,36 | AU14: =IF(I14>=1000,TEXT(I14,"0.000,00"),TEXT(I14,"0,00")) -> 0,00 | AV14: =IF(J14>=1000,TEXT(J14,"0.000,00"),TEXT(J14,"0,00")) -> 0,00 | AW14: =IF(K14>=1000,TEXT(K14,"0.000,00"),TEXT(K14,"0,00")) -> 0,00 | AX14: =IF(L14>=1000,TEXT(L14,"0.000,00"),TEXT(L14,"0,00")) -> 0,00 | AY14: =IF(M14>=1000,TEXT(M14,"0.000,00"),TEXT(M14,"0,00")) -> 0,00 | AZ14: =IF(N14>=1000,TEXT(N14,"0.000,00"),TEXT(N14,"0,00")) -> 0,00 | BB14: =IF(PREENCHER!AL14="",#REF!,IF(PREENCHER!AM14="",#REF!,IF(PREENCHER!AN14="",#REF!,IF(STDEV(PREENCHER!$AF14:$AH14)/AVERAGE(PREENCHER!$AF14:$AH14)>#REF!,IF(STDEV(PREENCHER!$AG14:$AI14)/AVERAGE(PREENCHER!$AG14:$AI14)>#REF!,IF(STDEV(PREENCHER!$AH14:$AJ14)/AVERAGE(PREENCHER!$AH14:$AJ14)>#REF!,IF(STDEV(PREENCHER!$AI14:$AK14)/AVERAGE(PREENCHER!$AI14:$AK14)>#REF!,#REF!,AVERAGE(PREENCHER!$AI14:$AK14)),AVERAGE(PREENCHER!$AH14:$AJ14)),AVERAGE(PREENCHER!$AG14:$AI14)),AVERAGE(PREENCHER!$AF14:$AH14))))) ->  | BC14: =IF(ISERROR(ROUND(BB14,2)),"",ROUND(BB14,2)) ->  | BG14: =IF(ISERROR(IF(COUNT(E14:N14)=2,"Apenas dois preços comparativos válidos. ","")),"",IF(COUNT(E14:N14)=2,"Apenas dois preços comparativos válidos. ","")) ->  | BH14: =IF(ISERROR(IF(COUNT(E14:N14)=1,"Apenas um preço comparativo válido. ","")),"",IF(COUNT(E14:N14)=1,"Apenas um preço comparativo válido. ","")) ->  | BI14: =IF(A14="","",IF(ISERROR(IF(COUNT(E14:N14)=0,"Nenhum preço comparativo válido. ","")),"",IF(COUNT(E14:N14)=0,"Nenhum preço comparativo válido. ",""))) ->  | BJ14: =IF(ISERROR(IF(R14>P14,(R14-P14)/P14,"")),"",IF(R14>P14,(R14-P14)/P14,"")) ->  | BK14: =IF(ISERROR(IF(BJ14="","","Neste item, o valor contratado pelo TJDFT é "&TEXT(BJ14,"0,00%")&" superior à média comparativa.")),"",IF(BJ14="","","Neste item, o valor contratado pelo TJDFT é "&TEXT(BJ14,"0,00%")&" superior à média comparativa.")) -> 
A15: 8 | B15: BISCOITO CASEIRO | C15: QUILO | D15: 23 | E15: 40 | F15: 31.89 | H15: 22.25 | O15: =IF(ISERROR(ROUND(AVERAGE(E15:N15),2)),"",ROUND(AVERAGE(E15:N15),2)) -> 31.38 | P15: =IF(ISERROR(ROUND(O15*D15,2)),"",ROUND(O15*D15,2)) -> 721.74 | R15: =IF(A15="","",ROUND(Q15*D15,2)) -> 0 | S15: =IF(A15="","",CONCATENATE($BG15,$BH15,$BI15,$BK15)) ->  | U15: =IF(ISERROR(COUNTA(E15:N15)),"",COUNTA(E15:N15)) -> 3 | V15: =IF(ISERROR(COUNT(E15:N15)),"",COUNT(E15:N15)) -> 3 | W15: =IF(ISERROR(MIN(E15:N15)),"",MIN(E15:N15)) -> 22.25 | X15: =IF(ISERROR(MAX(E15:N15)),"",MAX(E15:N15)) -> 40 | Y15: =IF(ISERROR(ROUND(AVERAGE(E15:N15),2)),"",ROUND(AVERAGE(E15:N15),2)) -> 31.38 | Z15: =IF(ISERROR(MEDIAN(E15:N15)),"",MEDIAN(E15:N15)) -> 31.89 | AA15: =IF(ISERROR(STDEV(E15:N15)),"",STDEV(E15:N15)) -> 8.885983345 | AB15: =IF(ISERROR(AA15/Y15),"",AA15/Y15) -> 0.2831734654 | AF15: =IF(COUNT(E15:N15)<1,"",SMALL(E15:N15,1)) -> 22.25 | AG15: =IF(COUNT(E15:N15)<2,"",SMALL(E15:N15,2)) -> 31.89 | AH15: =IF(COUNT(E15:N15)<3,"",SMALL(E15:N15,3)) -> 40 | AI15: =IF(COUNT(E15:N15)<4,"",SMALL(E15:N15,4)) ->  | AJ15: =IF(COUNT(E15:N15)<5,"",SMALL(E15:N15,5)) ->  | AK15: =IF(COUNT(E15:N15)<6,"",SMALL(E15:N15,6)) ->  | AL15: =IF(COUNT(E15:N15)<3,"",AVERAGE(AF15:AH15)) -> 31.38 | AM15: =IF(COUNT(E15:N15)<4,"",AVERAGE(AG15:AI15)) ->  | AN15: =IF(COUNT(E15:N15)<5,"",AVERAGE(AH15:AJ15)) ->  | AO15: =IF(COUNT(E15:N15)<6,"",AVERAGE(AI15:AK15)) ->  | AQ15: =IF(E15>=1000,TEXT(E15,"0.000,00"),TEXT(E15,"0,00")) -> 40,00 | AR15: =IF(F15>=1000,TEXT(F15,"0.000,00"),TEXT(F15,"0,00")) -> 31,89 | AS15: =IF(G15>=1000,TEXT(G15,"0.000,00"),TEXT(G15,"0,00")) -> 0,00 | AT15: =IF(H15>=1000,TEXT(H15,"0.000,00"),TEXT(H15,"0,00")) -> 22,25 | AU15: =IF(I15>=1000,TEXT(I15,"0.000,00"),TEXT(I15,"0,00")) -> 0,00 | AV15: =IF(J15>=1000,TEXT(J15,"0.000,00"),TEXT(J15,"0,00")) -> 0,00 | AW15: =IF(K15>=1000,TEXT(K15,"0.000,00"),TEXT(K15,"0,00")) -> 0,00 | AX15: =IF(L15>=1000,TEXT(L15,"0.000,00"),TEXT(L15,"0,00")) -> 0,00 | AY15: =IF(M15>=1000,TEXT(M15,"0.000,00"),TEXT(M15,"0,00")) -> 0,00 | AZ15: =IF(N15>=1000,TEXT(N15,"0.000,00"),TEXT(N15,"0,00")) -> 0,00 | BB15: =IF(PREENCHER!AL15="",#REF!,IF(PREENCHER!AM15="",#REF!,IF(PREENCHER!AN15="",#REF!,IF(STDEV(PREENCHER!$AF15:$AH15)/AVERAGE(PREENCHER!$AF15:$AH15)>#REF!,IF(STDEV(PREENCHER!$AG15:$AI15)/AVERAGE(PREENCHER!$AG15:$AI15)>#REF!,IF(STDEV(PREENCHER!$AH15:$AJ15)/AVERAGE(PREENCHER!$AH15:$AJ15)>#REF!,IF(STDEV(PREENCHER!$AI15:$AK15)/AVERAGE(PREENCHER!$AI15:$AK15)>#REF!,#REF!,AVERAGE(PREENCHER!$AI15:$AK15)),AVERAGE(PREENCHER!$AH15:$AJ15)),AVERAGE(PREENCHER!$AG15:$AI15)),AVERAGE(PREENCHER!$AF15:$AH15))))) ->  | BC15: =IF(ISERROR(ROUND(BB15,2)),"",ROUND(BB15,2)) ->  | BG15: =IF(ISERROR(IF(COUNT(E15:N15)=2,"Apenas dois preços comparativos válidos. ","")),"",IF(COUNT(E15:N15)=2,"Apenas dois preços comparativos válidos. ","")) ->  | BH15: =IF(ISERROR(IF(COUNT(E15:N15)=1,"Apenas um preço comparativo válido. ","")),"",IF(COUNT(E15:N15)=1,"Apenas um preço comparativo válido. ","")) ->  | BI15: =IF(A15="","",IF(ISERROR(IF(COUNT(E15:N15)=0,"Nenhum preço comparativo válido. ","")),"",IF(COUNT(E15:N15)=0,"Nenhum preço comparativo válido. ",""))) ->  | BJ15: =IF(ISERROR(IF(R15>P15,(R15-P15)/P15,"")),"",IF(R15>P15,(R15-P15)/P15,"")) ->  | BK15: =IF(ISERROR(IF(BJ15="","","Neste item, o valor contratado pelo TJDFT é "&TEXT(BJ15,"0,00%")&" superior à média comparativa.")),"",IF(BJ15="","","Neste item, o valor contratado pelo TJDFT é "&TEXT(BJ15,"0,00%")&" superior à média comparativa.")) -> 
A16: 9 | B16: SUCO DE FRUTAS | C16: LITRO | D16: 364 | E16: 6 | F16: 8.53 | H16: 10.3 | O16: =IF(ISERROR(ROUND(AVERAGE(E16:N16),2)),"",ROUND(AVERAGE(E16:N16),2)) -> 8.28 | P16: =IF(ISERROR(ROUND(O16*D16,2)),"",ROUND(O16*D16,2)) -> 3013.92 | R16: =IF(A16="","",ROUND(Q16*D16,2)) -> 0 | U16: =IF(ISERROR(COUNTA(E16:N16)),"",COUNTA(E16:N16)) -> 3 | V16: =IF(ISERROR(COUNT(E16:N16)),"",COUNT(E16:N16)) -> 3 | W16: =IF(ISERROR(MIN(E16:N16)),"",MIN(E16:N16)) -> 6 | X16: =IF(ISERROR(MAX(E16:N16)),"",MAX(E16:N16)) -> 10.3 | Y16: =IF(ISERROR(ROUND(AVERAGE(E16:N16),2)),"",ROUND(AVERAGE(E16:N16),2)) -> 8.28 | Z16: =IF(ISERROR(MEDIAN(E16:N16)),"",MEDIAN(E16:N16)) -> 8.53 | AA16: =IF(ISERROR(STDEV(E16:N16)),"",STDEV(E16:N16)) -> 2.161164809 | AB16: =IF(ISERROR(AA16/Y16),"",AA16/Y16) -> 0.2610102427 | AF16: =IF(COUNT(E16:N16)<1,"",SMALL(E16:N16,1)) -> 6 | AG16: =IF(COUNT(E16:N16)<2,"",SMALL(E16:N16,2)) -> 8.53 | AH16: =IF(COUNT(E16:N16)<3,"",SMALL(E16:N16,3)) -> 10.3 | AI16: =IF(COUNT(E16:N16)<4,"",SMALL(E16:N16,4)) ->  | AJ16: =IF(COUNT(E16:N16)<5,"",SMALL(E16:N16,5)) ->  | AK16: =IF(COUNT(E16:N16)<6,"",SMALL(E16:N16,6)) ->  | AL16: =IF(COUNT(E16:N16)<3,"",AVERAGE(AF16:AH16)) -> 8.276666667 | AM16: =IF(COUNT(E16:N16)<4,"",AVERAGE(AG16:AI16)) ->  | AN16: =IF(COUNT(E16:N16)<5,"",AVERAGE(AH16:AJ16)) ->  | AO16: =IF(COUNT(E16:N16)<6,"",AVERAGE(AI16:AK16)) ->  | AQ16: =IF(E16>=1000,TEXT(E16,"0.000,00"),TEXT(E16,"0,00")) -> 6,00 | AR16: =IF(F16>=1000,TEXT(F16,"0.000,00"),TEXT(F16,"0,00")) -> 8,53 | AS16: =IF(G16>=1000,TEXT(G16,"0.000,00"),TEXT(G16,"0,00")) -> 0,00 | AT16: =IF(H16>=1000,TEXT(H16,"0.000,00"),TEXT(H16,"0,00")) -> 10,30 | AU16: =IF(I16>=1000,TEXT(I16,"0.000,00"),TEXT(I16,"0,00")) -> 0,00 | AV16: =IF(J16>=1000,TEXT(J16,"0.000,00"),TEXT(J16,"0,00")) -> 0,00 | AW16: =IF(K16>=1000,TEXT(K16,"0.000,00"),TEXT(K16,"0,00")) -> 0,00 | AX16: =IF(L16>=1000,TEXT(L16,"0.000,00"),TEXT(L16,"0,00")) -> 0,00 | AY16: =IF(M16>=1000,TEXT(M16,"0.000,00"),TEXT(M16,"0,00")) -> 0,00 | AZ16: =IF(N16>=1000,TEXT(N16,"0.000,00"),TEXT(N16,"0,00")) -> 0,00 | BB16: =IF(PREENCHER!AL16="",#REF!,IF(PREENCHER!AM16="",#REF!,IF(PREENCHER!AN16="",#REF!,IF(STDEV(PREENCHER!$AF16:$AH16)/AVERAGE(PREENCHER!$AF16:$AH16)>#REF!,IF(STDEV(PREENCHER!$AG16:$AI16)/AVERAGE(PREENCHER!$AG16:$AI16)>#REF!,IF(STDEV(PREENCHER!$AH16:$AJ16)/AVERAGE(PREENCHER!$AH16:$AJ16)>#REF!,IF(STDEV(PREENCHER!$AI16:$AK16)/AVERAGE(PREENCHER!$AI16:$AK16)>#REF!,#REF!,AVERAGE(PREENCHER!$AI16:$AK16)),AVERAGE(PREENCHER!$AH16:$AJ16)),AVERAGE(PREENCHER!$AG16:$AI16)),AVERAGE(PREENCHER!$AF16:$AH16))))) ->  | BC16: =IF(ISERROR(ROUND(BB16,2)),"",ROUND(BB16,2)) ->  | BG16: =IF(ISERROR(IF(COUNT(E16:N16)=2,"Apenas dois preços comparativos válidos. ","")),"",IF(COUNT(E16:N16)=2,"Apenas dois preços comparativos válidos. ","")) ->  | BH16: =IF(ISERROR(IF(COUNT(E16:N16)=1,"Apenas um preço comparativo válido. ","")),"",IF(COUNT(E16:N16)=1,"Apenas um preço comparativo válido. ","")) ->  | BI16: =IF(A16="","",IF(ISERROR(IF(COUNT(E16:N16)=0,"Nenhum preço comparativo válido. ","")),"",IF(COUNT(E16:N16)=0,"Nenhum preço comparativo válido. ",""))) ->  | BJ16: =IF(ISERROR(IF(R16>P16,(R16-P16)/P16,"")),"",IF(R16>P16,(R16-P16)/P16,"")) ->  | BK16: =IF(ISERROR(IF(BJ16="","","Neste item, o valor contratado pelo TJDFT é "&TEXT(BJ16,"0,00%")&" superior à média comparativa.")),"",IF(BJ16="","","Neste item, o valor contratado pelo TJDFT é "&TEXT(BJ16,"0,00%")&" superior à média comparativa.")) -> 
A17: 10 | B17: SALADA DE FRUTAS | C17: UNIDADE (150 GRAMAS) | D17: 400 | E17: 5 | F17: 7.7 | H17: 4.49 | O17: =IF(ISERROR(ROUND(AVERAGE(E17:N17),2)),"",ROUND(AVERAGE(E17:N17),2)) -> 5.73 | P17: =IF(ISERROR(ROUND(O17*D17,2)),"",ROUND(O17*D17,2)) -> 2292 | R17: =IF(A17="","",ROUND(Q17*D17,2)) -> 0 | S17: Com relação a pesquisa 1 e 3 o valor foi proporcional a 150g. | U17: =IF(ISERROR(COUNTA(E17:N17)),"",COUNTA(E17:N17)) -> 3 | V17: =IF(ISERROR(COUNT(E17:N17)),"",COUNT(E17:N17)) -> 3 | W17: =IF(ISERROR(MIN(E17:N17)),"",MIN(E17:N17)) -> 4.49 | X17: =IF(ISERROR(MAX(E17:N17)),"",MAX(E17:N17)) -> 7.7 | Y17: =IF(ISERROR(ROUND(AVERAGE(E17:N17),2)),"",ROUND(AVERAGE(E17:N17),2)) -> 5.73 | Z17: =IF(ISERROR(MEDIAN(E17:N17)),"",MEDIAN(E17:N17)) -> 5 | AA17: =IF(ISERROR(STDEV(E17:N17)),"",STDEV(E17:N17)) -> 1.725021739 | AB17: =IF(ISERROR(AA17/Y17),"",AA17/Y17) -> 0.3010509143 | AF17: =IF(COUNT(E17:N17)<1,"",SMALL(E17:N17,1)) -> 4.49 | AG17: =IF(COUNT(E17:N17)<2,"",SMALL(E17:N17,2)) -> 5 | AH17: =IF(COUNT(E17:N17)<3,"",SMALL(E17:N17,3)) -> 7.7 | AI17: =IF(COUNT(E17:N17)<4,"",SMALL(E17:N17,4)) ->  | AJ17: =IF(COUNT(E17:N17)<5,"",SMALL(E17:N17,5)) ->  | AK17: =IF(COUNT(E17:N17)<6,"",SMALL(E17:N17,6)) ->  | AL17: =IF(COUNT(E17:N17)<3,"",AVERAGE(AF17:AH17)) -> 5.73 | AM17: =IF(COUNT(E17:N17)<4,"",AVERAGE(AG17:AI17)) ->  | AN17: =IF(COUNT(E17:N17)<5,"",AVERAGE(AH17:AJ17)) ->  | AO17: =IF(COUNT(E17:N17)<6,"",AVERAGE(AI17:AK17)) ->  | AQ17: =IF(E17>=1000,TEXT(E17,"0.000,00"),TEXT(E17,"0,00")) -> 5,00 | AR17: =IF(F17>=1000,TEXT(F17,"0.000,00"),TEXT(F17,"0,00")) -> 7,70 | AS17: =IF(G17>=1000,TEXT(G17,"0.000,00"),TEXT(G17,"0,00")) -> 0,00 | AT17: =IF(H17>=1000,TEXT(H17,"0.000,00"),TEXT(H17,"0,00")) -> 4,49 | AU17: =IF(I17>=1000,TEXT(I17,"0.000,00"),TEXT(I17,"0,00")) -> 0,00 | AV17: =IF(J17>=1000,TEXT(J17,"0.000,00"),TEXT(J17,"0,00")) -> 0,00 | AW17: =IF(K17>=1000,TEXT(K17,"0.000,00"),TEXT(K17,"0,00")) -> 0,00 | AX17: =IF(L17>=1000,TEXT(L17,"0.000,00"),TEXT(L17,"0,00")) -> 0,00 | AY17: =IF(M17>=1000,TEXT(M17,"0.000,00"),TEXT(M17,"0,00")) -> 0,00 | AZ17: =IF(N17>=1000,TEXT(N17,"0.000,00"),TEXT(N17,"0,00")) -> 0,00 | BB17: =IF(PREENCHER!AL17="",#REF!,IF(PREENCHER!AM17="",#REF!,IF(PREENCHER!AN17="",#REF!,IF(STDEV(PREENCHER!$AF17:$AH17)/AVERAGE(PREENCHER!$AF17:$AH17)>#REF!,IF(STDEV(PREENCHER!$AG17:$AI17)/AVERAGE(PREENCHER!$AG17:$AI17)>#REF!,IF(STDEV(PREENCHER!$AH17:$AJ17)/AVERAGE(PREENCHER!$AH17:$AJ17)>#REF!,IF(STDEV(PREENCHER!$AI17:$AK17)/AVERAGE(PREENCHER!$AI17:$AK17)>#REF!,#REF!,AVERAGE(PREENCHER!$AI17:$AK17)),AVERAGE(PREENCHER!$AH17:$AJ17)),AVERAGE(PREENCHER!$AG17:$AI17)),AVERAGE(PREENCHER!$AF17:$AH17))))) ->  | BC17: =IF(ISERROR(ROUND(BB17,2)),"",ROUND(BB17,2)) ->  | BG17: =IF(ISERROR(IF(COUNT(E17:N17)=2,"Apenas dois preços comparativos válidos. ","")),"",IF(COUNT(E17:N17)=2,"Apenas dois preços comparativos válidos. ","")) ->  | BH17: =IF(ISERROR(IF(COUNT(E17:N17)=1,"Apenas um preço comparativo válido. ","")),"",IF(COUNT(E17:N17)=1,"Apenas um preço comparativo válido. ","")) ->  | BI17: =IF(A17="","",IF(ISERROR(IF(COUNT(E17:N17)=0,"Nenhum preço comparativo válido. ","")),"",IF(COUNT(E17:N17)=0,"Nenhum preço comparativo válido. ",""))) ->  | BJ17: =IF(ISERROR(IF(R17>P17,(R17-P17)/P17,"")),"",IF(R17>P17,(R17-P17)/P17,"")) ->  | BK17: =IF(ISERROR(IF(BJ17="","","Neste item, o valor contratado pelo TJDFT é "&TEXT(BJ17,"0,00%")&" superior à média comparativa.")),"",IF(BJ17="","","Neste item, o valor contratado pelo TJDFT é "&TEXT(BJ17,"0,00%")&" superior à média comparativa.")) -> 
A18: 11 | B18: ENTREGAS | C18: UNIDADE | D18: 30 | E18: 9.9 | F18: 19 | H18: 7.5 | O18: =IF(ISERROR(ROUND(AVERAGE(E18:N18),2)),"",ROUND(AVERAGE(E18:N18),2)) -> 12.13 | P18: =IF(ISERROR(ROUND(O18*D18,2)),"",ROUND(O18*D18,2)) -> 363.9 | R18: =IF(A18="","",ROUND(Q18*D18,2)) -> 0 | S18: Só foi encontrada entrega via motoboy | U18: =IF(ISERROR(COUNTA(E18:N18)),"",COUNTA(E18:N18)) -> 3 | V18: =IF(ISERROR(COUNT(E18:N18)),"",COUNT(E18:N18)) -> 3 | W18: =IF(ISERROR(MIN(E18:N18)),"",MIN(E18:N18)) -> 7.5 | X18: =IF(ISERROR(MAX(E18:N18)),"",MAX(E18:N18)) -> 19 | Y18: =IF(ISERROR(ROUND(AVERAGE(E18:N18),2)),"",ROUND(AVERAGE(E18:N18),2)) -> 12.13 | Z18: =IF(ISERROR(MEDIAN(E18:N18)),"",MEDIAN(E18:N18)) -> 9.9 | AA18: =IF(ISERROR(STDEV(E18:N18)),"",STDEV(E18:N18)) -> 6.066575091 | AB18: =IF(ISERROR(AA18/Y18),"",AA18/Y18) -> 0.5001298509 | AF18: =IF(COUNT(E18:N18)<1,"",SMALL(E18:N18,1)) -> 7.5 | AG18: =IF(COUNT(E18:N18)<2,"",SMALL(E18:N18,2)) -> 9.9 | AH18: =IF(COUNT(E18:N18)<3,"",SMALL(E18:N18,3)) -> 19 | AI18: =IF(COUNT(E18:N18)<4,"",SMALL(E18:N18,4)) ->  | AJ18: =IF(COUNT(E18:N18)<5,"",SMALL(E18:N18,5)) ->  | AK18: =IF(COUNT(E18:N18)<6,"",SMALL(E18:N18,6)) ->  | AL18: =IF(COUNT(E18:N18)<3,"",AVERAGE(AF18:AH18)) -> 12.13333333 | AM18: =IF(COUNT(E18:N18)<4,"",AVERAGE(AG18:AI18)) ->  | AN18: =IF(COUNT(E18:N18)<5,"",AVERAGE(AH18:AJ18)) ->  | AO18: =IF(COUNT(E18:N18)<6,"",AVERAGE(AI18:AK18)) ->  | AQ18: =IF(E18>=1000,TEXT(E18,"0.000,00"),TEXT(E18,"0,00")) -> 9,90 | AR18: =IF(F18>=1000,TEXT(F18,"0.000,00"),TEXT(F18,"0,00")) -> 19,00 | AS18: =IF(G18>=1000,TEXT(G18,"0.000,00"),TEXT(G18,"0,00")) -> 0,00 | AT18: =IF(H18>=1000,TEXT(H18,"0.000,00"),TEXT(H18,"0,00")) -> 7,50 | AU18: =IF(I18>=1000,TEXT(I18,"0.000,00"),TEXT(I18,"0,00")) -> 0,00 | AV18: =IF(J18>=1000,TEXT(J18,"0.000,00"),TEXT(J18,"0,00")) -> 0,00 | AW18: =IF(K18>=1000,TEXT(K18,"0.000,00"),TEXT(K18,"0,00")) -> 0,00 | AX18: =IF(L18>=1000,TEXT(L18,"0.000,00"),TEXT(L18,"0,00")) -> 0,00 | AY18: =IF(M18>=1000,TEXT(M18,"0.000,00"),TEXT(M18,"0,00")) -> 0,00 | AZ18: =IF(N18>=1000,TEXT(N18,"0.000,00"),TEXT(N18,"0,00")) -> 0,00 | BB18: =IF(PREENCHER!AL18="",#REF!,IF(PREENCHER!AM18="",#REF!,IF(PREENCHER!AN18="",#REF!,IF(STDEV(PREENCHER!$AF18:$AH18)/AVERAGE(PREENCHER!$AF18:$AH18)>#REF!,IF(STDEV(PREENCHER!$AG18:$AI18)/AVERAGE(PREENCHER!$AG18:$AI18)>#REF!,IF(STDEV(PREENCHER!$AH18:$AJ18)/AVERAGE(PREENCHER!$AH18:$AJ18)>#REF!,IF(STDEV(PREENCHER!$AI18:$AK18)/AVERAGE(PREENCHER!$AI18:$AK18)>#REF!,#REF!,AVERAGE(PREENCHER!$AI18:$AK18)),AVERAGE(PREENCHER!$AH18:$AJ18)),AVERAGE(PREENCHER!$AG18:$AI18)),AVERAGE(PREENCHER!$AF18:$AH18))))) ->  | BC18: =IF(ISERROR(ROUND(BB18,2)),"",ROUND(BB18,2)) ->  | BG18: =IF(ISERROR(IF(COUNT(E18:N18)=2,"Apenas dois preços comparativos válidos. ","")),"",IF(COUNT(E18:N18)=2,"Apenas dois preços comparativos válidos. ","")) ->  | BH18: =IF(ISERROR(IF(COUNT(E18:N18)=1,"Apenas um preço comparativo válido. ","")),"",IF(COUNT(E18:N18)=1,"Apenas um preço comparativo válido. ","")) ->  | BI18: =IF(A18="","",IF(ISERROR(IF(COUNT(E18:N18)=0,"Nenhum preço comparativo válido. ","")),"",IF(COUNT(E18:N18)=0,"Nenhum preço comparativo válido. ",""))) ->  | BJ18: =IF(ISERROR(IF(R18>P18,(R18-P18)/P18,"")),"",IF(R18>P18,(R18-P18)/P18,"")) ->  | BK18: =IF(ISERROR(IF(BJ18="","","Neste item, o valor contratado pelo TJDFT é "&TEXT(BJ18,"0,00%")&" superior à média comparativa.")),"",IF(BJ18="","","Neste item, o valor contratado pelo TJDFT é "&TEXT(BJ18,"0,00%")&" superior à média comparativa.")) -> 
R19: =IF(A19="","",ROUND(Q19*D19,2)) ->  | S19: =IF(A19="","",CONCATENATE($BG19,$BH19,$BI19,$BK19)) ->  | U19: =IF(ISERROR(COUNTA(E19:N19)),"",COUNTA(E19:N19)) -> 0 | V19: =IF(ISERROR(COUNT(E19:N19)),"",COUNT(E19:N19)) -> 0 | W19: =IF(ISERROR(MIN(E19:N19)),"",MIN(E19:N19)) -> 0 | X19: =IF(ISERROR(MAX(E19:N19)),"",MAX(E19:N19)) -> 0 | Y19: =IF(ISERROR(ROUND(AVERAGE(E19:N19),2)),"",ROUND(AVERAGE(E19:N19),2)) ->  | Z19: =IF(ISERROR(MEDIAN(E19:N19)),"",MEDIAN(E19:N19)) ->  | AA19: =IF(ISERROR(STDEV(E19:N19)),"",STDEV(E19:N19)) ->  | AB19: =IF(ISERROR(AA19/Y19),"",AA19/Y19) ->  | AF19: =IF(COUNT(E19:N19)<1,"",SMALL(E19:N19,1)) ->  | AG19: =IF(COUNT(E19:N19)<2,"",SMALL(E19:N19,2)) ->  | AH19: =IF(COUNT(E19:N19)<3,"",SMALL(E19:N19,3)) ->  | AI19: =IF(COUNT(E19:N19)<4,"",SMALL(E19:N19,4)) ->  | AJ19: =IF(COUNT(E19:N19)<5,"",SMALL(E19:N19,5)) ->  | AK19: =IF(COUNT(E19:N19)<6,"",SMALL(E19:N19,6)) ->  | AL19: =IF(COUNT(E19:N19)<3,"",AVERAGE(AF19:AH19)) ->  | AM19: =IF(COUNT(E19:N19)<4,"",AVERAGE(AG19:AI19)) ->  | AN19: =IF(COUNT(E19:N19)<5,"",AVERAGE(AH19:AJ19)) ->  | AO19: =IF(COUNT(E19:N19)<6,"",AVERAGE(AI19:AK19)) ->  | AQ19: =IF(E19>=1000,TEXT(E19,"0.000,00"),TEXT(E19,"0,00")) -> 0,00 | AR19: =IF(F19>=1000,TEXT(F19,"0.000,00"),TEXT(F19,"0,00")) -> 0,00 | AS19: =IF(G19>=1000,TEXT(G19,"0.000,00"),TEXT(G19,"0,00")) -> 0,00 | AT19: =IF(H19>=1000,TEXT(H19,"0.000,00"),TEXT(H19,"0,00")) -> 0,00 | AU19: =IF(I19>=1000,TEXT(I19,"0.000,00"),TEXT(I19,"0,00")) -> 0,00 | AV19: =IF(J19>=1000,TEXT(J19,"0.000,00"),TEXT(J19,"0,00")) -> 0,00 | AW19: =IF(K19>=1000,TEXT(K19,"0.000,00"),TEXT(K19,"0,00")) -> 0,00 | AX19: =IF(L19>=1000,TEXT(L19,"0.000,00"),TEXT(L19,"0,00")) -> 0,00 | AY19: =IF(M19>=1000,TEXT(M19,"0.000,00"),TEXT(M19,"0,00")) -> 0,00 | AZ19: =IF(N19>=1000,TEXT(N19,"0.000,00"),TEXT(N19,"0,00")) -> 0,00 | BB19: =IF(PREENCHER!AL19="",#REF!,IF(PREENCHER!AM19="",#REF!,IF(PREENCHER!AN19="",#REF!,IF(STDEV(PREENCHER!$AF19:$AH19)/AVERAGE(PREENCHER!$AF19:$AH19)>#REF!,IF(STDEV(PREENCHER!$AG19:$AI19)/AVERAGE(PREENCHER!$AG19:$AI19)>#REF!,IF(STDEV(PREENCHER!$AH19:$AJ19)/AVERAGE(PREENCHER!$AH19:$AJ19)>#REF!,IF(STDEV(PREENCHER!$AI19:$AK19)/AVERAGE(PREENCHER!$AI19:$AK19)>#REF!,#REF!,AVERAGE(PREENCHER!$AI19:$AK19)),AVERAGE(PREENCHER!$AH19:$AJ19)),AVERAGE(PREENCHER!$AG19:$AI19)),AVERAGE(PREENCHER!$AF19:$AH19))))) ->  | BC19: =IF(ISERROR(ROUND(BB19,2)),"",ROUND(BB19,2)) ->  | BG19: =IF(ISERROR(IF(COUNT(E19:N19)=2,"Apenas dois preços comparativos válidos. ","")),"",IF(COUNT(E19:N19)=2,"Apenas dois preços comparativos válidos. ","")) ->  | BH19: =IF(ISERROR(IF(COUNT(E19:N19)=1,"Apenas um preço comparativo válido. ","")),"",IF(COUNT(E19:N19)=1,"Apenas um preço comparativo válido. ","")) ->  | BI19: =IF(A19="","",IF(ISERROR(IF(COUNT(E19:N19)=0,"Nenhum preço comparativo válido. ","")),"",IF(COUNT(E19:N19)=0,"Nenhum preço comparativo válido. ",""))) ->  | BJ19: =IF(ISERROR(IF(R19>P19,(R19-P19)/P19,"")),"",IF(R19>P19,(R19-P19)/P19,"")) ->  | BK19: =IF(ISERROR(IF(BJ19="","","Neste item, o valor contratado pelo TJDFT é "&TEXT(BJ19,"0,00%")&" superior à média comparativa.")),"",IF(BJ19="","","Neste item, o valor contratado pelo TJDFT é "&TEXT(BJ19,"0,00%")&" superior à média comparativa.")) -> 
O20: =IF(ISERROR(ROUND(AVERAGE(E20:N20),2)),"",ROUND(AVERAGE(E20:N20),2)) ->  | P20: =IF(ISERROR(ROUND(O20*D20,2)),"",ROUND(O20*D20,2)) ->  | R20: =IF(A20="","",ROUND(Q20*D20,2)) ->  | S20: =IF(A20="","",CONCATENATE($BG20,$BH20,$BI20,$BK20)) ->  | U20: =IF(ISERROR(COUNTA(E20:N20)),"",COUNTA(E20:N20)) -> 0 | V20: =IF(ISERROR(COUNT(E20:N20)),"",COUNT(E20:N20)) -> 0 | W20: =IF(ISERROR(MIN(E20:N20)),"",MIN(E20:N20)) -> 0 | X20: =IF(ISERROR(MAX(E20:N20)),"",MAX(E20:N20)) -> 0 | Y20: =IF(ISERROR(ROUND(AVERAGE(E20:N20),2)),"",ROUND(AVERAGE(E20:N20),2)) ->  | Z20: =IF(ISERROR(MEDIAN(E20:N20)),"",MEDIAN(E20:N20)) ->  | AA20: =IF(ISERROR(STDEV(E20:N20)),"",STDEV(E20:N20)) ->  | AB20: =IF(ISERROR(AA20/Y20),"",AA20/Y20) ->  | AF20: =IF(COUNT(E20:N20)<1,"",SMALL(E20:N20,1)) ->  | AG20: =IF(COUNT(E20:N20)<2,"",SMALL(E20:N20,2)) ->  | AH20: =IF(COUNT(E20:N20)<3,"",SMALL(E20:N20,3)) ->  | AI20: =IF(COUNT(E20:N20)<4,"",SMALL(E20:N20,4)) ->  | AJ20: =IF(COUNT(E20:N20)<5,"",SMALL(E20:N20,5)) ->  | AK20: =IF(COUNT(E20:N20)<6,"",SMALL(E20:N20,6)) ->  | AL20: =IF(COUNT(E20:N20)<3,"",AVERAGE(AF20:AH20)) ->  | AM20: =IF(COUNT(E20:N20)<4,"",AVERAGE(AG20:AI20)) ->  | AN20: =IF(COUNT(E20:N20)<5,"",AVERAGE(AH20:AJ20)) ->  | AO20: =IF(COUNT(E20:N20)<6,"",AVERAGE(AI20:AK20)) ->  | AQ20: =IF(E20>=1000,TEXT(E20,"0.000,00"),TEXT(E20,"0,00")) -> 0,00 | AR20: =IF(F20>=1000,TEXT(F20,"0.000,00"),TEXT(F20,"0,00")) -> 0,00 | AS20: =IF(G20>=1000,TEXT(G20,"0.000,00"),TEXT(G20,"0,00")) -> 0,00 | AT20: =IF(H20>=1000,TEXT(H20,"0.000,00"),TEXT(H20,"0,00")) -> 0,00 | AU20: =IF(I20>=1000,TEXT(I20,"0.000,00"),TEXT(I20,"0,00")) -> 0,00 | AV20: =IF(J20>=1000,TEXT(J20,"0.000,00"),TEXT(J20,"0,00")) -> 0,00 | AW20: =IF(K20>=1000,TEXT(K20,"0.000,00"),TEXT(K20,"0,00")) -> 0,00 | AX20: =IF(L20>=1000,TEXT(L20,"0.000,00"),TEXT(L20,"0,00")) -> 0,00 | AY20: =IF(M20>=1000,TEXT(M20,"0.000,00"),TEXT(M20,"0,00")) -> 0,00 | AZ20: =IF(N20>=1000,TEXT(N20,"0.000,00"),TEXT(N20,"0,00")) -> 0,00 | BB20: =IF(PREENCHER!AL20="",#REF!,IF(PREENCHER!AM20="",#REF!,IF(PREENCHER!AN20="",#REF!,IF(STDEV(PREENCHER!$AF20:$AH20)/AVERAGE(PREENCHER!$AF20:$AH20)>#REF!,IF(STDEV(PREENCHER!$AG20:$AI20)/AVERAGE(PREENCHER!$AG20:$AI20)>#REF!,IF(STDEV(PREENCHER!$AH20:$AJ20)/AVERAGE(PREENCHER!$AH20:$AJ20)>#REF!,IF(STDEV(PREENCHER!$AI20:$AK20)/AVERAGE(PREENCHER!$AI20:$AK20)>#REF!,#REF!,AVERAGE(PREENCHER!$AI20:$AK20)),AVERAGE(PREENCHER!$AH20:$AJ20)),AVERAGE(PREENCHER!$AG20:$AI20)),AVERAGE(PREENCHER!$AF20:$AH20))))) ->  | BC20: =IF(ISERROR(ROUND(BB20,2)),"",ROUND(BB20,2)) ->  | BG20: =IF(ISERROR(IF(COUNT(E20:N20)=2,"Apenas dois preços comparativos válidos. ","")),"",IF(COUNT(E20:N20)=2,"Apenas dois preços comparativos válidos. ","")) ->  | BH20: =IF(ISERROR(IF(COUNT(E20:N20)=1,"Apenas um preço comparativo válido. ","")),"",IF(COUNT(E20:N20)=1,"Apenas um preço comparativo válido. ","")) ->  | BI20: =IF(A20="","",IF(ISERROR(IF(COUNT(E20:N20)=0,"Nenhum preço comparativo válido. ","")),"",IF(COUNT(E20:N20)=0,"Nenhum preço comparativo válido. ",""))) ->  | BJ20: =IF(ISERROR(IF(R20>P20,(R20-P20)/P20,"")),"",IF(R20>P20,(R20-P20)/P20,"")) ->  | BK20: =IF(ISERROR(IF(BJ20="","","Neste item, o valor contratado pelo TJDFT é "&TEXT(BJ20,"0,00%")&" superior à média comparativa.")),"",IF(BJ20="","","Neste item, o valor contratado pelo TJDFT é "&TEXT(BJ20,"0,00%")&" superior à média comparativa.")) -> 
O21: =IF(ISERROR(ROUND(AVERAGE(E21:N21),2)),"",ROUND(AVERAGE(E21:N21),2)) ->  | P21: =IF(ISERROR(ROUND(O21*D21,2)),"",ROUND(O21*D21,2)) ->  | R21: =IF(A21="","",ROUND(Q21*D21,2)) ->  | S21: =IF(A21="","",CONCATENATE($BG21,$BH21,$BI21,$BK21)) ->  | U21: =IF(ISERROR(COUNTA(E21:N21)),"",COUNTA(E21:N21)) -> 0 | V21: =IF(ISERROR(COUNT(E21:N21)),"",COUNT(E21:N21)) -> 0 | W21: =IF(ISERROR(MIN(E21:N21)),"",MIN(E21:N21)) -> 0 | X21: =IF(ISERROR(MAX(E21:N21)),"",MAX(E21:N21)) -> 0 | Y21: =IF(ISERROR(ROUND(AVERAGE(E21:N21),2)),"",ROUND(AVERAGE(E21:N21),2)) ->  | Z21: =IF(ISERROR(MEDIAN(E21:N21)),"",MEDIAN(E21:N21)) ->  | AA21: =IF(ISERROR(STDEV(E21:N21)),"",STDEV(E21:N21)) ->  | AB21: =IF(ISERROR(AA21/Y21),"",AA21/Y21) ->  | AF21: =IF(COUNT(E21:N21)<1,"",SMALL(E21:N21,1)) ->  | AG21: =IF(COUNT(E21:N21)<2,"",SMALL(E21:N21,2)) ->  | AH21: =IF(COUNT(E21:N21)<3,"",SMALL(E21:N21,3)) ->  | AI21: =IF(COUNT(E21:N21)<4,"",SMALL(E21:N21,4)) ->  | AJ21: =IF(COUNT(E21:N21)<5,"",SMALL(E21:N21,5)) ->  | AK21: =IF(COUNT(E21:N21)<6,"",SMALL(E21:N21,6)) ->  | AL21: =IF(COUNT(E21:N21)<3,"",AVERAGE(AF21:AH21)) ->  | AM21: =IF(COUNT(E21:N21)<4,"",AVERAGE(AG21:AI21)) ->  | AN21: =IF(COUNT(E21:N21)<5,"",AVERAGE(AH21:AJ21)) ->  | AO21: =IF(COUNT(E21:N21)<6,"",AVERAGE(AI21:AK21)) ->  | AQ21: =IF(E21>=1000,TEXT(E21,"0.000,00"),TEXT(E21,"0,00")) -> 0,00 | AR21: =IF(F21>=1000,TEXT(F21,"0.000,00"),TEXT(F21,"0,00")) -> 0,00 | AS21: =IF(G21>=1000,TEXT(G21,"0.000,00"),TEXT(G21,"0,00")) -> 0,00 | AT21: =IF(H21>=1000,TEXT(H21,"0.000,00"),TEXT(H21,"0,00")) -> 0,00 | AU21: =IF(I21>=1000,TEXT(I21,"0.000,00"),TEXT(I21,"0,00")) -> 0,00 | AV21: =IF(J21>=1000,TEXT(J21,"0.000,00"),TEXT(J21,"0,00")) -> 0,00 | AW21: =IF(K21>=1000,TEXT(K21,"0.000,00"),TEXT(K21,"0,00")) -> 0,00 | AX21: =IF(L21>=1000,TEXT(L21,"0.000,00"),TEXT(L21,"0,00")) -> 0,00 | AY21: =IF(M21>=1000,TEXT(M21,"0.000,00"),TEXT(M21,"0,00")) -> 0,00 | AZ21: =IF(N21>=1000,TEXT(N21,"0.000,00"),TEXT(N21,"0,00")) -> 0,00 | BB21: =IF(PREENCHER!AL21="",#REF!,IF(PREENCHER!AM21="",#REF!,IF(PREENCHER!AN21="",#REF!,IF(STDEV(PREENCHER!$AF21:$AH21)/AVERAGE(PREENCHER!$AF21:$AH21)>#REF!,IF(STDEV(PREENCHER!$AG21:$AI21)/AVERAGE(PREENCHER!$AG21:$AI21)>#REF!,IF(STDEV(PREENCHER!$AH21:$AJ21)/AVERAGE(PREENCHER!$AH21:$AJ21)>#REF!,IF(STDEV(PREENCHER!$AI21:$AK21)/AVERAGE(PREENCHER!$AI21:$AK21)>#REF!,#REF!,AVERAGE(PREENCHER!$AI21:$AK21)),AVERAGE(PREENCHER!$AH21:$AJ21)),AVERAGE(PREENCHER!$AG21:$AI21)),AVERAGE(PREENCHER!$AF21:$AH21))))) ->  | BC21: =IF(ISERROR(ROUND(BB21,2)),"",ROUND(BB21,2)) ->  | BG21: =IF(ISERROR(IF(COUNT(E21:N21)=2,"Apenas dois preços comparativos válidos. ","")),"",IF(COUNT(E21:N21)=2,"Apenas dois preços comparativos válidos. ","")) ->  | BH21: =IF(ISERROR(IF(COUNT(E21:N21)=1,"Apenas um preço comparativo válido. ","")),"",IF(COUNT(E21:N21)=1,"Apenas um preço comparativo válido. ","")) ->  | BI21: =IF(A21="","",IF(ISERROR(IF(COUNT(E21:N21)=0,"Nenhum preço comparativo válido. ","")),"",IF(COUNT(E21:N21)=0,"Nenhum preço comparativo válido. ",""))) ->  | BJ21: =IF(ISERROR(IF(R21>P21,(R21-P21)/P21,"")),"",IF(R21>P21,(R21-P21)/P21,"")) ->  | BK21: =IF(ISERROR(IF(BJ21="","","Neste item, o valor contratado pelo TJDFT é "&TEXT(BJ21,"0,00%")&" superior à média comparativa.")),"",IF(BJ21="","","Neste item, o valor contratado pelo TJDFT é "&TEXT(BJ21,"0,00%")&" superior à média comparativa.")) -> 
O22: =IF(ISERROR(ROUND(AVERAGE(E22:N22),2)),"",ROUND(AVERAGE(E22:N22),2)) ->  | P22: =IF(ISERROR(ROUND(O22*D22,2)),"",ROUND(O22*D22,2)) ->  | R22: =IF(A22="","",ROUND(Q22*D22,2)) ->  | S22: =IF(A22="","",CONCATENATE($BG22,$BH22,$BI22,$BK22)) ->  | U22: =IF(ISERROR(COUNTA(E22:N22)),"",COUNTA(E22:N22)) -> 0 | V22: =IF(ISERROR(COUNT(E22:N22)),"",COUNT(E22:N22)) -> 0 | W22: =IF(ISERROR(MIN(E22:N22)),"",MIN(E22:N22)) -> 0 | X22: =IF(ISERROR(MAX(E22:N22)),"",MAX(E22:N22)) -> 0 | Y22: =IF(ISERROR(ROUND(AVERAGE(E22:N22),2)),"",ROUND(AVERAGE(E22:N22),2)) ->  | Z22: =IF(ISERROR(MEDIAN(E22:N22)),"",MEDIAN(E22:N22)) ->  | AA22: =IF(ISERROR(STDEV(E22:N22)),"",STDEV(E22:N22)) ->  | AB22: =IF(ISERROR(AA22/Y22),"",AA22/Y22) ->  | AF22: =IF(COUNT(E22:N22)<1,"",SMALL(E22:N22,1)) ->  | AG22: =IF(COUNT(E22:N22)<2,"",SMALL(E22:N22,2)) ->  | AH22: =IF(COUNT(E22:N22)<3,"",SMALL(E22:N22,3)) ->  | AI22: =IF(COUNT(E22:N22)<4,"",SMALL(E22:N22,4)) ->  | AJ22: =IF(COUNT(E22:N22)<5,"",SMALL(E22:N22,5)) ->  | AK22: =IF(COUNT(E22:N22)<6,"",SMALL(E22:N22,6)) ->  | AL22: =IF(COUNT(E22:N22)<3,"",AVERAGE(AF22:AH22)) ->  | AM22: =IF(COUNT(E22:N22)<4,"",AVERAGE(AG22:AI22)) ->  | AN22: =IF(COUNT(E22:N22)<5,"",AVERAGE(AH22:AJ22)) ->  | AO22: =IF(COUNT(E22:N22)<6,"",AVERAGE(AI22:AK22)) ->  | AQ22: =IF(E22>=1000,TEXT(E22,"0.000,00"),TEXT(E22,"0,00")) -> 0,00 | AR22: =IF(F22>=1000,TEXT(F22,"0.000,00"),TEXT(F22,"0,00")) -> 0,00 | AS22: =IF(G22>=1000,TEXT(G22,"0.000,00"),TEXT(G22,"0,00")) -> 0,00 | AT22: =IF(H22>=1000,TEXT(H22,"0.000,00"),TEXT(H22,"0,00")) -> 0,00 | AU22: =IF(I22>=1000,TEXT(I22,"0.000,00"),TEXT(I22,"0,00")) -> 0,00 | AV22: =IF(J22>=1000,TEXT(J22,"0.000,00"),TEXT(J22,"0,00")) -> 0,00 | AW22: =IF(K22>=1000,TEXT(K22,"0.000,00"),TEXT(K22,"0,00")) -> 0,00 | AX22: =IF(L22>=1000,TEXT(L22,"0.000,00"),TEXT(L22,"0,00")) -> 0,00 | AY22: =IF(M22>=1000,TEXT(M22,"0.000,00"),TEXT(M22,"0,00")) -> 0,00 | AZ22: =IF(N22>=1000,TEXT(N22,"0.000,00"),TEXT(N22,"0,00")) -> 0,00 | BB22: =IF(PREENCHER!AL22="",#REF!,IF(PREENCHER!AM22="",#REF!,IF(PREENCHER!AN22="",#REF!,IF(STDEV(PREENCHER!$AF22:$AH22)/AVERAGE(PREENCHER!$AF22:$AH22)>#REF!,IF(STDEV(PREENCHER!$AG22:$AI22)/AVERAGE(PREENCHER!$AG22:$AI22)>#REF!,IF(STDEV(PREENCHER!$AH22:$AJ22)/AVERAGE(PREENCHER!$AH22:$AJ22)>#REF!,IF(STDEV(PREENCHER!$AI22:$AK22)/AVERAGE(PREENCHER!$AI22:$AK22)>#REF!,#REF!,AVERAGE(PREENCHER!$AI22:$AK22)),AVERAGE(PREENCHER!$AH22:$AJ22)),AVERAGE(PREENCHER!$AG22:$AI22)),AVERAGE(PREENCHER!$AF22:$AH22))))) ->  | BC22: =IF(ISERROR(ROUND(BB22,2)),"",ROUND(BB22,2)) ->  | BG22: =IF(ISERROR(IF(COUNT(E22:N22)=2,"Apenas dois preços comparativos válidos. ","")),"",IF(COUNT(E22:N22)=2,"Apenas dois preços comparativos válidos. ","")) ->  | BH22: =IF(ISERROR(IF(COUNT(E22:N22)=1,"Apenas um preço comparativo válido. ","")),"",IF(COUNT(E22:N22)=1,"Apenas um preço comparativo válido. ","")) ->  | BI22: =IF(A22="","",IF(ISERROR(IF(COUNT(E22:N22)=0,"Nenhum preço comparativo válido. ","")),"",IF(COUNT(E22:N22)=0,"Nenhum preço comparativo válido. ",""))) ->  | BJ22: =IF(ISERROR(IF(R22>P22,(R22-P22)/P22,"")),"",IF(R22>P22,(R22-P22)/P22,"")) ->  | BK22: =IF(ISERROR(IF(BJ22="","","Neste item, o valor contratado pelo TJDFT é "&TEXT(BJ22,"0,00%")&" superior à média comparativa.")),"",IF(BJ22="","","Neste item, o valor contratado pelo TJDFT é "&TEXT(BJ22,"0,00%")&" superior à média comparativa.")) -> 
O23: =IF(ISERROR(ROUND(AVERAGE(E23:N23),2)),"",ROUND(AVERAGE(E23:N23),2)) ->  | P23: =IF(ISERROR(ROUND(O23*D23,2)),"",ROUND(O23*D23,2)) ->  | R23: =IF(A23="","",ROUND(Q23*D23,2)) ->  | S23: =IF(A23="","",CONCATENATE($BG23,$BH23,$BI23,$BK23)) ->  | U23: =IF(ISERROR(COUNTA(E23:N23)),"",COUNTA(E23:N23)) -> 0 | V23: =IF(ISERROR(COUNT(E23:N23)),"",COUNT(E23:N23)) -> 0 | W23: =IF(ISERROR(MIN(E23:N23)),"",MIN(E23:N23)) -> 0 | X23: =IF(ISERROR(MAX(E23:N23)),"",MAX(E23:N23)) -> 0 | Y23: =IF(ISERROR(ROUND(AVERAGE(E23:N23),2)),"",ROUND(AVERAGE(E23:N23),2)) ->  | Z23: =IF(ISERROR(MEDIAN(E23:N23)),"",MEDIAN(E23:N23)) ->  | AA23: =IF(ISERROR(STDEV(E23:N23)),"",STDEV(E23:N23)) ->  | AB23: =IF(ISERROR(AA23/Y23),"",AA23/Y23) ->  | AF23: =IF(COUNT(E23:N23)<1,"",SMALL(E23:N23,1)) ->  | AG23: =IF(COUNT(E23:N23)<2,"",SMALL(E23:N23,2)) ->  | AH23: =IF(COUNT(E23:N23)<3,"",SMALL(E23:N23,3)) ->  | AI23: =IF(COUNT(E23:N23)<4,"",SMALL(E23:N23,4)) ->  | AJ23: =IF(COUNT(E23:N23)<5,"",SMALL(E23:N23,5)) ->  | AK23: =IF(COUNT(E23:N23)<6,"",SMALL(E23:N23,6)) ->  | AL23: =IF(COUNT(E23:N23)<3,"",AVERAGE(AF23:AH23)) ->  | AM23: =IF(COUNT(E23:N23)<4,"",AVERAGE(AG23:AI23)) ->  | AN23: =IF(COUNT(E23:N23)<5,"",AVERAGE(AH23:AJ23)) ->  | AO23: =IF(COUNT(E23:N23)<6,"",AVERAGE(AI23:AK23)) ->  | AQ23: =IF(E23>=1000,TEXT(E23,"0.000,00"),TEXT(E23,"0,00")) -> 0,00 | AR23: =IF(F23>=1000,TEXT(F23,"0.000,00"),TEXT(F23,"0,00")) -> 0,00 | AS23: =IF(G23>=1000,TEXT(G23,"0.000,00"),TEXT(G23,"0,00")) -> 0,00 | AT23: =IF(H23>=1000,TEXT(H23,"0.000,00"),TEXT(H23,"0,00")) -> 0,00 | AU23: =IF(I23>=1000,TEXT(I23,"0.000,00"),TEXT(I23,"0,00")) -> 0,00 | AV23: =IF(J23>=1000,TEXT(J23,"0.000,00"),TEXT(J23,"0,00")) -> 0,00 | AW23: =IF(K23>=1000,TEXT(K23,"0.000,00"),TEXT(K23,"0,00")) -> 0,00 | AX23: =IF(L23>=1000,TEXT(L23,"0.000,00"),TEXT(L23,"0,00")) -> 0,00 | AY23: =IF(M23>=1000,TEXT(M23,"0.000,00"),TEXT(M23,"0,00")) -> 0,00 | AZ23: =IF(N23>=1000,TEXT(N23,"0.000,00"),TEXT(N23,"0,00")) -> 0,00 | BB23: =IF(PREENCHER!AL23="",#REF!,IF(PREENCHER!AM23="",#REF!,IF(PREENCHER!AN23="",#REF!,IF(STDEV(PREENCHER!$AF23:$AH23)/AVERAGE(PREENCHER!$AF23:$AH23)>#REF!,IF(STDEV(PREENCHER!$AG23:$AI23)/AVERAGE(PREENCHER!$AG23:$AI23)>#REF!,IF(STDEV(PREENCHER!$AH23:$AJ23)/AVERAGE(PREENCHER!$AH23:$AJ23)>#REF!,IF(STDEV(PREENCHER!$AI23:$AK23)/AVERAGE(PREENCHER!$AI23:$AK23)>#REF!,#REF!,AVERAGE(PREENCHER!$AI23:$AK23)),AVERAGE(PREENCHER!$AH23:$AJ23)),AVERAGE(PREENCHER!$AG23:$AI23)),AVERAGE(PREENCHER!$AF23:$AH23))))) ->  | BC23: =IF(ISERROR(ROUND(BB23,2)),"",ROUND(BB23,2)) ->  | BG23: =IF(ISERROR(IF(COUNT(E23:N23)=2,"Apenas dois preços comparativos válidos. ","")),"",IF(COUNT(E23:N23)=2,"Apenas dois preços comparativos válidos. ","")) ->  | BH23: =IF(ISERROR(IF(COUNT(E23:N23)=1,"Apenas um preço comparativo válido. ","")),"",IF(COUNT(E23:N23)=1,"Apenas um preço comparativo válido. ","")) ->  | BI23: =IF(A23="","",IF(ISERROR(IF(COUNT(E23:N23)=0,"Nenhum preço comparativo válido. ","")),"",IF(COUNT(E23:N23)=0,"Nenhum preço comparativo válido. ",""))) ->  | BJ23: =IF(ISERROR(IF(R23>P23,(R23-P23)/P23,"")),"",IF(R23>P23,(R23-P23)/P23,"")) ->  | BK23: =IF(ISERROR(IF(BJ23="","","Neste item, o valor contratado pelo TJDFT é "&TEXT(BJ23,"0,00%")&" superior à média comparativa.")),"",IF(BJ23="","","Neste item, o valor contratado pelo TJDFT é "&TEXT(BJ23,"0,00%")&" superior à média comparativa.")) -> 
O24: =IF(ISERROR(ROUND(AVERAGE(E24:N24),2)),"",ROUND(AVERAGE(E24:N24),2)) ->  | P24: =IF(ISERROR(ROUND(O24*D24,2)),"",ROUND(O24*D24,2)) ->  | R24: =IF(A24="","",ROUND(Q24*D24,2)) ->  | S24: =IF(A24="","",CONCATENATE($BG24,$BH24,$BI24,$BK24)) ->  | U24: =IF(ISERROR(COUNTA(E24:N24)),"",COUNTA(E24:N24)) -> 0 | V24: =IF(ISERROR(COUNT(E24:N24)),"",COUNT(E24:N24)) -> 0 | W24: =IF(ISERROR(MIN(E24:N24)),"",MIN(E24:N24)) -> 0 | X24: =IF(ISERROR(MAX(E24:N24)),"",MAX(E24:N24)) -> 0 | Y24: =IF(ISERROR(ROUND(AVERAGE(E24:N24),2)),"",ROUND(AVERAGE(E24:N24),2)) ->  | Z24: =IF(ISERROR(MEDIAN(E24:N24)),"",MEDIAN(E24:N24)) ->  | AA24: =IF(ISERROR(STDEV(E24:N24)),"",STDEV(E24:N24)) ->  | AB24: =IF(ISERROR(AA24/Y24),"",AA24/Y24) ->  | AF24: =IF(COUNT(E24:N24)<1,"",SMALL(E24:N24,1)) ->  | AG24: =IF(COUNT(E24:N24)<2,"",SMALL(E24:N24,2)) ->  | AH24: =IF(COUNT(E24:N24)<3,"",SMALL(E24:N24,3)) ->  | AI24: =IF(COUNT(E24:N24)<4,"",SMALL(E24:N24,4)) ->  | AJ24: =IF(COUNT(E24:N24)<5,"",SMALL(E24:N24,5)) ->  | AK24: =IF(COUNT(E24:N24)<6,"",SMALL(E24:N24,6)) ->  | AL24: =IF(COUNT(E24:N24)<3,"",AVERAGE(AF24:AH24)) ->  | AM24: =IF(COUNT(E24:N24)<4,"",AVERAGE(AG24:AI24)) ->  | AN24: =IF(COUNT(E24:N24)<5,"",AVERAGE(AH24:AJ24)) ->  | AO24: =IF(COUNT(E24:N24)<6,"",AVERAGE(AI24:AK24)) ->  | AQ24: =IF(E24>=1000,TEXT(E24,"0.000,00"),TEXT(E24,"0,00")) -> 0,00 | AR24: =IF(F24>=1000,TEXT(F24,"0.000,00"),TEXT(F24,"0,00")) -> 0,00 | AS24: =IF(G24>=1000,TEXT(G24,"0.000,00"),TEXT(G24,"0,00")) -> 0,00 | AT24: =IF(H24>=1000,TEXT(H24,"0.000,00"),TEXT(H24,"0,00")) -> 0,00 | AU24: =IF(I24>=1000,TEXT(I24,"0.000,00"),TEXT(I24,"0,00")) -> 0,00 | AV24: =IF(J24>=1000,TEXT(J24,"0.000,00"),TEXT(J24,"0,00")) -> 0,00 | AW24: =IF(K24>=1000,TEXT(K24,"0.000,00"),TEXT(K24,"0,00")) -> 0,00 | AX24: =IF(L24>=1000,TEXT(L24,"0.000,00"),TEXT(L24,"0,00")) -> 0,00 | AY24: =IF(M24>=1000,TEXT(M24,"0.000,00"),TEXT(M24,"0,00")) -> 0,00 | AZ24: =IF(N24>=1000,TEXT(N24,"0.000,00"),TEXT(N24,"0,00")) -> 0,00 | BB24: =IF(PREENCHER!AL24="",#REF!,IF(PREENCHER!AM24="",#REF!,IF(PREENCHER!AN24="",#REF!,IF(STDEV(PREENCHER!$AF24:$AH24)/AVERAGE(PREENCHER!$AF24:$AH24)>#REF!,IF(STDEV(PREENCHER!$AG24:$AI24)/AVERAGE(PREENCHER!$AG24:$AI24)>#REF!,IF(STDEV(PREENCHER!$AH24:$AJ24)/AVERAGE(PREENCHER!$AH24:$AJ24)>#REF!,IF(STDEV(PREENCHER!$AI24:$AK24)/AVERAGE(PREENCHER!$AI24:$AK24)>#REF!,#REF!,AVERAGE(PREENCHER!$AI24:$AK24)),AVERAGE(PREENCHER!$AH24:$AJ24)),AVERAGE(PREENCHER!$AG24:$AI24)),AVERAGE(PREENCHER!$AF24:$AH24))))) ->  | BC24: =IF(ISERROR(ROUND(BB24,2)),"",ROUND(BB24,2)) ->  | BG24: =IF(ISERROR(IF(COUNT(E24:N24)=2,"Apenas dois preços comparativos válidos. ","")),"",IF(COUNT(E24:N24)=2,"Apenas dois preços comparativos válidos. ","")) ->  | BH24: =IF(ISERROR(IF(COUNT(E24:N24)=1,"Apenas um preço comparativo válido. ","")),"",IF(COUNT(E24:N24)=1,"Apenas um preço comparativo válido. ","")) ->  | BI24: =IF(A24="","",IF(ISERROR(IF(COUNT(E24:N24)=0,"Nenhum preço comparativo válido. ","")),"",IF(COUNT(E24:N24)=0,"Nenhum preço comparativo válido. ",""))) ->  | BJ24: =IF(ISERROR(IF(R24>P24,(R24-P24)/P24,"")),"",IF(R24>P24,(R24-P24)/P24,"")) ->  | BK24: =IF(ISERROR(IF(BJ24="","","Neste item, o valor contratado pelo TJDFT é "&TEXT(BJ24,"0,00%")&" superior à média comparativa.")),"",IF(BJ24="","","Neste item, o valor contratado pelo TJDFT é "&TEXT(BJ24,"0,00%")&" superior à média comparativa.")) -> 
O25: =IF(ISERROR(ROUND(AVERAGE(E25:N25),2)),"",ROUND(AVERAGE(E25:N25),2)) ->  | P25: =IF(ISERROR(ROUND(O25*D25,2)),"",ROUND(O25*D25,2)) ->  | R25: =IF(A25="","",ROUND(Q25*D25,2)) ->  | S25: =IF(A25="","",CONCATENATE($BG25,$BH25,$BI25,$BK25)) ->  | U25: =IF(ISERROR(COUNTA(E25:N25)),"",COUNTA(E25:N25)) -> 0 | V25: =IF(ISERROR(COUNT(E25:N25)),"",COUNT(E25:N25)) -> 0 | W25: =IF(ISERROR(MIN(E25:N25)),"",MIN(E25:N25)) -> 0 | X25: =IF(ISERROR(MAX(E25:N25)),"",MAX(E25:N25)) -> 0 | Y25: =IF(ISERROR(ROUND(AVERAGE(E25:N25),2)),"",ROUND(AVERAGE(E25:N25),2)) ->  | Z25: =IF(ISERROR(MEDIAN(E25:N25)),"",MEDIAN(E25:N25)) ->  | AA25: =IF(ISERROR(STDEV(E25:N25)),"",STDEV(E25:N25)) ->  | AB25: =IF(ISERROR(AA25/Y25),"",AA25/Y25) ->  | AF25: =IF(COUNT(E25:N25)<1,"",SMALL(E25:N25,1)) ->  | AG25: =IF(COUNT(E25:N25)<2,"",SMALL(E25:N25,2)) ->  | AH25: =IF(COUNT(E25:N25)<3,"",SMALL(E25:N25,3)) ->  | AI25: =IF(COUNT(E25:N25)<4,"",SMALL(E25:N25,4)) ->  | AJ25: =IF(COUNT(E25:N25)<5,"",SMALL(E25:N25,5)) ->  | AK25: =IF(COUNT(E25:N25)<6,"",SMALL(E25:N25,6)) ->  | AL25: =IF(COUNT(E25:N25)<3,"",AVERAGE(AF25:AH25)) ->  | AM25: =IF(COUNT(E25:N25)<4,"",AVERAGE(AG25:AI25)) ->  | AN25: =IF(COUNT(E25:N25)<5,"",AVERAGE(AH25:AJ25)) ->  | AO25: =IF(COUNT(E25:N25)<6,"",AVERAGE(AI25:AK25)) ->  | AQ25: =IF(E25>=1000,TEXT(E25,"0.000,00"),TEXT(E25,"0,00")) -> 0,00 | AR25: =IF(F25>=1000,TEXT(F25,"0.000,00"),TEXT(F25,"0,00")) -> 0,00 | AS25: =IF(G25>=1000,TEXT(G25,"0.000,00"),TEXT(G25,"0,00")) -> 0,00 | AT25: =IF(H25>=1000,TEXT(H25,"0.000,00"),TEXT(H25,"0,00")) -> 0,00 | AU25: =IF(I25>=1000,TEXT(I25,"0.000,00"),TEXT(I25,"0,00")) -> 0,00 | AV25: =IF(J25>=1000,TEXT(J25,"0.000,00"),TEXT(J25,"0,00")) -> 0,00 | AW25: =IF(K25>=1000,TEXT(K25,"0.000,00"),TEXT(K25,"0,00")) -> 0,00 | AX25: =IF(L25>=1000,TEXT(L25,"0.000,00"),TEXT(L25,"0,00")) -> 0,00 | AY25: =IF(M25>=1000,TEXT(M25,"0.000,00"),TEXT(M25,"0,00")) -> 0,00 | AZ25: =IF(N25>=1000,TEXT(N25,"0.000,00"),TEXT(N25,"0,00")) -> 0,00 | BB25: =IF(PREENCHER!AL25="",#REF!,IF(PREENCHER!AM25="",#REF!,IF(PREENCHER!AN25="",#REF!,IF(STDEV(PREENCHER!$AF25:$AH25)/AVERAGE(PREENCHER!$AF25:$AH25)>#REF!,IF(STDEV(PREENCHER!$AG25:$AI25)/AVERAGE(PREENCHER!$AG25:$AI25)>#REF!,IF(STDEV(PREENCHER!$AH25:$AJ25)/AVERAGE(PREENCHER!$AH25:$AJ25)>#REF!,IF(STDEV(PREENCHER!$AI25:$AK25)/AVERAGE(PREENCHER!$AI25:$AK25)>#REF!,#REF!,AVERAGE(PREENCHER!$AI25:$AK25)),AVERAGE(PREENCHER!$AH25:$AJ25)),AVERAGE(PREENCHER!$AG25:$AI25)),AVERAGE(PREENCHER!$AF25:$AH25))))) ->  | BC25: =IF(ISERROR(ROUND(BB25,2)),"",ROUND(BB25,2)) ->  | BG25: =IF(ISERROR(IF(COUNT(E25:N25)=2,"Apenas dois preços comparativos válidos. ","")),"",IF(COUNT(E25:N25)=2,"Apenas dois preços comparativos válidos. ","")) ->  | BH25: =IF(ISERROR(IF(COUNT(E25:N25)=1,"Apenas um preço comparativo válido. ","")),"",IF(COUNT(E25:N25)=1,"Apenas um preço comparativo válido. ","")) ->  | BI25: =IF(A25="","",IF(ISERROR(IF(COUNT(E25:N25)=0,"Nenhum preço comparativo válido. ","")),"",IF(COUNT(E25:N25)=0,"Nenhum preço comparativo válido. ",""))) ->  | BJ25: =IF(ISERROR(IF(R25>P25,(R25-P25)/P25,"")),"",IF(R25>P25,(R25-P25)/P25,"")) ->  | BK25: =IF(ISERROR(IF(BJ25="","","Neste item, o valor contratado pelo TJDFT é "&TEXT(BJ25,"0,00%")&" superior à média comparativa.")),"",IF(BJ25="","","Neste item, o valor contratado pelo TJDFT é "&TEXT(BJ25,"0,00%")&" superior à média comparativa.")) -> 
O26: =IF(ISERROR(ROUND(AVERAGE(E26:N26),2)),"",ROUND(AVERAGE(E26:N26),2)) ->  | P26: =IF(ISERROR(ROUND(O26*D26,2)),"",ROUND(O26*D26,2)) ->  | R26: =IF(A26="","",ROUND(Q26*D26,2)) ->  | S26: =IF(A26="","",CONCATENATE($BG26,$BH26,$BI26,$BK26)) ->  | U26: =IF(ISERROR(COUNTA(E26:N26)),"",COUNTA(E26:N26)) -> 0 | V26: =IF(ISERROR(COUNT(E26:N26)),"",COUNT(E26:N26)) -> 0 | W26: =IF(ISERROR(MIN(E26:N26)),"",MIN(E26:N26)) -> 0 | X26: =IF(ISERROR(MAX(E26:N26)),"",MAX(E26:N26)) -> 0 | Y26: =IF(ISERROR(ROUND(AVERAGE(E26:N26),2)),"",ROUND(AVERAGE(E26:N26),2)) ->  | Z26: =IF(ISERROR(MEDIAN(E26:N26)),"",MEDIAN(E26:N26)) ->  | AA26: =IF(ISERROR(STDEV(E26:N26)),"",STDEV(E26:N26)) ->  | AB26: =IF(ISERROR(AA26/Y26),"",AA26/Y26) ->  | AF26: =IF(COUNT(E26:N26)<1,"",SMALL(E26:N26,1)) ->  | AG26: =IF(COUNT(E26:N26)<2,"",SMALL(E26:N26,2)) ->  | AH26: =IF(COUNT(E26:N26)<3,"",SMALL(E26:N26,3)) ->  | AI26: =IF(COUNT(E26:N26)<4,"",SMALL(E26:N26,4)) ->  | AJ26: =IF(COUNT(E26:N26)<5,"",SMALL(E26:N26,5)) ->  | AK26: =IF(COUNT(E26:N26)<6,"",SMALL(E26:N26,6)) ->  | AL26: =IF(COUNT(E26:N26)<3,"",AVERAGE(AF26:AH26)) ->  | AM26: =IF(COUNT(E26:N26)<4,"",AVERAGE(AG26:AI26)) ->  | AN26: =IF(COUNT(E26:N26)<5,"",AVERAGE(AH26:AJ26)) ->  | AO26: =IF(COUNT(E26:N26)<6,"",AVERAGE(AI26:AK26)) ->  | AQ26: =IF(E26>=1000,TEXT(E26,"0.000,00"),TEXT(E26,"0,00")) -> 0,00 | AR26: =IF(F26>=1000,TEXT(F26,"0.000,00"),TEXT(F26,"0,00")) -> 0,00 | AS26: =IF(G26>=1000,TEXT(G26,"0.000,00"),TEXT(G26,"0,00")) -> 0,00 | AT26: =IF(H26>=1000,TEXT(H26,"0.000,00"),TEXT(H26,"0,00")) -> 0,00 | AU26: =IF(I26>=1000,TEXT(I26,"0.000,00"),TEXT(I26,"0,00")) -> 0,00 | AV26: =IF(J26>=1000,TEXT(J26,"0.000,00"),TEXT(J26,"0,00")) -> 0,00 | AW26: =IF(K26>=1000,TEXT(K26,"0.000,00"),TEXT(K26,"0,00")) -> 0,00 | AX26: =IF(L26>=1000,TEXT(L26,"0.000,00"),TEXT(L26,"0,00")) -> 0,00 | AY26: =IF(M26>=1000,TEXT(M26,"0.000,00"),TEXT(M26,"0,00")) -> 0,00 | AZ26: =IF(N26>=1000,TEXT(N26,"0.000,00"),TEXT(N26,"0,00")) -> 0,00 | BB26: =IF(PREENCHER!AL26="",#REF!,IF(PREENCHER!AM26="",#REF!,IF(PREENCHER!AN26="",#REF!,IF(STDEV(PREENCHER!$AF26:$AH26)/AVERAGE(PREENCHER!$AF26:$AH26)>#REF!,IF(STDEV(PREENCHER!$AG26:$AI26)/AVERAGE(PREENCHER!$AG26:$AI26)>#REF!,IF(STDEV(PREENCHER!$AH26:$AJ26)/AVERAGE(PREENCHER!$AH26:$AJ26)>#REF!,IF(STDEV(PREENCHER!$AI26:$AK26)/AVERAGE(PREENCHER!$AI26:$AK26)>#REF!,#REF!,AVERAGE(PREENCHER!$AI26:$AK26)),AVERAGE(PREENCHER!$AH26:$AJ26)),AVERAGE(PREENCHER!$AG26:$AI26)),AVERAGE(PREENCHER!$AF26:$AH26))))) ->  | BC26: =IF(ISERROR(ROUND(BB26,2)),"",ROUND(BB26,2)) ->  | BG26: =IF(ISERROR(IF(COUNT(E26:N26)=2,"Apenas dois preços comparativos válidos. ","")),"",IF(COUNT(E26:N26)=2,"Apenas dois preços comparativos válidos. ","")) ->  | BH26: =IF(ISERROR(IF(COUNT(E26:N26)=1,"Apenas um preço comparativo válido. ","")),"",IF(COUNT(E26:N26)=1,"Apenas um preço comparativo válido. ","")) ->  | BI26: =IF(A26="","",IF(ISERROR(IF(COUNT(E26:N26)=0,"Nenhum preço comparativo válido. ","")),"",IF(COUNT(E26:N26)=0,"Nenhum preço comparativo válido. ",""))) ->  | BJ26: =IF(ISERROR(IF(R26>P26,(R26-P26)/P26,"")),"",IF(R26>P26,(R26-P26)/P26,"")) ->  | BK26: =IF(ISERROR(IF(BJ26="","","Neste item, o valor contratado pelo TJDFT é "&TEXT(BJ26,"0,00%")&" superior à média comparativa.")),"",IF(BJ26="","","Neste item, o valor contratado pelo TJDFT é "&TEXT(BJ26,"0,00%")&" superior à média comparativa.")) -> 
O27: =IF(ISERROR(ROUND(AVERAGE(E27:N27),2)),"",ROUND(AVERAGE(E27:N27),2)) ->  | P27: =IF(ISERROR(ROUND(O27*D27,2)),"",ROUND(O27*D27,2)) ->  | R27: =IF(A27="","",ROUND(Q27*D27,2)) ->  | S27: =IF(A27="","",CONCATENATE($BG27,$BH27,$BI27,$BK27)) ->  | U27: =IF(ISERROR(COUNTA(E27:N27)),"",COUNTA(E27:N27)) -> 0 | V27: =IF(ISERROR(COUNT(E27:N27)),"",COUNT(E27:N27)) -> 0 | W27: =IF(ISERROR(MIN(E27:N27)),"",MIN(E27:N27)) -> 0 | X27: =IF(ISERROR(MAX(E27:N27)),"",MAX(E27:N27)) -> 0 | Y27: =IF(ISERROR(ROUND(AVERAGE(E27:N27),2)),"",ROUND(AVERAGE(E27:N27),2)) ->  | Z27: =IF(ISERROR(MEDIAN(E27:N27)),"",MEDIAN(E27:N27)) ->  | AA27: =IF(ISERROR(STDEV(E27:N27)),"",STDEV(E27:N27)) ->  | AB27: =IF(ISERROR(AA27/Y27),"",AA27/Y27) ->  | AF27: =IF(COUNT(E27:N27)<1,"",SMALL(E27:N27,1)) ->  | AG27: =IF(COUNT(E27:N27)<2,"",SMALL(E27:N27,2)) ->  | AH27: =IF(COUNT(E27:N27)<3,"",SMALL(E27:N27,3)) ->  | AI27: =IF(COUNT(E27:N27)<4,"",SMALL(E27:N27,4)) ->  | AJ27: =IF(COUNT(E27:N27)<5,"",SMALL(E27:N27,5)) ->  | AK27: =IF(COUNT(E27:N27)<6,"",SMALL(E27:N27,6)) ->  | AL27: =IF(COUNT(E27:N27)<3,"",AVERAGE(AF27:AH27)) ->  | AM27: =IF(COUNT(E27:N27)<4,"",AVERAGE(AG27:AI27)) ->  | AN27: =IF(COUNT(E27:N27)<5,"",AVERAGE(AH27:AJ27)) ->  | AO27: =IF(COUNT(E27:N27)<6,"",AVERAGE(AI27:AK27)) ->  | AQ27: =IF(E27>=1000,TEXT(E27,"0.000,00"),TEXT(E27,"0,00")) -> 0,00 | AR27: =IF(F27>=1000,TEXT(F27,"0.000,00"),TEXT(F27,"0,00")) -> 0,00 | AS27: =IF(G27>=1000,TEXT(G27,"0.000,00"),TEXT(G27,"0,00")) -> 0,00 | AT27: =IF(H27>=1000,TEXT(H27,"0.000,00"),TEXT(H27,"0,00")) -> 0,00 | AU27: =IF(I27>=1000,TEXT(I27,"0.000,00"),TEXT(I27,"0,00")) -> 0,00 | AV27: =IF(J27>=1000,TEXT(J27,"0.000,00"),TEXT(J27,"0,00")) -> 0,00 | AW27: =IF(K27>=1000,TEXT(K27,"0.000,00"),TEXT(K27,"0,00")) -> 0,00 | AX27: =IF(L27>=1000,TEXT(L27,"0.000,00"),TEXT(L27,"0,00")) -> 0,00 | AY27: =IF(M27>=1000,TEXT(M27,"0.000,00"),TEXT(M27,"0,00")) -> 0,00 | AZ27: =IF(N27>=1000,TEXT(N27,"0.000,00"),TEXT(N27,"0,00")) -> 0,00 | BB27: =IF(PREENCHER!AL27="",#REF!,IF(PREENCHER!AM27="",#REF!,IF(PREENCHER!AN27="",#REF!,IF(STDEV(PREENCHER!$AF27:$AH27)/AVERAGE(PREENCHER!$AF27:$AH27)>#REF!,IF(STDEV(PREENCHER!$AG27:$AI27)/AVERAGE(PREENCHER!$AG27:$AI27)>#REF!,IF(STDEV(PREENCHER!$AH27:$AJ27)/AVERAGE(PREENCHER!$AH27:$AJ27)>#REF!,IF(STDEV(PREENCHER!$AI27:$AK27)/AVERAGE(PREENCHER!$AI27:$AK27)>#REF!,#REF!,AVERAGE(PREENCHER!$AI27:$AK27)),AVERAGE(PREENCHER!$AH27:$AJ27)),AVERAGE(PREENCHER!$AG27:$AI27)),AVERAGE(PREENCHER!$AF27:$AH27))))) ->  | BC27: =IF(ISERROR(ROUND(BB27,2)),"",ROUND(BB27,2)) ->  | BG27: =IF(ISERROR(IF(COUNT(E27:N27)=2,"Apenas dois preços comparativos válidos. ","")),"",IF(COUNT(E27:N27)=2,"Apenas dois preços comparativos válidos. ","")) ->  | BH27: =IF(ISERROR(IF(COUNT(E27:N27)=1,"Apenas um preço comparativo válido. ","")),"",IF(COUNT(E27:N27)=1,"Apenas um preço comparativo válido. ","")) ->  | BI27: =IF(A27="","",IF(ISERROR(IF(COUNT(E27:N27)=0,"Nenhum preço comparativo válido. ","")),"",IF(COUNT(E27:N27)=0,"Nenhum preço comparativo válido. ",""))) ->  | BJ27: =IF(ISERROR(IF(R27>P27,(R27-P27)/P27,"")),"",IF(R27>P27,(R27-P27)/P27,"")) ->  | BK27: =IF(ISERROR(IF(BJ27="","","Neste item, o valor contratado pelo TJDFT é "&TEXT(BJ27,"0,00%")&" superior à média comparativa.")),"",IF(BJ27="","","Neste item, o valor contratado pelo TJDFT é "&TEXT(BJ27,"0,00%")&" superior à média comparativa.")) -> 
O28: =IF(ISERROR(ROUND(AVERAGE(E28:N28),2)),"",ROUND(AVERAGE(E28:N28),2)) ->  | P28: =IF(ISERROR(ROUND(O28*D28,2)),"",ROUND(O28*D28,2)) ->  | R28: =IF(A28="","",ROUND(Q28*D28,2)) ->  | S28: =IF(A28="","",CONCATENATE($BG28,$BH28,$BI28,$BK28)) ->  | U28: =IF(ISERROR(COUNTA(E28:N28)),"",COUNTA(E28:N28)) -> 0 | V28: =IF(ISERROR(COUNT(E28:N28)),"",COUNT(E28:N28)) -> 0 | W28: =IF(ISERROR(MIN(E28:N28)),"",MIN(E28:N28)) -> 0 | X28: =IF(ISERROR(MAX(E28:N28)),"",MAX(E28:N28)) -> 0 | Y28: =IF(ISERROR(ROUND(AVERAGE(E28:N28),2)),"",ROUND(AVERAGE(E28:N28),2)) ->  | Z28: =IF(ISERROR(MEDIAN(E28:N28)),"",MEDIAN(E28:N28)) ->  | AA28: =IF(ISERROR(STDEV(E28:N28)),"",STDEV(E28:N28)) ->  | AB28: =IF(ISERROR(AA28/Y28),"",AA28/Y28) ->  | AF28: =IF(COUNT(E28:N28)<1,"",SMALL(E28:N28,1)) ->  | AG28: =IF(COUNT(E28:N28)<2,"",SMALL(E28:N28,2)) ->  | AH28: =IF(COUNT(E28:N28)<3,"",SMALL(E28:N28,3)) ->  | AI28: =IF(COUNT(E28:N28)<4,"",SMALL(E28:N28,4)) ->  | AJ28: =IF(COUNT(E28:N28)<5,"",SMALL(E28:N28,5)) ->  | AK28: =IF(COUNT(E28:N28)<6,"",SMALL(E28:N28,6)) ->  | AL28: =IF(COUNT(E28:N28)<3,"",AVERAGE(AF28:AH28)) ->  | AM28: =IF(COUNT(E28:N28)<4,"",AVERAGE(AG28:AI28)) ->  | AN28: =IF(COUNT(E28:N28)<5,"",AVERAGE(AH28:AJ28)) ->  | AO28: =IF(COUNT(E28:N28)<6,"",AVERAGE(AI28:AK28)) ->  | AQ28: =IF(E28>=1000,TEXT(E28,"0.000,00"),TEXT(E28,"0,00")) -> 0,00 | AR28: =IF(F28>=1000,TEXT(F28,"0.000,00"),TEXT(F28,"0,00")) -> 0,00 | AS28: =IF(G28>=1000,TEXT(G28,"0.000,00"),TEXT(G28,"0,00")) -> 0,00 | AT28: =IF(H28>=1000,TEXT(H28,"0.000,00"),TEXT(H28,"0,00")) -> 0,00 | AU28: =IF(I28>=1000,TEXT(I28,"0.000,00"),TEXT(I28,"0,00")) -> 0,00 | AV28: =IF(J28>=1000,TEXT(J28,"0.000,00"),TEXT(J28,"0,00")) -> 0,00 | AW28: =IF(K28>=1000,TEXT(K28,"0.000,00"),TEXT(K28,"0,00")) -> 0,00 | AX28: =IF(L28>=1000,TEXT(L28,"0.000,00"),TEXT(L28,"0,00")) -> 0,00 | AY28: =IF(M28>=1000,TEXT(M28,"0.000,00"),TEXT(M28,"0,00")) -> 0,00 | AZ28: =IF(N28>=1000,TEXT(N28,"0.000,00"),TEXT(N28,"0,00")) -> 0,00 | BB28: =IF(PREENCHER!AL28="",#REF!,IF(PREENCHER!AM28="",#REF!,IF(PREENCHER!AN28="",#REF!,IF(STDEV(PREENCHER!$AF28:$AH28)/AVERAGE(PREENCHER!$AF28:$AH28)>#REF!,IF(STDEV(PREENCHER!$AG28:$AI28)/AVERAGE(PREENCHER!$AG28:$AI28)>#REF!,IF(STDEV(PREENCHER!$AH28:$AJ28)/AVERAGE(PREENCHER!$AH28:$AJ28)>#REF!,IF(STDEV(PREENCHER!$AI28:$AK28)/AVERAGE(PREENCHER!$AI28:$AK28)>#REF!,#REF!,AVERAGE(PREENCHER!$AI28:$AK28)),AVERAGE(PREENCHER!$AH28:$AJ28)),AVERAGE(PREENCHER!$AG28:$AI28)),AVERAGE(PREENCHER!$AF28:$AH28))))) ->  | BC28: =IF(ISERROR(ROUND(BB28,2)),"",ROUND(BB28,2)) ->  | BG28: =IF(ISERROR(IF(COUNT(E28:N28)=2,"Apenas dois preços comparativos válidos. ","")),"",IF(COUNT(E28:N28)=2,"Apenas dois preços comparativos válidos. ","")) ->  | BH28: =IF(ISERROR(IF(COUNT(E28:N28)=1,"Apenas um preço comparativo válido. ","")),"",IF(COUNT(E28:N28)=1,"Apenas um preço comparativo válido. ","")) ->  | BI28: =IF(A28="","",IF(ISERROR(IF(COUNT(E28:N28)=0,"Nenhum preço comparativo válido. ","")),"",IF(COUNT(E28:N28)=0,"Nenhum preço comparativo válido. ",""))) ->  | BJ28: =IF(ISERROR(IF(R28>P28,(R28-P28)/P28,"")),"",IF(R28>P28,(R28-P28)/P28,"")) ->  | BK28: =IF(ISERROR(IF(BJ28="","","Neste item, o valor contratado pelo TJDFT é "&TEXT(BJ28,"0,00%")&" superior à média comparativa.")),"",IF(BJ28="","","Neste item, o valor contratado pelo TJDFT é "&TEXT(BJ28,"0,00%")&" superior à média comparativa.")) -> 
O29: =IF(ISERROR(ROUND(AVERAGE(E29:N29),2)),"",ROUND(AVERAGE(E29:N29),2)) ->  | P29: =IF(ISERROR(ROUND(O29*D29,2)),"",ROUND(O29*D29,2)) ->  | R29: =IF(A29="","",ROUND(Q29*D29,2)) ->  | S29: =IF(A29="","",CONCATENATE($BG29,$BH29,$BI29,$BK29)) ->  | U29: =IF(ISERROR(COUNTA(E29:N29)),"",COUNTA(E29:N29)) -> 0 | V29: =IF(ISERROR(COUNT(E29:N29)),"",COUNT(E29:N29)) -> 0 | W29: =IF(ISERROR(MIN(E29:N29)),"",MIN(E29:N29)) -> 0 | X29: =IF(ISERROR(MAX(E29:N29)),"",MAX(E29:N29)) -> 0 | Y29: =IF(ISERROR(ROUND(AVERAGE(E29:N29),2)),"",ROUND(AVERAGE(E29:N29),2)) ->  | Z29: =IF(ISERROR(MEDIAN(E29:N29)),"",MEDIAN(E29:N29)) ->  | AA29: =IF(ISERROR(STDEV(E29:N29)),"",STDEV(E29:N29)) ->  | AB29: =IF(ISERROR(AA29/Y29),"",AA29/Y29) ->  | AF29: =IF(COUNT(E29:N29)<1,"",SMALL(E29:N29,1)) ->  | AG29: =IF(COUNT(E29:N29)<2,"",SMALL(E29:N29,2)) ->  | AH29: =IF(COUNT(E29:N29)<3,"",SMALL(E29:N29,3)) ->  | AI29: =IF(COUNT(E29:N29)<4,"",SMALL(E29:N29,4)) ->  | AJ29: =IF(COUNT(E29:N29)<5,"",SMALL(E29:N29,5)) ->  | AK29: =IF(COUNT(E29:N29)<6,"",SMALL(E29:N29,6)) ->  | AL29: =IF(COUNT(E29:N29)<3,"",AVERAGE(AF29:AH29)) ->  | AM29: =IF(COUNT(E29:N29)<4,"",AVERAGE(AG29:AI29)) ->  | AN29: =IF(COUNT(E29:N29)<5,"",AVERAGE(AH29:AJ29)) ->  | AO29: =IF(COUNT(E29:N29)<6,"",AVERAGE(AI29:AK29)) ->  | AQ29: =IF(E29>=1000,TEXT(E29,"0.000,00"),TEXT(E29,"0,00")) -> 0,00 | AR29: =IF(F29>=1000,TEXT(F29,"0.000,00"),TEXT(F29,"0,00")) -> 0,00 | AS29: =IF(G29>=1000,TEXT(G29,"0.000,00"),TEXT(G29,"0,00")) -> 0,00 | AT29: =IF(H29>=1000,TEXT(H29,"0.000,00"),TEXT(H29,"0,00")) -> 0,00 | AU29: =IF(I29>=1000,TEXT(I29,"0.000,00"),TEXT(I29,"0,00")) -> 0,00 | AV29: =IF(J29>=1000,TEXT(J29,"0.000,00"),TEXT(J29,"0,00")) -> 0,00 | AW29: =IF(K29>=1000,TEXT(K29,"0.000,00"),TEXT(K29,"0,00")) -> 0,00 | AX29: =IF(L29>=1000,TEXT(L29,"0.000,00"),TEXT(L29,"0,00")) -> 0,00 | AY29: =IF(M29>=1000,TEXT(M29,"0.000,00"),TEXT(M29,"0,00")) -> 0,00 | AZ29: =IF(N29>=1000,TEXT(N29,"0.000,00"),TEXT(N29,"0,00")) -> 0,00 | BB29: =IF(PREENCHER!AL29="",#REF!,IF(PREENCHER!AM29="",#REF!,IF(PREENCHER!AN29="",#REF!,IF(STDEV(PREENCHER!$AF29:$AH29)/AVERAGE(PREENCHER!$AF29:$AH29)>#REF!,IF(STDEV(PREENCHER!$AG29:$AI29)/AVERAGE(PREENCHER!$AG29:$AI29)>#REF!,IF(STDEV(PREENCHER!$AH29:$AJ29)/AVERAGE(PREENCHER!$AH29:$AJ29)>#REF!,IF(STDEV(PREENCHER!$AI29:$AK29)/AVERAGE(PREENCHER!$AI29:$AK29)>#REF!,#REF!,AVERAGE(PREENCHER!$AI29:$AK29)),AVERAGE(PREENCHER!$AH29:$AJ29)),AVERAGE(PREENCHER!$AG29:$AI29)),AVERAGE(PREENCHER!$AF29:$AH29))))) ->  | BC29: =IF(ISERROR(ROUND(BB29,2)),"",ROUND(BB29,2)) ->  | BG29: =IF(ISERROR(IF(COUNT(E29:N29)=2,"Apenas dois preços comparativos válidos. ","")),"",IF(COUNT(E29:N29)=2,"Apenas dois preços comparativos válidos. ","")) ->  | BH29: =IF(ISERROR(IF(COUNT(E29:N29)=1,"Apenas um preço comparativo válido. ","")),"",IF(COUNT(E29:N29)=1,"Apenas um preço comparativo válido. ","")) ->  | BI29: =IF(A29="","",IF(ISERROR(IF(COUNT(E29:N29)=0,"Nenhum preço comparativo válido. ","")),"",IF(COUNT(E29:N29)=0,"Nenhum preço comparativo válido. ",""))) ->  | BJ29: =IF(ISERROR(IF(R29>P29,(R29-P29)/P29,"")),"",IF(R29>P29,(R29-P29)/P29,"")) ->  | BK29: =IF(ISERROR(IF(BJ29="","","Neste item, o valor contratado pelo TJDFT é "&TEXT(BJ29,"0,00%")&" superior à média comparativa.")),"",IF(BJ29="","","Neste item, o valor contratado pelo TJDFT é "&TEXT(BJ29,"0,00%")&" superior à média comparativa.")) -> 
O30: =IF(ISERROR(ROUND(AVERAGE(E30:N30),2)),"",ROUND(AVERAGE(E30:N30),2)) ->  | P30: =IF(ISERROR(ROUND(O30*D30,2)),"",ROUND(O30*D30,2)) ->  | R30: =IF(A30="","",ROUND(Q30*D30,2)) ->  | S30: =IF(A30="","",CONCATENATE($BG30,$BH30,$BI30,$BK30)) ->  | U30: =IF(ISERROR(COUNTA(E30:N30)),"",COUNTA(E30:N30)) -> 0 | V30: =IF(ISERROR(COUNT(E30:N30)),"",COUNT(E30:N30)) -> 0 | W30: =IF(ISERROR(MIN(E30:N30)),"",MIN(E30:N30)) -> 0 | X30: =IF(ISERROR(MAX(E30:N30)),"",MAX(E30:N30)) -> 0 | Y30: =IF(ISERROR(ROUND(AVERAGE(E30:N30),2)),"",ROUND(AVERAGE(E30:N30),2)) ->  | Z30: =IF(ISERROR(MEDIAN(E30:N30)),"",MEDIAN(E30:N30)) ->  | AA30: =IF(ISERROR(STDEV(E30:N30)),"",STDEV(E30:N30)) ->  | AB30: =IF(ISERROR(AA30/Y30),"",AA30/Y30) ->  | AF30: =IF(COUNT(E30:N30)<1,"",SMALL(E30:N30,1)) ->  | AG30: =IF(COUNT(E30:N30)<2,"",SMALL(E30:N30,2)) ->  | AH30: =IF(COUNT(E30:N30)<3,"",SMALL(E30:N30,3)) ->  | AI30: =IF(COUNT(E30:N30)<4,"",SMALL(E30:N30,4)) ->  | AJ30: =IF(COUNT(E30:N30)<5,"",SMALL(E30:N30,5)) ->  | AK30: =IF(COUNT(E30:N30)<6,"",SMALL(E30:N30,6)) ->  | AL30: =IF(COUNT(E30:N30)<3,"",AVERAGE(AF30:AH30)) ->  | AM30: =IF(COUNT(E30:N30)<4,"",AVERAGE(AG30:AI30)) ->  | AN30: =IF(COUNT(E30:N30)<5,"",AVERAGE(AH30:AJ30)) ->  | AO30: =IF(COUNT(E30:N30)<6,"",AVERAGE(AI30:AK30)) ->  | AQ30: =IF(E30>=1000,TEXT(E30,"0.000,00"),TEXT(E30,"0,00")) -> 0,00 | AR30: =IF(F30>=1000,TEXT(F30,"0.000,00"),TEXT(F30,"0,00")) -> 0,00 | AS30: =IF(G30>=1000,TEXT(G30,"0.000,00"),TEXT(G30,"0,00")) -> 0,00 | AT30: =IF(H30>=1000,TEXT(H30,"0.000,00"),TEXT(H30,"0,00")) -> 0,00 | AU30: =IF(I30>=1000,TEXT(I30,"0.000,00"),TEXT(I30,"0,00")) -> 0,00 | AV30: =IF(J30>=1000,TEXT(J30,"0.000,00"),TEXT(J30,"0,00")) -> 0,00 | AW30: =IF(K30>=1000,TEXT(K30,"0.000,00"),TEXT(K30,"0,00")) -> 0,00 | AX30: =IF(L30>=1000,TEXT(L30,"0.000,00"),TEXT(L30,"0,00")) -> 0,00 | AY30: =IF(M30>=1000,TEXT(M30,"0.000,00"),TEXT(M30,"0,00")) -> 0,00 | AZ30: =IF(N30>=1000,TEXT(N30,"0.000,00"),TEXT(N30,"0,00")) -> 0,00 | BB30: =IF(PREENCHER!AL30="",#REF!,IF(PREENCHER!AM30="",#REF!,IF(PREENCHER!AN30="",#REF!,IF(STDEV(PREENCHER!$AF30:$AH30)/AVERAGE(PREENCHER!$AF30:$AH30)>#REF!,IF(STDEV(PREENCHER!$AG30:$AI30)/AVERAGE(PREENCHER!$AG30:$AI30)>#REF!,IF(STDEV(PREENCHER!$AH30:$AJ30)/AVERAGE(PREENCHER!$AH30:$AJ30)>#REF!,IF(STDEV(PREENCHER!$AI30:$AK30)/AVERAGE(PREENCHER!$AI30:$AK30)>#REF!,#REF!,AVERAGE(PREENCHER!$AI30:$AK30)),AVERAGE(PREENCHER!$AH30:$AJ30)),AVERAGE(PREENCHER!$AG30:$AI30)),AVERAGE(PREENCHER!$AF30:$AH30))))) ->  | BC30: =IF(ISERROR(ROUND(BB30,2)),"",ROUND(BB30,2)) ->  | BG30: =IF(ISERROR(IF(COUNT(E30:N30)=2,"Apenas dois preços comparativos válidos. ","")),"",IF(COUNT(E30:N30)=2,"Apenas dois preços comparativos válidos. ","")) ->  | BH30: =IF(ISERROR(IF(COUNT(E30:N30)=1,"Apenas um preço comparativo válido. ","")),"",IF(COUNT(E30:N30)=1,"Apenas um preço comparativo válido. ","")) ->  | BI30: =IF(A30="","",IF(ISERROR(IF(COUNT(E30:N30)=0,"Nenhum preço comparativo válido. ","")),"",IF(COUNT(E30:N30)=0,"Nenhum preço comparativo válido. ",""))) ->  | BJ30: =IF(ISERROR(IF(R30>P30,(R30-P30)/P30,"")),"",IF(R30>P30,(R30-P30)/P30,"")) ->  | BK30: =IF(ISERROR(IF(BJ30="","","Neste item, o valor contratado pelo TJDFT é "&TEXT(BJ30,"0,00%")&" superior à média comparativa.")),"",IF(BJ30="","","Neste item, o valor contratado pelo TJDFT é "&TEXT(BJ30,"0,00%")&" superior à média comparativa.")) -> 
O31: =IF(ISERROR(ROUND(AVERAGE(E31:N31),2)),"",ROUND(AVERAGE(E31:N31),2)) ->  | P31: =IF(ISERROR(ROUND(O31*D31,2)),"",ROUND(O31*D31,2)) ->  | R31: =IF(A31="","",ROUND(Q31*D31,2)) ->  | S31: =IF(A31="","",CONCATENATE($BG31,$BH31,$BI31,$BK31)) ->  | U31: =IF(ISERROR(COUNTA(E31:N31)),"",COUNTA(E31:N31)) -> 0 | V31: =IF(ISERROR(COUNT(E31:N31)),"",COUNT(E31:N31)) -> 0 | W31: =IF(ISERROR(MIN(E31:N31)),"",MIN(E31:N31)) -> 0 | X31: =IF(ISERROR(MAX(E31:N31)),"",MAX(E31:N31)) -> 0 | Y31: =IF(ISERROR(ROUND(AVERAGE(E31:N31),2)),"",ROUND(AVERAGE(E31:N31),2)) ->  | Z31: =IF(ISERROR(MEDIAN(E31:N31)),"",MEDIAN(E31:N31)) ->  | AA31: =IF(ISERROR(STDEV(E31:N31)),"",STDEV(E31:N31)) ->  | AB31: =IF(ISERROR(AA31/Y31),"",AA31/Y31) ->  | AF31: =IF(COUNT(E31:N31)<1,"",SMALL(E31:N31,1)) ->  | AG31: =IF(COUNT(E31:N31)<2,"",SMALL(E31:N31,2)) ->  | AH31: =IF(COUNT(E31:N31)<3,"",SMALL(E31:N31,3)) ->  | AI31: =IF(COUNT(E31:N31)<4,"",SMALL(E31:N31,4)) ->  | AJ31: =IF(COUNT(E31:N31)<5,"",SMALL(E31:N31,5)) ->  | AK31: =IF(COUNT(E31:N31)<6,"",SMALL(E31:N31,6)) ->  | AL31: =IF(COUNT(E31:N31)<3,"",AVERAGE(AF31:AH31)) ->  | AM31: =IF(COUNT(E31:N31)<4,"",AVERAGE(AG31:AI31)) ->  | AN31: =IF(COUNT(E31:N31)<5,"",AVERAGE(AH31:AJ31)) ->  | AO31: =IF(COUNT(E31:N31)<6,"",AVERAGE(AI31:AK31)) ->  | AQ31: =IF(E31>=1000,TEXT(E31,"0.000,00"),TEXT(E31,"0,00")) -> 0,00 | AR31: =IF(F31>=1000,TEXT(F31,"0.000,00"),TEXT(F31,"0,00")) -> 0,00 | AS31: =IF(G31>=1000,TEXT(G31,"0.000,00"),TEXT(G31,"0,00")) -> 0,00 | AT31: =IF(H31>=1000,TEXT(H31,"0.000,00"),TEXT(H31,"0,00")) -> 0,00 | AU31: =IF(I31>=1000,TEXT(I31,"0.000,00"),TEXT(I31,"0,00")) -> 0,00 | AV31: =IF(J31>=1000,TEXT(J31,"0.000,00"),TEXT(J31,"0,00")) -> 0,00 | AW31: =IF(K31>=1000,TEXT(K31,"0.000,00"),TEXT(K31,"0,00")) -> 0,00 | AX31: =IF(L31>=1000,TEXT(L31,"0.000,00"),TEXT(L31,"0,00")) -> 0,00 | AY31: =IF(M31>=1000,TEXT(M31,"0.000,00"),TEXT(M31,"0,00")) -> 0,00 | AZ31: =IF(N31>=1000,TEXT(N31,"0.000,00"),TEXT(N31,"0,00")) -> 0,00 | BB31: =IF(PREENCHER!AL31="",#REF!,IF(PREENCHER!AM31="",#REF!,IF(PREENCHER!AN31="",#REF!,IF(STDEV(PREENCHER!$AF31:$AH31)/AVERAGE(PREENCHER!$AF31:$AH31)>#REF!,IF(STDEV(PREENCHER!$AG31:$AI31)/AVERAGE(PREENCHER!$AG31:$AI31)>#REF!,IF(STDEV(PREENCHER!$AH31:$AJ31)/AVERAGE(PREENCHER!$AH31:$AJ31)>#REF!,IF(STDEV(PREENCHER!$AI31:$AK31)/AVERAGE(PREENCHER!$AI31:$AK31)>#REF!,#REF!,AVERAGE(PREENCHER!$AI31:$AK31)),AVERAGE(PREENCHER!$AH31:$AJ31)),AVERAGE(PREENCHER!$AG31:$AI31)),AVERAGE(PREENCHER!$AF31:$AH31))))) ->  | BC31: =IF(ISERROR(ROUND(BB31,2)),"",ROUND(BB31,2)) ->  | BG31: =IF(ISERROR(IF(COUNT(E31:N31)=2,"Apenas dois preços comparativos válidos. ","")),"",IF(COUNT(E31:N31)=2,"Apenas dois preços comparativos válidos. ","")) ->  | BH31: =IF(ISERROR(IF(COUNT(E31:N31)=1,"Apenas um preço comparativo válido. ","")),"",IF(COUNT(E31:N31)=1,"Apenas um preço comparativo válido. ","")) ->  | BI31: =IF(A31="","",IF(ISERROR(IF(COUNT(E31:N31)=0,"Nenhum preço comparativo válido. ","")),"",IF(COUNT(E31:N31)=0,"Nenhum preço comparativo válido. ",""))) ->  | BJ31: =IF(ISERROR(IF(R31>P31,(R31-P31)/P31,"")),"",IF(R31>P31,(R31-P31)/P31,"")) ->  | BK31: =IF(ISERROR(IF(BJ31="","","Neste item, o valor contratado pelo TJDFT é "&TEXT(BJ31,"0,00%")&" superior à média comparativa.")),"",IF(BJ31="","","Neste item, o valor contratado pelo TJDFT é "&TEXT(BJ31,"0,00%")&" superior à média comparativa.")) -> 
O32: =IF(ISERROR(ROUND(AVERAGE(E32:N32),2)),"",ROUND(AVERAGE(E32:N32),2)) ->  | P32: =IF(ISERROR(ROUND(O32*D32,2)),"",ROUND(O32*D32,2)) ->  | R32: =IF(A32="","",ROUND(Q32*D32,2)) ->  | S32: =IF(A32="","",CONCATENATE($BG32,$BH32,$BI32,$BK32)) ->  | U32: =IF(ISERROR(COUNTA(E32:N32)),"",COUNTA(E32:N32)) -> 0 | V32: =IF(ISERROR(COUNT(E32:N32)),"",COUNT(E32:N32)) -> 0 | W32: =IF(ISERROR(MIN(E32:N32)),"",MIN(E32:N32)) -> 0 | X32: =IF(ISERROR(MAX(E32:N32)),"",MAX(E32:N32)) -> 0 | Y32: =IF(ISERROR(ROUND(AVERAGE(E32:N32),2)),"",ROUND(AVERAGE(E32:N32),2)) ->  | Z32: =IF(ISERROR(MEDIAN(E32:N32)),"",MEDIAN(E32:N32)) ->  | AA32: =IF(ISERROR(STDEV(E32:N32)),"",STDEV(E32:N32)) ->  | AB32: =IF(ISERROR(AA32/Y32),"",AA32/Y32) ->  | AF32: =IF(COUNT(E32:N32)<1,"",SMALL(E32:N32,1)) ->  | AG32: =IF(COUNT(E32:N32)<2,"",SMALL(E32:N32,2)) ->  | AH32: =IF(COUNT(E32:N32)<3,"",SMALL(E32:N32,3)) ->  | AI32: =IF(COUNT(E32:N32)<4,"",SMALL(E32:N32,4)) ->  | AJ32: =IF(COUNT(E32:N32)<5,"",SMALL(E32:N32,5)) ->  | AK32: =IF(COUNT(E32:N32)<6,"",SMALL(E32:N32,6)) ->  | AL32: =IF(COUNT(E32:N32)<3,"",AVERAGE(AF32:AH32)) ->  | AM32: =IF(COUNT(E32:N32)<4,"",AVERAGE(AG32:AI32)) ->  | AN32: =IF(COUNT(E32:N32)<5,"",AVERAGE(AH32:AJ32)) ->  | AO32: =IF(COUNT(E32:N32)<6,"",AVERAGE(AI32:AK32)) ->  | AQ32: =IF(E32>=1000,TEXT(E32,"0.000,00"),TEXT(E32,"0,00")) -> 0,00 | AR32: =IF(F32>=1000,TEXT(F32,"0.000,00"),TEXT(F32,"0,00")) -> 0,00 | AS32: =IF(G32>=1000,TEXT(G32,"0.000,00"),TEXT(G32,"0,00")) -> 0,00 | AT32: =IF(H32>=1000,TEXT(H32,"0.000,00"),TEXT(H32,"0,00")) -> 0,00 | AU32: =IF(I32>=1000,TEXT(I32,"0.000,00"),TEXT(I32,"0,00")) -> 0,00 | AV32: =IF(J32>=1000,TEXT(J32,"0.000,00"),TEXT(J32,"0,00")) -> 0,00 | AW32: =IF(K32>=1000,TEXT(K32,"0.000,00"),TEXT(K32,"0,00")) -> 0,00 | AX32: =IF(L32>=1000,TEXT(L32,"0.000,00"),TEXT(L32,"0,00")) -> 0,00 | AY32: =IF(M32>=1000,TEXT(M32,"0.000,00"),TEXT(M32,"0,00")) -> 0,00 | AZ32: =IF(N32>=1000,TEXT(N32,"0.000,00"),TEXT(N32,"0,00")) -> 0,00 | BB32: =IF(PREENCHER!AL32="",#REF!,IF(PREENCHER!AM32="",#REF!,IF(PREENCHER!AN32="",#REF!,IF(STDEV(PREENCHER!$AF32:$AH32)/AVERAGE(PREENCHER!$AF32:$AH32)>#REF!,IF(STDEV(PREENCHER!$AG32:$AI32)/AVERAGE(PREENCHER!$AG32:$AI32)>#REF!,IF(STDEV(PREENCHER!$AH32:$AJ32)/AVERAGE(PREENCHER!$AH32:$AJ32)>#REF!,IF(STDEV(PREENCHER!$AI32:$AK32)/AVERAGE(PREENCHER!$AI32:$AK32)>#REF!,#REF!,AVERAGE(PREENCHER!$AI32:$AK32)),AVERAGE(PREENCHER!$AH32:$AJ32)),AVERAGE(PREENCHER!$AG32:$AI32)),AVERAGE(PREENCHER!$AF32:$AH32))))) ->  | BC32: =IF(ISERROR(ROUND(BB32,2)),"",ROUND(BB32,2)) ->  | BG32: =IF(ISERROR(IF(COUNT(E32:N32)=2,"Apenas dois preços comparativos válidos. ","")),"",IF(COUNT(E32:N32)=2,"Apenas dois preços comparativos válidos. ","")) ->  | BH32: =IF(ISERROR(IF(COUNT(E32:N32)=1,"Apenas um preço comparativo válido. ","")),"",IF(COUNT(E32:N32)=1,"Apenas um preço comparativo válido. ","")) ->  | BI32: =IF(A32="","",IF(ISERROR(IF(COUNT(E32:N32)=0,"Nenhum preço comparativo válido. ","")),"",IF(COUNT(E32:N32)=0,"Nenhum preço comparativo válido. ",""))) ->  | BJ32: =IF(ISERROR(IF(R32>P32,(R32-P32)/P32,"")),"",IF(R32>P32,(R32-P32)/P32,"")) ->  | BK32: =IF(ISERROR(IF(BJ32="","","Neste item, o valor contratado pelo TJDFT é "&TEXT(BJ32,"0,00%")&" superior à média comparativa.")),"",IF(BJ32="","","Neste item, o valor contratado pelo TJDFT é "&TEXT(BJ32,"0,00%")&" superior à média comparativa.")) -> 
O33: =IF(ISERROR(ROUND(AVERAGE(E33:N33),2)),"",ROUND(AVERAGE(E33:N33),2)) ->  | P33: =IF(ISERROR(ROUND(O33*D33,2)),"",ROUND(O33*D33,2)) ->  | R33: =IF(A33="","",ROUND(Q33*D33,2)) ->  | S33: =IF(A33="","",CONCATENATE($BG33,$BH33,$BI33,$BK33)) ->  | U33: =IF(ISERROR(COUNTA(E33:N33)),"",COUNTA(E33:N33)) -> 0 | V33: =IF(ISERROR(COUNT(E33:N33)),"",COUNT(E33:N33)) -> 0 | W33: =IF(ISERROR(MIN(E33:N33)),"",MIN(E33:N33)) -> 0 | X33: =IF(ISERROR(MAX(E33:N33)),"",MAX(E33:N33)) -> 0 | Y33: =IF(ISERROR(ROUND(AVERAGE(E33:N33),2)),"",ROUND(AVERAGE(E33:N33),2)) ->  | Z33: =IF(ISERROR(MEDIAN(E33:N33)),"",MEDIAN(E33:N33)) ->  | AA33: =IF(ISERROR(STDEV(E33:N33)),"",STDEV(E33:N33)) ->  | AB33: =IF(ISERROR(AA33/Y33),"",AA33/Y33) ->  | AF33: =IF(COUNT(E33:N33)<1,"",SMALL(E33:N33,1)) ->  | AG33: =IF(COUNT(E33:N33)<2,"",SMALL(E33:N33,2)) ->  | AH33: =IF(COUNT(E33:N33)<3,"",SMALL(E33:N33,3)) ->  | AI33: =IF(COUNT(E33:N33)<4,"",SMALL(E33:N33,4)) ->  | AJ33: =IF(COUNT(E33:N33)<5,"",SMALL(E33:N33,5)) ->  | AK33: =IF(COUNT(E33:N33)<6,"",SMALL(E33:N33,6)) ->  | AL33: =IF(COUNT(E33:N33)<3,"",AVERAGE(AF33:AH33)) ->  | AM33: =IF(COUNT(E33:N33)<4,"",AVERAGE(AG33:AI33)) ->  | AN33: =IF(COUNT(E33:N33)<5,"",AVERAGE(AH33:AJ33)) ->  | AO33: =IF(COUNT(E33:N33)<6,"",AVERAGE(AI33:AK33)) ->  | AQ33: =IF(E33>=1000,TEXT(E33,"0.000,00"),TEXT(E33,"0,00")) -> 0,00 | AR33: =IF(F33>=1000,TEXT(F33,"0.000,00"),TEXT(F33,"0,00")) -> 0,00 | AS33: =IF(G33>=1000,TEXT(G33,"0.000,00"),TEXT(G33,"0,00")) -> 0,00 | AT33: =IF(H33>=1000,TEXT(H33,"0.000,00"),TEXT(H33,"0,00")) -> 0,00 | AU33: =IF(I33>=1000,TEXT(I33,"0.000,00"),TEXT(I33,"0,00")) -> 0,00 | AV33: =IF(J33>=1000,TEXT(J33,"0.000,00"),TEXT(J33,"0,00")) -> 0,00 | AW33: =IF(K33>=1000,TEXT(K33,"0.000,00"),TEXT(K33,"0,00")) -> 0,00 | AX33: =IF(L33>=1000,TEXT(L33,"0.000,00"),TEXT(L33,"0,00")) -> 0,00 | AY33: =IF(M33>=1000,TEXT(M33,"0.000,00"),TEXT(M33,"0,00")) -> 0,00 | AZ33: =IF(N33>=1000,TEXT(N33,"0.000,00"),TEXT(N33,"0,00")) -> 0,00 | BB33: =IF(PREENCHER!AL33="",#REF!,IF(PREENCHER!AM33="",#REF!,IF(PREENCHER!AN33="",#REF!,IF(STDEV(PREENCHER!$AF33:$AH33)/AVERAGE(PREENCHER!$AF33:$AH33)>#REF!,IF(STDEV(PREENCHER!$AG33:$AI33)/AVERAGE(PREENCHER!$AG33:$AI33)>#REF!,IF(STDEV(PREENCHER!$AH33:$AJ33)/AVERAGE(PREENCHER!$AH33:$AJ33)>#REF!,IF(STDEV(PREENCHER!$AI33:$AK33)/AVERAGE(PREENCHER!$AI33:$AK33)>#REF!,#REF!,AVERAGE(PREENCHER!$AI33:$AK33)),AVERAGE(PREENCHER!$AH33:$AJ33)),AVERAGE(PREENCHER!$AG33:$AI33)),AVERAGE(PREENCHER!$AF33:$AH33))))) ->  | BC33: =IF(ISERROR(ROUND(BB33,2)),"",ROUND(BB33,2)) ->  | BG33: =IF(ISERROR(IF(COUNT(E33:N33)=2,"Apenas dois preços comparativos válidos. ","")),"",IF(COUNT(E33:N33)=2,"Apenas dois preços comparativos válidos. ","")) ->  | BH33: =IF(ISERROR(IF(COUNT(E33:N33)=1,"Apenas um preço comparativo válido. ","")),"",IF(COUNT(E33:N33)=1,"Apenas um preço comparativo válido. ","")) ->  | BI33: =IF(A33="","",IF(ISERROR(IF(COUNT(E33:N33)=0,"Nenhum preço comparativo válido. ","")),"",IF(COUNT(E33:N33)=0,"Nenhum preço comparativo válido. ",""))) ->  | BJ33: =IF(ISERROR(IF(R33>P33,(R33-P33)/P33,"")),"",IF(R33>P33,(R33-P33)/P33,"")) ->  | BK33: =IF(ISERROR(IF(BJ33="","","Neste item, o valor contratado pelo TJDFT é "&TEXT(BJ33,"0,00%")&" superior à média comparativa.")),"",IF(BJ33="","","Neste item, o valor contratado pelo TJDFT é "&TEXT(BJ33,"0,00%")&" superior à média comparativa.")) -> 
O34: =IF(ISERROR(ROUND(AVERAGE(E34:N34),2)),"",ROUND(AVERAGE(E34:N34),2)) ->  | P34: =IF(ISERROR(ROUND(O34*D34,2)),"",ROUND(O34*D34,2)) ->  | R34: =IF(A34="","",ROUND(Q34*D34,2)) ->  | S34: =IF(A34="","",CONCATENATE($BG34,$BH34,$BI34,$BK34)) ->  | U34: =IF(ISERROR(COUNTA(E34:N34)),"",COUNTA(E34:N34)) -> 0 | V34: =IF(ISERROR(COUNT(E34:N34)),"",COUNT(E34:N34)) -> 0 | W34: =IF(ISERROR(MIN(E34:N34)),"",MIN(E34:N34)) -> 0 | X34: =IF(ISERROR(MAX(E34:N34)),"",MAX(E34:N34)) -> 0 | Y34: =IF(ISERROR(ROUND(AVERAGE(E34:N34),2)),"",ROUND(AVERAGE(E34:N34),2)) ->  | Z34: =IF(ISERROR(MEDIAN(E34:N34)),"",MEDIAN(E34:N34)) ->  | AA34: =IF(ISERROR(STDEV(E34:N34)),"",STDEV(E34:N34)) ->  | AB34: =IF(ISERROR(AA34/Y34),"",AA34/Y34) ->  | AF34: =IF(COUNT(E34:N34)<1,"",SMALL(E34:N34,1)) ->  | AG34: =IF(COUNT(E34:N34)<2,"",SMALL(E34:N34,2)) ->  | AH34: =IF(COUNT(E34:N34)<3,"",SMALL(E34:N34,3)) ->  | AI34: =IF(COUNT(E34:N34)<4,"",SMALL(E34:N34,4)) ->  | AJ34: =IF(COUNT(E34:N34)<5,"",SMALL(E34:N34,5)) ->  | AK34: =IF(COUNT(E34:N34)<6,"",SMALL(E34:N34,6)) ->  | AL34: =IF(COUNT(E34:N34)<3,"",AVERAGE(AF34:AH34)) ->  | AM34: =IF(COUNT(E34:N34)<4,"",AVERAGE(AG34:AI34)) ->  | AN34: =IF(COUNT(E34:N34)<5,"",AVERAGE(AH34:AJ34)) ->  | AO34: =IF(COUNT(E34:N34)<6,"",AVERAGE(AI34:AK34)) ->  | AQ34: =IF(E34>=1000,TEXT(E34,"0.000,00"),TEXT(E34,"0,00")) -> 0,00 | AR34: =IF(F34>=1000,TEXT(F34,"0.000,00"),TEXT(F34,"0,00")) -> 0,00 | AS34: =IF(G34>=1000,TEXT(G34,"0.000,00"),TEXT(G34,"0,00")) -> 0,00 | AT34: =IF(H34>=1000,TEXT(H34,"0.000,00"),TEXT(H34,"0,00")) -> 0,00 | AU34: =IF(I34>=1000,TEXT(I34,"0.000,00"),TEXT(I34,"0,00")) -> 0,00 | AV34: =IF(J34>=1000,TEXT(J34,"0.000,00"),TEXT(J34,"0,00")) -> 0,00 | AW34: =IF(K34>=1000,TEXT(K34,"0.000,00"),TEXT(K34,"0,00")) -> 0,00 | AX34: =IF(L34>=1000,TEXT(L34,"0.000,00"),TEXT(L34,"0,00")) -> 0,00 | AY34: =IF(M34>=1000,TEXT(M34,"0.000,00"),TEXT(M34,"0,00")) -> 0,00 | AZ34: =IF(N34>=1000,TEXT(N34,"0.000,00"),TEXT(N34,"0,00")) -> 0,00 | BB34: =IF(PREENCHER!AL34="",#REF!,IF(PREENCHER!AM34="",#REF!,IF(PREENCHER!AN34="",#REF!,IF(STDEV(PREENCHER!$AF34:$AH34)/AVERAGE(PREENCHER!$AF34:$AH34)>#REF!,IF(STDEV(PREENCHER!$AG34:$AI34)/AVERAGE(PREENCHER!$AG34:$AI34)>#REF!,IF(STDEV(PREENCHER!$AH34:$AJ34)/AVERAGE(PREENCHER!$AH34:$AJ34)>#REF!,IF(STDEV(PREENCHER!$AI34:$AK34)/AVERAGE(PREENCHER!$AI34:$AK34)>#REF!,#REF!,AVERAGE(PREENCHER!$AI34:$AK34)),AVERAGE(PREENCHER!$AH34:$AJ34)),AVERAGE(PREENCHER!$AG34:$AI34)),AVERAGE(PREENCHER!$AF34:$AH34))))) ->  | BC34: =IF(ISERROR(ROUND(BB34,2)),"",ROUND(BB34,2)) ->  | BG34: =IF(ISERROR(IF(COUNT(E34:N34)=2,"Apenas dois preços comparativos válidos. ","")),"",IF(COUNT(E34:N34)=2,"Apenas dois preços comparativos válidos. ","")) ->  | BH34: =IF(ISERROR(IF(COUNT(E34:N34)=1,"Apenas um preço comparativo válido. ","")),"",IF(COUNT(E34:N34)=1,"Apenas um preço comparativo válido. ","")) ->  | BI34: =IF(A34="","",IF(ISERROR(IF(COUNT(E34:N34)=0,"Nenhum preço comparativo válido. ","")),"",IF(COUNT(E34:N34)=0,"Nenhum preço comparativo válido. ",""))) ->  | BJ34: =IF(ISERROR(IF(R34>P34,(R34-P34)/P34,"")),"",IF(R34>P34,(R34-P34)/P34,"")) ->  | BK34: =IF(ISERROR(IF(BJ34="","","Neste item, o valor contratado pelo TJDFT é "&TEXT(BJ34,"0,00%")&" superior à média comparativa.")),"",IF(BJ34="","","Neste item, o valor contratado pelo TJDFT é "&TEXT(BJ34,"0,00%")&" superior à média comparativa.")) -> 
O35: =IF(ISERROR(ROUND(AVERAGE(E35:N35),2)),"",ROUND(AVERAGE(E35:N35),2)) ->  | P35: =IF(ISERROR(ROUND(O35*D35,2)),"",ROUND(O35*D35,2)) ->  | R35: =IF(A35="","",ROUND(Q35*D35,2)) ->  | S35: =IF(A35="","",CONCATENATE($BG35,$BH35,$BI35,$BK35)) ->  | U35: =IF(ISERROR(COUNTA(E35:N35)),"",COUNTA(E35:N35)) -> 0 | V35: =IF(ISERROR(COUNT(E35:N35)),"",COUNT(E35:N35)) -> 0 | W35: =IF(ISERROR(MIN(E35:N35)),"",MIN(E35:N35)) -> 0 | X35: =IF(ISERROR(MAX(E35:N35)),"",MAX(E35:N35)) -> 0 | Y35: =IF(ISERROR(ROUND(AVERAGE(E35:N35),2)),"",ROUND(AVERAGE(E35:N35),2)) ->  | Z35: =IF(ISERROR(MEDIAN(E35:N35)),"",MEDIAN(E35:N35)) ->  | AA35: =IF(ISERROR(STDEV(E35:N35)),"",STDEV(E35:N35)) ->  | AB35: =IF(ISERROR(AA35/Y35),"",AA35/Y35) ->  | AF35: =IF(COUNT(E35:N35)<1,"",SMALL(E35:N35,1)) ->  | AG35: =IF(COUNT(E35:N35)<2,"",SMALL(E35:N35,2)) ->  | AH35: =IF(COUNT(E35:N35)<3,"",SMALL(E35:N35,3)) ->  | AI35: =IF(COUNT(E35:N35)<4,"",SMALL(E35:N35,4)) ->  | AJ35: =IF(COUNT(E35:N35)<5,"",SMALL(E35:N35,5)) ->  | AK35: =IF(COUNT(E35:N35)<6,"",SMALL(E35:N35,6)) ->  | AL35: =IF(COUNT(E35:N35)<3,"",AVERAGE(AF35:AH35)) ->  | AM35: =IF(COUNT(E35:N35)<4,"",AVERAGE(AG35:AI35)) ->  | AN35: =IF(COUNT(E35:N35)<5,"",AVERAGE(AH35:AJ35)) ->  | AO35: =IF(COUNT(E35:N35)<6,"",AVERAGE(AI35:AK35)) ->  | AQ35: =IF(E35>=1000,TEXT(E35,"0.000,00"),TEXT(E35,"0,00")) -> 0,00 | AR35: =IF(F35>=1000,TEXT(F35,"0.000,00"),TEXT(F35,"0,00")) -> 0,00 | AS35: =IF(G35>=1000,TEXT(G35,"0.000,00"),TEXT(G35,"0,00")) -> 0,00 | AT35: =IF(H35>=1000,TEXT(H35,"0.000,00"),TEXT(H35,"0,00")) -> 0,00 | AU35: =IF(I35>=1000,TEXT(I35,"0.000,00"),TEXT(I35,"0,00")) -> 0,00 | AV35: =IF(J35>=1000,TEXT(J35,"0.000,00"),TEXT(J35,"0,00")) -> 0,00 | AW35: =IF(K35>=1000,TEXT(K35,"0.000,00"),TEXT(K35,"0,00")) -> 0,00 | AX35: =IF(L35>=1000,TEXT(L35,"0.000,00"),TEXT(L35,"0,00")) -> 0,00 | AY35: =IF(M35>=1000,TEXT(M35,"0.000,00"),TEXT(M35,"0,00")) -> 0,00 | AZ35: =IF(N35>=1000,TEXT(N35,"0.000,00"),TEXT(N35,"0,00")) -> 0,00 | BB35: =IF(PREENCHER!AL35="",#REF!,IF(PREENCHER!AM35="",#REF!,IF(PREENCHER!AN35="",#REF!,IF(STDEV(PREENCHER!$AF35:$AH35)/AVERAGE(PREENCHER!$AF35:$AH35)>#REF!,IF(STDEV(PREENCHER!$AG35:$AI35)/AVERAGE(PREENCHER!$AG35:$AI35)>#REF!,IF(STDEV(PREENCHER!$AH35:$AJ35)/AVERAGE(PREENCHER!$AH35:$AJ35)>#REF!,IF(STDEV(PREENCHER!$AI35:$AK35)/AVERAGE(PREENCHER!$AI35:$AK35)>#REF!,#REF!,AVERAGE(PREENCHER!$AI35:$AK35)),AVERAGE(PREENCHER!$AH35:$AJ35)),AVERAGE(PREENCHER!$AG35:$AI35)),AVERAGE(PREENCHER!$AF35:$AH35))))) ->  | BC35: =IF(ISERROR(ROUND(BB35,2)),"",ROUND(BB35,2)) ->  | BG35: =IF(ISERROR(IF(COUNT(E35:N35)=2,"Apenas dois preços comparativos válidos. ","")),"",IF(COUNT(E35:N35)=2,"Apenas dois preços comparativos válidos. ","")) ->  | BH35: =IF(ISERROR(IF(COUNT(E35:N35)=1,"Apenas um preço comparativo válido. ","")),"",IF(COUNT(E35:N35)=1,"Apenas um preço comparativo válido. ","")) ->  | BI35: =IF(A35="","",IF(ISERROR(IF(COUNT(E35:N35)=0,"Nenhum preço comparativo válido. ","")),"",IF(COUNT(E35:N35)=0,"Nenhum preço comparativo válido. ",""))) ->  | BJ35: =IF(ISERROR(IF(R35>P35,(R35-P35)/P35,"")),"",IF(R35>P35,(R35-P35)/P35,"")) ->  | BK35: =IF(ISERROR(IF(BJ35="","","Neste item, o valor contratado pelo TJDFT é "&TEXT(BJ35,"0,00%")&" superior à média comparativa.")),"",IF(BJ35="","","Neste item, o valor contratado pelo TJDFT é "&TEXT(BJ35,"0,00%")&" superior à média comparativa.")) -> 
O36: =IF(ISERROR(ROUND(AVERAGE(E36:N36),2)),"",ROUND(AVERAGE(E36:N36),2)) ->  | P36: =IF(ISERROR(ROUND(O36*D36,2)),"",ROUND(O36*D36,2)) ->  | R36: =IF(A36="","",ROUND(Q36*D36,2)) ->  | S36: =IF(A36="","",CONCATENATE($BG36,$BH36,$BI36,$BK36)) ->  | U36: =IF(ISERROR(COUNTA(E36:N36)),"",COUNTA(E36:N36)) -> 0 | V36: =IF(ISERROR(COUNT(E36:N36)),"",COUNT(E36:N36)) -> 0 | W36: =IF(ISERROR(MIN(E36:N36)),"",MIN(E36:N36)) -> 0 | X36: =IF(ISERROR(MAX(E36:N36)),"",MAX(E36:N36)) -> 0 | Y36: =IF(ISERROR(ROUND(AVERAGE(E36:N36),2)),"",ROUND(AVERAGE(E36:N36),2)) ->  | Z36: =IF(ISERROR(MEDIAN(E36:N36)),"",MEDIAN(E36:N36)) ->  | AA36: =IF(ISERROR(STDEV(E36:N36)),"",STDEV(E36:N36)) ->  | AB36: =IF(ISERROR(AA36/Y36),"",AA36/Y36) ->  | AF36: =IF(COUNT(E36:N36)<1,"",SMALL(E36:N36,1)) ->  | AG36: =IF(COUNT(E36:N36)<2,"",SMALL(E36:N36,2)) ->  | AH36: =IF(COUNT(E36:N36)<3,"",SMALL(E36:N36,3)) ->  | AI36: =IF(COUNT(E36:N36)<4,"",SMALL(E36:N36,4)) ->  | AJ36: =IF(COUNT(E36:N36)<5,"",SMALL(E36:N36,5)) ->  | AK36: =IF(COUNT(E36:N36)<6,"",SMALL(E36:N36,6)) ->  | AL36: =IF(COUNT(E36:N36)<3,"",AVERAGE(AF36:AH36)) ->  | AM36: =IF(COUNT(E36:N36)<4,"",AVERAGE(AG36:AI36)) ->  | AN36: =IF(COUNT(E36:N36)<5,"",AVERAGE(AH36:AJ36)) ->  | AO36: =IF(COUNT(E36:N36)<6,"",AVERAGE(AI36:AK36)) ->  | AQ36: =IF(E36>=1000,TEXT(E36,"0.000,00"),TEXT(E36,"0,00")) -> 0,00 | AR36: =IF(F36>=1000,TEXT(F36,"0.000,00"),TEXT(F36,"0,00")) -> 0,00 | AS36: =IF(G36>=1000,TEXT(G36,"0.000,00"),TEXT(G36,"0,00")) -> 0,00 | AT36: =IF(H36>=1000,TEXT(H36,"0.000,00"),TEXT(H36,"0,00")) -> 0,00 | AU36: =IF(I36>=1000,TEXT(I36,"0.000,00"),TEXT(I36,"0,00")) -> 0,00 | AV36: =IF(J36>=1000,TEXT(J36,"0.000,00"),TEXT(J36,"0,00")) -> 0,00 | AW36: =IF(K36>=1000,TEXT(K36,"0.000,00"),TEXT(K36,"0,00")) -> 0,00 | AX36: =IF(L36>=1000,TEXT(L36,"0.000,00"),TEXT(L36,"0,00")) -> 0,00 | AY36: =IF(M36>=1000,TEXT(M36,"0.000,00"),TEXT(M36,"0,00")) -> 0,00 | AZ36: =IF(N36>=1000,TEXT(N36,"0.000,00"),TEXT(N36,"0,00")) -> 0,00 | BB36: =IF(PREENCHER!AL36="",#REF!,IF(PREENCHER!AM36="",#REF!,IF(PREENCHER!AN36="",#REF!,IF(STDEV(PREENCHER!$AF36:$AH36)/AVERAGE(PREENCHER!$AF36:$AH36)>#REF!,IF(STDEV(PREENCHER!$AG36:$AI36)/AVERAGE(PREENCHER!$AG36:$AI36)>#REF!,IF(STDEV(PREENCHER!$AH36:$AJ36)/AVERAGE(PREENCHER!$AH36:$AJ36)>#REF!,IF(STDEV(PREENCHER!$AI36:$AK36)/AVERAGE(PREENCHER!$AI36:$AK36)>#REF!,#REF!,AVERAGE(PREENCHER!$AI36:$AK36)),AVERAGE(PREENCHER!$AH36:$AJ36)),AVERAGE(PREENCHER!$AG36:$AI36)),AVERAGE(PREENCHER!$AF36:$AH36))))) ->  | BC36: =IF(ISERROR(ROUND(BB36,2)),"",ROUND(BB36,2)) ->  | BG36: =IF(ISERROR(IF(COUNT(E36:N36)=2,"Apenas dois preços comparativos válidos. ","")),"",IF(COUNT(E36:N36)=2,"Apenas dois preços comparativos válidos. ","")) ->  | BH36: =IF(ISERROR(IF(COUNT(E36:N36)=1,"Apenas um preço comparativo válido. ","")),"",IF(COUNT(E36:N36)=1,"Apenas um preço comparativo válido. ","")) ->  | BI36: =IF(A36="","",IF(ISERROR(IF(COUNT(E36:N36)=0,"Nenhum preço comparativo válido. ","")),"",IF(COUNT(E36:N36)=0,"Nenhum preço comparativo válido. ",""))) ->  | BJ36: =IF(ISERROR(IF(R36>P36,(R36-P36)/P36,"")),"",IF(R36>P36,(R36-P36)/P36,"")) ->  | BK36: =IF(ISERROR(IF(BJ36="","","Neste item, o valor contratado pelo TJDFT é "&TEXT(BJ36,"0,00%")&" superior à média comparativa.")),"",IF(BJ36="","","Neste item, o valor contratado pelo TJDFT é "&TEXT(BJ36,"0,00%")&" superior à média comparativa.")) -> 
O37: =IF(ISERROR(ROUND(AVERAGE(E37:N37),2)),"",ROUND(AVERAGE(E37:N37),2)) ->  | P37: =IF(ISERROR(ROUND(O37*D37,2)),"",ROUND(O37*D37,2)) ->  | R37: =IF(A37="","",ROUND(Q37*D37,2)) ->  | S37: =IF(A37="","",CONCATENATE($BG37,$BH37,$BI37,$BK37)) ->  | U37: =IF(ISERROR(COUNTA(E37:N37)),"",COUNTA(E37:N37)) -> 0 | V37: =IF(ISERROR(COUNT(E37:N37)),"",COUNT(E37:N37)) -> 0 | W37: =IF(ISERROR(MIN(E37:N37)),"",MIN(E37:N37)) -> 0 | X37: =IF(ISERROR(MAX(E37:N37)),"",MAX(E37:N37)) -> 0 | Y37: =IF(ISERROR(ROUND(AVERAGE(E37:N37),2)),"",ROUND(AVERAGE(E37:N37),2)) ->  | Z37: =IF(ISERROR(MEDIAN(E37:N37)),"",MEDIAN(E37:N37)) ->  | AA37: =IF(ISERROR(STDEV(E37:N37)),"",STDEV(E37:N37)) ->  | AB37: =IF(ISERROR(AA37/Y37),"",AA37/Y37) ->  | AF37: =IF(COUNT(E37:N37)<1,"",SMALL(E37:N37,1)) ->  | AG37: =IF(COUNT(E37:N37)<2,"",SMALL(E37:N37,2)) ->  | AH37: =IF(COUNT(E37:N37)<3,"",SMALL(E37:N37,3)) ->  | AI37: =IF(COUNT(E37:N37)<4,"",SMALL(E37:N37,4)) ->  | AJ37: =IF(COUNT(E37:N37)<5,"",SMALL(E37:N37,5)) ->  | AK37: =IF(COUNT(E37:N37)<6,"",SMALL(E37:N37,6)) ->  | AL37: =IF(COUNT(E37:N37)<3,"",AVERAGE(AF37:AH37)) ->  | AM37: =IF(COUNT(E37:N37)<4,"",AVERAGE(AG37:AI37)) ->  | AN37: =IF(COUNT(E37:N37)<5,"",AVERAGE(AH37:AJ37)) ->  | AO37: =IF(COUNT(E37:N37)<6,"",AVERAGE(AI37:AK37)) ->  | AQ37: =IF(E37>=1000,TEXT(E37,"0.000,00"),TEXT(E37,"0,00")) -> 0,00 | AR37: =IF(F37>=1000,TEXT(F37,"0.000,00"),TEXT(F37,"0,00")) -> 0,00 | AS37: =IF(G37>=1000,TEXT(G37,"0.000,00"),TEXT(G37,"0,00")) -> 0,00 | AT37: =IF(H37>=1000,TEXT(H37,"0.000,00"),TEXT(H37,"0,00")) -> 0,00 | AU37: =IF(I37>=1000,TEXT(I37,"0.000,00"),TEXT(I37,"0,00")) -> 0,00 | AV37: =IF(J37>=1000,TEXT(J37,"0.000,00"),TEXT(J37,"0,00")) -> 0,00 | AW37: =IF(K37>=1000,TEXT(K37,"0.000,00"),TEXT(K37,"0,00")) -> 0,00 | AX37: =IF(L37>=1000,TEXT(L37,"0.000,00"),TEXT(L37,"0,00")) -> 0,00 | AY37: =IF(M37>=1000,TEXT(M37,"0.000,00"),TEXT(M37,"0,00")) -> 0,00 | AZ37: =IF(N37>=1000,TEXT(N37,"0.000,00"),TEXT(N37,"0,00")) -> 0,00 | BB37: =IF(PREENCHER!AL37="",#REF!,IF(PREENCHER!AM37="",#REF!,IF(PREENCHER!AN37="",#REF!,IF(STDEV(PREENCHER!$AF37:$AH37)/AVERAGE(PREENCHER!$AF37:$AH37)>#REF!,IF(STDEV(PREENCHER!$AG37:$AI37)/AVERAGE(PREENCHER!$AG37:$AI37)>#REF!,IF(STDEV(PREENCHER!$AH37:$AJ37)/AVERAGE(PREENCHER!$AH37:$AJ37)>#REF!,IF(STDEV(PREENCHER!$AI37:$AK37)/AVERAGE(PREENCHER!$AI37:$AK37)>#REF!,#REF!,AVERAGE(PREENCHER!$AI37:$AK37)),AVERAGE(PREENCHER!$AH37:$AJ37)),AVERAGE(PREENCHER!$AG37:$AI37)),AVERAGE(PREENCHER!$AF37:$AH37))))) ->  | BC37: =IF(ISERROR(ROUND(BB37,2)),"",ROUND(BB37,2)) ->  | BG37: =IF(ISERROR(IF(COUNT(E37:N37)=2,"Apenas dois preços comparativos válidos. ","")),"",IF(COUNT(E37:N37)=2,"Apenas dois preços comparativos válidos. ","")) ->  | BH37: =IF(ISERROR(IF(COUNT(E37:N37)=1,"Apenas um preço comparativo válido. ","")),"",IF(COUNT(E37:N37)=1,"Apenas um preço comparativo válido. ","")) ->  | BI37: =IF(A37="","",IF(ISERROR(IF(COUNT(E37:N37)=0,"Nenhum preço comparativo válido. ","")),"",IF(COUNT(E37:N37)=0,"Nenhum preço comparativo válido. ",""))) ->  | BJ37: =IF(ISERROR(IF(R37>P37,(R37-P37)/P37,"")),"",IF(R37>P37,(R37-P37)/P37,"")) ->  | BK37: =IF(ISERROR(IF(BJ37="","","Neste item, o valor contratado pelo TJDFT é "&TEXT(BJ37,"0,00%")&" superior à média comparativa.")),"",IF(BJ37="","","Neste item, o valor contratado pelo TJDFT é "&TEXT(BJ37,"0,00%")&" superior à média comparativa.")) -> 
O38: =IF(ISERROR(ROUND(AVERAGE(E38:N38),2)),"",ROUND(AVERAGE(E38:N38),2)) ->  | P38: =IF(ISERROR(ROUND(O38*D38,2)),"",ROUND(O38*D38,2)) ->  | R38: =IF(A38="","",ROUND(Q38*D38,2)) ->  | S38: =IF(A38="","",CONCATENATE($BG38,$BH38,$BI38,$BK38)) ->  | U38: =IF(ISERROR(COUNTA(E38:N38)),"",COUNTA(E38:N38)) -> 0 | V38: =IF(ISERROR(COUNT(E38:N38)),"",COUNT(E38:N38)) -> 0 | W38: =IF(ISERROR(MIN(E38:N38)),"",MIN(E38:N38)) -> 0 | X38: =IF(ISERROR(MAX(E38:N38)),"",MAX(E38:N38)) -> 0 | Y38: =IF(ISERROR(ROUND(AVERAGE(E38:N38),2)),"",ROUND(AVERAGE(E38:N38),2)) ->  | Z38: =IF(ISERROR(MEDIAN(E38:N38)),"",MEDIAN(E38:N38)) ->  | AA38: =IF(ISERROR(STDEV(E38:N38)),"",STDEV(E38:N38)) ->  | AB38: =IF(ISERROR(AA38/Y38),"",AA38/Y38) ->  | AF38: =IF(COUNT(E38:N38)<1,"",SMALL(E38:N38,1)) ->  | AG38: =IF(COUNT(E38:N38)<2,"",SMALL(E38:N38,2)) ->  | AH38: =IF(COUNT(E38:N38)<3,"",SMALL(E38:N38,3)) ->  | AI38: =IF(COUNT(E38:N38)<4,"",SMALL(E38:N38,4)) ->  | AJ38: =IF(COUNT(E38:N38)<5,"",SMALL(E38:N38,5)) ->  | AK38: =IF(COUNT(E38:N38)<6,"",SMALL(E38:N38,6)) ->  | AL38: =IF(COUNT(E38:N38)<3,"",AVERAGE(AF38:AH38)) ->  | AM38: =IF(COUNT(E38:N38)<4,"",AVERAGE(AG38:AI38)) ->  | AN38: =IF(COUNT(E38:N38)<5,"",AVERAGE(AH38:AJ38)) ->  | AO38: =IF(COUNT(E38:N38)<6,"",AVERAGE(AI38:AK38)) ->  | AQ38: =IF(E38>=1000,TEXT(E38,"0.000,00"),TEXT(E38,"0,00")) -> 0,00 | AR38: =IF(F38>=1000,TEXT(F38,"0.000,00"),TEXT(F38,"0,00")) -> 0,00 | AS38: =IF(G38>=1000,TEXT(G38,"0.000,00"),TEXT(G38,"0,00")) -> 0,00 | AT38: =IF(H38>=1000,TEXT(H38,"0.000,00"),TEXT(H38,"0,00")) -> 0,00 | AU38: =IF(I38>=1000,TEXT(I38,"0.000,00"),TEXT(I38,"0,00")) -> 0,00 | AV38: =IF(J38>=1000,TEXT(J38,"0.000,00"),TEXT(J38,"0,00")) -> 0,00 | AW38: =IF(K38>=1000,TEXT(K38,"0.000,00"),TEXT(K38,"0,00")) -> 0,00 | AX38: =IF(L38>=1000,TEXT(L38,"0.000,00"),TEXT(L38,"0,00")) -> 0,00 | AY38: =IF(M38>=1000,TEXT(M38,"0.000,00"),TEXT(M38,"0,00")) -> 0,00 | AZ38: =IF(N38>=1000,TEXT(N38,"0.000,00"),TEXT(N38,"0,00")) -> 0,00 | BB38: =IF(PREENCHER!AL38="",#REF!,IF(PREENCHER!AM38="",#REF!,IF(PREENCHER!AN38="",#REF!,IF(STDEV(PREENCHER!$AF38:$AH38)/AVERAGE(PREENCHER!$AF38:$AH38)>#REF!,IF(STDEV(PREENCHER!$AG38:$AI38)/AVERAGE(PREENCHER!$AG38:$AI38)>#REF!,IF(STDEV(PREENCHER!$AH38:$AJ38)/AVERAGE(PREENCHER!$AH38:$AJ38)>#REF!,IF(STDEV(PREENCHER!$AI38:$AK38)/AVERAGE(PREENCHER!$AI38:$AK38)>#REF!,#REF!,AVERAGE(PREENCHER!$AI38:$AK38)),AVERAGE(PREENCHER!$AH38:$AJ38)),AVERAGE(PREENCHER!$AG38:$AI38)),AVERAGE(PREENCHER!$AF38:$AH38))))) ->  | BC38: =IF(ISERROR(ROUND(BB38,2)),"",ROUND(BB38,2)) ->  | BG38: =IF(ISERROR(IF(COUNT(E38:N38)=2,"Apenas dois preços comparativos válidos. ","")),"",IF(COUNT(E38:N38)=2,"Apenas dois preços comparativos válidos. ","")) ->  | BH38: =IF(ISERROR(IF(COUNT(E38:N38)=1,"Apenas um preço comparativo válido. ","")),"",IF(COUNT(E38:N38)=1,"Apenas um preço comparativo válido. ","")) ->  | BI38: =IF(A38="","",IF(ISERROR(IF(COUNT(E38:N38)=0,"Nenhum preço comparativo válido. ","")),"",IF(COUNT(E38:N38)=0,"Nenhum preço comparativo válido. ",""))) ->  | BJ38: =IF(ISERROR(IF(R38>P38,(R38-P38)/P38,"")),"",IF(R38>P38,(R38-P38)/P38,"")) ->  | BK38: =IF(ISERROR(IF(BJ38="","","Neste item, o valor contratado pelo TJDFT é "&TEXT(BJ38,"0,00%")&" superior à média comparativa.")),"",IF(BJ38="","","Neste item, o valor contratado pelo TJDFT é "&TEXT(BJ38,"0,00%")&" superior à média comparativa.")) -> 
O39: =IF(ISERROR(ROUND(AVERAGE(E39:N39),2)),"",ROUND(AVERAGE(E39:N39),2)) ->  | P39: =IF(ISERROR(ROUND(O39*D39,2)),"",ROUND(O39*D39,2)) ->  | R39: =IF(A39="","",ROUND(Q39*D39,2)) ->  | S39: =IF(A39="","",CONCATENATE($BG39,$BH39,$BI39,$BK39)) ->  | U39: =IF(ISERROR(COUNTA(E39:N39)),"",COUNTA(E39:N39)) -> 0 | V39: =IF(ISERROR(COUNT(E39:N39)),"",COUNT(E39:N39)) -> 0 | W39: =IF(ISERROR(MIN(E39:N39)),"",MIN(E39:N39)) -> 0 | X39: =IF(ISERROR(MAX(E39:N39)),"",MAX(E39:N39)) -> 0 | Y39: =IF(ISERROR(ROUND(AVERAGE(E39:N39),2)),"",ROUND(AVERAGE(E39:N39),2)) ->  | Z39: =IF(ISERROR(MEDIAN(E39:N39)),"",MEDIAN(E39:N39)) ->  | AA39: =IF(ISERROR(STDEV(E39:N39)),"",STDEV(E39:N39)) ->  | AB39: =IF(ISERROR(AA39/Y39),"",AA39/Y39) ->  | AF39: =IF(COUNT(E39:N39)<1,"",SMALL(E39:N39,1)) ->  | AG39: =IF(COUNT(E39:N39)<2,"",SMALL(E39:N39,2)) ->  | AH39: =IF(COUNT(E39:N39)<3,"",SMALL(E39:N39,3)) ->  | AI39: =IF(COUNT(E39:N39)<4,"",SMALL(E39:N39,4)) ->  | AJ39: =IF(COUNT(E39:N39)<5,"",SMALL(E39:N39,5)) ->  | AK39: =IF(COUNT(E39:N39)<6,"",SMALL(E39:N39,6)) ->  | AL39: =IF(COUNT(E39:N39)<3,"",AVERAGE(AF39:AH39)) ->  | AM39: =IF(COUNT(E39:N39)<4,"",AVERAGE(AG39:AI39)) ->  | AN39: =IF(COUNT(E39:N39)<5,"",AVERAGE(AH39:AJ39)) ->  | AO39: =IF(COUNT(E39:N39)<6,"",AVERAGE(AI39:AK39)) ->  | AQ39: =IF(E39>=1000,TEXT(E39,"0.000,00"),TEXT(E39,"0,00")) -> 0,00 | AR39: =IF(F39>=1000,TEXT(F39,"0.000,00"),TEXT(F39,"0,00")) -> 0,00 | AS39: =IF(G39>=1000,TEXT(G39,"0.000,00"),TEXT(G39,"0,00")) -> 0,00 | AT39: =IF(H39>=1000,TEXT(H39,"0.000,00"),TEXT(H39,"0,00")) -> 0,00 | AU39: =IF(I39>=1000,TEXT(I39,"0.000,00"),TEXT(I39,"0,00")) -> 0,00 | AV39: =IF(J39>=1000,TEXT(J39,"0.000,00"),TEXT(J39,"0,00")) -> 0,00 | AW39: =IF(K39>=1000,TEXT(K39,"0.000,00"),TEXT(K39,"0,00")) -> 0,00 | AX39: =IF(L39>=1000,TEXT(L39,"0.000,00"),TEXT(L39,"0,00")) -> 0,00 | AY39: =IF(M39>=1000,TEXT(M39,"0.000,00"),TEXT(M39,"0,00")) -> 0,00 | AZ39: =IF(N39>=1000,TEXT(N39,"0.000,00"),TEXT(N39,"0,00")) -> 0,00 | BB39: =IF(PREENCHER!AL39="",#REF!,IF(PREENCHER!AM39="",#REF!,IF(PREENCHER!AN39="",#REF!,IF(STDEV(PREENCHER!$AF39:$AH39)/AVERAGE(PREENCHER!$AF39:$AH39)>#REF!,IF(STDEV(PREENCHER!$AG39:$AI39)/AVERAGE(PREENCHER!$AG39:$AI39)>#REF!,IF(STDEV(PREENCHER!$AH39:$AJ39)/AVERAGE(PREENCHER!$AH39:$AJ39)>#REF!,IF(STDEV(PREENCHER!$AI39:$AK39)/AVERAGE(PREENCHER!$AI39:$AK39)>#REF!,#REF!,AVERAGE(PREENCHER!$AI39:$AK39)),AVERAGE(PREENCHER!$AH39:$AJ39)),AVERAGE(PREENCHER!$AG39:$AI39)),AVERAGE(PREENCHER!$AF39:$AH39))))) ->  | BC39: =IF(ISERROR(ROUND(BB39,2)),"",ROUND(BB39,2)) ->  | BG39: =IF(ISERROR(IF(COUNT(E39:N39)=2,"Apenas dois preços comparativos válidos. ","")),"",IF(COUNT(E39:N39)=2,"Apenas dois preços comparativos válidos. ","")) ->  | BH39: =IF(ISERROR(IF(COUNT(E39:N39)=1,"Apenas um preço comparativo válido. ","")),"",IF(COUNT(E39:N39)=1,"Apenas um preço comparativo válido. ","")) ->  | BI39: =IF(A39="","",IF(ISERROR(IF(COUNT(E39:N39)=0,"Nenhum preço comparativo válido. ","")),"",IF(COUNT(E39:N39)=0,"Nenhum preço comparativo válido. ",""))) ->  | BJ39: =IF(ISERROR(IF(R39>P39,(R39-P39)/P39,"")),"",IF(R39>P39,(R39-P39)/P39,"")) ->  | BK39: =IF(ISERROR(IF(BJ39="","","Neste item, o valor contratado pelo TJDFT é "&TEXT(BJ39,"0,00%")&" superior à média comparativa.")),"",IF(BJ39="","","Neste item, o valor contratado pelo TJDFT é "&TEXT(BJ39,"0,00%")&" superior à média comparativa.")) -> 
O40: =IF(ISERROR(ROUND(AVERAGE(E40:N40),2)),"",ROUND(AVERAGE(E40:N40),2)) ->  | P40: =IF(ISERROR(ROUND(O40*D40,2)),"",ROUND(O40*D40,2)) ->  | R40: =IF(A40="","",ROUND(Q40*D40,2)) ->  | S40: =IF(A40="","",CONCATENATE($BG40,$BH40,$BI40,$BK40)) ->  | U40: =IF(ISERROR(COUNTA(E40:N40)),"",COUNTA(E40:N40)) -> 0 | V40: =IF(ISERROR(COUNT(E40:N40)),"",COUNT(E40:N40)) -> 0 | W40: =IF(ISERROR(MIN(E40:N40)),"",MIN(E40:N40)) -> 0 | X40: =IF(ISERROR(MAX(E40:N40)),"",MAX(E40:N40)) -> 0 | Y40: =IF(ISERROR(ROUND(AVERAGE(E40:N40),2)),"",ROUND(AVERAGE(E40:N40),2)) ->  | Z40: =IF(ISERROR(MEDIAN(E40:N40)),"",MEDIAN(E40:N40)) ->  | AA40: =IF(ISERROR(STDEV(E40:N40)),"",STDEV(E40:N40)) ->  | AB40: =IF(ISERROR(AA40/Y40),"",AA40/Y40) ->  | AF40: =IF(COUNT(E40:N40)<1,"",SMALL(E40:N40,1)) ->  | AG40: =IF(COUNT(E40:N40)<2,"",SMALL(E40:N40,2)) ->  | AH40: =IF(COUNT(E40:N40)<3,"",SMALL(E40:N40,3)) ->  | AI40: =IF(COUNT(E40:N40)<4,"",SMALL(E40:N40,4)) ->  | AJ40: =IF(COUNT(E40:N40)<5,"",SMALL(E40:N40,5)) ->  | AK40: =IF(COUNT(E40:N40)<6,"",SMALL(E40:N40,6)) ->  | AL40: =IF(COUNT(E40:N40)<3,"",AVERAGE(AF40:AH40)) ->  | AM40: =IF(COUNT(E40:N40)<4,"",AVERAGE(AG40:AI40)) ->  | AN40: =IF(COUNT(E40:N40)<5,"",AVERAGE(AH40:AJ40)) ->  | AO40: =IF(COUNT(E40:N40)<6,"",AVERAGE(AI40:AK40)) ->  | AQ40: =IF(E40>=1000,TEXT(E40,"0.000,00"),TEXT(E40,"0,00")) -> 0,00 | AR40: =IF(F40>=1000,TEXT(F40,"0.000,00"),TEXT(F40,"0,00")) -> 0,00 | AS40: =IF(G40>=1000,TEXT(G40,"0.000,00"),TEXT(G40,"0,00")) -> 0,00 | AT40: =IF(H40>=1000,TEXT(H40,"0.000,00"),TEXT(H40,"0,00")) -> 0,00 | AU40: =IF(I40>=1000,TEXT(I40,"0.000,00"),TEXT(I40,"0,00")) -> 0,00 | AV40: =IF(J40>=1000,TEXT(J40,"0.000,00"),TEXT(J40,"0,00")) -> 0,00 | AW40: =IF(K40>=1000,TEXT(K40,"0.000,00"),TEXT(K40,"0,00")) -> 0,00 | AX40: =IF(L40>=1000,TEXT(L40,"0.000,00"),TEXT(L40,"0,00")) -> 0,00 | AY40: =IF(M40>=1000,TEXT(M40,"0.000,00"),TEXT(M40,"0,00")) -> 0,00 | AZ40: =IF(N40>=1000,TEXT(N40,"0.000,00"),TEXT(N40,"0,00")) -> 0,00 | BB40: =IF(PREENCHER!AL40="",#REF!,IF(PREENCHER!AM40="",#REF!,IF(PREENCHER!AN40="",#REF!,IF(STDEV(PREENCHER!$AF40:$AH40)/AVERAGE(PREENCHER!$AF40:$AH40)>#REF!,IF(STDEV(PREENCHER!$AG40:$AI40)/AVERAGE(PREENCHER!$AG40:$AI40)>#REF!,IF(STDEV(PREENCHER!$AH40:$AJ40)/AVERAGE(PREENCHER!$AH40:$AJ40)>#REF!,IF(STDEV(PREENCHER!$AI40:$AK40)/AVERAGE(PREENCHER!$AI40:$AK40)>#REF!,#REF!,AVERAGE(PREENCHER!$AI40:$AK40)),AVERAGE(PREENCHER!$AH40:$AJ40)),AVERAGE(PREENCHER!$AG40:$AI40)),AVERAGE(PREENCHER!$AF40:$AH40))))) ->  | BC40: =IF(ISERROR(ROUND(BB40,2)),"",ROUND(BB40,2)) ->  | BG40: =IF(ISERROR(IF(COUNT(E40:N40)=2,"Apenas dois preços comparativos válidos. ","")),"",IF(COUNT(E40:N40)=2,"Apenas dois preços comparativos válidos. ","")) ->  | BH40: =IF(ISERROR(IF(COUNT(E40:N40)=1,"Apenas um preço comparativo válido. ","")),"",IF(COUNT(E40:N40)=1,"Apenas um preço comparativo válido. ","")) ->  | BI40: =IF(A40="","",IF(ISERROR(IF(COUNT(E40:N40)=0,"Nenhum preço comparativo válido. ","")),"",IF(COUNT(E40:N40)=0,"Nenhum preço comparativo válido. ",""))) ->  | BJ40: =IF(ISERROR(IF(R40>P40,(R40-P40)/P40,"")),"",IF(R40>P40,(R40-P40)/P40,"")) ->  | BK40: =IF(ISERROR(IF(BJ40="","","Neste item, o valor contratado pelo TJDFT é "&TEXT(BJ40,"0,00%")&" superior à média comparativa.")),"",IF(BJ40="","","Neste item, o valor contratado pelo TJDFT é "&TEXT(BJ40,"0,00%")&" superior à média comparativa.")) -> 
O41: =IF(ISERROR(ROUND(AVERAGE(E41:N41),2)),"",ROUND(AVERAGE(E41:N41),2)) ->  | P41: =IF(ISERROR(ROUND(O41*D41,2)),"",ROUND(O41*D41,2)) ->  | R41: =IF(A41="","",ROUND(Q41*D41,2)) ->  | S41: =IF(A41="","",CONCATENATE($BG41,$BH41,$BI41,$BK41)) ->  | U41: =IF(ISERROR(COUNTA(E41:N41)),"",COUNTA(E41:N41)) -> 0 | V41: =IF(ISERROR(COUNT(E41:N41)),"",COUNT(E41:N41)) -> 0 | W41: =IF(ISERROR(MIN(E41:N41)),"",MIN(E41:N41)) -> 0 | X41: =IF(ISERROR(MAX(E41:N41)),"",MAX(E41:N41)) -> 0 | Y41: =IF(ISERROR(ROUND(AVERAGE(E41:N41),2)),"",ROUND(AVERAGE(E41:N41),2)) ->  | Z41: =IF(ISERROR(MEDIAN(E41:N41)),"",MEDIAN(E41:N41)) ->  | AA41: =IF(ISERROR(STDEV(E41:N41)),"",STDEV(E41:N41)) ->  | AB41: =IF(ISERROR(AA41/Y41),"",AA41/Y41) ->  | AF41: =IF(COUNT(E41:N41)<1,"",SMALL(E41:N41,1)) ->  | AG41: =IF(COUNT(E41:N41)<2,"",SMALL(E41:N41,2)) ->  | AH41: =IF(COUNT(E41:N41)<3,"",SMALL(E41:N41,3)) ->  | AI41: =IF(COUNT(E41:N41)<4,"",SMALL(E41:N41,4)) ->  | AJ41: =IF(COUNT(E41:N41)<5,"",SMALL(E41:N41,5)) ->  | AK41: =IF(COUNT(E41:N41)<6,"",SMALL(E41:N41,6)) ->  | AL41: =IF(COUNT(E41:N41)<3,"",AVERAGE(AF41:AH41)) ->  | AM41: =IF(COUNT(E41:N41)<4,"",AVERAGE(AG41:AI41)) ->  | AN41: =IF(COUNT(E41:N41)<5,"",AVERAGE(AH41:AJ41)) ->  | AO41: =IF(COUNT(E41:N41)<6,"",AVERAGE(AI41:AK41)) ->  | AQ41: =IF(E41>=1000,TEXT(E41,"0.000,00"),TEXT(E41,"0,00")) -> 0,00 | AR41: =IF(F41>=1000,TEXT(F41,"0.000,00"),TEXT(F41,"0,00")) -> 0,00 | AS41: =IF(G41>=1000,TEXT(G41,"0.000,00"),TEXT(G41,"0,00")) -> 0,00 | AT41: =IF(H41>=1000,TEXT(H41,"0.000,00"),TEXT(H41,"0,00")) -> 0,00 | AU41: =IF(I41>=1000,TEXT(I41,"0.000,00"),TEXT(I41,"0,00")) -> 0,00 | AV41: =IF(J41>=1000,TEXT(J41,"0.000,00"),TEXT(J41,"0,00")) -> 0,00 | AW41: =IF(K41>=1000,TEXT(K41,"0.000,00"),TEXT(K41,"0,00")) -> 0,00 | AX41: =IF(L41>=1000,TEXT(L41,"0.000,00"),TEXT(L41,"0,00")) -> 0,00 | AY41: =IF(M41>=1000,TEXT(M41,"0.000,00"),TEXT(M41,"0,00")) -> 0,00 | AZ41: =IF(N41>=1000,TEXT(N41,"0.000,00"),TEXT(N41,"0,00")) -> 0,00 | BB41: =IF(PREENCHER!AL41="",#REF!,IF(PREENCHER!AM41="",#REF!,IF(PREENCHER!AN41="",#REF!,IF(STDEV(PREENCHER!$AF41:$AH41)/AVERAGE(PREENCHER!$AF41:$AH41)>#REF!,IF(STDEV(PREENCHER!$AG41:$AI41)/AVERAGE(PREENCHER!$AG41:$AI41)>#REF!,IF(STDEV(PREENCHER!$AH41:$AJ41)/AVERAGE(PREENCHER!$AH41:$AJ41)>#REF!,IF(STDEV(PREENCHER!$AI41:$AK41)/AVERAGE(PREENCHER!$AI41:$AK41)>#REF!,#REF!,AVERAGE(PREENCHER!$AI41:$AK41)),AVERAGE(PREENCHER!$AH41:$AJ41)),AVERAGE(PREENCHER!$AG41:$AI41)),AVERAGE(PREENCHER!$AF41:$AH41))))) ->  | BC41: =IF(ISERROR(ROUND(BB41,2)),"",ROUND(BB41,2)) ->  | BG41: =IF(ISERROR(IF(COUNT(E41:N41)=2,"Apenas dois preços comparativos válidos. ","")),"",IF(COUNT(E41:N41)=2,"Apenas dois preços comparativos válidos. ","")) ->  | BH41: =IF(ISERROR(IF(COUNT(E41:N41)=1,"Apenas um preço comparativo válido. ","")),"",IF(COUNT(E41:N41)=1,"Apenas um preço comparativo válido. ","")) ->  | BI41: =IF(A41="","",IF(ISERROR(IF(COUNT(E41:N41)=0,"Nenhum preço comparativo válido. ","")),"",IF(COUNT(E41:N41)=0,"Nenhum preço comparativo válido. ",""))) ->  | BJ41: =IF(ISERROR(IF(R41>P41,(R41-P41)/P41,"")),"",IF(R41>P41,(R41-P41)/P41,"")) ->  | BK41: =IF(ISERROR(IF(BJ41="","","Neste item, o valor contratado pelo TJDFT é "&TEXT(BJ41,"0,00%")&" superior à média comparativa.")),"",IF(BJ41="","","Neste item, o valor contratado pelo TJDFT é "&TEXT(BJ41,"0,00%")&" superior à média comparativa.")) -> 
O42: =IF(ISERROR(ROUND(AVERAGE(E42:N42),2)),"",ROUND(AVERAGE(E42:N42),2)) ->  | P42: =IF(ISERROR(ROUND(O42*D42,2)),"",ROUND(O42*D42,2)) ->  | R42: =IF(A42="","",ROUND(Q42*D42,2)) ->  | S42: =IF(A42="","",CONCATENATE($BG42,$BH42,$BI42,$BK42)) ->  | U42: =IF(ISERROR(COUNTA(E42:N42)),"",COUNTA(E42:N42)) -> 0 | V42: =IF(ISERROR(COUNT(E42:N42)),"",COUNT(E42:N42)) -> 0 | W42: =IF(ISERROR(MIN(E42:N42)),"",MIN(E42:N42)) -> 0 | X42: =IF(ISERROR(MAX(E42:N42)),"",MAX(E42:N42)) -> 0 | Y42: =IF(ISERROR(ROUND(AVERAGE(E42:N42),2)),"",ROUND(AVERAGE(E42:N42),2)) ->  | Z42: =IF(ISERROR(MEDIAN(E42:N42)),"",MEDIAN(E42:N42)) ->  | AA42: =IF(ISERROR(STDEV(E42:N42)),"",STDEV(E42:N42)) ->  | AB42: =IF(ISERROR(AA42/Y42),"",AA42/Y42) ->  | AF42: =IF(COUNT(E42:N42)<1,"",SMALL(E42:N42,1)) ->  | AG42: =IF(COUNT(E42:N42)<2,"",SMALL(E42:N42,2)) ->  | AH42: =IF(COUNT(E42:N42)<3,"",SMALL(E42:N42,3)) ->  | AI42: =IF(COUNT(E42:N42)<4,"",SMALL(E42:N42,4)) ->  | AJ42: =IF(COUNT(E42:N42)<5,"",SMALL(E42:N42,5)) ->  | AK42: =IF(COUNT(E42:N42)<6,"",SMALL(E42:N42,6)) ->  | AL42: =IF(COUNT(E42:N42)<3,"",AVERAGE(AF42:AH42)) ->  | AM42: =IF(COUNT(E42:N42)<4,"",AVERAGE(AG42:AI42)) ->  | AN42: =IF(COUNT(E42:N42)<5,"",AVERAGE(AH42:AJ42)) ->  | AO42: =IF(COUNT(E42:N42)<6,"",AVERAGE(AI42:AK42)) ->  | AQ42: =IF(E42>=1000,TEXT(E42,"0.000,00"),TEXT(E42,"0,00")) -> 0,00 | AR42: =IF(F42>=1000,TEXT(F42,"0.000,00"),TEXT(F42,"0,00")) -> 0,00 | AS42: =IF(G42>=1000,TEXT(G42,"0.000,00"),TEXT(G42,"0,00")) -> 0,00 | AT42: =IF(H42>=1000,TEXT(H42,"0.000,00"),TEXT(H42,"0,00")) -> 0,00 | AU42: =IF(I42>=1000,TEXT(I42,"0.000,00"),TEXT(I42,"0,00")) -> 0,00 | AV42: =IF(J42>=1000,TEXT(J42,"0.000,00"),TEXT(J42,"0,00")) -> 0,00 | AW42: =IF(K42>=1000,TEXT(K42,"0.000,00"),TEXT(K42,"0,00")) -> 0,00 | AX42: =IF(L42>=1000,TEXT(L42,"0.000,00"),TEXT(L42,"0,00")) -> 0,00 | AY42: =IF(M42>=1000,TEXT(M42,"0.000,00"),TEXT(M42,"0,00")) -> 0,00 | AZ42: =IF(N42>=1000,TEXT(N42,"0.000,00"),TEXT(N42,"0,00")) -> 0,00 | BB42: =IF(PREENCHER!AL42="",#REF!,IF(PREENCHER!AM42="",#REF!,IF(PREENCHER!AN42="",#REF!,IF(STDEV(PREENCHER!$AF42:$AH42)/AVERAGE(PREENCHER!$AF42:$AH42)>#REF!,IF(STDEV(PREENCHER!$AG42:$AI42)/AVERAGE(PREENCHER!$AG42:$AI42)>#REF!,IF(STDEV(PREENCHER!$AH42:$AJ42)/AVERAGE(PREENCHER!$AH42:$AJ42)>#REF!,IF(STDEV(PREENCHER!$AI42:$AK42)/AVERAGE(PREENCHER!$AI42:$AK42)>#REF!,#REF!,AVERAGE(PREENCHER!$AI42:$AK42)),AVERAGE(PREENCHER!$AH42:$AJ42)),AVERAGE(PREENCHER!$AG42:$AI42)),AVERAGE(PREENCHER!$AF42:$AH42))))) ->  | BC42: =IF(ISERROR(ROUND(BB42,2)),"",ROUND(BB42,2)) ->  | BG42: =IF(ISERROR(IF(COUNT(E42:N42)=2,"Apenas dois preços comparativos válidos. ","")),"",IF(COUNT(E42:N42)=2,"Apenas dois preços comparativos válidos. ","")) ->  | BH42: =IF(ISERROR(IF(COUNT(E42:N42)=1,"Apenas um preço comparativo válido. ","")),"",IF(COUNT(E42:N42)=1,"Apenas um preço comparativo válido. ","")) ->  | BI42: =IF(A42="","",IF(ISERROR(IF(COUNT(E42:N42)=0,"Nenhum preço comparativo válido. ","")),"",IF(COUNT(E42:N42)=0,"Nenhum preço comparativo válido. ",""))) ->  | BJ42: =IF(ISERROR(IF(R42>P42,(R42-P42)/P42,"")),"",IF(R42>P42,(R42-P42)/P42,"")) ->  | BK42: =IF(ISERROR(IF(BJ42="","","Neste item, o valor contratado pelo TJDFT é "&TEXT(BJ42,"0,00%")&" superior à média comparativa.")),"",IF(BJ42="","","Neste item, o valor contratado pelo TJDFT é "&TEXT(BJ42,"0,00%")&" superior à média comparativa.")) -> 
O43: =IF(ISERROR(ROUND(AVERAGE(E43:N43),2)),"",ROUND(AVERAGE(E43:N43),2)) ->  | P43: =IF(ISERROR(ROUND(O43*D43,2)),"",ROUND(O43*D43,2)) ->  | R43: =IF(A43="","",ROUND(Q43*D43,2)) ->  | S43: =IF(A43="","",CONCATENATE($BG43,$BH43,$BI43,$BK43)) ->  | U43: =IF(ISERROR(COUNTA(E43:N43)),"",COUNTA(E43:N43)) -> 0 | V43: =IF(ISERROR(COUNT(E43:N43)),"",COUNT(E43:N43)) -> 0 | W43: =IF(ISERROR(MIN(E43:N43)),"",MIN(E43:N43)) -> 0 | X43: =IF(ISERROR(MAX(E43:N43)),"",MAX(E43:N43)) -> 0 | Y43: =IF(ISERROR(ROUND(AVERAGE(E43:N43),2)),"",ROUND(AVERAGE(E43:N43),2)) ->  | Z43: =IF(ISERROR(MEDIAN(E43:N43)),"",MEDIAN(E43:N43)) ->  | AA43: =IF(ISERROR(STDEV(E43:N43)),"",STDEV(E43:N43)) ->  | AB43: =IF(ISERROR(AA43/Y43),"",AA43/Y43) ->  | AF43: =IF(COUNT(E43:N43)<1,"",SMALL(E43:N43,1)) ->  | AG43: =IF(COUNT(E43:N43)<2,"",SMALL(E43:N43,2)) ->  | AH43: =IF(COUNT(E43:N43)<3,"",SMALL(E43:N43,3)) ->  | AI43: =IF(COUNT(E43:N43)<4,"",SMALL(E43:N43,4)) ->  | AJ43: =IF(COUNT(E43:N43)<5,"",SMALL(E43:N43,5)) ->  | AK43: =IF(COUNT(E43:N43)<6,"",SMALL(E43:N43,6)) ->  | AL43: =IF(COUNT(E43:N43)<3,"",AVERAGE(AF43:AH43)) ->  | AM43: =IF(COUNT(E43:N43)<4,"",AVERAGE(AG43:AI43)) ->  | AN43: =IF(COUNT(E43:N43)<5,"",AVERAGE(AH43:AJ43)) ->  | AO43: =IF(COUNT(E43:N43)<6,"",AVERAGE(AI43:AK43)) ->  | AQ43: =IF(E43>=1000,TEXT(E43,"0.000,00"),TEXT(E43,"0,00")) -> 0,00 | AR43: =IF(F43>=1000,TEXT(F43,"0.000,00"),TEXT(F43,"0,00")) -> 0,00 | AS43: =IF(G43>=1000,TEXT(G43,"0.000,00"),TEXT(G43,"0,00")) -> 0,00 | AT43: =IF(H43>=1000,TEXT(H43,"0.000,00"),TEXT(H43,"0,00")) -> 0,00 | AU43: =IF(I43>=1000,TEXT(I43,"0.000,00"),TEXT(I43,"0,00")) -> 0,00 | AV43: =IF(J43>=1000,TEXT(J43,"0.000,00"),TEXT(J43,"0,00")) -> 0,00 | AW43: =IF(K43>=1000,TEXT(K43,"0.000,00"),TEXT(K43,"0,00")) -> 0,00 | AX43: =IF(L43>=1000,TEXT(L43,"0.000,00"),TEXT(L43,"0,00")) -> 0,00 | AY43: =IF(M43>=1000,TEXT(M43,"0.000,00"),TEXT(M43,"0,00")) -> 0,00 | AZ43: =IF(N43>=1000,TEXT(N43,"0.000,00"),TEXT(N43,"0,00")) -> 0,00 | BB43: =IF(PREENCHER!AL43="",#REF!,IF(PREENCHER!AM43="",#REF!,IF(PREENCHER!AN43="",#REF!,IF(STDEV(PREENCHER!$AF43:$AH43)/AVERAGE(PREENCHER!$AF43:$AH43)>#REF!,IF(STDEV(PREENCHER!$AG43:$AI43)/AVERAGE(PREENCHER!$AG43:$AI43)>#REF!,IF(STDEV(PREENCHER!$AH43:$AJ43)/AVERAGE(PREENCHER!$AH43:$AJ43)>#REF!,IF(STDEV(PREENCHER!$AI43:$AK43)/AVERAGE(PREENCHER!$AI43:$AK43)>#REF!,#REF!,AVERAGE(PREENCHER!$AI43:$AK43)),AVERAGE(PREENCHER!$AH43:$AJ43)),AVERAGE(PREENCHER!$AG43:$AI43)),AVERAGE(PREENCHER!$AF43:$AH43))))) ->  | BC43: =IF(ISERROR(ROUND(BB43,2)),"",ROUND(BB43,2)) ->  | BG43: =IF(ISERROR(IF(COUNT(E43:N43)=2,"Apenas dois preços comparativos válidos. ","")),"",IF(COUNT(E43:N43)=2,"Apenas dois preços comparativos válidos. ","")) ->  | BH43: =IF(ISERROR(IF(COUNT(E43:N43)=1,"Apenas um preço comparativo válido. ","")),"",IF(COUNT(E43:N43)=1,"Apenas um preço comparativo válido. ","")) ->  | BI43: =IF(A43="","",IF(ISERROR(IF(COUNT(E43:N43)=0,"Nenhum preço comparativo válido. ","")),"",IF(COUNT(E43:N43)=0,"Nenhum preço comparativo válido. ",""))) ->  | BJ43: =IF(ISERROR(IF(R43>P43,(R43-P43)/P43,"")),"",IF(R43>P43,(R43-P43)/P43,"")) ->  | BK43: =IF(ISERROR(IF(BJ43="","","Neste item, o valor contratado pelo TJDFT é "&TEXT(BJ43,"0,00%")&" superior à média comparativa.")),"",IF(BJ43="","","Neste item, o valor contratado pelo TJDFT é "&TEXT(BJ43,"0,00%")&" superior à média comparativa.")) -> 
O44: =IF(ISERROR(ROUND(AVERAGE(E44:N44),2)),"",ROUND(AVERAGE(E44:N44),2)) ->  | P44: =IF(ISERROR(ROUND(O44*D44,2)),"",ROUND(O44*D44,2)) ->  | R44: =IF(A44="","",ROUND(Q44*D44,2)) ->  | S44: =IF(A44="","",CONCATENATE($BG44,$BH44,$BI44,$BK44)) ->  | U44: =IF(ISERROR(COUNTA(E44:N44)),"",COUNTA(E44:N44)) -> 0 | V44: =IF(ISERROR(COUNT(E44:N44)),"",COUNT(E44:N44)) -> 0 | W44: =IF(ISERROR(MIN(E44:N44)),"",MIN(E44:N44)) -> 0 | X44: =IF(ISERROR(MAX(E44:N44)),"",MAX(E44:N44)) -> 0 | Y44: =IF(ISERROR(ROUND(AVERAGE(E44:N44),2)),"",ROUND(AVERAGE(E44:N44),2)) ->  | Z44: =IF(ISERROR(MEDIAN(E44:N44)),"",MEDIAN(E44:N44)) ->  | AA44: =IF(ISERROR(STDEV(E44:N44)),"",STDEV(E44:N44)) ->  | AB44: =IF(ISERROR(AA44/Y44),"",AA44/Y44) ->  | AF44: =IF(COUNT(E44:N44)<1,"",SMALL(E44:N44,1)) ->  | AG44: =IF(COUNT(E44:N44)<2,"",SMALL(E44:N44,2)) ->  | AH44: =IF(COUNT(E44:N44)<3,"",SMALL(E44:N44,3)) ->  | AI44: =IF(COUNT(E44:N44)<4,"",SMALL(E44:N44,4)) ->  | AJ44: =IF(COUNT(E44:N44)<5,"",SMALL(E44:N44,5)) ->  | AK44: =IF(COUNT(E44:N44)<6,"",SMALL(E44:N44,6)) ->  | AL44: =IF(COUNT(E44:N44)<3,"",AVERAGE(AF44:AH44)) ->  | AM44: =IF(COUNT(E44:N44)<4,"",AVERAGE(AG44:AI44)) ->  | AN44: =IF(COUNT(E44:N44)<5,"",AVERAGE(AH44:AJ44)) ->  | AO44: =IF(COUNT(E44:N44)<6,"",AVERAGE(AI44:AK44)) ->  | AQ44: =IF(E44>=1000,TEXT(E44,"0.000,00"),TEXT(E44,"0,00")) -> 0,00 | AR44: =IF(F44>=1000,TEXT(F44,"0.000,00"),TEXT(F44,"0,00")) -> 0,00 | AS44: =IF(G44>=1000,TEXT(G44,"0.000,00"),TEXT(G44,"0,00")) -> 0,00 | AT44: =IF(H44>=1000,TEXT(H44,"0.000,00"),TEXT(H44,"0,00")) -> 0,00 | AU44: =IF(I44>=1000,TEXT(I44,"0.000,00"),TEXT(I44,"0,00")) -> 0,00 | AV44: =IF(J44>=1000,TEXT(J44,"0.000,00"),TEXT(J44,"0,00")) -> 0,00 | AW44: =IF(K44>=1000,TEXT(K44,"0.000,00"),TEXT(K44,"0,00")) -> 0,00 | AX44: =IF(L44>=1000,TEXT(L44,"0.000,00"),TEXT(L44,"0,00")) -> 0,00 | AY44: =IF(M44>=1000,TEXT(M44,"0.000,00"),TEXT(M44,"0,00")) -> 0,00 | AZ44: =IF(N44>=1000,TEXT(N44,"0.000,00"),TEXT(N44,"0,00")) -> 0,00 | BB44: =IF(PREENCHER!AL44="",#REF!,IF(PREENCHER!AM44="",#REF!,IF(PREENCHER!AN44="",#REF!,IF(STDEV(PREENCHER!$AF44:$AH44)/AVERAGE(PREENCHER!$AF44:$AH44)>#REF!,IF(STDEV(PREENCHER!$AG44:$AI44)/AVERAGE(PREENCHER!$AG44:$AI44)>#REF!,IF(STDEV(PREENCHER!$AH44:$AJ44)/AVERAGE(PREENCHER!$AH44:$AJ44)>#REF!,IF(STDEV(PREENCHER!$AI44:$AK44)/AVERAGE(PREENCHER!$AI44:$AK44)>#REF!,#REF!,AVERAGE(PREENCHER!$AI44:$AK44)),AVERAGE(PREENCHER!$AH44:$AJ44)),AVERAGE(PREENCHER!$AG44:$AI44)),AVERAGE(PREENCHER!$AF44:$AH44))))) ->  | BC44: =IF(ISERROR(ROUND(BB44,2)),"",ROUND(BB44,2)) ->  | BG44: =IF(ISERROR(IF(COUNT(E44:N44)=2,"Apenas dois preços comparativos válidos. ","")),"",IF(COUNT(E44:N44)=2,"Apenas dois preços comparativos válidos. ","")) ->  | BH44: =IF(ISERROR(IF(COUNT(E44:N44)=1,"Apenas um preço comparativo válido. ","")),"",IF(COUNT(E44:N44)=1,"Apenas um preço comparativo válido. ","")) ->  | BI44: =IF(A44="","",IF(ISERROR(IF(COUNT(E44:N44)=0,"Nenhum preço comparativo válido. ","")),"",IF(COUNT(E44:N44)=0,"Nenhum preço comparativo válido. ",""))) ->  | BJ44: =IF(ISERROR(IF(R44>P44,(R44-P44)/P44,"")),"",IF(R44>P44,(R44-P44)/P44,"")) ->  | BK44: =IF(ISERROR(IF(BJ44="","","Neste item, o valor contratado pelo TJDFT é "&TEXT(BJ44,"0,00%")&" superior à média comparativa.")),"",IF(BJ44="","","Neste item, o valor contratado pelo TJDFT é "&TEXT(BJ44,"0,00%")&" superior à média comparativa.")) -> 
O45: =IF(ISERROR(ROUND(AVERAGE(E45:N45),2)),"",ROUND(AVERAGE(E45:N45),2)) ->  | P45: =IF(ISERROR(ROUND(O45*D45,2)),"",ROUND(O45*D45,2)) ->  | R45: =IF(A45="","",ROUND(Q45*D45,2)) ->  | S45: =IF(A45="","",CONCATENATE($BG45,$BH45,$BI45,$BK45)) ->  | U45: =IF(ISERROR(COUNTA(E45:N45)),"",COUNTA(E45:N45)) -> 0 | V45: =IF(ISERROR(COUNT(E45:N45)),"",COUNT(E45:N45)) -> 0 | W45: =IF(ISERROR(MIN(E45:N45)),"",MIN(E45:N45)) -> 0 | X45: =IF(ISERROR(MAX(E45:N45)),"",MAX(E45:N45)) -> 0 | Y45: =IF(ISERROR(ROUND(AVERAGE(E45:N45),2)),"",ROUND(AVERAGE(E45:N45),2)) ->  | Z45: =IF(ISERROR(MEDIAN(E45:N45)),"",MEDIAN(E45:N45)) ->  | AA45: =IF(ISERROR(STDEV(E45:N45)),"",STDEV(E45:N45)) ->  | AB45: =IF(ISERROR(AA45/Y45),"",AA45/Y45) ->  | AF45: =IF(COUNT(E45:N45)<1,"",SMALL(E45:N45,1)) ->  | AG45: =IF(COUNT(E45:N45)<2,"",SMALL(E45:N45,2)) ->  | AH45: =IF(COUNT(E45:N45)<3,"",SMALL(E45:N45,3)) ->  | AI45: =IF(COUNT(E45:N45)<4,"",SMALL(E45:N45,4)) ->  | AJ45: =IF(COUNT(E45:N45)<5,"",SMALL(E45:N45,5)) ->  | AK45: =IF(COUNT(E45:N45)<6,"",SMALL(E45:N45,6)) ->  | AL45: =IF(COUNT(E45:N45)<3,"",AVERAGE(AF45:AH45)) ->  | AM45: =IF(COUNT(E45:N45)<4,"",AVERAGE(AG45:AI45)) ->  | AN45: =IF(COUNT(E45:N45)<5,"",AVERAGE(AH45:AJ45)) ->  | AO45: =IF(COUNT(E45:N45)<6,"",AVERAGE(AI45:AK45)) ->  | AQ45: =IF(E45>=1000,TEXT(E45,"0.000,00"),TEXT(E45,"0,00")) -> 0,00 | AR45: =IF(F45>=1000,TEXT(F45,"0.000,00"),TEXT(F45,"0,00")) -> 0,00 | AS45: =IF(G45>=1000,TEXT(G45,"0.000,00"),TEXT(G45,"0,00")) -> 0,00 | AT45: =IF(H45>=1000,TEXT(H45,"0.000,00"),TEXT(H45,"0,00")) -> 0,00 | AU45: =IF(I45>=1000,TEXT(I45,"0.000,00"),TEXT(I45,"0,00")) -> 0,00 | AV45: =IF(J45>=1000,TEXT(J45,"0.000,00"),TEXT(J45,"0,00")) -> 0,00 | AW45: =IF(K45>=1000,TEXT(K45,"0.000,00"),TEXT(K45,"0,00")) -> 0,00 | AX45: =IF(L45>=1000,TEXT(L45,"0.000,00"),TEXT(L45,"0,00")) -> 0,00 | AY45: =IF(M45>=1000,TEXT(M45,"0.000,00"),TEXT(M45,"0,00")) -> 0,00 | AZ45: =IF(N45>=1000,TEXT(N45,"0.000,00"),TEXT(N45,"0,00")) -> 0,00 | BB45: =IF(PREENCHER!AL45="",#REF!,IF(PREENCHER!AM45="",#REF!,IF(PREENCHER!AN45="",#REF!,IF(STDEV(PREENCHER!$AF45:$AH45)/AVERAGE(PREENCHER!$AF45:$AH45)>#REF!,IF(STDEV(PREENCHER!$AG45:$AI45)/AVERAGE(PREENCHER!$AG45:$AI45)>#REF!,IF(STDEV(PREENCHER!$AH45:$AJ45)/AVERAGE(PREENCHER!$AH45:$AJ45)>#REF!,IF(STDEV(PREENCHER!$AI45:$AK45)/AVERAGE(PREENCHER!$AI45:$AK45)>#REF!,#REF!,AVERAGE(PREENCHER!$AI45:$AK45)),AVERAGE(PREENCHER!$AH45:$AJ45)),AVERAGE(PREENCHER!$AG45:$AI45)),AVERAGE(PREENCHER!$AF45:$AH45))))) ->  | BC45: =IF(ISERROR(ROUND(BB45,2)),"",ROUND(BB45,2)) ->  | BG45: =IF(ISERROR(IF(COUNT(E45:N45)=2,"Apenas dois preços comparativos válidos. ","")),"",IF(COUNT(E45:N45)=2,"Apenas dois preços comparativos válidos. ","")) ->  | BH45: =IF(ISERROR(IF(COUNT(E45:N45)=1,"Apenas um preço comparativo válido. ","")),"",IF(COUNT(E45:N45)=1,"Apenas um preço comparativo válido. ","")) ->  | BI45: =IF(A45="","",IF(ISERROR(IF(COUNT(E45:N45)=0,"Nenhum preço comparativo válido. ","")),"",IF(COUNT(E45:N45)=0,"Nenhum preço comparativo válido. ",""))) ->  | BJ45: =IF(ISERROR(IF(R45>P45,(R45-P45)/P45,"")),"",IF(R45>P45,(R45-P45)/P45,"")) ->  | BK45: =IF(ISERROR(IF(BJ45="","","Neste item, o valor contratado pelo TJDFT é "&TEXT(BJ45,"0,00%")&" superior à média comparativa.")),"",IF(BJ45="","","Neste item, o valor contratado pelo TJDFT é "&TEXT(BJ45,"0,00%")&" superior à média comparativa.")) -> 
O46: =IF(ISERROR(ROUND(AVERAGE(E46:N46),2)),"",ROUND(AVERAGE(E46:N46),2)) ->  | P46: =IF(ISERROR(ROUND(O46*D46,2)),"",ROUND(O46*D46,2)) ->  | R46: =IF(A46="","",ROUND(Q46*D46,2)) ->  | S46: =IF(A46="","",CONCATENATE($BG46,$BH46,$BI46,$BK46)) ->  | U46: =IF(ISERROR(COUNTA(E46:N46)),"",COUNTA(E46:N46)) -> 0 | V46: =IF(ISERROR(COUNT(E46:N46)),"",COUNT(E46:N46)) -> 0 | W46: =IF(ISERROR(MIN(E46:N46)),"",MIN(E46:N46)) -> 0 | X46: =IF(ISERROR(MAX(E46:N46)),"",MAX(E46:N46)) -> 0 | Y46: =IF(ISERROR(ROUND(AVERAGE(E46:N46),2)),"",ROUND(AVERAGE(E46:N46),2)) ->  | Z46: =IF(ISERROR(MEDIAN(E46:N46)),"",MEDIAN(E46:N46)) ->  | AA46: =IF(ISERROR(STDEV(E46:N46)),"",STDEV(E46:N46)) ->  | AB46: =IF(ISERROR(AA46/Y46),"",AA46/Y46) ->  | AF46: =IF(COUNT(E46:N46)<1,"",SMALL(E46:N46,1)) ->  | AG46: =IF(COUNT(E46:N46)<2,"",SMALL(E46:N46,2)) ->  | AH46: =IF(COUNT(E46:N46)<3,"",SMALL(E46:N46,3)) ->  | AI46: =IF(COUNT(E46:N46)<4,"",SMALL(E46:N46,4)) ->  | AJ46: =IF(COUNT(E46:N46)<5,"",SMALL(E46:N46,5)) ->  | AK46: =IF(COUNT(E46:N46)<6,"",SMALL(E46:N46,6)) ->  | AL46: =IF(COUNT(E46:N46)<3,"",AVERAGE(AF46:AH46)) ->  | AM46: =IF(COUNT(E46:N46)<4,"",AVERAGE(AG46:AI46)) ->  | AN46: =IF(COUNT(E46:N46)<5,"",AVERAGE(AH46:AJ46)) ->  | AO46: =IF(COUNT(E46:N46)<6,"",AVERAGE(AI46:AK46)) ->  | AQ46: =IF(E46>=1000,TEXT(E46,"0.000,00"),TEXT(E46,"0,00")) -> 0,00 | AR46: =IF(F46>=1000,TEXT(F46,"0.000,00"),TEXT(F46,"0,00")) -> 0,00 | AS46: =IF(G46>=1000,TEXT(G46,"0.000,00"),TEXT(G46,"0,00")) -> 0,00 | AT46: =IF(H46>=1000,TEXT(H46,"0.000,00"),TEXT(H46,"0,00")) -> 0,00 | AU46: =IF(I46>=1000,TEXT(I46,"0.000,00"),TEXT(I46,"0,00")) -> 0,00 | AV46: =IF(J46>=1000,TEXT(J46,"0.000,00"),TEXT(J46,"0,00")) -> 0,00 | AW46: =IF(K46>=1000,TEXT(K46,"0.000,00"),TEXT(K46,"0,00")) -> 0,00 | AX46: =IF(L46>=1000,TEXT(L46,"0.000,00"),TEXT(L46,"0,00")) -> 0,00 | AY46: =IF(M46>=1000,TEXT(M46,"0.000,00"),TEXT(M46,"0,00")) -> 0,00 | AZ46: =IF(N46>=1000,TEXT(N46,"0.000,00"),TEXT(N46,"0,00")) -> 0,00 | BB46: =IF(PREENCHER!AL46="",#REF!,IF(PREENCHER!AM46="",#REF!,IF(PREENCHER!AN46="",#REF!,IF(STDEV(PREENCHER!$AF46:$AH46)/AVERAGE(PREENCHER!$AF46:$AH46)>#REF!,IF(STDEV(PREENCHER!$AG46:$AI46)/AVERAGE(PREENCHER!$AG46:$AI46)>#REF!,IF(STDEV(PREENCHER!$AH46:$AJ46)/AVERAGE(PREENCHER!$AH46:$AJ46)>#REF!,IF(STDEV(PREENCHER!$AI46:$AK46)/AVERAGE(PREENCHER!$AI46:$AK46)>#REF!,#REF!,AVERAGE(PREENCHER!$AI46:$AK46)),AVERAGE(PREENCHER!$AH46:$AJ46)),AVERAGE(PREENCHER!$AG46:$AI46)),AVERAGE(PREENCHER!$AF46:$AH46))))) ->  | BC46: =IF(ISERROR(ROUND(BB46,2)),"",ROUND(BB46,2)) ->  | BG46: =IF(ISERROR(IF(COUNT(E46:N46)=2,"Apenas dois preços comparativos válidos. ","")),"",IF(COUNT(E46:N46)=2,"Apenas dois preços comparativos válidos. ","")) ->  | BH46: =IF(ISERROR(IF(COUNT(E46:N46)=1,"Apenas um preço comparativo válido. ","")),"",IF(COUNT(E46:N46)=1,"Apenas um preço comparativo válido. ","")) ->  | BI46: =IF(A46="","",IF(ISERROR(IF(COUNT(E46:N46)=0,"Nenhum preço comparativo válido. ","")),"",IF(COUNT(E46:N46)=0,"Nenhum preço comparativo válido. ",""))) ->  | BJ46: =IF(ISERROR(IF(R46>P46,(R46-P46)/P46,"")),"",IF(R46>P46,(R46-P46)/P46,"")) ->  | BK46: =IF(ISERROR(IF(BJ46="","","Neste item, o valor contratado pelo TJDFT é "&TEXT(BJ46,"0,00%")&" superior à média comparativa.")),"",IF(BJ46="","","Neste item, o valor contratado pelo TJDFT é "&TEXT(BJ46,"0,00%")&" superior à média comparativa.")) -> 
O47: =IF(ISERROR(ROUND(AVERAGE(E47:N47),2)),"",ROUND(AVERAGE(E47:N47),2)) ->  | P47: =IF(ISERROR(ROUND(O47*D47,2)),"",ROUND(O47*D47,2)) ->  | R47: =IF(A47="","",ROUND(Q47*D47,2)) ->  | S47: =IF(A47="","",CONCATENATE($BG47,$BH47,$BI47,$BK47)) ->  | U47: =IF(ISERROR(COUNTA(E47:N47)),"",COUNTA(E47:N47)) -> 0 | V47: =IF(ISERROR(COUNT(E47:N47)),"",COUNT(E47:N47)) -> 0 | W47: =IF(ISERROR(MIN(E47:N47)),"",MIN(E47:N47)) -> 0 | X47: =IF(ISERROR(MAX(E47:N47)),"",MAX(E47:N47)) -> 0 | Y47: =IF(ISERROR(ROUND(AVERAGE(E47:N47),2)),"",ROUND(AVERAGE(E47:N47),2)) ->  | Z47: =IF(ISERROR(MEDIAN(E47:N47)),"",MEDIAN(E47:N47)) ->  | AA47: =IF(ISERROR(STDEV(E47:N47)),"",STDEV(E47:N47)) ->  | AB47: =IF(ISERROR(AA47/Y47),"",AA47/Y47) ->  | AF47: =IF(COUNT(E47:N47)<1,"",SMALL(E47:N47,1)) ->  | AG47: =IF(COUNT(E47:N47)<2,"",SMALL(E47:N47,2)) ->  | AH47: =IF(COUNT(E47:N47)<3,"",SMALL(E47:N47,3)) ->  | AI47: =IF(COUNT(E47:N47)<4,"",SMALL(E47:N47,4)) ->  | AJ47: =IF(COUNT(E47:N47)<5,"",SMALL(E47:N47,5)) ->  | AK47: =IF(COUNT(E47:N47)<6,"",SMALL(E47:N47,6)) ->  | AL47: =IF(COUNT(E47:N47)<3,"",AVERAGE(AF47:AH47)) ->  | AM47: =IF(COUNT(E47:N47)<4,"",AVERAGE(AG47:AI47)) ->  | AN47: =IF(COUNT(E47:N47)<5,"",AVERAGE(AH47:AJ47)) ->  | AO47: =IF(COUNT(E47:N47)<6,"",AVERAGE(AI47:AK47)) ->  | AQ47: =IF(E47>=1000,TEXT(E47,"0.000,00"),TEXT(E47,"0,00")) -> 0,00 | AR47: =IF(F47>=1000,TEXT(F47,"0.000,00"),TEXT(F47,"0,00")) -> 0,00 | AS47: =IF(G47>=1000,TEXT(G47,"0.000,00"),TEXT(G47,"0,00")) -> 0,00 | AT47: =IF(H47>=1000,TEXT(H47,"0.000,00"),TEXT(H47,"0,00")) -> 0,00 | AU47: =IF(I47>=1000,TEXT(I47,"0.000,00"),TEXT(I47,"0,00")) -> 0,00 | AV47: =IF(J47>=1000,TEXT(J47,"0.000,00"),TEXT(J47,"0,00")) -> 0,00 | AW47: =IF(K47>=1000,TEXT(K47,"0.000,00"),TEXT(K47,"0,00")) -> 0,00 | AX47: =IF(L47>=1000,TEXT(L47,"0.000,00"),TEXT(L47,"0,00")) -> 0,00 | AY47: =IF(M47>=1000,TEXT(M47,"0.000,00"),TEXT(M47,"0,00")) -> 0,00 | AZ47: =IF(N47>=1000,TEXT(N47,"0.000,00"),TEXT(N47,"0,00")) -> 0,00 | BB47: =IF(PREENCHER!AL47="",#REF!,IF(PREENCHER!AM47="",#REF!,IF(PREENCHER!AN47="",#REF!,IF(STDEV(PREENCHER!$AF47:$AH47)/AVERAGE(PREENCHER!$AF47:$AH47)>#REF!,IF(STDEV(PREENCHER!$AG47:$AI47)/AVERAGE(PREENCHER!$AG47:$AI47)>#REF!,IF(STDEV(PREENCHER!$AH47:$AJ47)/AVERAGE(PREENCHER!$AH47:$AJ47)>#REF!,IF(STDEV(PREENCHER!$AI47:$AK47)/AVERAGE(PREENCHER!$AI47:$AK47)>#REF!,#REF!,AVERAGE(PREENCHER!$AI47:$AK47)),AVERAGE(PREENCHER!$AH47:$AJ47)),AVERAGE(PREENCHER!$AG47:$AI47)),AVERAGE(PREENCHER!$AF47:$AH47))))) ->  | BC47: =IF(ISERROR(ROUND(BB47,2)),"",ROUND(BB47,2)) ->  | BG47: =IF(ISERROR(IF(COUNT(E47:N47)=2,"Apenas dois preços comparativos válidos. ","")),"",IF(COUNT(E47:N47)=2,"Apenas dois preços comparativos válidos. ","")) ->  | BH47: =IF(ISERROR(IF(COUNT(E47:N47)=1,"Apenas um preço comparativo válido. ","")),"",IF(COUNT(E47:N47)=1,"Apenas um preço comparativo válido. ","")) ->  | BI47: =IF(A47="","",IF(ISERROR(IF(COUNT(E47:N47)=0,"Nenhum preço comparativo válido. ","")),"",IF(COUNT(E47:N47)=0,"Nenhum preço comparativo válido. ",""))) ->  | BJ47: =IF(ISERROR(IF(R47>P47,(R47-P47)/P47,"")),"",IF(R47>P47,(R47-P47)/P47,"")) ->  | BK47: =IF(ISERROR(IF(BJ47="","","Neste item, o valor contratado pelo TJDFT é "&TEXT(BJ47,"0,00%")&" superior à média comparativa.")),"",IF(BJ47="","","Neste item, o valor contratado pelo TJDFT é "&TEXT(BJ47,"0,00%")&" superior à média comparativa.")) -> 
O48: =IF(ISERROR(ROUND(AVERAGE(E48:N48),2)),"",ROUND(AVERAGE(E48:N48),2)) ->  | P48: =IF(ISERROR(ROUND(O48*D48,2)),"",ROUND(O48*D48,2)) ->  | R48: =IF(A48="","",ROUND(Q48*D48,2)) ->  | S48: =IF(A48="","",CONCATENATE($BG48,$BH48,$BI48,$BK48)) ->  | U48: =IF(ISERROR(COUNTA(E48:N48)),"",COUNTA(E48:N48)) -> 0 | V48: =IF(ISERROR(COUNT(E48:N48)),"",COUNT(E48:N48)) -> 0 | W48: =IF(ISERROR(MIN(E48:N48)),"",MIN(E48:N48)) -> 0 | X48: =IF(ISERROR(MAX(E48:N48)),"",MAX(E48:N48)) -> 0 | Y48: =IF(ISERROR(ROUND(AVERAGE(E48:N48),2)),"",ROUND(AVERAGE(E48:N48),2)) ->  | Z48: =IF(ISERROR(MEDIAN(E48:N48)),"",MEDIAN(E48:N48)) ->  | AA48: =IF(ISERROR(STDEV(E48:N48)),"",STDEV(E48:N48)) ->  | AB48: =IF(ISERROR(AA48/Y48),"",AA48/Y48) ->  | AF48: =IF(COUNT(E48:N48)<1,"",SMALL(E48:N48,1)) ->  | AG48: =IF(COUNT(E48:N48)<2,"",SMALL(E48:N48,2)) ->  | AH48: =IF(COUNT(E48:N48)<3,"",SMALL(E48:N48,3)) ->  | AI48: =IF(COUNT(E48:N48)<4,"",SMALL(E48:N48,4)) ->  | AJ48: =IF(COUNT(E48:N48)<5,"",SMALL(E48:N48,5)) ->  | AK48: =IF(COUNT(E48:N48)<6,"",SMALL(E48:N48,6)) ->  | AL48: =IF(COUNT(E48:N48)<3,"",AVERAGE(AF48:AH48)) ->  | AM48: =IF(COUNT(E48:N48)<4,"",AVERAGE(AG48:AI48)) ->  | AN48: =IF(COUNT(E48:N48)<5,"",AVERAGE(AH48:AJ48)) ->  | AO48: =IF(COUNT(E48:N48)<6,"",AVERAGE(AI48:AK48)) ->  | AQ48: =IF(E48>=1000,TEXT(E48,"0.000,00"),TEXT(E48,"0,00")) -> 0,00 | AR48: =IF(F48>=1000,TEXT(F48,"0.000,00"),TEXT(F48,"0,00")) -> 0,00 | AS48: =IF(G48>=1000,TEXT(G48,"0.000,00"),TEXT(G48,"0,00")) -> 0,00 | AT48: =IF(H48>=1000,TEXT(H48,"0.000,00"),TEXT(H48,"0,00")) -> 0,00 | AU48: =IF(I48>=1000,TEXT(I48,"0.000,00"),TEXT(I48,"0,00")) -> 0,00 | AV48: =IF(J48>=1000,TEXT(J48,"0.000,00"),TEXT(J48,"0,00")) -> 0,00 | AW48: =IF(K48>=1000,TEXT(K48,"0.000,00"),TEXT(K48,"0,00")) -> 0,00 | AX48: =IF(L48>=1000,TEXT(L48,"0.000,00"),TEXT(L48,"0,00")) -> 0,00 | AY48: =IF(M48>=1000,TEXT(M48,"0.000,00"),TEXT(M48,"0,00")) -> 0,00 | AZ48: =IF(N48>=1000,TEXT(N48,"0.000,00"),TEXT(N48,"0,00")) -> 0,00 | BB48: =IF(PREENCHER!AL48="",#REF!,IF(PREENCHER!AM48="",#REF!,IF(PREENCHER!AN48="",#REF!,IF(STDEV(PREENCHER!$AF48:$AH48)/AVERAGE(PREENCHER!$AF48:$AH48)>#REF!,IF(STDEV(PREENCHER!$AG48:$AI48)/AVERAGE(PREENCHER!$AG48:$AI48)>#REF!,IF(STDEV(PREENCHER!$AH48:$AJ48)/AVERAGE(PREENCHER!$AH48:$AJ48)>#REF!,IF(STDEV(PREENCHER!$AI48:$AK48)/AVERAGE(PREENCHER!$AI48:$AK48)>#REF!,#REF!,AVERAGE(PREENCHER!$AI48:$AK48)),AVERAGE(PREENCHER!$AH48:$AJ48)),AVERAGE(PREENCHER!$AG48:$AI48)),AVERAGE(PREENCHER!$AF48:$AH48))))) ->  | BC48: =IF(ISERROR(ROUND(BB48,2)),"",ROUND(BB48,2)) ->  | BG48: =IF(ISERROR(IF(COUNT(E48:N48)=2,"Apenas dois preços comparativos válidos. ","")),"",IF(COUNT(E48:N48)=2,"Apenas dois preços comparativos válidos. ","")) ->  | BH48: =IF(ISERROR(IF(COUNT(E48:N48)=1,"Apenas um preço comparativo válido. ","")),"",IF(COUNT(E48:N48)=1,"Apenas um preço comparativo válido. ","")) ->  | BI48: =IF(A48="","",IF(ISERROR(IF(COUNT(E48:N48)=0,"Nenhum preço comparativo válido. ","")),"",IF(COUNT(E48:N48)=0,"Nenhum preço comparativo válido. ",""))) ->  | BJ48: =IF(ISERROR(IF(R48>P48,(R48-P48)/P48,"")),"",IF(R48>P48,(R48-P48)/P48,"")) ->  | BK48: =IF(ISERROR(IF(BJ48="","","Neste item, o valor contratado pelo TJDFT é "&TEXT(BJ48,"0,00%")&" superior à média comparativa.")),"",IF(BJ48="","","Neste item, o valor contratado pelo TJDFT é "&TEXT(BJ48,"0,00%")&" superior à média comparativa.")) -> 
O49: =IF(ISERROR(ROUND(AVERAGE(E49:N49),2)),"",ROUND(AVERAGE(E49:N49),2)) ->  | P49: =IF(ISERROR(ROUND(O49*D49,2)),"",ROUND(O49*D49,2)) ->  | R49: =IF(A49="","",ROUND(Q49*D49,2)) ->  | S49: =IF(A49="","",CONCATENATE($BG49,$BH49,$BI49,$BK49)) ->  | U49: =IF(ISERROR(COUNTA(E49:N49)),"",COUNTA(E49:N49)) -> 0 | V49: =IF(ISERROR(COUNT(E49:N49)),"",COUNT(E49:N49)) -> 0 | W49: =IF(ISERROR(MIN(E49:N49)),"",MIN(E49:N49)) -> 0 | X49: =IF(ISERROR(MAX(E49:N49)),"",MAX(E49:N49)) -> 0 | Y49: =IF(ISERROR(ROUND(AVERAGE(E49:N49),2)),"",ROUND(AVERAGE(E49:N49),2)) ->  | Z49: =IF(ISERROR(MEDIAN(E49:N49)),"",MEDIAN(E49:N49)) ->  | AA49: =IF(ISERROR(STDEV(E49:N49)),"",STDEV(E49:N49)) ->  | AB49: =IF(ISERROR(AA49/Y49),"",AA49/Y49) ->  | AF49: =IF(COUNT(E49:N49)<1,"",SMALL(E49:N49,1)) ->  | AG49: =IF(COUNT(E49:N49)<2,"",SMALL(E49:N49,2)) ->  | AH49: =IF(COUNT(E49:N49)<3,"",SMALL(E49:N49,3)) ->  | AI49: =IF(COUNT(E49:N49)<4,"",SMALL(E49:N49,4)) ->  | AJ49: =IF(COUNT(E49:N49)<5,"",SMALL(E49:N49,5)) ->  | AK49: =IF(COUNT(E49:N49)<6,"",SMALL(E49:N49,6)) ->  | AL49: =IF(COUNT(E49:N49)<3,"",AVERAGE(AF49:AH49)) ->  | AM49: =IF(COUNT(E49:N49)<4,"",AVERAGE(AG49:AI49)) ->  | AN49: =IF(COUNT(E49:N49)<5,"",AVERAGE(AH49:AJ49)) ->  | AO49: =IF(COUNT(E49:N49)<6,"",AVERAGE(AI49:AK49)) ->  | AQ49: =IF(E49>=1000,TEXT(E49,"0.000,00"),TEXT(E49,"0,00")) -> 0,00 | AR49: =IF(F49>=1000,TEXT(F49,"0.000,00"),TEXT(F49,"0,00")) -> 0,00 | AS49: =IF(G49>=1000,TEXT(G49,"0.000,00"),TEXT(G49,"0,00")) -> 0,00 | AT49: =IF(H49>=1000,TEXT(H49,"0.000,00"),TEXT(H49,"0,00")) -> 0,00 | AU49: =IF(I49>=1000,TEXT(I49,"0.000,00"),TEXT(I49,"0,00")) -> 0,00 | AV49: =IF(J49>=1000,TEXT(J49,"0.000,00"),TEXT(J49,"0,00")) -> 0,00 | AW49: =IF(K49>=1000,TEXT(K49,"0.000,00"),TEXT(K49,"0,00")) -> 0,00 | AX49: =IF(L49>=1000,TEXT(L49,"0.000,00"),TEXT(L49,"0,00")) -> 0,00 | AY49: =IF(M49>=1000,TEXT(M49,"0.000,00"),TEXT(M49,"0,00")) -> 0,00 | AZ49: =IF(N49>=1000,TEXT(N49,"0.000,00"),TEXT(N49,"0,00")) -> 0,00 | BB49: =IF(PREENCHER!AL49="",#REF!,IF(PREENCHER!AM49="",#REF!,IF(PREENCHER!AN49="",#REF!,IF(STDEV(PREENCHER!$AF49:$AH49)/AVERAGE(PREENCHER!$AF49:$AH49)>#REF!,IF(STDEV(PREENCHER!$AG49:$AI49)/AVERAGE(PREENCHER!$AG49:$AI49)>#REF!,IF(STDEV(PREENCHER!$AH49:$AJ49)/AVERAGE(PREENCHER!$AH49:$AJ49)>#REF!,IF(STDEV(PREENCHER!$AI49:$AK49)/AVERAGE(PREENCHER!$AI49:$AK49)>#REF!,#REF!,AVERAGE(PREENCHER!$AI49:$AK49)),AVERAGE(PREENCHER!$AH49:$AJ49)),AVERAGE(PREENCHER!$AG49:$AI49)),AVERAGE(PREENCHER!$AF49:$AH49))))) ->  | BC49: =IF(ISERROR(ROUND(BB49,2)),"",ROUND(BB49,2)) ->  | BG49: =IF(ISERROR(IF(COUNT(E49:N49)=2,"Apenas dois preços comparativos válidos. ","")),"",IF(COUNT(E49:N49)=2,"Apenas dois preços comparativos válidos. ","")) ->  | BH49: =IF(ISERROR(IF(COUNT(E49:N49)=1,"Apenas um preço comparativo válido. ","")),"",IF(COUNT(E49:N49)=1,"Apenas um preço comparativo válido. ","")) ->  | BI49: =IF(A49="","",IF(ISERROR(IF(COUNT(E49:N49)=0,"Nenhum preço comparativo válido. ","")),"",IF(COUNT(E49:N49)=0,"Nenhum preço comparativo válido. ",""))) ->  | BJ49: =IF(ISERROR(IF(R49>P49,(R49-P49)/P49,"")),"",IF(R49>P49,(R49-P49)/P49,"")) ->  | BK49: =IF(ISERROR(IF(BJ49="","","Neste item, o valor contratado pelo TJDFT é "&TEXT(BJ49,"0,00%")&" superior à média comparativa.")),"",IF(BJ49="","","Neste item, o valor contratado pelo TJDFT é "&TEXT(BJ49,"0,00%")&" superior à média comparativa.")) -> 
O50: =IF(ISERROR(ROUND(AVERAGE(E50:N50),2)),"",ROUND(AVERAGE(E50:N50),2)) ->  | P50: =IF(ISERROR(ROUND(O50*D50,2)),"",ROUND(O50*D50,2)) ->  | R50: =IF(A50="","",ROUND(Q50*D50,2)) ->  | S50: =IF(A50="","",CONCATENATE($BG50,$BH50,$BI50,$BK50)) ->  | U50: =IF(ISERROR(COUNTA(E50:N50)),"",COUNTA(E50:N50)) -> 0 | V50: =IF(ISERROR(COUNT(E50:N50)),"",COUNT(E50:N50)) -> 0 | W50: =IF(ISERROR(MIN(E50:N50)),"",MIN(E50:N50)) -> 0 | X50: =IF(ISERROR(MAX(E50:N50)),"",MAX(E50:N50)) -> 0 | Y50: =IF(ISERROR(ROUND(AVERAGE(E50:N50),2)),"",ROUND(AVERAGE(E50:N50),2)) ->  | Z50: =IF(ISERROR(MEDIAN(E50:N50)),"",MEDIAN(E50:N50)) ->  | AA50: =IF(ISERROR(STDEV(E50:N50)),"",STDEV(E50:N50)) ->  | AB50: =IF(ISERROR(AA50/Y50),"",AA50/Y50) ->  | AF50: =IF(COUNT(E50:N50)<1,"",SMALL(E50:N50,1)) ->  | AG50: =IF(COUNT(E50:N50)<2,"",SMALL(E50:N50,2)) ->  | AH50: =IF(COUNT(E50:N50)<3,"",SMALL(E50:N50,3)) ->  | AI50: =IF(COUNT(E50:N50)<4,"",SMALL(E50:N50,4)) ->  | AJ50: =IF(COUNT(E50:N50)<5,"",SMALL(E50:N50,5)) ->  | AK50: =IF(COUNT(E50:N50)<6,"",SMALL(E50:N50,6)) ->  | AL50: =IF(COUNT(E50:N50)<3,"",AVERAGE(AF50:AH50)) ->  | AM50: =IF(COUNT(E50:N50)<4,"",AVERAGE(AG50:AI50)) ->  | AN50: =IF(COUNT(E50:N50)<5,"",AVERAGE(AH50:AJ50)) ->  | AO50: =IF(COUNT(E50:N50)<6,"",AVERAGE(AI50:AK50)) ->  | AQ50: =IF(E50>=1000,TEXT(E50,"0.000,00"),TEXT(E50,"0,00")) -> 0,00 | AR50: =IF(F50>=1000,TEXT(F50,"0.000,00"),TEXT(F50,"0,00")) -> 0,00 | AS50: =IF(G50>=1000,TEXT(G50,"0.000,00"),TEXT(G50,"0,00")) -> 0,00 | AT50: =IF(H50>=1000,TEXT(H50,"0.000,00"),TEXT(H50,"0,00")) -> 0,00 | AU50: =IF(I50>=1000,TEXT(I50,"0.000,00"),TEXT(I50,"0,00")) -> 0,00 | AV50: =IF(J50>=1000,TEXT(J50,"0.000,00"),TEXT(J50,"0,00")) -> 0,00 | AW50: =IF(K50>=1000,TEXT(K50,"0.000,00"),TEXT(K50,"0,00")) -> 0,00 | AX50: =IF(L50>=1000,TEXT(L50,"0.000,00"),TEXT(L50,"0,00")) -> 0,00 | AY50: =IF(M50>=1000,TEXT(M50,"0.000,00"),TEXT(M50,"0,00")) -> 0,00 | AZ50: =IF(N50>=1000,TEXT(N50,"0.000,00"),TEXT(N50,"0,00")) -> 0,00 | BB50: =IF(PREENCHER!AL50="",#REF!,IF(PREENCHER!AM50="",#REF!,IF(PREENCHER!AN50="",#REF!,IF(STDEV(PREENCHER!$AF50:$AH50)/AVERAGE(PREENCHER!$AF50:$AH50)>#REF!,IF(STDEV(PREENCHER!$AG50:$AI50)/AVERAGE(PREENCHER!$AG50:$AI50)>#REF!,IF(STDEV(PREENCHER!$AH50:$AJ50)/AVERAGE(PREENCHER!$AH50:$AJ50)>#REF!,IF(STDEV(PREENCHER!$AI50:$AK50)/AVERAGE(PREENCHER!$AI50:$AK50)>#REF!,#REF!,AVERAGE(PREENCHER!$AI50:$AK50)),AVERAGE(PREENCHER!$AH50:$AJ50)),AVERAGE(PREENCHER!$AG50:$AI50)),AVERAGE(PREENCHER!$AF50:$AH50))))) ->  | BC50: =IF(ISERROR(ROUND(BB50,2)),"",ROUND(BB50,2)) ->  | BG50: =IF(ISERROR(IF(COUNT(E50:N50)=2,"Apenas dois preços comparativos válidos. ","")),"",IF(COUNT(E50:N50)=2,"Apenas dois preços comparativos válidos. ","")) ->  | BH50: =IF(ISERROR(IF(COUNT(E50:N50)=1,"Apenas um preço comparativo válido. ","")),"",IF(COUNT(E50:N50)=1,"Apenas um preço comparativo válido. ","")) ->  | BI50: =IF(A50="","",IF(ISERROR(IF(COUNT(E50:N50)=0,"Nenhum preço comparativo válido. ","")),"",IF(COUNT(E50:N50)=0,"Nenhum preço comparativo válido. ",""))) ->  | BJ50: =IF(ISERROR(IF(R50>P50,(R50-P50)/P50,"")),"",IF(R50>P50,(R50-P50)/P50,"")) ->  | BK50: =IF(ISERROR(IF(BJ50="","","Neste item, o valor contratado pelo TJDFT é "&TEXT(BJ50,"0,00%")&" superior à média comparativa.")),"",IF(BJ50="","","Neste item, o valor contratado pelo TJDFT é "&TEXT(BJ50,"0,00%")&" superior à média comparativa.")) -> 
O51: =IF(ISERROR(ROUND(AVERAGE(E51:N51),2)),"",ROUND(AVERAGE(E51:N51),2)) ->  | P51: =IF(ISERROR(ROUND(O51*D51,2)),"",ROUND(O51*D51,2)) ->  | R51: =IF(A51="","",ROUND(Q51*D51,2)) ->  | S51: =IF(A51="","",CONCATENATE($BG51,$BH51,$BI51,$BK51)) ->  | U51: =IF(ISERROR(COUNTA(E51:N51)),"",COUNTA(E51:N51)) -> 0 | V51: =IF(ISERROR(COUNT(E51:N51)),"",COUNT(E51:N51)) -> 0 | W51: =IF(ISERROR(MIN(E51:N51)),"",MIN(E51:N51)) -> 0 | X51: =IF(ISERROR(MAX(E51:N51)),"",MAX(E51:N51)) -> 0 | Y51: =IF(ISERROR(ROUND(AVERAGE(E51:N51),2)),"",ROUND(AVERAGE(E51:N51),2)) ->  | Z51: =IF(ISERROR(MEDIAN(E51:N51)),"",MEDIAN(E51:N51)) ->  | AA51: =IF(ISERROR(STDEV(E51:N51)),"",STDEV(E51:N51)) ->  | AB51: =IF(ISERROR(AA51/Y51),"",AA51/Y51) ->  | AF51: =IF(COUNT(E51:N51)<1,"",SMALL(E51:N51,1)) ->  | AG51: =IF(COUNT(E51:N51)<2,"",SMALL(E51:N51,2)) ->  | AH51: =IF(COUNT(E51:N51)<3,"",SMALL(E51:N51,3)) ->  | AI51: =IF(COUNT(E51:N51)<4,"",SMALL(E51:N51,4)) ->  | AJ51: =IF(COUNT(E51:N51)<5,"",SMALL(E51:N51,5)) ->  | AK51: =IF(COUNT(E51:N51)<6,"",SMALL(E51:N51,6)) ->  | AL51: =IF(COUNT(E51:N51)<3,"",AVERAGE(AF51:AH51)) ->  | AM51: =IF(COUNT(E51:N51)<4,"",AVERAGE(AG51:AI51)) ->  | AN51: =IF(COUNT(E51:N51)<5,"",AVERAGE(AH51:AJ51)) ->  | AO51: =IF(COUNT(E51:N51)<6,"",AVERAGE(AI51:AK51)) ->  | AQ51: =IF(E51>=1000,TEXT(E51,"0.000,00"),TEXT(E51,"0,00")) -> 0,00 | AR51: =IF(F51>=1000,TEXT(F51,"0.000,00"),TEXT(F51,"0,00")) -> 0,00 | AS51: =IF(G51>=1000,TEXT(G51,"0.000,00"),TEXT(G51,"0,00")) -> 0,00 | AT51: =IF(H51>=1000,TEXT(H51,"0.000,00"),TEXT(H51,"0,00")) -> 0,00 | AU51: =IF(I51>=1000,TEXT(I51,"0.000,00"),TEXT(I51,"0,00")) -> 0,00 | AV51: =IF(J51>=1000,TEXT(J51,"0.000,00"),TEXT(J51,"0,00")) -> 0,00 | AW51: =IF(K51>=1000,TEXT(K51,"0.000,00"),TEXT(K51,"0,00")) -> 0,00 | AX51: =IF(L51>=1000,TEXT(L51,"0.000,00"),TEXT(L51,"0,00")) -> 0,00 | AY51: =IF(M51>=1000,TEXT(M51,"0.000,00"),TEXT(M51,"0,00")) -> 0,00 | AZ51: =IF(N51>=1000,TEXT(N51,"0.000,00"),TEXT(N51,"0,00")) -> 0,00 | BB51: =IF(PREENCHER!AL51="",#REF!,IF(PREENCHER!AM51="",#REF!,IF(PREENCHER!AN51="",#REF!,IF(STDEV(PREENCHER!$AF51:$AH51)/AVERAGE(PREENCHER!$AF51:$AH51)>#REF!,IF(STDEV(PREENCHER!$AG51:$AI51)/AVERAGE(PREENCHER!$AG51:$AI51)>#REF!,IF(STDEV(PREENCHER!$AH51:$AJ51)/AVERAGE(PREENCHER!$AH51:$AJ51)>#REF!,IF(STDEV(PREENCHER!$AI51:$AK51)/AVERAGE(PREENCHER!$AI51:$AK51)>#REF!,#REF!,AVERAGE(PREENCHER!$AI51:$AK51)),AVERAGE(PREENCHER!$AH51:$AJ51)),AVERAGE(PREENCHER!$AG51:$AI51)),AVERAGE(PREENCHER!$AF51:$AH51))))) ->  | BC51: =IF(ISERROR(ROUND(BB51,2)),"",ROUND(BB51,2)) ->  | BG51: =IF(ISERROR(IF(COUNT(E51:N51)=2,"Apenas dois preços comparativos válidos. ","")),"",IF(COUNT(E51:N51)=2,"Apenas dois preços comparativos válidos. ","")) ->  | BH51: =IF(ISERROR(IF(COUNT(E51:N51)=1,"Apenas um preço comparativo válido. ","")),"",IF(COUNT(E51:N51)=1,"Apenas um preço comparativo válido. ","")) ->  | BI51: =IF(A51="","",IF(ISERROR(IF(COUNT(E51:N51)=0,"Nenhum preço comparativo válido. ","")),"",IF(COUNT(E51:N51)=0,"Nenhum preço comparativo válido. ",""))) ->  | BJ51: =IF(ISERROR(IF(R51>P51,(R51-P51)/P51,"")),"",IF(R51>P51,(R51-P51)/P51,"")) ->  | BK51: =IF(ISERROR(IF(BJ51="","","Neste item, o valor contratado pelo TJDFT é "&TEXT(BJ51,"0,00%")&" superior à média comparativa.")),"",IF(BJ51="","","Neste item, o valor contratado pelo TJDFT é "&TEXT(BJ51,"0,00%")&" superior à média comparativa.")) -> 
O52: =IF(ISERROR(ROUND(AVERAGE(E52:N52),2)),"",ROUND(AVERAGE(E52:N52),2)) ->  | P52: =IF(ISERROR(ROUND(O52*D52,2)),"",ROUND(O52*D52,2)) ->  | R52: =IF(A52="","",ROUND(Q52*D52,2)) ->  | S52: =IF(A52="","",CONCATENATE($BG52,$BH52,$BI52,$BK52)) ->  | U52: =IF(ISERROR(COUNTA(E52:N52)),"",COUNTA(E52:N52)) -> 0 | V52: =IF(ISERROR(COUNT(E52:N52)),"",COUNT(E52:N52)) -> 0 | W52: =IF(ISERROR(MIN(E52:N52)),"",MIN(E52:N52)) -> 0 | X52: =IF(ISERROR(MAX(E52:N52)),"",MAX(E52:N52)) -> 0 | Y52: =IF(ISERROR(ROUND(AVERAGE(E52:N52),2)),"",ROUND(AVERAGE(E52:N52),2)) ->  | Z52: =IF(ISERROR(MEDIAN(E52:N52)),"",MEDIAN(E52:N52)) ->  | AA52: =IF(ISERROR(STDEV(E52:N52)),"",STDEV(E52:N52)) ->  | AB52: =IF(ISERROR(AA52/Y52),"",AA52/Y52) ->  | AF52: =IF(COUNT(E52:N52)<1,"",SMALL(E52:N52,1)) ->  | AG52: =IF(COUNT(E52:N52)<2,"",SMALL(E52:N52,2)) ->  | AH52: =IF(COUNT(E52:N52)<3,"",SMALL(E52:N52,3)) ->  | AI52: =IF(COUNT(E52:N52)<4,"",SMALL(E52:N52,4)) ->  | AJ52: =IF(COUNT(E52:N52)<5,"",SMALL(E52:N52,5)) ->  | AK52: =IF(COUNT(E52:N52)<6,"",SMALL(E52:N52,6)) ->  | AL52: =IF(COUNT(E52:N52)<3,"",AVERAGE(AF52:AH52)) ->  | AM52: =IF(COUNT(E52:N52)<4,"",AVERAGE(AG52:AI52)) ->  | AN52: =IF(COUNT(E52:N52)<5,"",AVERAGE(AH52:AJ52)) ->  | AO52: =IF(COUNT(E52:N52)<6,"",AVERAGE(AI52:AK52)) ->  | AQ52: =IF(E52>=1000,TEXT(E52,"0.000,00"),TEXT(E52,"0,00")) -> 0,00 | AR52: =IF(F52>=1000,TEXT(F52,"0.000,00"),TEXT(F52,"0,00")) -> 0,00 | AS52: =IF(G52>=1000,TEXT(G52,"0.000,00"),TEXT(G52,"0,00")) -> 0,00 | AT52: =IF(H52>=1000,TEXT(H52,"0.000,00"),TEXT(H52,"0,00")) -> 0,00 | AU52: =IF(I52>=1000,TEXT(I52,"0.000,00"),TEXT(I52,"0,00")) -> 0,00 | AV52: =IF(J52>=1000,TEXT(J52,"0.000,00"),TEXT(J52,"0,00")) -> 0,00 | AW52: =IF(K52>=1000,TEXT(K52,"0.000,00"),TEXT(K52,"0,00")) -> 0,00 | AX52: =IF(L52>=1000,TEXT(L52,"0.000,00"),TEXT(L52,"0,00")) -> 0,00 | AY52: =IF(M52>=1000,TEXT(M52,"0.000,00"),TEXT(M52,"0,00")) -> 0,00 | AZ52: =IF(N52>=1000,TEXT(N52,"0.000,00"),TEXT(N52,"0,00")) -> 0,00 | BB52: =IF(PREENCHER!AL52="",#REF!,IF(PREENCHER!AM52="",#REF!,IF(PREENCHER!AN52="",#REF!,IF(STDEV(PREENCHER!$AF52:$AH52)/AVERAGE(PREENCHER!$AF52:$AH52)>#REF!,IF(STDEV(PREENCHER!$AG52:$AI52)/AVERAGE(PREENCHER!$AG52:$AI52)>#REF!,IF(STDEV(PREENCHER!$AH52:$AJ52)/AVERAGE(PREENCHER!$AH52:$AJ52)>#REF!,IF(STDEV(PREENCHER!$AI52:$AK52)/AVERAGE(PREENCHER!$AI52:$AK52)>#REF!,#REF!,AVERAGE(PREENCHER!$AI52:$AK52)),AVERAGE(PREENCHER!$AH52:$AJ52)),AVERAGE(PREENCHER!$AG52:$AI52)),AVERAGE(PREENCHER!$AF52:$AH52))))) ->  | BC52: =IF(ISERROR(ROUND(BB52,2)),"",ROUND(BB52,2)) ->  | BG52: =IF(ISERROR(IF(COUNT(E52:N52)=2,"Apenas dois preços comparativos válidos. ","")),"",IF(COUNT(E52:N52)=2,"Apenas dois preços comparativos válidos. ","")) ->  | BH52: =IF(ISERROR(IF(COUNT(E52:N52)=1,"Apenas um preço comparativo válido. ","")),"",IF(COUNT(E52:N52)=1,"Apenas um preço comparativo válido. ","")) ->  | BI52: =IF(A52="","",IF(ISERROR(IF(COUNT(E52:N52)=0,"Nenhum preço comparativo válido. ","")),"",IF(COUNT(E52:N52)=0,"Nenhum preço comparativo válido. ",""))) ->  | BJ52: =IF(ISERROR(IF(R52>P52,(R52-P52)/P52,"")),"",IF(R52>P52,(R52-P52)/P52,"")) ->  | BK52: =IF(ISERROR(IF(BJ52="","","Neste item, o valor contratado pelo TJDFT é "&TEXT(BJ52,"0,00%")&" superior à média comparativa.")),"",IF(BJ52="","","Neste item, o valor contratado pelo TJDFT é "&TEXT(BJ52,"0,00%")&" superior à média comparativa.")) -> 
O53: =IF(ISERROR(ROUND(AVERAGE(E53:N53),2)),"",ROUND(AVERAGE(E53:N53),2)) ->  | P53: =IF(ISERROR(ROUND(O53*D53,2)),"",ROUND(O53*D53,2)) ->  | R53: =IF(A53="","",ROUND(Q53*D53,2)) ->  | S53: =IF(A53="","",CONCATENATE($BG53,$BH53,$BI53,$BK53)) ->  | U53: =IF(ISERROR(COUNTA(E53:N53)),"",COUNTA(E53:N53)) -> 0 | V53: =IF(ISERROR(COUNT(E53:N53)),"",COUNT(E53:N53)) -> 0 | W53: =IF(ISERROR(MIN(E53:N53)),"",MIN(E53:N53)) -> 0 | X53: =IF(ISERROR(MAX(E53:N53)),"",MAX(E53:N53)) -> 0 | Y53: =IF(ISERROR(ROUND(AVERAGE(E53:N53),2)),"",ROUND(AVERAGE(E53:N53),2)) ->  | Z53: =IF(ISERROR(MEDIAN(E53:N53)),"",MEDIAN(E53:N53)) ->  | AA53: =IF(ISERROR(STDEV(E53:N53)),"",STDEV(E53:N53)) ->  | AB53: =IF(ISERROR(AA53/Y53),"",AA53/Y53) ->  | AF53: =IF(COUNT(E53:N53)<1,"",SMALL(E53:N53,1)) ->  | AG53: =IF(COUNT(E53:N53)<2,"",SMALL(E53:N53,2)) ->  | AH53: =IF(COUNT(E53:N53)<3,"",SMALL(E53:N53,3)) ->  | AI53: =IF(COUNT(E53:N53)<4,"",SMALL(E53:N53,4)) ->  | AJ53: =IF(COUNT(E53:N53)<5,"",SMALL(E53:N53,5)) ->  | AK53: =IF(COUNT(E53:N53)<6,"",SMALL(E53:N53,6)) ->  | AL53: =IF(COUNT(E53:N53)<3,"",AVERAGE(AF53:AH53)) ->  | AM53: =IF(COUNT(E53:N53)<4,"",AVERAGE(AG53:AI53)) ->  | AN53: =IF(COUNT(E53:N53)<5,"",AVERAGE(AH53:AJ53)) ->  | AO53: =IF(COUNT(E53:N53)<6,"",AVERAGE(AI53:AK53)) ->  | AQ53: =IF(E53>=1000,TEXT(E53,"0.000,00"),TEXT(E53,"0,00")) -> 0,00 | AR53: =IF(F53>=1000,TEXT(F53,"0.000,00"),TEXT(F53,"0,00")) -> 0,00 | AS53: =IF(G53>=1000,TEXT(G53,"0.000,00"),TEXT(G53,"0,00")) -> 0,00 | AT53: =IF(H53>=1000,TEXT(H53,"0.000,00"),TEXT(H53,"0,00")) -> 0,00 | AU53: =IF(I53>=1000,TEXT(I53,"0.000,00"),TEXT(I53,"0,00")) -> 0,00 | AV53: =IF(J53>=1000,TEXT(J53,"0.000,00"),TEXT(J53,"0,00")) -> 0,00 | AW53: =IF(K53>=1000,TEXT(K53,"0.000,00"),TEXT(K53,"0,00")) -> 0,00 | AX53: =IF(L53>=1000,TEXT(L53,"0.000,00"),TEXT(L53,"0,00")) -> 0,00 | AY53: =IF(M53>=1000,TEXT(M53,"0.000,00"),TEXT(M53,"0,00")) -> 0,00 | AZ53: =IF(N53>=1000,TEXT(N53,"0.000,00"),TEXT(N53,"0,00")) -> 0,00 | BB53: =IF(PREENCHER!AL53="",#REF!,IF(PREENCHER!AM53="",#REF!,IF(PREENCHER!AN53="",#REF!,IF(STDEV(PREENCHER!$AF53:$AH53)/AVERAGE(PREENCHER!$AF53:$AH53)>#REF!,IF(STDEV(PREENCHER!$AG53:$AI53)/AVERAGE(PREENCHER!$AG53:$AI53)>#REF!,IF(STDEV(PREENCHER!$AH53:$AJ53)/AVERAGE(PREENCHER!$AH53:$AJ53)>#REF!,IF(STDEV(PREENCHER!$AI53:$AK53)/AVERAGE(PREENCHER!$AI53:$AK53)>#REF!,#REF!,AVERAGE(PREENCHER!$AI53:$AK53)),AVERAGE(PREENCHER!$AH53:$AJ53)),AVERAGE(PREENCHER!$AG53:$AI53)),AVERAGE(PREENCHER!$AF53:$AH53))))) ->  | BC53: =IF(ISERROR(ROUND(BB53,2)),"",ROUND(BB53,2)) ->  | BG53: =IF(ISERROR(IF(COUNT(E53:N53)=2,"Apenas dois preços comparativos válidos. ","")),"",IF(COUNT(E53:N53)=2,"Apenas dois preços comparativos válidos. ","")) ->  | BH53: =IF(ISERROR(IF(COUNT(E53:N53)=1,"Apenas um preço comparativo válido. ","")),"",IF(COUNT(E53:N53)=1,"Apenas um preço comparativo válido. ","")) ->  | BI53: =IF(A53="","",IF(ISERROR(IF(COUNT(E53:N53)=0,"Nenhum preço comparativo válido. ","")),"",IF(COUNT(E53:N53)=0,"Nenhum preço comparativo válido. ",""))) ->  | BJ53: =IF(ISERROR(IF(R53>P53,(R53-P53)/P53,"")),"",IF(R53>P53,(R53-P53)/P53,"")) ->  | BK53: =IF(ISERROR(IF(BJ53="","","Neste item, o valor contratado pelo TJDFT é "&TEXT(BJ53,"0,00%")&" superior à média comparativa.")),"",IF(BJ53="","","Neste item, o valor contratado pelo TJDFT é "&TEXT(BJ53,"0,00%")&" superior à média comparativa.")) -> 
O54: =IF(ISERROR(ROUND(AVERAGE(E54:N54),2)),"",ROUND(AVERAGE(E54:N54),2)) ->  | P54: =IF(ISERROR(ROUND(O54*D54,2)),"",ROUND(O54*D54,2)) ->  | R54: =IF(A54="","",ROUND(Q54*D54,2)) ->  | S54: =IF(A54="","",CONCATENATE($BG54,$BH54,$BI54,$BK54)) ->  | U54: =IF(ISERROR(COUNTA(E54:N54)),"",COUNTA(E54:N54)) -> 0 | V54: =IF(ISERROR(COUNT(E54:N54)),"",COUNT(E54:N54)) -> 0 | W54: =IF(ISERROR(MIN(E54:N54)),"",MIN(E54:N54)) -> 0 | X54: =IF(ISERROR(MAX(E54:N54)),"",MAX(E54:N54)) -> 0 | Y54: =IF(ISERROR(ROUND(AVERAGE(E54:N54),2)),"",ROUND(AVERAGE(E54:N54),2)) ->  | Z54: =IF(ISERROR(MEDIAN(E54:N54)),"",MEDIAN(E54:N54)) ->  | AA54: =IF(ISERROR(STDEV(E54:N54)),"",STDEV(E54:N54)) ->  | AB54: =IF(ISERROR(AA54/Y54),"",AA54/Y54) ->  | AF54: =IF(COUNT(E54:N54)<1,"",SMALL(E54:N54,1)) ->  | AG54: =IF(COUNT(E54:N54)<2,"",SMALL(E54:N54,2)) ->  | AH54: =IF(COUNT(E54:N54)<3,"",SMALL(E54:N54,3)) ->  | AI54: =IF(COUNT(E54:N54)<4,"",SMALL(E54:N54,4)) ->  | AJ54: =IF(COUNT(E54:N54)<5,"",SMALL(E54:N54,5)) ->  | AK54: =IF(COUNT(E54:N54)<6,"",SMALL(E54:N54,6)) ->  | AL54: =IF(COUNT(E54:N54)<3,"",AVERAGE(AF54:AH54)) ->  | AM54: =IF(COUNT(E54:N54)<4,"",AVERAGE(AG54:AI54)) ->  | AN54: =IF(COUNT(E54:N54)<5,"",AVERAGE(AH54:AJ54)) ->  | AO54: =IF(COUNT(E54:N54)<6,"",AVERAGE(AI54:AK54)) ->  | AQ54: =IF(E54>=1000,TEXT(E54,"0.000,00"),TEXT(E54,"0,00")) -> 0,00 | AR54: =IF(F54>=1000,TEXT(F54,"0.000,00"),TEXT(F54,"0,00")) -> 0,00 | AS54: =IF(G54>=1000,TEXT(G54,"0.000,00"),TEXT(G54,"0,00")) -> 0,00 | AT54: =IF(H54>=1000,TEXT(H54,"0.000,00"),TEXT(H54,"0,00")) -> 0,00 | AU54: =IF(I54>=1000,TEXT(I54,"0.000,00"),TEXT(I54,"0,00")) -> 0,00 | AV54: =IF(J54>=1000,TEXT(J54,"0.000,00"),TEXT(J54,"0,00")) -> 0,00 | AW54: =IF(K54>=1000,TEXT(K54,"0.000,00"),TEXT(K54,"0,00")) -> 0,00 | AX54: =IF(L54>=1000,TEXT(L54,"0.000,00"),TEXT(L54,"0,00")) -> 0,00 | AY54: =IF(M54>=1000,TEXT(M54,"0.000,00"),TEXT(M54,"0,00")) -> 0,00 | AZ54: =IF(N54>=1000,TEXT(N54,"0.000,00"),TEXT(N54,"0,00")) -> 0,00 | BB54: =IF(PREENCHER!AL54="",#REF!,IF(PREENCHER!AM54="",#REF!,IF(PREENCHER!AN54="",#REF!,IF(STDEV(PREENCHER!$AF54:$AH54)/AVERAGE(PREENCHER!$AF54:$AH54)>#REF!,IF(STDEV(PREENCHER!$AG54:$AI54)/AVERAGE(PREENCHER!$AG54:$AI54)>#REF!,IF(STDEV(PREENCHER!$AH54:$AJ54)/AVERAGE(PREENCHER!$AH54:$AJ54)>#REF!,IF(STDEV(PREENCHER!$AI54:$AK54)/AVERAGE(PREENCHER!$AI54:$AK54)>#REF!,#REF!,AVERAGE(PREENCHER!$AI54:$AK54)),AVERAGE(PREENCHER!$AH54:$AJ54)),AVERAGE(PREENCHER!$AG54:$AI54)),AVERAGE(PREENCHER!$AF54:$AH54))))) ->  | BC54: =IF(ISERROR(ROUND(BB54,2)),"",ROUND(BB54,2)) ->  | BG54: =IF(ISERROR(IF(COUNT(E54:N54)=2,"Apenas dois preços comparativos válidos. ","")),"",IF(COUNT(E54:N54)=2,"Apenas dois preços comparativos válidos. ","")) ->  | BH54: =IF(ISERROR(IF(COUNT(E54:N54)=1,"Apenas um preço comparativo válido. ","")),"",IF(COUNT(E54:N54)=1,"Apenas um preço comparativo válido. ","")) ->  | BI54: =IF(A54="","",IF(ISERROR(IF(COUNT(E54:N54)=0,"Nenhum preço comparativo válido. ","")),"",IF(COUNT(E54:N54)=0,"Nenhum preço comparativo válido. ",""))) ->  | BJ54: =IF(ISERROR(IF(R54>P54,(R54-P54)/P54,"")),"",IF(R54>P54,(R54-P54)/P54,"")) ->  | BK54: =IF(ISERROR(IF(BJ54="","","Neste item, o valor contratado pelo TJDFT é "&TEXT(BJ54,"0,00%")&" superior à média comparativa.")),"",IF(BJ54="","","Neste item, o valor contratado pelo TJDFT é "&TEXT(BJ54,"0,00%")&" superior à média comparativa.")) -> 
O55: =IF(ISERROR(ROUND(AVERAGE(E55:N55),2)),"",ROUND(AVERAGE(E55:N55),2)) ->  | P55: =IF(ISERROR(ROUND(O55*D55,2)),"",ROUND(O55*D55,2)) ->  | R55: =IF(A55="","",ROUND(Q55*D55,2)) ->  | S55: =IF(A55="","",CONCATENATE($BG55,$BH55,$BI55,$BK55)) ->  | U55: =IF(ISERROR(COUNTA(E55:N55)),"",COUNTA(E55:N55)) -> 0 | V55: =IF(ISERROR(COUNT(E55:N55)),"",COUNT(E55:N55)) -> 0 | W55: =IF(ISERROR(MIN(E55:N55)),"",MIN(E55:N55)) -> 0 | X55: =IF(ISERROR(MAX(E55:N55)),"",MAX(E55:N55)) -> 0 | Y55: =IF(ISERROR(ROUND(AVERAGE(E55:N55),2)),"",ROUND(AVERAGE(E55:N55),2)) ->  | Z55: =IF(ISERROR(MEDIAN(E55:N55)),"",MEDIAN(E55:N55)) ->  | AA55: =IF(ISERROR(STDEV(E55:N55)),"",STDEV(E55:N55)) ->  | AB55: =IF(ISERROR(AA55/Y55),"",AA55/Y55) ->  | AF55: =IF(COUNT(E55:N55)<1,"",SMALL(E55:N55,1)) ->  | AG55: =IF(COUNT(E55:N55)<2,"",SMALL(E55:N55,2)) ->  | AH55: =IF(COUNT(E55:N55)<3,"",SMALL(E55:N55,3)) ->  | AI55: =IF(COUNT(E55:N55)<4,"",SMALL(E55:N55,4)) ->  | AJ55: =IF(COUNT(E55:N55)<5,"",SMALL(E55:N55,5)) ->  | AK55: =IF(COUNT(E55:N55)<6,"",SMALL(E55:N55,6)) ->  | AL55: =IF(COUNT(E55:N55)<3,"",AVERAGE(AF55:AH55)) ->  | AM55: =IF(COUNT(E55:N55)<4,"",AVERAGE(AG55:AI55)) ->  | AN55: =IF(COUNT(E55:N55)<5,"",AVERAGE(AH55:AJ55)) ->  | AO55: =IF(COUNT(E55:N55)<6,"",AVERAGE(AI55:AK55)) ->  | AQ55: =IF(E55>=1000,TEXT(E55,"0.000,00"),TEXT(E55,"0,00")) -> 0,00 | AR55: =IF(F55>=1000,TEXT(F55,"0.000,00"),TEXT(F55,"0,00")) -> 0,00 | AS55: =IF(G55>=1000,TEXT(G55,"0.000,00"),TEXT(G55,"0,00")) -> 0,00 | AT55: =IF(H55>=1000,TEXT(H55,"0.000,00"),TEXT(H55,"0,00")) -> 0,00 | AU55: =IF(I55>=1000,TEXT(I55,"0.000,00"),TEXT(I55,"0,00")) -> 0,00 | AV55: =IF(J55>=1000,TEXT(J55,"0.000,00"),TEXT(J55,"0,00")) -> 0,00 | AW55: =IF(K55>=1000,TEXT(K55,"0.000,00"),TEXT(K55,"0,00")) -> 0,00 | AX55: =IF(L55>=1000,TEXT(L55,"0.000,00"),TEXT(L55,"0,00")) -> 0,00 | AY55: =IF(M55>=1000,TEXT(M55,"0.000,00"),TEXT(M55,"0,00")) -> 0,00 | AZ55: =IF(N55>=1000,TEXT(N55,"0.000,00"),TEXT(N55,"0,00")) -> 0,00 | BB55: =IF(PREENCHER!AL55="",#REF!,IF(PREENCHER!AM55="",#REF!,IF(PREENCHER!AN55="",#REF!,IF(STDEV(PREENCHER!$AF55:$AH55)/AVERAGE(PREENCHER!$AF55:$AH55)>#REF!,IF(STDEV(PREENCHER!$AG55:$AI55)/AVERAGE(PREENCHER!$AG55:$AI55)>#REF!,IF(STDEV(PREENCHER!$AH55:$AJ55)/AVERAGE(PREENCHER!$AH55:$AJ55)>#REF!,IF(STDEV(PREENCHER!$AI55:$AK55)/AVERAGE(PREENCHER!$AI55:$AK55)>#REF!,#REF!,AVERAGE(PREENCHER!$AI55:$AK55)),AVERAGE(PREENCHER!$AH55:$AJ55)),AVERAGE(PREENCHER!$AG55:$AI55)),AVERAGE(PREENCHER!$AF55:$AH55))))) ->  | BC55: =IF(ISERROR(ROUND(BB55,2)),"",ROUND(BB55,2)) ->  | BG55: =IF(ISERROR(IF(COUNT(E55:N55)=2,"Apenas dois preços comparativos válidos. ","")),"",IF(COUNT(E55:N55)=2,"Apenas dois preços comparativos válidos. ","")) ->  | BH55: =IF(ISERROR(IF(COUNT(E55:N55)=1,"Apenas um preço comparativo válido. ","")),"",IF(COUNT(E55:N55)=1,"Apenas um preço comparativo válido. ","")) ->  | BI55: =IF(A55="","",IF(ISERROR(IF(COUNT(E55:N55)=0,"Nenhum preço comparativo válido. ","")),"",IF(COUNT(E55:N55)=0,"Nenhum preço comparativo válido. ",""))) ->  | BJ55: =IF(ISERROR(IF(R55>P55,(R55-P55)/P55,"")),"",IF(R55>P55,(R55-P55)/P55,"")) ->  | BK55: =IF(ISERROR(IF(BJ55="","","Neste item, o valor contratado pelo TJDFT é "&TEXT(BJ55,"0,00%")&" superior à média comparativa.")),"",IF(BJ55="","","Neste item, o valor contratado pelo TJDFT é "&TEXT(BJ55,"0,00%")&" superior à média comparativa.")) -> 
O56: =IF(ISERROR(ROUND(AVERAGE(E56:N56),2)),"",ROUND(AVERAGE(E56:N56),2)) ->  | P56: =IF(ISERROR(ROUND(O56*D56,2)),"",ROUND(O56*D56,2)) ->  | R56: =IF(A56="","",ROUND(Q56*D56,2)) ->  | S56: =IF(A56="","",CONCATENATE($BG56,$BH56,$BI56,$BK56)) ->  | U56: =IF(ISERROR(COUNTA(E56:N56)),"",COUNTA(E56:N56)) -> 0 | V56: =IF(ISERROR(COUNT(E56:N56)),"",COUNT(E56:N56)) -> 0 | W56: =IF(ISERROR(MIN(E56:N56)),"",MIN(E56:N56)) -> 0 | X56: =IF(ISERROR(MAX(E56:N56)),"",MAX(E56:N56)) -> 0 | Y56: =IF(ISERROR(ROUND(AVERAGE(E56:N56),2)),"",ROUND(AVERAGE(E56:N56),2)) ->  | Z56: =IF(ISERROR(MEDIAN(E56:N56)),"",MEDIAN(E56:N56)) ->  | AA56: =IF(ISERROR(STDEV(E56:N56)),"",STDEV(E56:N56)) ->  | AB56: =IF(ISERROR(AA56/Y56),"",AA56/Y56) ->  | AF56: =IF(COUNT(E56:N56)<1,"",SMALL(E56:N56,1)) ->  | AG56: =IF(COUNT(E56:N56)<2,"",SMALL(E56:N56,2)) ->  | AH56: =IF(COUNT(E56:N56)<3,"",SMALL(E56:N56,3)) ->  | AI56: =IF(COUNT(E56:N56)<4,"",SMALL(E56:N56,4)) ->  | AJ56: =IF(COUNT(E56:N56)<5,"",SMALL(E56:N56,5)) ->  | AK56: =IF(COUNT(E56:N56)<6,"",SMALL(E56:N56,6)) ->  | AL56: =IF(COUNT(E56:N56)<3,"",AVERAGE(AF56:AH56)) ->  | AM56: =IF(COUNT(E56:N56)<4,"",AVERAGE(AG56:AI56)) ->  | AN56: =IF(COUNT(E56:N56)<5,"",AVERAGE(AH56:AJ56)) ->  | AO56: =IF(COUNT(E56:N56)<6,"",AVERAGE(AI56:AK56)) ->  | AQ56: =IF(E56>=1000,TEXT(E56,"0.000,00"),TEXT(E56,"0,00")) -> 0,00 | AR56: =IF(F56>=1000,TEXT(F56,"0.000,00"),TEXT(F56,"0,00")) -> 0,00 | AS56: =IF(G56>=1000,TEXT(G56,"0.000,00"),TEXT(G56,"0,00")) -> 0,00 | AT56: =IF(H56>=1000,TEXT(H56,"0.000,00"),TEXT(H56,"0,00")) -> 0,00 | AU56: =IF(I56>=1000,TEXT(I56,"0.000,00"),TEXT(I56,"0,00")) -> 0,00 | AV56: =IF(J56>=1000,TEXT(J56,"0.000,00"),TEXT(J56,"0,00")) -> 0,00 | AW56: =IF(K56>=1000,TEXT(K56,"0.000,00"),TEXT(K56,"0,00")) -> 0,00 | AX56: =IF(L56>=1000,TEXT(L56,"0.000,00"),TEXT(L56,"0,00")) -> 0,00 | AY56: =IF(M56>=1000,TEXT(M56,"0.000,00"),TEXT(M56,"0,00")) -> 0,00 | AZ56: =IF(N56>=1000,TEXT(N56,"0.000,00"),TEXT(N56,"0,00")) -> 0,00 | BB56: =IF(PREENCHER!AL56="",#REF!,IF(PREENCHER!AM56="",#REF!,IF(PREENCHER!AN56="",#REF!,IF(STDEV(PREENCHER!$AF56:$AH56)/AVERAGE(PREENCHER!$AF56:$AH56)>#REF!,IF(STDEV(PREENCHER!$AG56:$AI56)/AVERAGE(PREENCHER!$AG56:$AI56)>#REF!,IF(STDEV(PREENCHER!$AH56:$AJ56)/AVERAGE(PREENCHER!$AH56:$AJ56)>#REF!,IF(STDEV(PREENCHER!$AI56:$AK56)/AVERAGE(PREENCHER!$AI56:$AK56)>#REF!,#REF!,AVERAGE(PREENCHER!$AI56:$AK56)),AVERAGE(PREENCHER!$AH56:$AJ56)),AVERAGE(PREENCHER!$AG56:$AI56)),AVERAGE(PREENCHER!$AF56:$AH56))))) ->  | BC56: =IF(ISERROR(ROUND(BB56,2)),"",ROUND(BB56,2)) ->  | BG56: =IF(ISERROR(IF(COUNT(E56:N56)=2,"Apenas dois preços comparativos válidos. ","")),"",IF(COUNT(E56:N56)=2,"Apenas dois preços comparativos válidos. ","")) ->  | BH56: =IF(ISERROR(IF(COUNT(E56:N56)=1,"Apenas um preço comparativo válido. ","")),"",IF(COUNT(E56:N56)=1,"Apenas um preço comparativo válido. ","")) ->  | BI56: =IF(A56="","",IF(ISERROR(IF(COUNT(E56:N56)=0,"Nenhum preço comparativo válido. ","")),"",IF(COUNT(E56:N56)=0,"Nenhum preço comparativo válido. ",""))) ->  | BJ56: =IF(ISERROR(IF(R56>P56,(R56-P56)/P56,"")),"",IF(R56>P56,(R56-P56)/P56,"")) ->  | BK56: =IF(ISERROR(IF(BJ56="","","Neste item, o valor contratado pelo TJDFT é "&TEXT(BJ56,"0,00%")&" superior à média comparativa.")),"",IF(BJ56="","","Neste item, o valor contratado pelo TJDFT é "&TEXT(BJ56,"0,00%")&" superior à média comparativa.")) -> 
O57: =IF(ISERROR(ROUND(AVERAGE(E57:N57),2)),"",ROUND(AVERAGE(E57:N57),2)) ->  | P57: =IF(ISERROR(ROUND(O57*D57,2)),"",ROUND(O57*D57,2)) ->  | R57: =IF(A57="","",ROUND(Q57*D57,2)) ->  | S57: =IF(A57="","",CONCATENATE($BG57,$BH57,$BI57,$BK57)) ->  | U57: =IF(ISERROR(COUNTA(E57:N57)),"",COUNTA(E57:N57)) -> 0 | V57: =IF(ISERROR(COUNT(E57:N57)),"",COUNT(E57:N57)) -> 0 | W57: =IF(ISERROR(MIN(E57:N57)),"",MIN(E57:N57)) -> 0 | X57: =IF(ISERROR(MAX(E57:N57)),"",MAX(E57:N57)) -> 0 | Y57: =IF(ISERROR(ROUND(AVERAGE(E57:N57),2)),"",ROUND(AVERAGE(E57:N57),2)) ->  | Z57: =IF(ISERROR(MEDIAN(E57:N57)),"",MEDIAN(E57:N57)) ->  | AA57: =IF(ISERROR(STDEV(E57:N57)),"",STDEV(E57:N57)) ->  | AB57: =IF(ISERROR(AA57/Y57),"",AA57/Y57) ->  | AF57: =IF(COUNT(E57:N57)<1,"",SMALL(E57:N57,1)) ->  | AG57: =IF(COUNT(E57:N57)<2,"",SMALL(E57:N57,2)) ->  | AH57: =IF(COUNT(E57:N57)<3,"",SMALL(E57:N57,3)) ->  | AI57: =IF(COUNT(E57:N57)<4,"",SMALL(E57:N57,4)) ->  | AJ57: =IF(COUNT(E57:N57)<5,"",SMALL(E57:N57,5)) ->  | AK57: =IF(COUNT(E57:N57)<6,"",SMALL(E57:N57,6)) ->  | AL57: =IF(COUNT(E57:N57)<3,"",AVERAGE(AF57:AH57)) ->  | AM57: =IF(COUNT(E57:N57)<4,"",AVERAGE(AG57:AI57)) ->  | AN57: =IF(COUNT(E57:N57)<5,"",AVERAGE(AH57:AJ57)) ->  | AO57: =IF(COUNT(E57:N57)<6,"",AVERAGE(AI57:AK57)) ->  | AQ57: =IF(E57>=1000,TEXT(E57,"0.000,00"),TEXT(E57,"0,00")) -> 0,00 | AR57: =IF(F57>=1000,TEXT(F57,"0.000,00"),TEXT(F57,"0,00")) -> 0,00 | AS57: =IF(G57>=1000,TEXT(G57,"0.000,00"),TEXT(G57,"0,00")) -> 0,00 | AT57: =IF(H57>=1000,TEXT(H57,"0.000,00"),TEXT(H57,"0,00")) -> 0,00 | AU57: =IF(I57>=1000,TEXT(I57,"0.000,00"),TEXT(I57,"0,00")) -> 0,00 | AV57: =IF(J57>=1000,TEXT(J57,"0.000,00"),TEXT(J57,"0,00")) -> 0,00 | AW57: =IF(K57>=1000,TEXT(K57,"0.000,00"),TEXT(K57,"0,00")) -> 0,00 | AX57: =IF(L57>=1000,TEXT(L57,"0.000,00"),TEXT(L57,"0,00")) -> 0,00 | AY57: =IF(M57>=1000,TEXT(M57,"0.000,00"),TEXT(M57,"0,00")) -> 0,00 | AZ57: =IF(N57>=1000,TEXT(N57,"0.000,00"),TEXT(N57,"0,00")) -> 0,00 | BB57: =IF(PREENCHER!AL57="",#REF!,IF(PREENCHER!AM57="",#REF!,IF(PREENCHER!AN57="",#REF!,IF(STDEV(PREENCHER!$AF57:$AH57)/AVERAGE(PREENCHER!$AF57:$AH57)>#REF!,IF(STDEV(PREENCHER!$AG57:$AI57)/AVERAGE(PREENCHER!$AG57:$AI57)>#REF!,IF(STDEV(PREENCHER!$AH57:$AJ57)/AVERAGE(PREENCHER!$AH57:$AJ57)>#REF!,IF(STDEV(PREENCHER!$AI57:$AK57)/AVERAGE(PREENCHER!$AI57:$AK57)>#REF!,#REF!,AVERAGE(PREENCHER!$AI57:$AK57)),AVERAGE(PREENCHER!$AH57:$AJ57)),AVERAGE(PREENCHER!$AG57:$AI57)),AVERAGE(PREENCHER!$AF57:$AH57))))) ->  | BC57: =IF(ISERROR(ROUND(BB57,2)),"",ROUND(BB57,2)) ->  | BG57: =IF(ISERROR(IF(COUNT(E57:N57)=2,"Apenas dois preços comparativos válidos. ","")),"",IF(COUNT(E57:N57)=2,"Apenas dois preços comparativos válidos. ","")) ->  | BH57: =IF(ISERROR(IF(COUNT(E57:N57)=1,"Apenas um preço comparativo válido. ","")),"",IF(COUNT(E57:N57)=1,"Apenas um preço comparativo válido. ","")) ->  | BI57: =IF(A57="","",IF(ISERROR(IF(COUNT(E57:N57)=0,"Nenhum preço comparativo válido. ","")),"",IF(COUNT(E57:N57)=0,"Nenhum preço comparativo válido. ",""))) ->  | BJ57: =IF(ISERROR(IF(R57>P57,(R57-P57)/P57,"")),"",IF(R57>P57,(R57-P57)/P57,"")) ->  | BK57: =IF(ISERROR(IF(BJ57="","","Neste item, o valor contratado pelo TJDFT é "&TEXT(BJ57,"0,00%")&" superior à média comparativa.")),"",IF(BJ57="","","Neste item, o valor contratado pelo TJDFT é "&TEXT(BJ57,"0,00%")&" superior à média comparativa.")) -> 
O58: =IF(ISERROR(ROUND(AVERAGE(E58:N58),2)),"",ROUND(AVERAGE(E58:N58),2)) ->  | P58: =IF(ISERROR(ROUND(O58*D58,2)),"",ROUND(O58*D58,2)) ->  | R58: =IF(A58="","",ROUND(Q58*D58,2)) ->  | S58: =IF(A58="","",CONCATENATE($BG58,$BH58,$BI58,$BK58)) ->  | U58: =IF(ISERROR(COUNTA(E58:N58)),"",COUNTA(E58:N58)) -> 0 | V58: =IF(ISERROR(COUNT(E58:N58)),"",COUNT(E58:N58)) -> 0 | W58: =IF(ISERROR(MIN(E58:N58)),"",MIN(E58:N58)) -> 0 | X58: =IF(ISERROR(MAX(E58:N58)),"",MAX(E58:N58)) -> 0 | Y58: =IF(ISERROR(ROUND(AVERAGE(E58:N58),2)),"",ROUND(AVERAGE(E58:N58),2)) ->  | Z58: =IF(ISERROR(MEDIAN(E58:N58)),"",MEDIAN(E58:N58)) ->  | AA58: =IF(ISERROR(STDEV(E58:N58)),"",STDEV(E58:N58)) ->  | AB58: =IF(ISERROR(AA58/Y58),"",AA58/Y58) ->  | AF58: =IF(COUNT(E58:N58)<1,"",SMALL(E58:N58,1)) ->  | AG58: =IF(COUNT(E58:N58)<2,"",SMALL(E58:N58,2)) ->  | AH58: =IF(COUNT(E58:N58)<3,"",SMALL(E58:N58,3)) ->  | AI58: =IF(COUNT(E58:N58)<4,"",SMALL(E58:N58,4)) ->  | AJ58: =IF(COUNT(E58:N58)<5,"",SMALL(E58:N58,5)) ->  | AK58: =IF(COUNT(E58:N58)<6,"",SMALL(E58:N58,6)) ->  | AL58: =IF(COUNT(E58:N58)<3,"",AVERAGE(AF58:AH58)) ->  | AM58: =IF(COUNT(E58:N58)<4,"",AVERAGE(AG58:AI58)) ->  | AN58: =IF(COUNT(E58:N58)<5,"",AVERAGE(AH58:AJ58)) ->  | AO58: =IF(COUNT(E58:N58)<6,"",AVERAGE(AI58:AK58)) ->  | AQ58: =IF(E58>=1000,TEXT(E58,"0.000,00"),TEXT(E58,"0,00")) -> 0,00 | AR58: =IF(F58>=1000,TEXT(F58,"0.000,00"),TEXT(F58,"0,00")) -> 0,00 | AS58: =IF(G58>=1000,TEXT(G58,"0.000,00"),TEXT(G58,"0,00")) -> 0,00 | AT58: =IF(H58>=1000,TEXT(H58,"0.000,00"),TEXT(H58,"0,00")) -> 0,00 | AU58: =IF(I58>=1000,TEXT(I58,"0.000,00"),TEXT(I58,"0,00")) -> 0,00 | AV58: =IF(J58>=1000,TEXT(J58,"0.000,00"),TEXT(J58,"0,00")) -> 0,00 | AW58: =IF(K58>=1000,TEXT(K58,"0.000,00"),TEXT(K58,"0,00")) -> 0,00 | AX58: =IF(L58>=1000,TEXT(L58,"0.000,00"),TEXT(L58,"0,00")) -> 0,00 | AY58: =IF(M58>=1000,TEXT(M58,"0.000,00"),TEXT(M58,"0,00")) -> 0,00 | AZ58: =IF(N58>=1000,TEXT(N58,"0.000,00"),TEXT(N58,"0,00")) -> 0,00 | BB58: =IF(PREENCHER!AL58="",#REF!,IF(PREENCHER!AM58="",#REF!,IF(PREENCHER!AN58="",#REF!,IF(STDEV(PREENCHER!$AF58:$AH58)/AVERAGE(PREENCHER!$AF58:$AH58)>#REF!,IF(STDEV(PREENCHER!$AG58:$AI58)/AVERAGE(PREENCHER!$AG58:$AI58)>#REF!,IF(STDEV(PREENCHER!$AH58:$AJ58)/AVERAGE(PREENCHER!$AH58:$AJ58)>#REF!,IF(STDEV(PREENCHER!$AI58:$AK58)/AVERAGE(PREENCHER!$AI58:$AK58)>#REF!,#REF!,AVERAGE(PREENCHER!$AI58:$AK58)),AVERAGE(PREENCHER!$AH58:$AJ58)),AVERAGE(PREENCHER!$AG58:$AI58)),AVERAGE(PREENCHER!$AF58:$AH58))))) ->  | BC58: =IF(ISERROR(ROUND(BB58,2)),"",ROUND(BB58,2)) ->  | BG58: =IF(ISERROR(IF(COUNT(E58:N58)=2,"Apenas dois preços comparativos válidos. ","")),"",IF(COUNT(E58:N58)=2,"Apenas dois preços comparativos válidos. ","")) ->  | BH58: =IF(ISERROR(IF(COUNT(E58:N58)=1,"Apenas um preço comparativo válido. ","")),"",IF(COUNT(E58:N58)=1,"Apenas um preço comparativo válido. ","")) ->  | BI58: =IF(A58="","",IF(ISERROR(IF(COUNT(E58:N58)=0,"Nenhum preço comparativo válido. ","")),"",IF(COUNT(E58:N58)=0,"Nenhum preço comparativo válido. ",""))) ->  | BJ58: =IF(ISERROR(IF(R58>P58,(R58-P58)/P58,"")),"",IF(R58>P58,(R58-P58)/P58,"")) ->  | BK58: =IF(ISERROR(IF(BJ58="","","Neste item, o valor contratado pelo TJDFT é "&TEXT(BJ58,"0,00%")&" superior à média comparativa.")),"",IF(BJ58="","","Neste item, o valor contratado pelo TJDFT é "&TEXT(BJ58,"0,00%")&" superior à média comparativa.")) -> 
O59: =IF(ISERROR(ROUND(AVERAGE(E59:N59),2)),"",ROUND(AVERAGE(E59:N59),2)) ->  | P59: =IF(ISERROR(ROUND(O59*D59,2)),"",ROUND(O59*D59,2)) ->  | R59: =IF(A59="","",ROUND(Q59*D59,2)) ->  | S59: =IF(A59="","",CONCATENATE($BG59,$BH59,$BI59,$BK59)) ->  | U59: =IF(ISERROR(COUNTA(E59:N59)),"",COUNTA(E59:N59)) -> 0 | V59: =IF(ISERROR(COUNT(E59:N59)),"",COUNT(E59:N59)) -> 0 | W59: =IF(ISERROR(MIN(E59:N59)),"",MIN(E59:N59)) -> 0 | X59: =IF(ISERROR(MAX(E59:N59)),"",MAX(E59:N59)) -> 0 | Y59: =IF(ISERROR(ROUND(AVERAGE(E59:N59),2)),"",ROUND(AVERAGE(E59:N59),2)) ->  | Z59: =IF(ISERROR(MEDIAN(E59:N59)),"",MEDIAN(E59:N59)) ->  | AA59: =IF(ISERROR(STDEV(E59:N59)),"",STDEV(E59:N59)) ->  | AB59: =IF(ISERROR(AA59/Y59),"",AA59/Y59) ->  | AF59: =IF(COUNT(E59:N59)<1,"",SMALL(E59:N59,1)) ->  | AG59: =IF(COUNT(E59:N59)<2,"",SMALL(E59:N59,2)) ->  | AH59: =IF(COUNT(E59:N59)<3,"",SMALL(E59:N59,3)) ->  | AI59: =IF(COUNT(E59:N59)<4,"",SMALL(E59:N59,4)) ->  | AJ59: =IF(COUNT(E59:N59)<5,"",SMALL(E59:N59,5)) ->  | AK59: =IF(COUNT(E59:N59)<6,"",SMALL(E59:N59,6)) ->  | AL59: =IF(COUNT(E59:N59)<3,"",AVERAGE(AF59:AH59)) ->  | AM59: =IF(COUNT(E59:N59)<4,"",AVERAGE(AG59:AI59)) ->  | AN59: =IF(COUNT(E59:N59)<5,"",AVERAGE(AH59:AJ59)) ->  | AO59: =IF(COUNT(E59:N59)<6,"",AVERAGE(AI59:AK59)) ->  | AQ59: =IF(E59>=1000,TEXT(E59,"0.000,00"),TEXT(E59,"0,00")) -> 0,00 | AR59: =IF(F59>=1000,TEXT(F59,"0.000,00"),TEXT(F59,"0,00")) -> 0,00 | AS59: =IF(G59>=1000,TEXT(G59,"0.000,00"),TEXT(G59,"0,00")) -> 0,00 | AT59: =IF(H59>=1000,TEXT(H59,"0.000,00"),TEXT(H59,"0,00")) -> 0,00 | AU59: =IF(I59>=1000,TEXT(I59,"0.000,00"),TEXT(I59,"0,00")) -> 0,00 | AV59: =IF(J59>=1000,TEXT(J59,"0.000,00"),TEXT(J59,"0,00")) -> 0,00 | AW59: =IF(K59>=1000,TEXT(K59,"0.000,00"),TEXT(K59,"0,00")) -> 0,00 | AX59: =IF(L59>=1000,TEXT(L59,"0.000,00"),TEXT(L59,"0,00")) -> 0,00 | AY59: =IF(M59>=1000,TEXT(M59,"0.000,00"),TEXT(M59,"0,00")) -> 0,00 | AZ59: =IF(N59>=1000,TEXT(N59,"0.000,00"),TEXT(N59,"0,00")) -> 0,00 | BB59: =IF(PREENCHER!AL59="",#REF!,IF(PREENCHER!AM59="",#REF!,IF(PREENCHER!AN59="",#REF!,IF(STDEV(PREENCHER!$AF59:$AH59)/AVERAGE(PREENCHER!$AF59:$AH59)>#REF!,IF(STDEV(PREENCHER!$AG59:$AI59)/AVERAGE(PREENCHER!$AG59:$AI59)>#REF!,IF(STDEV(PREENCHER!$AH59:$AJ59)/AVERAGE(PREENCHER!$AH59:$AJ59)>#REF!,IF(STDEV(PREENCHER!$AI59:$AK59)/AVERAGE(PREENCHER!$AI59:$AK59)>#REF!,#REF!,AVERAGE(PREENCHER!$AI59:$AK59)),AVERAGE(PREENCHER!$AH59:$AJ59)),AVERAGE(PREENCHER!$AG59:$AI59)),AVERAGE(PREENCHER!$AF59:$AH59))))) ->  | BC59: =IF(ISERROR(ROUND(BB59,2)),"",ROUND(BB59,2)) ->  | BG59: =IF(ISERROR(IF(COUNT(E59:N59)=2,"Apenas dois preços comparativos válidos. ","")),"",IF(COUNT(E59:N59)=2,"Apenas dois preços comparativos válidos. ","")) ->  | BH59: =IF(ISERROR(IF(COUNT(E59:N59)=1,"Apenas um preço comparativo válido. ","")),"",IF(COUNT(E59:N59)=1,"Apenas um preço comparativo válido. ","")) ->  | BI59: =IF(A59="","",IF(ISERROR(IF(COUNT(E59:N59)=0,"Nenhum preço comparativo válido. ","")),"",IF(COUNT(E59:N59)=0,"Nenhum preço comparativo válido. ",""))) ->  | BJ59: =IF(ISERROR(IF(R59>P59,(R59-P59)/P59,"")),"",IF(R59>P59,(R59-P59)/P59,"")) ->  | BK59: =IF(ISERROR(IF(BJ59="","","Neste item, o valor contratado pelo TJDFT é "&TEXT(BJ59,"0,00%")&" superior à média comparativa.")),"",IF(BJ59="","","Neste item, o valor contratado pelo TJDFT é "&TEXT(BJ59,"0,00%")&" superior à média comparativa.")) -> 
O60: =IF(ISERROR(ROUND(AVERAGE(E60:N60),2)),"",ROUND(AVERAGE(E60:N60),2)) ->  | P60: =IF(ISERROR(ROUND(O60*D60,2)),"",ROUND(O60*D60,2)) ->  | R60: =IF(A60="","",ROUND(Q60*D60,2)) ->  | S60: =IF(A60="","",CONCATENATE($BG60,$BH60,$BI60,$BK60)) ->  | U60: =IF(ISERROR(COUNTA(E60:N60)),"",COUNTA(E60:N60)) -> 0 | V60: =IF(ISERROR(COUNT(E60:N60)),"",COUNT(E60:N60)) -> 0 | W60: =IF(ISERROR(MIN(E60:N60)),"",MIN(E60:N60)) -> 0 | X60: =IF(ISERROR(MAX(E60:N60)),"",MAX(E60:N60)) -> 0 | Y60: =IF(ISERROR(ROUND(AVERAGE(E60:N60),2)),"",ROUND(AVERAGE(E60:N60),2)) ->  | Z60: =IF(ISERROR(MEDIAN(E60:N60)),"",MEDIAN(E60:N60)) ->  | AA60: =IF(ISERROR(STDEV(E60:N60)),"",STDEV(E60:N60)) ->  | AB60: =IF(ISERROR(AA60/Y60),"",AA60/Y60) ->  | AF60: =IF(COUNT(E60:N60)<1,"",SMALL(E60:N60,1)) ->  | AG60: =IF(COUNT(E60:N60)<2,"",SMALL(E60:N60,2)) ->  | AH60: =IF(COUNT(E60:N60)<3,"",SMALL(E60:N60,3)) ->  | AI60: =IF(COUNT(E60:N60)<4,"",SMALL(E60:N60,4)) ->  | AJ60: =IF(COUNT(E60:N60)<5,"",SMALL(E60:N60,5)) ->  | AK60: =IF(COUNT(E60:N60)<6,"",SMALL(E60:N60,6)) ->  | AL60: =IF(COUNT(E60:N60)<3,"",AVERAGE(AF60:AH60)) ->  | AM60: =IF(COUNT(E60:N60)<4,"",AVERAGE(AG60:AI60)) ->  | AN60: =IF(COUNT(E60:N60)<5,"",AVERAGE(AH60:AJ60)) ->  | AO60: =IF(COUNT(E60:N60)<6,"",AVERAGE(AI60:AK60)) ->  | AQ60: =IF(E60>=1000,TEXT(E60,"0.000,00"),TEXT(E60,"0,00")) -> 0,00 | AR60: =IF(F60>=1000,TEXT(F60,"0.000,00"),TEXT(F60,"0,00")) -> 0,00 | AS60: =IF(G60>=1000,TEXT(G60,"0.000,00"),TEXT(G60,"0,00")) -> 0,00 | AT60: =IF(H60>=1000,TEXT(H60,"0.000,00"),TEXT(H60,"0,00")) -> 0,00 | AU60: =IF(I60>=1000,TEXT(I60,"0.000,00"),TEXT(I60,"0,00")) -> 0,00 | AV60: =IF(J60>=1000,TEXT(J60,"0.000,00"),TEXT(J60,"0,00")) -> 0,00 | AW60: =IF(K60>=1000,TEXT(K60,"0.000,00"),TEXT(K60,"0,00")) -> 0,00 | AX60: =IF(L60>=1000,TEXT(L60,"0.000,00"),TEXT(L60,"0,00")) -> 0,00 | AY60: =IF(M60>=1000,TEXT(M60,"0.000,00"),TEXT(M60,"0,00")) -> 0,00 | AZ60: =IF(N60>=1000,TEXT(N60,"0.000,00"),TEXT(N60,"0,00")) -> 0,00 | BB60: =IF(PREENCHER!AL60="",#REF!,IF(PREENCHER!AM60="",#REF!,IF(PREENCHER!AN60="",#REF!,IF(STDEV(PREENCHER!$AF60:$AH60)/AVERAGE(PREENCHER!$AF60:$AH60)>#REF!,IF(STDEV(PREENCHER!$AG60:$AI60)/AVERAGE(PREENCHER!$AG60:$AI60)>#REF!,IF(STDEV(PREENCHER!$AH60:$AJ60)/AVERAGE(PREENCHER!$AH60:$AJ60)>#REF!,IF(STDEV(PREENCHER!$AI60:$AK60)/AVERAGE(PREENCHER!$AI60:$AK60)>#REF!,#REF!,AVERAGE(PREENCHER!$AI60:$AK60)),AVERAGE(PREENCHER!$AH60:$AJ60)),AVERAGE(PREENCHER!$AG60:$AI60)),AVERAGE(PREENCHER!$AF60:$AH60))))) ->  | BC60: =IF(ISERROR(ROUND(BB60,2)),"",ROUND(BB60,2)) ->  | BG60: =IF(ISERROR(IF(COUNT(E60:N60)=2,"Apenas dois preços comparativos válidos. ","")),"",IF(COUNT(E60:N60)=2,"Apenas dois preços comparativos válidos. ","")) ->  | BH60: =IF(ISERROR(IF(COUNT(E60:N60)=1,"Apenas um preço comparativo válido. ","")),"",IF(COUNT(E60:N60)=1,"Apenas um preço comparativo válido. ","")) ->  | BI60: =IF(A60="","",IF(ISERROR(IF(COUNT(E60:N60)=0,"Nenhum preço comparativo válido. ","")),"",IF(COUNT(E60:N60)=0,"Nenhum preço comparativo válido. ",""))) ->  | BJ60: =IF(ISERROR(IF(R60>P60,(R60-P60)/P60,"")),"",IF(R60>P60,(R60-P60)/P60,"")) ->  | BK60: =IF(ISERROR(IF(BJ60="","","Neste item, o valor contratado pelo TJDFT é "&TEXT(BJ60,"0,00%")&" superior à média comparativa.")),"",IF(BJ60="","","Neste item, o valor contratado pelo TJDFT é "&TEXT(BJ60,"0,00%")&" superior à média comparativa.")) -> 
O61: =IF(ISERROR(ROUND(AVERAGE(E61:N61),2)),"",ROUND(AVERAGE(E61:N61),2)) ->  | P61: =IF(ISERROR(ROUND(O61*D61,2)),"",ROUND(O61*D61,2)) ->  | R61: =IF(A61="","",ROUND(Q61*D61,2)) ->  | S61: =IF(A61="","",CONCATENATE($BG61,$BH61,$BI61,$BK61)) ->  | U61: =IF(ISERROR(COUNTA(E61:N61)),"",COUNTA(E61:N61)) -> 0 | V61: =IF(ISERROR(COUNT(E61:N61)),"",COUNT(E61:N61)) -> 0 | W61: =IF(ISERROR(MIN(E61:N61)),"",MIN(E61:N61)) -> 0 | X61: =IF(ISERROR(MAX(E61:N61)),"",MAX(E61:N61)) -> 0 | Y61: =IF(ISERROR(ROUND(AVERAGE(E61:N61),2)),"",ROUND(AVERAGE(E61:N61),2)) ->  | Z61: =IF(ISERROR(MEDIAN(E61:N61)),"",MEDIAN(E61:N61)) ->  | AA61: =IF(ISERROR(STDEV(E61:N61)),"",STDEV(E61:N61)) ->  | AB61: =IF(ISERROR(AA61/Y61),"",AA61/Y61) ->  | AF61: =IF(COUNT(E61:N61)<1,"",SMALL(E61:N61,1)) ->  | AG61: =IF(COUNT(E61:N61)<2,"",SMALL(E61:N61,2)) ->  | AH61: =IF(COUNT(E61:N61)<3,"",SMALL(E61:N61,3)) ->  | AI61: =IF(COUNT(E61:N61)<4,"",SMALL(E61:N61,4)) ->  | AJ61: =IF(COUNT(E61:N61)<5,"",SMALL(E61:N61,5)) ->  | AK61: =IF(COUNT(E61:N61)<6,"",SMALL(E61:N61,6)) ->  | AL61: =IF(COUNT(E61:N61)<3,"",AVERAGE(AF61:AH61)) ->  | AM61: =IF(COUNT(E61:N61)<4,"",AVERAGE(AG61:AI61)) ->  | AN61: =IF(COUNT(E61:N61)<5,"",AVERAGE(AH61:AJ61)) ->  | AO61: =IF(COUNT(E61:N61)<6,"",AVERAGE(AI61:AK61)) ->  | AQ61: =IF(E61>=1000,TEXT(E61,"0.000,00"),TEXT(E61,"0,00")) -> 0,00 | AR61: =IF(F61>=1000,TEXT(F61,"0.000,00"),TEXT(F61,"0,00")) -> 0,00 | AS61: =IF(G61>=1000,TEXT(G61,"0.000,00"),TEXT(G61,"0,00")) -> 0,00 | AT61: =IF(H61>=1000,TEXT(H61,"0.000,00"),TEXT(H61,"0,00")) -> 0,00 | AU61: =IF(I61>=1000,TEXT(I61,"0.000,00"),TEXT(I61,"0,00")) -> 0,00 | AV61: =IF(J61>=1000,TEXT(J61,"0.000,00"),TEXT(J61,"0,00")) -> 0,00 | AW61: =IF(K61>=1000,TEXT(K61,"0.000,00"),TEXT(K61,"0,00")) -> 0,00 | AX61: =IF(L61>=1000,TEXT(L61,"0.000,00"),TEXT(L61,"0,00")) -> 0,00 | AY61: =IF(M61>=1000,TEXT(M61,"0.000,00"),TEXT(M61,"0,00")) -> 0,00 | AZ61: =IF(N61>=1000,TEXT(N61,"0.000,00"),TEXT(N61,"0,00")) -> 0,00 | BB61: =IF(PREENCHER!AL61="",#REF!,IF(PREENCHER!AM61="",#REF!,IF(PREENCHER!AN61="",#REF!,IF(STDEV(PREENCHER!$AF61:$AH61)/AVERAGE(PREENCHER!$AF61:$AH61)>#REF!,IF(STDEV(PREENCHER!$AG61:$AI61)/AVERAGE(PREENCHER!$AG61:$AI61)>#REF!,IF(STDEV(PREENCHER!$AH61:$AJ61)/AVERAGE(PREENCHER!$AH61:$AJ61)>#REF!,IF(STDEV(PREENCHER!$AI61:$AK61)/AVERAGE(PREENCHER!$AI61:$AK61)>#REF!,#REF!,AVERAGE(PREENCHER!$AI61:$AK61)),AVERAGE(PREENCHER!$AH61:$AJ61)),AVERAGE(PREENCHER!$AG61:$AI61)),AVERAGE(PREENCHER!$AF61:$AH61))))) ->  | BC61: =IF(ISERROR(ROUND(BB61,2)),"",ROUND(BB61,2)) ->  | BG61: =IF(ISERROR(IF(COUNT(E61:N61)=2,"Apenas dois preços comparativos válidos. ","")),"",IF(COUNT(E61:N61)=2,"Apenas dois preços comparativos válidos. ","")) ->  | BH61: =IF(ISERROR(IF(COUNT(E61:N61)=1,"Apenas um preço comparativo válido. ","")),"",IF(COUNT(E61:N61)=1,"Apenas um preço comparativo válido. ","")) ->  | BI61: =IF(A61="","",IF(ISERROR(IF(COUNT(E61:N61)=0,"Nenhum preço comparativo válido. ","")),"",IF(COUNT(E61:N61)=0,"Nenhum preço comparativo válido. ",""))) ->  | BJ61: =IF(ISERROR(IF(R61>P61,(R61-P61)/P61,"")),"",IF(R61>P61,(R61-P61)/P61,"")) ->  | BK61: =IF(ISERROR(IF(BJ61="","","Neste item, o valor contratado pelo TJDFT é "&TEXT(BJ61,"0,00%")&" superior à média comparativa.")),"",IF(BJ61="","","Neste item, o valor contratado pelo TJDFT é "&TEXT(BJ61,"0,00%")&" superior à média comparativa.")) -> 
O62: =IF(ISERROR(ROUND(AVERAGE(E62:N62),2)),"",ROUND(AVERAGE(E62:N62),2)) ->  | P62: =IF(ISERROR(ROUND(O62*D62,2)),"",ROUND(O62*D62,2)) ->  | R62: =IF(A62="","",ROUND(Q62*D62,2)) ->  | S62: =IF(A62="","",CONCATENATE($BG62,$BH62,$BI62,$BK62)) ->  | U62: =IF(ISERROR(COUNTA(E62:N62)),"",COUNTA(E62:N62)) -> 0 | V62: =IF(ISERROR(COUNT(E62:N62)),"",COUNT(E62:N62)) -> 0 | W62: =IF(ISERROR(MIN(E62:N62)),"",MIN(E62:N62)) -> 0 | X62: =IF(ISERROR(MAX(E62:N62)),"",MAX(E62:N62)) -> 0 | Y62: =IF(ISERROR(ROUND(AVERAGE(E62:N62),2)),"",ROUND(AVERAGE(E62:N62),2)) ->  | Z62: =IF(ISERROR(MEDIAN(E62:N62)),"",MEDIAN(E62:N62)) ->  | AA62: =IF(ISERROR(STDEV(E62:N62)),"",STDEV(E62:N62)) ->  | AB62: =IF(ISERROR(AA62/Y62),"",AA62/Y62) ->  | AF62: =IF(COUNT(E62:N62)<1,"",SMALL(E62:N62,1)) ->  | AG62: =IF(COUNT(E62:N62)<2,"",SMALL(E62:N62,2)) ->  | AH62: =IF(COUNT(E62:N62)<3,"",SMALL(E62:N62,3)) ->  | AI62: =IF(COUNT(E62:N62)<4,"",SMALL(E62:N62,4)) ->  | AJ62: =IF(COUNT(E62:N62)<5,"",SMALL(E62:N62,5)) ->  | AK62: =IF(COUNT(E62:N62)<6,"",SMALL(E62:N62,6)) ->  | AL62: =IF(COUNT(E62:N62)<3,"",AVERAGE(AF62:AH62)) ->  | AM62: =IF(COUNT(E62:N62)<4,"",AVERAGE(AG62:AI62)) ->  | AN62: =IF(COUNT(E62:N62)<5,"",AVERAGE(AH62:AJ62)) ->  | AO62: =IF(COUNT(E62:N62)<6,"",AVERAGE(AI62:AK62)) ->  | AQ62: =IF(E62>=1000,TEXT(E62,"0.000,00"),TEXT(E62,"0,00")) -> 0,00 | AR62: =IF(F62>=1000,TEXT(F62,"0.000,00"),TEXT(F62,"0,00")) -> 0,00 | AS62: =IF(G62>=1000,TEXT(G62,"0.000,00"),TEXT(G62,"0,00")) -> 0,00 | AT62: =IF(H62>=1000,TEXT(H62,"0.000,00"),TEXT(H62,"0,00")) -> 0,00 | AU62: =IF(I62>=1000,TEXT(I62,"0.000,00"),TEXT(I62,"0,00")) -> 0,00 | AV62: =IF(J62>=1000,TEXT(J62,"0.000,00"),TEXT(J62,"0,00")) -> 0,00 | AW62: =IF(K62>=1000,TEXT(K62,"0.000,00"),TEXT(K62,"0,00")) -> 0,00 | AX62: =IF(L62>=1000,TEXT(L62,"0.000,00"),TEXT(L62,"0,00")) -> 0,00 | AY62: =IF(M62>=1000,TEXT(M62,"0.000,00"),TEXT(M62,"0,00")) -> 0,00 | AZ62: =IF(N62>=1000,TEXT(N62,"0.000,00"),TEXT(N62,"0,00")) -> 0,00 | BB62: =IF(PREENCHER!AL62="",#REF!,IF(PREENCHER!AM62="",#REF!,IF(PREENCHER!AN62="",#REF!,IF(STDEV(PREENCHER!$AF62:$AH62)/AVERAGE(PREENCHER!$AF62:$AH62)>#REF!,IF(STDEV(PREENCHER!$AG62:$AI62)/AVERAGE(PREENCHER!$AG62:$AI62)>#REF!,IF(STDEV(PREENCHER!$AH62:$AJ62)/AVERAGE(PREENCHER!$AH62:$AJ62)>#REF!,IF(STDEV(PREENCHER!$AI62:$AK62)/AVERAGE(PREENCHER!$AI62:$AK62)>#REF!,#REF!,AVERAGE(PREENCHER!$AI62:$AK62)),AVERAGE(PREENCHER!$AH62:$AJ62)),AVERAGE(PREENCHER!$AG62:$AI62)),AVERAGE(PREENCHER!$AF62:$AH62))))) ->  | BC62: =IF(ISERROR(ROUND(BB62,2)),"",ROUND(BB62,2)) ->  | BG62: =IF(ISERROR(IF(COUNT(E62:N62)=2,"Apenas dois preços comparativos válidos. ","")),"",IF(COUNT(E62:N62)=2,"Apenas dois preços comparativos válidos. ","")) ->  | BH62: =IF(ISERROR(IF(COUNT(E62:N62)=1,"Apenas um preço comparativo válido. ","")),"",IF(COUNT(E62:N62)=1,"Apenas um preço comparativo válido. ","")) ->  | BI62: =IF(A62="","",IF(ISERROR(IF(COUNT(E62:N62)=0,"Nenhum preço comparativo válido. ","")),"",IF(COUNT(E62:N62)=0,"Nenhum preço comparativo válido. ",""))) ->  | BJ62: =IF(ISERROR(IF(R62>P62,(R62-P62)/P62,"")),"",IF(R62>P62,(R62-P62)/P62,"")) ->  | BK62: =IF(ISERROR(IF(BJ62="","","Neste item, o valor contratado pelo TJDFT é "&TEXT(BJ62,"0,00%")&" superior à média comparativa.")),"",IF(BJ62="","","Neste item, o valor contratado pelo TJDFT é "&TEXT(BJ62,"0,00%")&" superior à média comparativa.")) -> 
O63: =IF(ISERROR(ROUND(AVERAGE(E63:N63),2)),"",ROUND(AVERAGE(E63:N63),2)) ->  | P63: =IF(ISERROR(ROUND(O63*D63,2)),"",ROUND(O63*D63,2)) ->  | R63: =IF(A63="","",ROUND(Q63*D63,2)) ->  | S63: =IF(A63="","",CONCATENATE($BG63,$BH63,$BI63,$BK63)) ->  | U63: =IF(ISERROR(COUNTA(E63:N63)),"",COUNTA(E63:N63)) -> 0 | V63: =IF(ISERROR(COUNT(E63:N63)),"",COUNT(E63:N63)) -> 0 | W63: =IF(ISERROR(MIN(E63:N63)),"",MIN(E63:N63)) -> 0 | X63: =IF(ISERROR(MAX(E63:N63)),"",MAX(E63:N63)) -> 0 | Y63: =IF(ISERROR(ROUND(AVERAGE(E63:N63),2)),"",ROUND(AVERAGE(E63:N63),2)) ->  | Z63: =IF(ISERROR(MEDIAN(E63:N63)),"",MEDIAN(E63:N63)) ->  | AA63: =IF(ISERROR(STDEV(E63:N63)),"",STDEV(E63:N63)) ->  | AB63: =IF(ISERROR(AA63/Y63),"",AA63/Y63) ->  | AF63: =IF(COUNT(E63:N63)<1,"",SMALL(E63:N63,1)) ->  | AG63: =IF(COUNT(E63:N63)<2,"",SMALL(E63:N63,2)) ->  | AH63: =IF(COUNT(E63:N63)<3,"",SMALL(E63:N63,3)) ->  | AI63: =IF(COUNT(E63:N63)<4,"",SMALL(E63:N63,4)) ->  | AJ63: =IF(COUNT(E63:N63)<5,"",SMALL(E63:N63,5)) ->  | AK63: =IF(COUNT(E63:N63)<6,"",SMALL(E63:N63,6)) ->  | AL63: =IF(COUNT(E63:N63)<3,"",AVERAGE(AF63:AH63)) ->  | AM63: =IF(COUNT(E63:N63)<4,"",AVERAGE(AG63:AI63)) ->  | AN63: =IF(COUNT(E63:N63)<5,"",AVERAGE(AH63:AJ63)) ->  | AO63: =IF(COUNT(E63:N63)<6,"",AVERAGE(AI63:AK63)) ->  | AQ63: =IF(E63>=1000,TEXT(E63,"0.000,00"),TEXT(E63,"0,00")) -> 0,00 | AR63: =IF(F63>=1000,TEXT(F63,"0.000,00"),TEXT(F63,"0,00")) -> 0,00 | AS63: =IF(G63>=1000,TEXT(G63,"0.000,00"),TEXT(G63,"0,00")) -> 0,00 | AT63: =IF(H63>=1000,TEXT(H63,"0.000,00"),TEXT(H63,"0,00")) -> 0,00 | AU63: =IF(I63>=1000,TEXT(I63,"0.000,00"),TEXT(I63,"0,00")) -> 0,00 | AV63: =IF(J63>=1000,TEXT(J63,"0.000,00"),TEXT(J63,"0,00")) -> 0,00 | AW63: =IF(K63>=1000,TEXT(K63,"0.000,00"),TEXT(K63,"0,00")) -> 0,00 | AX63: =IF(L63>=1000,TEXT(L63,"0.000,00"),TEXT(L63,"0,00")) -> 0,00 | AY63: =IF(M63>=1000,TEXT(M63,"0.000,00"),TEXT(M63,"0,00")) -> 0,00 | AZ63: =IF(N63>=1000,TEXT(N63,"0.000,00"),TEXT(N63,"0,00")) -> 0,00 | BB63: =IF(PREENCHER!AL63="",#REF!,IF(PREENCHER!AM63="",#REF!,IF(PREENCHER!AN63="",#REF!,IF(STDEV(PREENCHER!$AF63:$AH63)/AVERAGE(PREENCHER!$AF63:$AH63)>#REF!,IF(STDEV(PREENCHER!$AG63:$AI63)/AVERAGE(PREENCHER!$AG63:$AI63)>#REF!,IF(STDEV(PREENCHER!$AH63:$AJ63)/AVERAGE(PREENCHER!$AH63:$AJ63)>#REF!,IF(STDEV(PREENCHER!$AI63:$AK63)/AVERAGE(PREENCHER!$AI63:$AK63)>#REF!,#REF!,AVERAGE(PREENCHER!$AI63:$AK63)),AVERAGE(PREENCHER!$AH63:$AJ63)),AVERAGE(PREENCHER!$AG63:$AI63)),AVERAGE(PREENCHER!$AF63:$AH63))))) ->  | BC63: =IF(ISERROR(ROUND(BB63,2)),"",ROUND(BB63,2)) ->  | BG63: =IF(ISERROR(IF(COUNT(E63:N63)=2,"Apenas dois preços comparativos válidos. ","")),"",IF(COUNT(E63:N63)=2,"Apenas dois preços comparativos válidos. ","")) ->  | BH63: =IF(ISERROR(IF(COUNT(E63:N63)=1,"Apenas um preço comparativo válido. ","")),"",IF(COUNT(E63:N63)=1,"Apenas um preço comparativo válido. ","")) ->  | BI63: =IF(A63="","",IF(ISERROR(IF(COUNT(E63:N63)=0,"Nenhum preço comparativo válido. ","")),"",IF(COUNT(E63:N63)=0,"Nenhum preço comparativo válido. ",""))) ->  | BJ63: =IF(ISERROR(IF(R63>P63,(R63-P63)/P63,"")),"",IF(R63>P63,(R63-P63)/P63,"")) ->  | BK63: =IF(ISERROR(IF(BJ63="","","Neste item, o valor contratado pelo TJDFT é "&TEXT(BJ63,"0,00%")&" superior à média comparativa.")),"",IF(BJ63="","","Neste item, o valor contratado pelo TJDFT é "&TEXT(BJ63,"0,00%")&" superior à média comparativa.")) -> 
O64: =IF(ISERROR(ROUND(AVERAGE(E64:N64),2)),"",ROUND(AVERAGE(E64:N64),2)) ->  | P64: =IF(ISERROR(ROUND(O64*D64,2)),"",ROUND(O64*D64,2)) ->  | R64: =IF(A64="","",ROUND(Q64*D64,2)) ->  | S64: =IF(A64="","",CONCATENATE($BG64,$BH64,$BI64,$BK64)) ->  | U64: =IF(ISERROR(COUNTA(E64:N64)),"",COUNTA(E64:N64)) -> 0 | V64: =IF(ISERROR(COUNT(E64:N64)),"",COUNT(E64:N64)) -> 0 | W64: =IF(ISERROR(MIN(E64:N64)),"",MIN(E64:N64)) -> 0 | X64: =IF(ISERROR(MAX(E64:N64)),"",MAX(E64:N64)) -> 0 | Y64: =IF(ISERROR(ROUND(AVERAGE(E64:N64),2)),"",ROUND(AVERAGE(E64:N64),2)) ->  | Z64: =IF(ISERROR(MEDIAN(E64:N64)),"",MEDIAN(E64:N64)) ->  | AA64: =IF(ISERROR(STDEV(E64:N64)),"",STDEV(E64:N64)) ->  | AB64: =IF(ISERROR(AA64/Y64),"",AA64/Y64) ->  | AF64: =IF(COUNT(E64:N64)<1,"",SMALL(E64:N64,1)) ->  | AG64: =IF(COUNT(E64:N64)<2,"",SMALL(E64:N64,2)) ->  | AH64: =IF(COUNT(E64:N64)<3,"",SMALL(E64:N64,3)) ->  | AI64: =IF(COUNT(E64:N64)<4,"",SMALL(E64:N64,4)) ->  | AJ64: =IF(COUNT(E64:N64)<5,"",SMALL(E64:N64,5)) ->  | AK64: =IF(COUNT(E64:N64)<6,"",SMALL(E64:N64,6)) ->  | AL64: =IF(COUNT(E64:N64)<3,"",AVERAGE(AF64:AH64)) ->  | AM64: =IF(COUNT(E64:N64)<4,"",AVERAGE(AG64:AI64)) ->  | AN64: =IF(COUNT(E64:N64)<5,"",AVERAGE(AH64:AJ64)) ->  | AO64: =IF(COUNT(E64:N64)<6,"",AVERAGE(AI64:AK64)) ->  | AQ64: =IF(E64>=1000,TEXT(E64,"0.000,00"),TEXT(E64,"0,00")) -> 0,00 | AR64: =IF(F64>=1000,TEXT(F64,"0.000,00"),TEXT(F64,"0,00")) -> 0,00 | AS64: =IF(G64>=1000,TEXT(G64,"0.000,00"),TEXT(G64,"0,00")) -> 0,00 | AT64: =IF(H64>=1000,TEXT(H64,"0.000,00"),TEXT(H64,"0,00")) -> 0,00 | AU64: =IF(I64>=1000,TEXT(I64,"0.000,00"),TEXT(I64,"0,00")) -> 0,00 | AV64: =IF(J64>=1000,TEXT(J64,"0.000,00"),TEXT(J64,"0,00")) -> 0,00 | AW64: =IF(K64>=1000,TEXT(K64,"0.000,00"),TEXT(K64,"0,00")) -> 0,00 | AX64: =IF(L64>=1000,TEXT(L64,"0.000,00"),TEXT(L64,"0,00")) -> 0,00 | AY64: =IF(M64>=1000,TEXT(M64,"0.000,00"),TEXT(M64,"0,00")) -> 0,00 | AZ64: =IF(N64>=1000,TEXT(N64,"0.000,00"),TEXT(N64,"0,00")) -> 0,00 | BB64: =IF(PREENCHER!AL64="",#REF!,IF(PREENCHER!AM64="",#REF!,IF(PREENCHER!AN64="",#REF!,IF(STDEV(PREENCHER!$AF64:$AH64)/AVERAGE(PREENCHER!$AF64:$AH64)>#REF!,IF(STDEV(PREENCHER!$AG64:$AI64)/AVERAGE(PREENCHER!$AG64:$AI64)>#REF!,IF(STDEV(PREENCHER!$AH64:$AJ64)/AVERAGE(PREENCHER!$AH64:$AJ64)>#REF!,IF(STDEV(PREENCHER!$AI64:$AK64)/AVERAGE(PREENCHER!$AI64:$AK64)>#REF!,#REF!,AVERAGE(PREENCHER!$AI64:$AK64)),AVERAGE(PREENCHER!$AH64:$AJ64)),AVERAGE(PREENCHER!$AG64:$AI64)),AVERAGE(PREENCHER!$AF64:$AH64))))) ->  | BC64: =IF(ISERROR(ROUND(BB64,2)),"",ROUND(BB64,2)) ->  | BG64: =IF(ISERROR(IF(COUNT(E64:N64)=2,"Apenas dois preços comparativos válidos. ","")),"",IF(COUNT(E64:N64)=2,"Apenas dois preços comparativos válidos. ","")) ->  | BH64: =IF(ISERROR(IF(COUNT(E64:N64)=1,"Apenas um preço comparativo válido. ","")),"",IF(COUNT(E64:N64)=1,"Apenas um preço comparativo válido. ","")) ->  | BI64: =IF(A64="","",IF(ISERROR(IF(COUNT(E64:N64)=0,"Nenhum preço comparativo válido. ","")),"",IF(COUNT(E64:N64)=0,"Nenhum preço comparativo válido. ",""))) ->  | BJ64: =IF(ISERROR(IF(R64>P64,(R64-P64)/P64,"")),"",IF(R64>P64,(R64-P64)/P64,"")) ->  | BK64: =IF(ISERROR(IF(BJ64="","","Neste item, o valor contratado pelo TJDFT é "&TEXT(BJ64,"0,00%")&" superior à média comparativa.")),"",IF(BJ64="","","Neste item, o valor contratado pelo TJDFT é "&TEXT(BJ64,"0,00%")&" superior à média comparativa.")) -> 
O65: =IF(ISERROR(ROUND(AVERAGE(E65:N65),2)),"",ROUND(AVERAGE(E65:N65),2)) ->  | P65: =IF(ISERROR(ROUND(O65*D65,2)),"",ROUND(O65*D65,2)) ->  | R65: =IF(A65="","",ROUND(Q65*D65,2)) ->  | S65: =IF(A65="","",CONCATENATE($BG65,$BH65,$BI65,$BK65)) ->  | U65: =IF(ISERROR(COUNTA(E65:N65)),"",COUNTA(E65:N65)) -> 0 | V65: =IF(ISERROR(COUNT(E65:N65)),"",COUNT(E65:N65)) -> 0 | W65: =IF(ISERROR(MIN(E65:N65)),"",MIN(E65:N65)) -> 0 | X65: =IF(ISERROR(MAX(E65:N65)),"",MAX(E65:N65)) -> 0 | Y65: =IF(ISERROR(ROUND(AVERAGE(E65:N65),2)),"",ROUND(AVERAGE(E65:N65),2)) ->  | Z65: =IF(ISERROR(MEDIAN(E65:N65)),"",MEDIAN(E65:N65)) ->  | AA65: =IF(ISERROR(STDEV(E65:N65)),"",STDEV(E65:N65)) ->  | AB65: =IF(ISERROR(AA65/Y65),"",AA65/Y65) ->  | AF65: =IF(COUNT(E65:N65)<1,"",SMALL(E65:N65,1)) ->  | AG65: =IF(COUNT(E65:N65)<2,"",SMALL(E65:N65,2)) ->  | AH65: =IF(COUNT(E65:N65)<3,"",SMALL(E65:N65,3)) ->  | AI65: =IF(COUNT(E65:N65)<4,"",SMALL(E65:N65,4)) ->  | AJ65: =IF(COUNT(E65:N65)<5,"",SMALL(E65:N65,5)) ->  | AK65: =IF(COUNT(E65:N65)<6,"",SMALL(E65:N65,6)) ->  | AL65: =IF(COUNT(E65:N65)<3,"",AVERAGE(AF65:AH65)) ->  | AM65: =IF(COUNT(E65:N65)<4,"",AVERAGE(AG65:AI65)) ->  | AN65: =IF(COUNT(E65:N65)<5,"",AVERAGE(AH65:AJ65)) ->  | AO65: =IF(COUNT(E65:N65)<6,"",AVERAGE(AI65:AK65)) ->  | AQ65: =IF(E65>=1000,TEXT(E65,"0.000,00"),TEXT(E65,"0,00")) -> 0,00 | AR65: =IF(F65>=1000,TEXT(F65,"0.000,00"),TEXT(F65,"0,00")) -> 0,00 | AS65: =IF(G65>=1000,TEXT(G65,"0.000,00"),TEXT(G65,"0,00")) -> 0,00 | AT65: =IF(H65>=1000,TEXT(H65,"0.000,00"),TEXT(H65,"0,00")) -> 0,00 | AU65: =IF(I65>=1000,TEXT(I65,"0.000,00"),TEXT(I65,"0,00")) -> 0,00 | AV65: =IF(J65>=1000,TEXT(J65,"0.000,00"),TEXT(J65,"0,00")) -> 0,00 | AW65: =IF(K65>=1000,TEXT(K65,"0.000,00"),TEXT(K65,"0,00")) -> 0,00 | AX65: =IF(L65>=1000,TEXT(L65,"0.000,00"),TEXT(L65,"0,00")) -> 0,00 | AY65: =IF(M65>=1000,TEXT(M65,"0.000,00"),TEXT(M65,"0,00")) -> 0,00 | AZ65: =IF(N65>=1000,TEXT(N65,"0.000,00"),TEXT(N65,"0,00")) -> 0,00 | BB65: =IF(PREENCHER!AL65="",#REF!,IF(PREENCHER!AM65="",#REF!,IF(PREENCHER!AN65="",#REF!,IF(STDEV(PREENCHER!$AF65:$AH65)/AVERAGE(PREENCHER!$AF65:$AH65)>#REF!,IF(STDEV(PREENCHER!$AG65:$AI65)/AVERAGE(PREENCHER!$AG65:$AI65)>#REF!,IF(STDEV(PREENCHER!$AH65:$AJ65)/AVERAGE(PREENCHER!$AH65:$AJ65)>#REF!,IF(STDEV(PREENCHER!$AI65:$AK65)/AVERAGE(PREENCHER!$AI65:$AK65)>#REF!,#REF!,AVERAGE(PREENCHER!$AI65:$AK65)),AVERAGE(PREENCHER!$AH65:$AJ65)),AVERAGE(PREENCHER!$AG65:$AI65)),AVERAGE(PREENCHER!$AF65:$AH65))))) ->  | BC65: =IF(ISERROR(ROUND(BB65,2)),"",ROUND(BB65,2)) ->  | BG65: =IF(ISERROR(IF(COUNT(E65:N65)=2,"Apenas dois preços comparativos válidos. ","")),"",IF(COUNT(E65:N65)=2,"Apenas dois preços comparativos válidos. ","")) ->  | BH65: =IF(ISERROR(IF(COUNT(E65:N65)=1,"Apenas um preço comparativo válido. ","")),"",IF(COUNT(E65:N65)=1,"Apenas um preço comparativo válido. ","")) ->  | BI65: =IF(A65="","",IF(ISERROR(IF(COUNT(E65:N65)=0,"Nenhum preço comparativo válido. ","")),"",IF(COUNT(E65:N65)=0,"Nenhum preço comparativo válido. ",""))) ->  | BJ65: =IF(ISERROR(IF(R65>P65,(R65-P65)/P65,"")),"",IF(R65>P65,(R65-P65)/P65,"")) ->  | BK65: =IF(ISERROR(IF(BJ65="","","Neste item, o valor contratado pelo TJDFT é "&TEXT(BJ65,"0,00%")&" superior à média comparativa.")),"",IF(BJ65="","","Neste item, o valor contratado pelo TJDFT é "&TEXT(BJ65,"0,00%")&" superior à média comparativa.")) -> 
O66: =IF(ISERROR(ROUND(AVERAGE(E66:N66),2)),"",ROUND(AVERAGE(E66:N66),2)) ->  | P66: =IF(ISERROR(ROUND(O66*D66,2)),"",ROUND(O66*D66,2)) ->  | R66: =IF(A66="","",ROUND(Q66*D66,2)) ->  | S66: =IF(A66="","",CONCATENATE($BG66,$BH66,$BI66,$BK66)) ->  | U66: =IF(ISERROR(COUNTA(E66:N66)),"",COUNTA(E66:N66)) -> 0 | V66: =IF(ISERROR(COUNT(E66:N66)),"",COUNT(E66:N66)) -> 0 | W66: =IF(ISERROR(MIN(E66:N66)),"",MIN(E66:N66)) -> 0 | X66: =IF(ISERROR(MAX(E66:N66)),"",MAX(E66:N66)) -> 0 | Y66: =IF(ISERROR(ROUND(AVERAGE(E66:N66),2)),"",ROUND(AVERAGE(E66:N66),2)) ->  | Z66: =IF(ISERROR(MEDIAN(E66:N66)),"",MEDIAN(E66:N66)) ->  | AA66: =IF(ISERROR(STDEV(E66:N66)),"",STDEV(E66:N66)) ->  | AB66: =IF(ISERROR(AA66/Y66),"",AA66/Y66) ->  | AF66: =IF(COUNT(E66:N66)<1,"",SMALL(E66:N66,1)) ->  | AG66: =IF(COUNT(E66:N66)<2,"",SMALL(E66:N66,2)) ->  | AH66: =IF(COUNT(E66:N66)<3,"",SMALL(E66:N66,3)) ->  | AI66: =IF(COUNT(E66:N66)<4,"",SMALL(E66:N66,4)) ->  | AJ66: =IF(COUNT(E66:N66)<5,"",SMALL(E66:N66,5)) ->  | AK66: =IF(COUNT(E66:N66)<6,"",SMALL(E66:N66,6)) ->  | AL66: =IF(COUNT(E66:N66)<3,"",AVERAGE(AF66:AH66)) ->  | AM66: =IF(COUNT(E66:N66)<4,"",AVERAGE(AG66:AI66)) ->  | AN66: =IF(COUNT(E66:N66)<5,"",AVERAGE(AH66:AJ66)) ->  | AO66: =IF(COUNT(E66:N66)<6,"",AVERAGE(AI66:AK66)) ->  | AQ66: =IF(E66>=1000,TEXT(E66,"0.000,00"),TEXT(E66,"0,00")) -> 0,00 | AR66: =IF(F66>=1000,TEXT(F66,"0.000,00"),TEXT(F66,"0,00")) -> 0,00 | AS66: =IF(G66>=1000,TEXT(G66,"0.000,00"),TEXT(G66,"0,00")) -> 0,00 | AT66: =IF(H66>=1000,TEXT(H66,"0.000,00"),TEXT(H66,"0,00")) -> 0,00 | AU66: =IF(I66>=1000,TEXT(I66,"0.000,00"),TEXT(I66,"0,00")) -> 0,00 | AV66: =IF(J66>=1000,TEXT(J66,"0.000,00"),TEXT(J66,"0,00")) -> 0,00 | AW66: =IF(K66>=1000,TEXT(K66,"0.000,00"),TEXT(K66,"0,00")) -> 0,00 | AX66: =IF(L66>=1000,TEXT(L66,"0.000,00"),TEXT(L66,"0,00")) -> 0,00 | AY66: =IF(M66>=1000,TEXT(M66,"0.000,00"),TEXT(M66,"0,00")) -> 0,00 | AZ66: =IF(N66>=1000,TEXT(N66,"0.000,00"),TEXT(N66,"0,00")) -> 0,00 | BB66: =IF(PREENCHER!AL66="",#REF!,IF(PREENCHER!AM66="",#REF!,IF(PREENCHER!AN66="",#REF!,IF(STDEV(PREENCHER!$AF66:$AH66)/AVERAGE(PREENCHER!$AF66:$AH66)>#REF!,IF(STDEV(PREENCHER!$AG66:$AI66)/AVERAGE(PREENCHER!$AG66:$AI66)>#REF!,IF(STDEV(PREENCHER!$AH66:$AJ66)/AVERAGE(PREENCHER!$AH66:$AJ66)>#REF!,IF(STDEV(PREENCHER!$AI66:$AK66)/AVERAGE(PREENCHER!$AI66:$AK66)>#REF!,#REF!,AVERAGE(PREENCHER!$AI66:$AK66)),AVERAGE(PREENCHER!$AH66:$AJ66)),AVERAGE(PREENCHER!$AG66:$AI66)),AVERAGE(PREENCHER!$AF66:$AH66))))) ->  | BC66: =IF(ISERROR(ROUND(BB66,2)),"",ROUND(BB66,2)) ->  | BG66: =IF(ISERROR(IF(COUNT(E66:N66)=2,"Apenas dois preços comparativos válidos. ","")),"",IF(COUNT(E66:N66)=2,"Apenas dois preços comparativos válidos. ","")) ->  | BH66: =IF(ISERROR(IF(COUNT(E66:N66)=1,"Apenas um preço comparativo válido. ","")),"",IF(COUNT(E66:N66)=1,"Apenas um preço comparativo válido. ","")) ->  | BI66: =IF(A66="","",IF(ISERROR(IF(COUNT(E66:N66)=0,"Nenhum preço comparativo válido. ","")),"",IF(COUNT(E66:N66)=0,"Nenhum preço comparativo válido. ",""))) ->  | BJ66: =IF(ISERROR(IF(R66>P66,(R66-P66)/P66,"")),"",IF(R66>P66,(R66-P66)/P66,"")) ->  | BK66: =IF(ISERROR(IF(BJ66="","","Neste item, o valor contratado pelo TJDFT é "&TEXT(BJ66,"0,00%")&" superior à média comparativa.")),"",IF(BJ66="","","Neste item, o valor contratado pelo TJDFT é "&TEXT(BJ66,"0,00%")&" superior à média comparativa.")) -> 
O67: =IF(ISERROR(ROUND(AVERAGE(E67:N67),2)),"",ROUND(AVERAGE(E67:N67),2)) ->  | P67: =IF(ISERROR(ROUND(O67*D67,2)),"",ROUND(O67*D67,2)) ->  | R67: =IF(A67="","",ROUND(Q67*D67,2)) ->  | S67: =IF(A67="","",CONCATENATE($BG67,$BH67,$BI67,$BK67)) ->  | U67: =IF(ISERROR(COUNTA(E67:N67)),"",COUNTA(E67:N67)) -> 0 | V67: =IF(ISERROR(COUNT(E67:N67)),"",COUNT(E67:N67)) -> 0 | W67: =IF(ISERROR(MIN(E67:N67)),"",MIN(E67:N67)) -> 0 | X67: =IF(ISERROR(MAX(E67:N67)),"",MAX(E67:N67)) -> 0 | Y67: =IF(ISERROR(ROUND(AVERAGE(E67:N67),2)),"",ROUND(AVERAGE(E67:N67),2)) ->  | Z67: =IF(ISERROR(MEDIAN(E67:N67)),"",MEDIAN(E67:N67)) ->  | AA67: =IF(ISERROR(STDEV(E67:N67)),"",STDEV(E67:N67)) ->  | AB67: =IF(ISERROR(AA67/Y67),"",AA67/Y67) ->  | AF67: =IF(COUNT(E67:N67)<1,"",SMALL(E67:N67,1)) ->  | AG67: =IF(COUNT(E67:N67)<2,"",SMALL(E67:N67,2)) ->  | AH67: =IF(COUNT(E67:N67)<3,"",SMALL(E67:N67,3)) ->  | AI67: =IF(COUNT(E67:N67)<4,"",SMALL(E67:N67,4)) ->  | AJ67: =IF(COUNT(E67:N67)<5,"",SMALL(E67:N67,5)) ->  | AK67: =IF(COUNT(E67:N67)<6,"",SMALL(E67:N67,6)) ->  | AL67: =IF(COUNT(E67:N67)<3,"",AVERAGE(AF67:AH67)) ->  | AM67: =IF(COUNT(E67:N67)<4,"",AVERAGE(AG67:AI67)) ->  | AN67: =IF(COUNT(E67:N67)<5,"",AVERAGE(AH67:AJ67)) ->  | AO67: =IF(COUNT(E67:N67)<6,"",AVERAGE(AI67:AK67)) ->  | AQ67: =IF(E67>=1000,TEXT(E67,"0.000,00"),TEXT(E67,"0,00")) -> 0,00 | AR67: =IF(F67>=1000,TEXT(F67,"0.000,00"),TEXT(F67,"0,00")) -> 0,00 | AS67: =IF(G67>=1000,TEXT(G67,"0.000,00"),TEXT(G67,"0,00")) -> 0,00 | AT67: =IF(H67>=1000,TEXT(H67,"0.000,00"),TEXT(H67,"0,00")) -> 0,00 | AU67: =IF(I67>=1000,TEXT(I67,"0.000,00"),TEXT(I67,"0,00")) -> 0,00 | AV67: =IF(J67>=1000,TEXT(J67,"0.000,00"),TEXT(J67,"0,00")) -> 0,00 | AW67: =IF(K67>=1000,TEXT(K67,"0.000,00"),TEXT(K67,"0,00")) -> 0,00 | AX67: =IF(L67>=1000,TEXT(L67,"0.000,00"),TEXT(L67,"0,00")) -> 0,00 | AY67: =IF(M67>=1000,TEXT(M67,"0.000,00"),TEXT(M67,"0,00")) -> 0,00 | AZ67: =IF(N67>=1000,TEXT(N67,"0.000,00"),TEXT(N67,"0,00")) -> 0,00 | BB67: =IF(PREENCHER!AL67="",#REF!,IF(PREENCHER!AM67="",#REF!,IF(PREENCHER!AN67="",#REF!,IF(STDEV(PREENCHER!$AF67:$AH67)/AVERAGE(PREENCHER!$AF67:$AH67)>#REF!,IF(STDEV(PREENCHER!$AG67:$AI67)/AVERAGE(PREENCHER!$AG67:$AI67)>#REF!,IF(STDEV(PREENCHER!$AH67:$AJ67)/AVERAGE(PREENCHER!$AH67:$AJ67)>#REF!,IF(STDEV(PREENCHER!$AI67:$AK67)/AVERAGE(PREENCHER!$AI67:$AK67)>#REF!,#REF!,AVERAGE(PREENCHER!$AI67:$AK67)),AVERAGE(PREENCHER!$AH67:$AJ67)),AVERAGE(PREENCHER!$AG67:$AI67)),AVERAGE(PREENCHER!$AF67:$AH67))))) ->  | BC67: =IF(ISERROR(ROUND(BB67,2)),"",ROUND(BB67,2)) ->  | BG67: =IF(ISERROR(IF(COUNT(E67:N67)=2,"Apenas dois preços comparativos válidos. ","")),"",IF(COUNT(E67:N67)=2,"Apenas dois preços comparativos válidos. ","")) ->  | BH67: =IF(ISERROR(IF(COUNT(E67:N67)=1,"Apenas um preço comparativo válido. ","")),"",IF(COUNT(E67:N67)=1,"Apenas um preço comparativo válido. ","")) ->  | BI67: =IF(A67="","",IF(ISERROR(IF(COUNT(E67:N67)=0,"Nenhum preço comparativo válido. ","")),"",IF(COUNT(E67:N67)=0,"Nenhum preço comparativo válido. ",""))) ->  | BJ67: =IF(ISERROR(IF(R67>P67,(R67-P67)/P67,"")),"",IF(R67>P67,(R67-P67)/P67,"")) ->  | BK67: =IF(ISERROR(IF(BJ67="","","Neste item, o valor contratado pelo TJDFT é "&TEXT(BJ67,"0,00%")&" superior à média comparativa.")),"",IF(BJ67="","","Neste item, o valor contratado pelo TJDFT é "&TEXT(BJ67,"0,00%")&" superior à média comparativa.")) -> 
A68: VALOR GLOBAL | O68: =IF(SUM(P8:P67)=0,"",SUM(P8:P67)) -> 34987.99 | Q68: =IF(SUM(R8:R67)=0,"",SUM(R8:R67)) ->  | S68: =IF(ISERROR(IF(BJ68="","","No total, o valor contratado pelo TJDFT é "&TEXT(BJ68,"0,00%")&" superior à média comparativa.")),"",IF(BJ68="","","No total, o valor contratado pelo TJDFT é "&TEXT(BJ68,"0,00%")&" superior à média comparativa.")) ->  | BJ68: =IF(ISERROR(IF(Q68>O68,(Q68-O68)/O68,"")),"",IF(Q68>O68,(Q68-O68)/O68,"")) ->  | BK68: =IF(ISERROR(IF(BJ68="","","Neste item, o valor contratado pelo TJDFT é "&TEXT(BJ68,"0,00%")&" superior à média comparativa.")),"",IF(BJ68="","","Neste item, o valor contratado pelo TJDFT é "&TEXT(BJ68,"0,00%")&" superior à média comparativa.")) -> 
A70: ** Valor desconsiderado do cálculoa da média comparativa
A71: NOTA: O objetivo desta análise é incluir no cálculo da média todos os preços cujo coeficiente de variação não ultrapasse 25%, para mais ou para menos, em relação à média dos preços pesquisados. Quando essa condição não é atendida o preço será desconsiderado.

Sheet Média 1º, 2º e 3º (hidden)
S6: ANÁLISE ESTATÍSTICA
A7: =PREENCHER!A6 -> ITEM | B7: =PREENCHER!B6 -> ESPECIFICAÇÃO | C7: =PREENCHER!C6 -> UN | D7: =PREENCHER!D6 -> QTDE | E7: =PREENCHER!E7 -> PESQUISA 1 | F7: =preencher!#ref! ->  | G7: =PREENCHER!F7 -> PESQUISA 2 | H7: =PREENCHER!G7 -> PESQUISA 3 | I7: =PREENCHER!H7 -> PESQUISA 3 | J7: =PREENCHER!I7 -> PESQUISA 5 | K7: =PREENCHER!K7 -> PESQUISA 7 | L7: =PREENCHER!L7 -> PESQUISA 8 | M7: =PREENCHER!M7 -> PESQUISA 9 | N7: =PREENCHER!N7 -> PESQUISA 10 | O7: =PREENCHER!O7 -> UNITÁRIO | P7: =PREENCHER!P7 -> TOTAL | Q7: =PREENCHER!S6 -> OBSERVAÇÃO | S7: MEDIANA | T7: DESVIO PADRÃO | U7: COEFICIENTE DE VARIAÇÃO
A8: =IF(PREENCHER!A8="","",PREENCHER!A8) -> 1 | B8: =IF(PREENCHER!B8="","",PREENCHER!B8) -> PÃO DE QUEIJO CONGELADO | C8: =IF(PREENCHER!C8="","",PREENCHER!C8) -> QUILO | D8: =IF(PREENCHER!D8="","",PREENCHER!D8) -> 462 | E8: =IF(PREENCHER!E8="","",IF(COUNTIF(PREENCHER!$AF8:$AH8,PREENCHER!E8)=0,CONCATENATE(PREENCHER!AQ8,#REF!),PREENCHER!E8)) -> 22.82 | F8: =IF(PREENCHER!F8="","",IF(COUNTIF(PREENCHER!$AF8:$AH8,PREENCHER!F8)=0,CONCATENATE(PREENCHER!AR8,#REF!),PREENCHER!F8)) -> 19 | G8: =IF(PREENCHER!G8="","",IF(COUNTIF(PREENCHER!$AF8:$AH8,PREENCHER!G8)=0,CONCATENATE(PREENCHER!AS8,#REF!),PREENCHER!G8)) ->  | H8: =IF(PREENCHER!H8="","",IF(COUNTIF(PREENCHER!$AF8:$AH8,PREENCHER!H8)=0,CONCATENATE(PREENCHER!AT8,#REF!),PREENCHER!H8)) -> 41.65 | I8: =IF(PREENCHER!I8="","",IF(COUNTIF(PREENCHER!$AF8:$AH8,PREENCHER!I8)=0,CONCATENATE(PREENCHER!AU8,#REF!),PREENCHER!I8)) ->  | J8: =IF(PREENCHER!J8="","",IF(COUNTIF(PREENCHER!$AF8:$AH8,PREENCHER!J8)=0,CONCATENATE(PREENCHER!AV8,#REF!),PREENCHER!J8)) ->  | K8: =IF(PREENCHER!K8="","",IF(COUNTIF(PREENCHER!$AF8:$AH8,PREENCHER!K8)=0,CONCATENATE(PREENCHER!AW8,#REF!),PREENCHER!K8)) ->  | L8: =IF(PREENCHER!L8="","",IF(COUNTIF(PREENCHER!$AF8:$AH8,PREENCHER!L8)=0,CONCATENATE(PREENCHER!AX8,#REF!),PREENCHER!L8)) ->  | M8: =IF(PREENCHER!M8="","",IF(COUNTIF(PREENCHER!$AF8:$AH8,PREENCHER!M8)=0,CONCATENATE(PREENCHER!AY8,#REF!),PREENCHER!M8)) ->  | N8: =IF(PREENCHER!N8="","",IF(COUNTIF(PREENCHER!$AF8:$AH8,PREENCHER!N8)=0,CONCATENATE(PREENCHER!AZ8,#REF!),PREENCHER!N8)) ->  | O8: =IF(ISERROR(ROUND(AVERAGE(E8:N8),2)),"",ROUND(AVERAGE(E8:N8),2)) -> 27.82 | P8: =IF(ISERROR(ROUND(O8*D8,2)),"",ROUND(O8*D8,2)) -> 12852.84 | S8: =IF(ISERROR(MEDIAN(E8:N8)),"",MEDIAN(E8:N8)) -> 22.82 | T8: =IF(ISERROR(STDEV(E8:N8)),"",STDEV(E8:N8)) -> 12.12561888 | U8: =IF(ISERROR(T8/O8),"",T8/O8) -> 0.435859773
A9: =IF(PREENCHER!A9="","",PREENCHER!A9) -> 2 | B9: =IF(PREENCHER!B9="","",PREENCHER!B9) -> BOLO CASEIRO | C9: =IF(PREENCHER!C9="","",PREENCHER!C9) -> UNIDADE | D9: =IF(PREENCHER!D9="","",PREENCHER!D9) -> 40 | E9: =IF(PREENCHER!E9="","",IF(COUNTIF(PREENCHER!$AF9:$AH9,PREENCHER!E9)=0,CONCATENATE(PREENCHER!AQ9,#REF!),PREENCHER!E9)) -> 18.37 | F9: =IF(PREENCHER!F9="","",IF(COUNTIF(PREENCHER!$AF9:$AH9,PREENCHER!F9)=0,CONCATENATE(PREENCHER!AR9,#REF!),PREENCHER!F9)) -> 22.69 | G9: =IF(PREENCHER!G9="","",IF(COUNTIF(PREENCHER!$AF9:$AH9,PREENCHER!G9)=0,CONCATENATE(PREENCHER!AS9,#REF!),PREENCHER!G9)) ->  | H9: =IF(PREENCHER!H9="","",IF(COUNTIF(PREENCHER!$AF9:$AH9,PREENCHER!H9)=0,CONCATENATE(PREENCHER!AT9,#REF!),PREENCHER!H9)) ->  | I9: =IF(PREENCHER!I9="","",IF(COUNTIF(PREENCHER!$AF9:$AH9,PREENCHER!I9)=0,CONCATENATE(PREENCHER!AU9,#REF!),PREENCHER!I9)) -> 20 | J9: =IF(PREENCHER!J9="","",IF(COUNTIF(PREENCHER!$AF9:$AH9,PREENCHER!J9)=0,CONCATENATE(PREENCHER!AV9,#REF!),PREENCHER!J9)) ->  | K9: =IF(PREENCHER!K9="","",IF(COUNTIF(PREENCHER!$AF9:$AH9,PREENCHER!K9)=0,CONCATENATE(PREENCHER!AW9,#REF!),PREENCHER!K9)) ->  | L9: =IF(PREENCHER!L9="","",IF(COUNTIF(PREENCHER!$AF9:$AH9,PREENCHER!L9)=0,CONCATENATE(PREENCHER!AX9,#REF!),PREENCHER!L9)) ->  | M9: =IF(PREENCHER!M9="","",IF(COUNTIF(PREENCHER!$AF9:$AH9,PREENCHER!M9)=0,CONCATENATE(PREENCHER!AY9,#REF!),PREENCHER!M9)) ->  | N9: =IF(PREENCHER!N9="","",IF(COUNTIF(PREENCHER!$AF9:$AH9,PREENCHER!N9)=0,CONCATENATE(PREENCHER!AZ9,#REF!),PREENCHER!N9)) ->  | O9: =IF(ISERROR(ROUND(AVERAGE(E9:N9),2)),"",ROUND(AVERAGE(E9:N9),2)) ->  | P9: =IF(ISERROR(ROUND(O9*D9,2)),"",ROUND(O9*D9,2)) ->  | S9: =IF(ISERROR(MEDIAN(E9:N9)),"",MEDIAN(E9:N9)) ->  | T9: =IF(ISERROR(STDEV(E9:N9)),"",STDEV(E9:N9)) ->  | U9: =IF(ISERROR(T9/O9),"",T9/O9) -> 
A10: =IF(PREENCHER!A10="","",PREENCHER!A10) -> 3 | B10: =IF(PREENCHER!B10="","",PREENCHER!B10) -> SANDUÍCHE NATURAL | C10: =IF(PREENCHER!C10="","",PREENCHER!C10) -> UNIDADE | D10: =IF(PREENCHER!D10="","",PREENCHER!D10) -> 800 | E10: =IF(PREENCHER!E10="","",IF(COUNTIF(PREENCHER!$AF10:$AH10,PREENCHER!E10)=0,CONCATENATE(PREENCHER!AQ10,#REF!),PREENCHER!E10)) -> 8.1 | F10: =IF(PREENCHER!F10="","",IF(COUNTIF(PREENCHER!$AF10:$AH10,PREENCHER!F10)=0,CONCATENATE(PREENCHER!AR10,#REF!),PREENCHER!F10)) -> 10.9 | G10: =IF(PREENCHER!G10="","",IF(COUNTIF(PREENCHER!$AF10:$AH10,PREENCHER!G10)=0,CONCATENATE(PREENCHER!AS10,#REF!),PREENCHER!G10)) ->  | H10: =IF(PREENCHER!H10="","",IF(COUNTIF(PREENCHER!$AF10:$AH10,PREENCHER!H10)=0,CONCATENATE(PREENCHER!AT10,#REF!),PREENCHER!H10)) -> 3.56 | I10: =IF(PREENCHER!I10="","",IF(COUNTIF(PREENCHER!$AF10:$AH10,PREENCHER!I10)=0,CONCATENATE(PREENCHER!AU10,#REF!),PREENCHER!I10)) ->  | J10: =IF(PREENCHER!J10="","",IF(COUNTIF(PREENCHER!$AF10:$AH10,PREENCHER!J10)=0,CONCATENATE(PREENCHER!AV10,#REF!),PREENCHER!J10)) ->  | K10: =IF(PREENCHER!K10="","",IF(COUNTIF(PREENCHER!$AF10:$AH10,PREENCHER!K10)=0,CONCATENATE(PREENCHER!AW10,#REF!),PREENCHER!K10)) ->  | L10: =IF(PREENCHER!L10="","",IF(COUNTIF(PREENCHER!$AF10:$AH10,PREENCHER!L10)=0,CONCATENATE(PREENCHER!AX10,#REF!),PREENCHER!L10)) ->  | M10: =IF(PREENCHER!M10="","",IF(COUNTIF(PREENCHER!$AF10:$AH10,PREENCHER!M10)=0,CONCATENATE(PREENCHER!AY10,#REF!),PREENCHER!M10)) ->  | N10: =IF(PREENCHER!N10="","",IF(COUNTIF(PREENCHER!$AF10:$AH10,PREENCHER!N10)=0,CONCATENATE(PREENCHER!AZ10,#REF!),PREENCHER!N10)) ->  | O10: =IF(ISERROR(ROUND(AVERAGE(E10:N10),2)),"",ROUND(AVERAGE(E10:N10),2)) -> 7.52 | P10: =IF(ISERROR(ROUND(O10*D10,2)),"",ROUND(O10*D10,2)) -> 6016 | S10: =IF(ISERROR(MEDIAN(E10:N10)),"",MEDIAN(E10:N10)) -> 8.1 | T10: =IF(ISERROR(STDEV(E10:N10)),"",STDEV(E10:N10)) -> 3.704213817 | U10: =IF(ISERROR(T10/O10),"",T10/O10) -> 0.4925816246
A11: =IF(PREENCHER!A11="","",PREENCHER!A11) -> 4 | B11: =IF(PREENCHER!B11="","",PREENCHER!B11) -> EMPADA DE FRANGO | C11: =IF(PREENCHER!C11="","",PREENCHER!C11) -> CENTENA | D11: =IF(PREENCHER!D11="","",PREENCHER!D11) -> 52 | E11: =IF(PREENCHER!E11="","",IF(COUNTIF(PREENCHER!$AF11:$AH11,PREENCHER!E11)=0,CONCATENATE(PREENCHER!AQ11,#REF!),PREENCHER!E11)) -> 106 | F11: =IF(PREENCHER!F11="","",IF(COUNTIF(PREENCHER!$AF11:$AH11,PREENCHER!F11)=0,CONCATENATE(PREENCHER!AR11,#REF!),PREENCHER!F11)) -> 52.23 | G11: =IF(PREENCHER!G11="","",IF(COUNTIF(PREENCHER!$AF11:$AH11,PREENCHER!G11)=0,CONCATENATE(PREENCHER!AS11,#REF!),PREENCHER!G11)) ->  | H11: =IF(PREENCHER!H11="","",IF(COUNTIF(PREENCHER!$AF11:$AH11,PREENCHER!H11)=0,CONCATENATE(PREENCHER!AT11,#REF!),PREENCHER!H11)) -> 65 | I11: =IF(PREENCHER!I11="","",IF(COUNTIF(PREENCHER!$AF11:$AH11,PREENCHER!I11)=0,CONCATENATE(PREENCHER!AU11,#REF!),PREENCHER!I11)) ->  | J11: =IF(PREENCHER!J11="","",IF(COUNTIF(PREENCHER!$AF11:$AH11,PREENCHER!J11)=0,CONCATENATE(PREENCHER!AV11,#REF!),PREENCHER!J11)) ->  | K11: =IF(PREENCHER!K11="","",IF(COUNTIF(PREENCHER!$AF11:$AH11,PREENCHER!K11)=0,CONCATENATE(PREENCHER!AW11,#REF!),PREENCHER!K11)) ->  | L11: =IF(PREENCHER!L11="","",IF(COUNTIF(PREENCHER!$AF11:$AH11,PREENCHER!L11)=0,CONCATENATE(PREENCHER!AX11,#REF!),PREENCHER!L11)) ->  | M11: =IF(PREENCHER!M11="","",IF(COUNTIF(PREENCHER!$AF11:$AH11,PREENCHER!M11)=0,CONCATENATE(PREENCHER!AY11,#REF!),PREENCHER!M11)) ->  | N11: =IF(PREENCHER!N11="","",IF(COUNTIF(PREENCHER!$AF11:$AH11,PREENCHER!N11)=0,CONCATENATE(PREENCHER!AZ11,#REF!),PREENCHER!N11)) ->  | O11: =IF(ISERROR(ROUND(AVERAGE(E11:N11),2)),"",ROUND(AVERAGE(E11:N11),2)) -> 74.41 | P11: =IF(ISERROR(ROUND(O11*D11,2)),"",ROUND(O11*D11,2)) -> 3869.32 | S11: =IF(ISERROR(MEDIAN(E11:N11)),"",MEDIAN(E11:N11)) -> 65 | T11: =IF(ISERROR(STDEV(E11:N11)),"",STDEV(E11:N11)) -> 28.09295819 | U11: =IF(ISERROR(T11/O11),"",T11/O11) -> 0.3775427791
A12: =IF(PREENCHER!A12="","",PREENCHER!A12) -> 5 | B12: =IF(PREENCHER!B12="","",PREENCHER!B12) -> BROINHA DE MILHO | C12: =IF(PREENCHER!C12="","",PREENCHER!C12) -> QUILO | D12: =IF(PREENCHER!D12="","",PREENCHER!D12) -> 6 | E12: =IF(PREENCHER!E12="","",IF(COUNTIF(PREENCHER!$AF12:$AH12,PREENCHER!E12)=0,CONCATENATE(PREENCHER!AQ12,#REF!),PREENCHER!E12)) -> 17.06 | F12: =IF(PREENCHER!F12="","",IF(COUNTIF(PREENCHER!$AF12:$AH12,PREENCHER!F12)=0,CONCATENATE(PREENCHER!AR12,#REF!),PREENCHER!F12)) -> 24 | G12: =IF(PREENCHER!G12="","",IF(COUNTIF(PREENCHER!$AF12:$AH12,PREENCHER!G12)=0,CONCATENATE(PREENCHER!AS12,#REF!),PREENCHER!G12)) ->  | H12: =IF(PREENCHER!H12="","",IF(COUNTIF(PREENCHER!$AF12:$AH12,PREENCHER!H12)=0,CONCATENATE(PREENCHER!AT12,#REF!),PREENCHER!H12)) -> 32.99 | I12: =IF(PREENCHER!I12="","",IF(COUNTIF(PREENCHER!$AF12:$AH12,PREENCHER!I12)=0,CONCATENATE(PREENCHER!AU12,#REF!),PREENCHER!I12)) ->  | J12: =IF(PREENCHER!J12="","",IF(COUNTIF(PREENCHER!$AF12:$AH12,PREENCHER!J12)=0,CONCATENATE(PREENCHER!AV12,#REF!),PREENCHER!J12)) ->  | K12: =IF(PREENCHER!K12="","",IF(COUNTIF(PREENCHER!$AF12:$AH12,PREENCHER!K12)=0,CONCATENATE(PREENCHER!AW12,#REF!),PREENCHER!K12)) ->  | L12: =IF(PREENCHER!L12="","",IF(COUNTIF(PREENCHER!$AF12:$AH12,PREENCHER!L12)=0,CONCATENATE(PREENCHER!AX12,#REF!),PREENCHER!L12)) ->  | M12: =IF(PREENCHER!M12="","",IF(COUNTIF(PREENCHER!$AF12:$AH12,PREENCHER!M12)=0,CONCATENATE(PREENCHER!AY12,#REF!),PREENCHER!M12)) ->  | N12: =IF(PREENCHER!N12="","",IF(COUNTIF(PREENCHER!$AF12:$AH12,PREENCHER!N12)=0,CONCATENATE(PREENCHER!AZ12,#REF!),PREENCHER!N12)) ->  | O12: =IF(ISERROR(ROUND(AVERAGE(E12:N12),2)),"",ROUND(AVERAGE(E12:N12),2)) -> 24.68 | P12: =IF(ISERROR(ROUND(O12*D12,2)),"",ROUND(O12*D12,2)) -> 148.08 | S12: =IF(ISERROR(MEDIAN(E12:N12)),"",MEDIAN(E12:N12)) -> 24 | T12: =IF(ISERROR(STDEV(E12:N12)),"",STDEV(E12:N12)) -> 7.986953946 | U12: =IF(ISERROR(T12/O12),"",T12/O12) -> 0.3236205002
A13: =IF(PREENCHER!A13="","",PREENCHER!A13) -> 6 | B13: =IF(PREENCHER!B13="","",PREENCHER!B13) -> BOLINHO RECHEADO | C13: =IF(PREENCHER!C13="","",PREENCHER!C13) -> UNIDADE | D13: =IF(PREENCHER!D13="","",PREENCHER!D13) -> 1580 | E13: =IF(PREENCHER!E13="","",IF(COUNTIF(PREENCHER!$AF13:$AH13,PREENCHER!E13)=0,CONCATENATE(PREENCHER!AQ13,#REF!),PREENCHER!E13)) -> 2.61 | F13: =IF(PREENCHER!F13="","",IF(COUNTIF(PREENCHER!$AF13:$AH13,PREENCHER!F13)=0,CONCATENATE(PREENCHER!AR13,#REF!),PREENCHER!F13)) -> 2.7 | G13: =IF(PREENCHER!G13="","",IF(COUNTIF(PREENCHER!$AF13:$AH13,PREENCHER!G13)=0,CONCATENATE(PREENCHER!AS13,#REF!),PREENCHER!G13)) ->  | H13: =IF(PREENCHER!H13="","",IF(COUNTIF(PREENCHER!$AF13:$AH13,PREENCHER!H13)=0,CONCATENATE(PREENCHER!AT13,#REF!),PREENCHER!H13)) -> 2.4 | I13: =IF(PREENCHER!I13="","",IF(COUNTIF(PREENCHER!$AF13:$AH13,PREENCHER!I13)=0,CONCATENATE(PREENCHER!AU13,#REF!),PREENCHER!I13)) ->  | J13: =IF(PREENCHER!J13="","",IF(COUNTIF(PREENCHER!$AF13:$AH13,PREENCHER!J13)=0,CONCATENATE(PREENCHER!AV13,#REF!),PREENCHER!J13)) ->  | K13: =IF(PREENCHER!K13="","",IF(COUNTIF(PREENCHER!$AF13:$AH13,PREENCHER!K13)=0,CONCATENATE(PREENCHER!AW13,#REF!),PREENCHER!K13)) ->  | L13: =IF(PREENCHER!L13="","",IF(COUNTIF(PREENCHER!$AF13:$AH13,PREENCHER!L13)=0,CONCATENATE(PREENCHER!AX13,#REF!),PREENCHER!L13)) ->  | M13: =IF(PREENCHER!M13="","",IF(COUNTIF(PREENCHER!$AF13:$AH13,PREENCHER!M13)=0,CONCATENATE(PREENCHER!AY13,#REF!),PREENCHER!M13)) ->  | N13: =IF(PREENCHER!N13="","",IF(COUNTIF(PREENCHER!$AF13:$AH13,PREENCHER!N13)=0,CONCATENATE(PREENCHER!AZ13,#REF!),PREENCHER!N13)) ->  | O13: =IF(ISERROR(ROUND(AVERAGE(E13:N13),2)),"",ROUND(AVERAGE(E13:N13),2)) -> 2.57 | P13: =IF(ISERROR(ROUND(O13*D13,2)),"",ROUND(O13*D13,2)) -> 4060.6 | S13: =IF(ISERROR(MEDIAN(E13:N13)),"",MEDIAN(E13:N13)) -> 2.61 | T13: =IF(ISERROR(STDEV(E13:N13)),"",STDEV(E13:N13)) -> 0.1539480432 | U13: =IF(ISERROR(T13/O13),"",T13/O13) -> 0.05990196233
A14: =IF(PREENCHER!A14="","",PREENCHER!A14) -> 7 | B14: =IF(PREENCHER!B14="","",PREENCHER!B14) -> ESFIRRA DE CARNE | C14: =IF(PREENCHER!C14="","",PREENCHER!C14) -> CENTENA | D14: =IF(PREENCHER!D14="","",PREENCHER!D14) -> 7 | E14: =IF(PREENCHER!E14="","",IF(COUNTIF(PREENCHER!$AF14:$AH14,PREENCHER!E14)=0,CONCATENATE(PREENCHER!AQ14,#REF!),PREENCHER!E14)) -> 100 | F14: =IF(PREENCHER!F14="","",IF(COUNTIF(PREENCHER!$AF14:$AH14,PREENCHER!F14)=0,CONCATENATE(PREENCHER!AR14,#REF!),PREENCHER!F14)) -> 94 | G14: =IF(PREENCHER!G14="","",IF(COUNTIF(PREENCHER!$AF14:$AH14,PREENCHER!G14)=0,CONCATENATE(PREENCHER!AS14,#REF!),PREENCHER!G14)) ->  | H14: =IF(PREENCHER!H14="","",IF(COUNTIF(PREENCHER!$AF14:$AH14,PREENCHER!H14)=0,CONCATENATE(PREENCHER!AT14,#REF!),PREENCHER!H14)) -> 69.36 | I14: =IF(PREENCHER!I14="","",IF(COUNTIF(PREENCHER!$AF14:$AH14,PREENCHER!I14)=0,CONCATENATE(PREENCHER!AU14,#REF!),PREENCHER!I14)) ->  | J14: =IF(PREENCHER!J14="","",IF(COUNTIF(PREENCHER!$AF14:$AH14,PREENCHER!J14)=0,CONCATENATE(PREENCHER!AV14,#REF!),PREENCHER!J14)) ->  | K14: =IF(PREENCHER!K14="","",IF(COUNTIF(PREENCHER!$AF14:$AH14,PREENCHER!K14)=0,CONCATENATE(PREENCHER!AW14,#REF!),PREENCHER!K14)) ->  | L14: =IF(PREENCHER!L14="","",IF(COUNTIF(PREENCHER!$AF14:$AH14,PREENCHER!L14)=0,CONCATENATE(PREENCHER!AX14,#REF!),PREENCHER!L14)) ->  | M14: =IF(PREENCHER!M14="","",IF(COUNTIF(PREENCHER!$AF14:$AH14,PREENCHER!M14)=0,CONCATENATE(PREENCHER!AY14,#REF!),PREENCHER!M14)) ->  | N14: =IF(PREENCHER!N14="","",IF(COUNTIF(PREENCHER!$AF14:$AH14,PREENCHER!N14)=0,CONCATENATE(PREENCHER!AZ14,#REF!),PREENCHER!N14)) ->  | O14: =IF(ISERROR(ROUND(AVERAGE(E14:N14),2)),"",ROUND(AVERAGE(E14:N14),2)) -> 87.79 | P14: =IF(ISERROR(ROUND(O14*D14,2)),"",ROUND(O14*D14,2)) -> 614.53 | S14: =IF(ISERROR(MEDIAN(E14:N14)),"",MEDIAN(E14:N14)) -> 94 | T14: =IF(ISERROR(STDEV(E14:N14)),"",STDEV(E14:N14)) -> 16.23750391 | U14: =IF(ISERROR(T14/O14),"",T14/O14) -> 0.1849584681
A15: =IF(PREENCHER!A15="","",PREENCHER!A15) -> 8 | B15: =IF(PREENCHER!B15="","",PREENCHER!B15) -> BISCOITO CASEIRO | C15: =IF(PREENCHER!C15="","",PREENCHER!C15) -> QUILO | D15: =IF(PREENCHER!D15="","",PREENCHER!D15) -> 23 | E15: =IF(PREENCHER!E15="","",IF(COUNTIF(PREENCHER!$AF15:$AH15,PREENCHER!E15)=0,CONCATENATE(PREENCHER!AQ15,#REF!),PREENCHER!E15)) -> 40 | F15: =IF(PREENCHER!F15="","",IF(COUNTIF(PREENCHER!$AF15:$AH15,PREENCHER!F15)=0,CONCATENATE(PREENCHER!AR15,#REF!),PREENCHER!F15)) -> 31.89 | G15: =IF(PREENCHER!G15="","",IF(COUNTIF(PREENCHER!$AF15:$AH15,PREENCHER!G15)=0,CONCATENATE(PREENCHER!AS15,#REF!),PREENCHER!G15)) ->  | H15: =IF(PREENCHER!H15="","",IF(COUNTIF(PREENCHER!$AF15:$AH15,PREENCHER!H15)=0,CONCATENATE(PREENCHER!AT15,#REF!),PREENCHER!H15)) -> 22.25 | I15: =IF(PREENCHER!I15="","",IF(COUNTIF(PREENCHER!$AF15:$AH15,PREENCHER!I15)=0,CONCATENATE(PREENCHER!AU15,#REF!),PREENCHER!I15)) ->  | J15: =IF(PREENCHER!J15="","",IF(COUNTIF(PREENCHER!$AF15:$AH15,PREENCHER!J15)=0,CONCATENATE(PREENCHER!AV15,#REF!),PREENCHER!J15)) ->  | K15: =IF(PREENCHER!K15="","",IF(COUNTIF(PREENCHER!$AF15:$AH15,PREENCHER!K15)=0,CONCATENATE(PREENCHER!AW15,#REF!),PREENCHER!K15)) ->  | L15: =IF(PREENCHER!L15="","",IF(COUNTIF(PREENCHER!$AF15:$AH15,PREENCHER!L15)=0,CONCATENATE(PREENCHER!AX15,#REF!),PREENCHER!L15)) ->  | M15: =IF(PREENCHER!M15="","",IF(COUNTIF(PREENCHER!$AF15:$AH15,PREENCHER!M15)=0,CONCATENATE(PREENCHER!AY15,#REF!),PREENCHER!M15)) ->  | N15: =IF(PREENCHER!N15="","",IF(COUNTIF(PREENCHER!$AF15:$AH15,PREENCHER!N15)=0,CONCATENATE(PREENCHER!AZ15,#REF!),PREENCHER!N15)) ->  | O15: =IF(ISERROR(ROUND(AVERAGE(E15:N15),2)),"",ROUND(AVERAGE(E15:N15),2)) -> 31.38 | P15: =IF(ISERROR(ROUND(O15*D15,2)),"",ROUND(O15*D15,2)) -> 721.74 | S15: =IF(ISERROR(MEDIAN(E15:N15)),"",MEDIAN(E15:N15)) -> 31.89 | T15: =IF(ISERROR(STDEV(E15:N15)),"",STDEV(E15:N15)) -> 8.885983345 | U15: =IF(ISERROR(T15/O15),"",T15/O15) -> 0.2831734654
A16: =IF(PREENCHER!A16="","",PREENCHER!A16) -> 9 | B16: =IF(PREENCHER!B16="","",PREENCHER!B16) -> SUCO DE FRUTAS | C16: =IF(PREENCHER!C16="","",PREENCHER!C16) -> LITRO | D16: =IF(PREENCHER!D16="","",PREENCHER!D16) -> 364 | E16: =IF(PREENCHER!E16="","",IF(COUNTIF(PREENCHER!$AF16:$AH16,PREENCHER!E16)=0,CONCATENATE(PREENCHER!AQ16,#REF!),PREENCHER!E16)) -> 6 | F16: =IF(PREENCHER!F16="","",IF(COUNTIF(PREENCHER!$AF16:$AH16,PREENCHER!F16)=0,CONCATENATE(PREENCHER!AR16,#REF!),PREENCHER!F16)) -> 8.53 | G16: =IF(PREENCHER!G16="","",IF(COUNTIF(PREENCHER!$AF16:$AH16,PREENCHER!G16)=0,CONCATENATE(PREENCHER!AS16,#REF!),PREENCHER!G16)) ->  | H16: =IF(PREENCHER!H16="","",IF(COUNTIF(PREENCHER!$AF16:$AH16,PREENCHER!H16)=0,CONCATENATE(PREENCHER!AT16,#REF!),PREENCHER!H16)) -> 10.3 | I16: =IF(PREENCHER!I16="","",IF(COUNTIF(PREENCHER!$AF16:$AH16,PREENCHER!I16)=0,CONCATENATE(PREENCHER!AU16,#REF!),PREENCHER!I16)) ->  | J16: =IF(PREENCHER!J16="","",IF(COUNTIF(PREENCHER!$AF16:$AH16,PREENCHER!J16)=0,CONCATENATE(PREENCHER!AV16,#REF!),PREENCHER!J16)) ->  | K16: =IF(PREENCHER!K16="","",IF(COUNTIF(PREENCHER!$AF16:$AH16,PREENCHER!K16)=0,CONCATENATE(PREENCHER!AW16,#REF!),PREENCHER!K16)) ->  | L16: =IF(PREENCHER!L16="","",IF(COUNTIF(PREENCHER!$AF16:$AH16,PREENCHER!L16)=0,CONCATENATE(PREENCHER!AX16,#REF!),PREENCHER!L16)) ->  | M16: =IF(PREENCHER!M16="","",IF(COUNTIF(PREENCHER!$AF16:$AH16,PREENCHER!M16)=0,CONCATENATE(PREENCHER!AY16,#REF!),PREENCHER!M16)) ->  | N16: =IF(PREENCHER!N16="","",IF(COUNTIF(PREENCHER!$AF16:$AH16,PREENCHER!N16)=0,CONCATENATE(PREENCHER!AZ16,#REF!),PREENCHER!N16)) ->  | O16: =IF(ISERROR(ROUND(AVERAGE(E16:N16),2)),"",ROUND(AVERAGE(E16:N16),2)) -> 8.28 | P16: =IF(ISERROR(ROUND(O16*D16,2)),"",ROUND(O16*D16,2)) -> 3013.92 | S16: =IF(ISERROR(MEDIAN(E16:N16)),"",MEDIAN(E16:N16)) -> 8.53 | T16: =IF(ISERROR(STDEV(E16:N16)),"",STDEV(E16:N16)) -> 2.161164809 | U16: =IF(ISERROR(T16/O16),"",T16/O16) -> 0.2610102427
A17: =IF(PREENCHER!A17="","",PREENCHER!A17) -> 10 | B17: =IF(PREENCHER!B17="","",PREENCHER!B17) -> SALADA DE FRUTAS | C17: =IF(PREENCHER!C17="","",PREENCHER!C17) -> UNIDADE (150 GRAMAS) | D17: =IF(PREENCHER!D17="","",PREENCHER!D17) -> 400 | E17: =IF(PREENCHER!E17="","",IF(COUNTIF(PREENCHER!$AF17:$AH17,PREENCHER!E17)=0,CONCATENATE(PREENCHER!AQ17,#REF!),PREENCHER!E17)) -> 5 | F17: =IF(PREENCHER!F17="","",IF(COUNTIF(PREENCHER!$AF17:$AH17,PREENCHER!F17)=0,CONCATENATE(PREENCHER!AR17,#REF!),PREENCHER!F17)) -> 7.7 | G17: =IF(PREENCHER!G17="","",IF(COUNTIF(PREENCHER!$AF17:$AH17,PREENCHER!G17)=0,CONCATENATE(PREENCHER!AS17,#REF!),PREENCHER!G17)) ->  | H17: =IF(PREENCHER!H17="","",IF(COUNTIF(PREENCHER!$AF17:$AH17,PREENCHER!H17)=0,CONCATENATE(PREENCHER!AT17,#REF!),PREENCHER!H17)) -> 4.49 | I17: =IF(PREENCHER!I17="","",IF(COUNTIF(PREENCHER!$AF17:$AH17,PREENCHER!I17)=0,CONCATENATE(PREENCHER!AU17,#REF!),PREENCHER!I17)) ->  | J17: =IF(PREENCHER!J17="","",IF(COUNTIF(PREENCHER!$AF17:$AH17,PREENCHER!J17)=0,CONCATENATE(PREENCHER!AV17,#REF!),PREENCHER!J17)) ->  | K17: =IF(PREENCHER!K17="","",IF(COUNTIF(PREENCHER!$AF17:$AH17,PREENCHER!K17)=0,CONCATENATE(PREENCHER!AW17,#REF!),PREENCHER!K17)) ->  | L17: =IF(PREENCHER!L17="","",IF(COUNTIF(PREENCHER!$AF17:$AH17,PREENCHER!L17)=0,CONCATENATE(PREENCHER!AX17,#REF!),PREENCHER!L17)) ->  | M17: =IF(PREENCHER!M17="","",IF(COUNTIF(PREENCHER!$AF17:$AH17,PREENCHER!M17)=0,CONCATENATE(PREENCHER!AY17,#REF!),PREENCHER!M17)) ->  | N17: =IF(PREENCHER!N17="","",IF(COUNTIF(PREENCHER!$AF17:$AH17,PREENCHER!N17)=0,CONCATENATE(PREENCHER!AZ17,#REF!),PREENCHER!N17)) ->  | O17: =IF(ISERROR(ROUND(AVERAGE(E17:N17),2)),"",ROUND(AVERAGE(E17:N17),2)) -> 5.73 | P17: =IF(ISERROR(ROUND(O17*D17,2)),"",ROUND(O17*D17,2)) -> 2292 | S17: =IF(ISERROR(MEDIAN(E17:N17)),"",MEDIAN(E17:N17)) -> 5 | T17: =IF(ISERROR(STDEV(E17:N17)),"",STDEV(E17:N17)) -> 1.725021739 | U17: =IF(ISERROR(T17/O17),"",T17/O17) -> 0.3010509143
A18: =IF(PREENCHER!A18="","",PREENCHER!A18) -> 11 | B18: =IF(PREENCHER!B18="","",PREENCHER!B18) -> ENTREGAS | C18: =IF(PREENCHER!C18="","",PREENCHER!C18) -> UNIDADE | D18: =IF(PREENCHER!D18="","",PREENCHER!D18) -> 30 | E18: =IF(PREENCHER!E18="","",IF(COUNTIF(PREENCHER!$AF18:$AH18,PREENCHER!E18)=0,CONCATENATE(PREENCHER!AQ18,#REF!),PREENCHER!E18)) -> 9.9 | F18: =IF(PREENCHER!F18="","",IF(COUNTIF(PREENCHER!$AF18:$AH18,PREENCHER!F18)=0,CONCATENATE(PREENCHER!AR18,#REF!),PREENCHER!F18)) -> 19 | G18: =IF(PREENCHER!G18="","",IF(COUNTIF(PREENCHER!$AF18:$AH18,PREENCHER!G18)=0,CONCATENATE(PREENCHER!AS18,#REF!),PREENCHER!G18)) ->  | H18: =IF(PREENCHER!H18="","",IF(COUNTIF(PREENCHER!$AF18:$AH18,PREENCHER!H18)=0,CONCATENATE(PREENCHER!AT18,#REF!),PREENCHER!H18)) -> 7.5 | I18: =IF(PREENCHER!I18="","",IF(COUNTIF(PREENCHER!$AF18:$AH18,PREENCHER!I18)=0,CONCATENATE(PREENCHER!AU18,#REF!),PREENCHER!I18)) ->  | J18: =IF(PREENCHER!J18="","",IF(COUNTIF(PREENCHER!$AF18:$AH18,PREENCHER!J18)=0,CONCATENATE(PREENCHER!AV18,#REF!),PREENCHER!J18)) ->  | K18: =IF(PREENCHER!K18="","",IF(COUNTIF(PREENCHER!$AF18:$AH18,PREENCHER!K18)=0,CONCATENATE(PREENCHER!AW18,#REF!),PREENCHER!K18)) ->  | L18: =IF(PREENCHER!L18="","",IF(COUNTIF(PREENCHER!$AF18:$AH18,PREENCHER!L18)=0,CONCATENATE(PREENCHER!AX18,#REF!),PREENCHER!L18)) ->  | M18: =IF(PREENCHER!M18="","",IF(COUNTIF(PREENCHER!$AF18:$AH18,PREENCHER!M18)=0,CONCATENATE(PREENCHER!AY18,#REF!),PREENCHER!M18)) ->  | N18: =IF(PREENCHER!N18="","",IF(COUNTIF(PREENCHER!$AF18:$AH18,PREENCHER!N18)=0,CONCATENATE(PREENCHER!AZ18,#REF!),PREENCHER!N18)) ->  | O18: =IF(ISERROR(ROUND(AVERAGE(E18:N18),2)),"",ROUND(AVERAGE(E18:N18),2)) -> 12.13 | P18: =IF(ISERROR(ROUND(O18*D18,2)),"",ROUND(O18*D18,2)) -> 363.9 | S18: =IF(ISERROR(MEDIAN(E18:N18)),"",MEDIAN(E18:N18)) -> 9.9 | T18: =IF(ISERROR(STDEV(E18:N18)),"",STDEV(E18:N18)) -> 6.066575091 | U18: =IF(ISERROR(T18/O18),"",T18/O18) -> 0.5001298509
A19: =IF(PREENCHER!A19="","",PREENCHER!A19) ->  | B19: =IF(PREENCHER!B19="","",PREENCHER!B19) ->  | C19: =IF(PREENCHER!C19="","",PREENCHER!C19) ->  | D19: =IF(PREENCHER!D19="","",PREENCHER!D19) ->  | E19: =IF(PREENCHER!E19="","",IF(COUNTIF(PREENCHER!$AF19:$AH19,PREENCHER!E19)=0,CONCATENATE(PREENCHER!AQ19,#REF!),PREENCHER!E19)) ->  | F19: =IF(PREENCHER!F19="","",IF(COUNTIF(PREENCHER!$AF19:$AH19,PREENCHER!F19)=0,CONCATENATE(PREENCHER!AR19,#REF!),PREENCHER!F19)) ->  | G19: =IF(PREENCHER!G19="","",IF(COUNTIF(PREENCHER!$AF19:$AH19,PREENCHER!G19)=0,CONCATENATE(PREENCHER!AS19,#REF!),PREENCHER!G19)) ->  | H19: =IF(PREENCHER!H19="","",IF(COUNTIF(PREENCHER!$AF19:$AH19,PREENCHER!H19)=0,CONCATENATE(PREENCHER!AT19,#REF!),PREENCHER!H19)) ->  | I19: =IF(PREENCHER!I19="","",IF(COUNTIF(PREENCHER!$AF19:$AH19,PREENCHER!I19)=0,CONCATENATE(PREENCHER!AU19,#REF!),PREENCHER!I19)) ->  | J19: =IF(PREENCHER!J19="","",IF(COUNTIF(PREENCHER!$AF19:$AH19,PREENCHER!J19)=0,CONCATENATE(PREENCHER!AV19,#REF!),PREENCHER!J19)) ->  | K19: =IF(PREENCHER!K19="","",IF(COUNTIF(PREENCHER!$AF19:$AH19,PREENCHER!K19)=0,CONCATENATE(PREENCHER!AW19,#REF!),PREENCHER!K19)) ->  | L19: =IF(PREENCHER!L19="","",IF(COUNTIF(PREENCHER!$AF19:$AH19,PREENCHER!L19)=0,CONCATENATE(PREENCHER!AX19,#REF!),PREENCHER!L19)) ->  | M19: =IF(PREENCHER!M19="","",IF(COUNTIF(PREENCHER!$AF19:$AH19,PREENCHER!M19)=0,CONCATENATE(PREENCHER!AY19,#REF!),PREENCHER!M19)) ->  | N19: =IF(PREENCHER!N19="","",IF(COUNTIF(PREENCHER!$AF19:$AH19,PREENCHER!N19)=0,CONCATENATE(PREENCHER!AZ19,#REF!),PREENCHER!N19)) ->  | O19: =IF(ISERROR(ROUND(AVERAGE(E19:N19),2)),"",ROUND(AVERAGE(E19:N19),2)) ->  | P19: =IF(ISERROR(ROUND(O19*D19,2)),"",ROUND(O19*D19,2)) ->  | S19: =IF(ISERROR(MEDIAN(E19:N19)),"",MEDIAN(E19:N19)) ->  | T19: =IF(ISERROR(STDEV(E19:N19)),"",STDEV(E19:N19)) ->  | U19: =IF(ISERROR(T19/O19),"",T19/O19) -> 
A20: =IF(PREENCHER!A20="","",PREENCHER!A20) ->  | B20: =IF(PREENCHER!B20="","",PREENCHER!B20) ->  | C20: =IF(PREENCHER!C20="","",PREENCHER!C20) ->  | D20: =IF(PREENCHER!D20="","",PREENCHER!D20) ->  | E20: =IF(PREENCHER!E20="","",IF(COUNTIF(PREENCHER!$AF20:$AH20,PREENCHER!E20)=0,CONCATENATE(PREENCHER!AQ20,#REF!),PREENCHER!E20)) ->  | F20: =IF(PREENCHER!F20="","",IF(COUNTIF(PREENCHER!$AF20:$AH20,PREENCHER!F20)=0,CONCATENATE(PREENCHER!AR20,#REF!),PREENCHER!F20)) ->  | G20: =IF(PREENCHER!G20="","",IF(COUNTIF(PREENCHER!$AF20:$AH20,PREENCHER!G20)=0,CONCATENATE(PREENCHER!AS20,#REF!),PREENCHER!G20)) ->  | H20: =IF(PREENCHER!H20="","",IF(COUNTIF(PREENCHER!$AF20:$AH20,PREENCHER!H20)=0,CONCATENATE(PREENCHER!AT20,#REF!),PREENCHER!H20)) ->  | I20: =IF(PREENCHER!I20="","",IF(COUNTIF(PREENCHER!$AF20:$AH20,PREENCHER!I20)=0,CONCATENATE(PREENCHER!AU20,#REF!),PREENCHER!I20)) ->  | J20: =IF(PREENCHER!J20="","",IF(COUNTIF(PREENCHER!$AF20:$AH20,PREENCHER!J20)=0,CONCATENATE(PREENCHER!AV20,#REF!),PREENCHER!J20)) ->  | K20: =IF(PREENCHER!K20="","",IF(COUNTIF(PREENCHER!$AF20:$AH20,PREENCHER!K20)=0,CONCATENATE(PREENCHER!AW20,#REF!),PREENCHER!K20)) ->  | L20: =IF(PREENCHER!L20="","",IF(COUNTIF(PREENCHER!$AF20:$AH20,PREENCHER!L20)=0,CONCATENATE(PREENCHER!AX20,#REF!),PREENCHER!L20)) ->  | M20: =IF(PREENCHER!M20="","",IF(COUNTIF(PREENCHER!$AF20:$AH20,PREENCHER!M20)=0,CONCATENATE(PREENCHER!AY20,#REF!),PREENCHER!M20)) ->  | N20: =IF(PREENCHER!N20="","",IF(COUNTIF(PREENCHER!$AF20:$AH20,PREENCHER!N20)=0,CONCATENATE(PREENCHER!AZ20,#REF!),PREENCHER!N20)) ->  | O20: =IF(ISERROR(ROUND(AVERAGE(E20:N20),2)),"",ROUND(AVERAGE(E20:N20),2)) ->  | P20: =IF(ISERROR(ROUND(O20*D20,2)),"",ROUND(O20*D20,2)) ->  | S20: =IF(ISERROR(MEDIAN(E20:N20)),"",MEDIAN(E20:N20)) ->  | T20: =IF(ISERROR(STDEV(E20:N20)),"",STDEV(E20:N20)) ->  | U20: =IF(ISERROR(T20/O20),"",T20/O20) -> 
A21: =IF(PREENCHER!A21="","",PREENCHER!A21) ->  | B21: =IF(PREENCHER!B21="","",PREENCHER!B21) ->  | C21: =IF(PREENCHER!C21="","",PREENCHER!C21) ->  | D21: =IF(PREENCHER!D21="","",PREENCHER!D21) ->  | E21: =IF(PREENCHER!E21="","",IF(COUNTIF(PREENCHER!$AF21:$AH21,PREENCHER!E21)=0,CONCATENATE(PREENCHER!AQ21,#REF!),PREENCHER!E21)) ->  | F21: =IF(PREENCHER!F21="","",IF(COUNTIF(PREENCHER!$AF21:$AH21,PREENCHER!F21)=0,CONCATENATE(PREENCHER!AR21,#REF!),PREENCHER!F21)) ->  | G21: =IF(PREENCHER!G21="","",IF(COUNTIF(PREENCHER!$AF21:$AH21,PREENCHER!G21)=0,CONCATENATE(PREENCHER!AS21,#REF!),PREENCHER!G21)) ->  | H21: =IF(PREENCHER!H21="","",IF(COUNTIF(PREENCHER!$AF21:$AH21,PREENCHER!H21)=0,CONCATENATE(PREENCHER!AT21,#REF!),PREENCHER!H21)) ->  | I21: =IF(PREENCHER!I21="","",IF(COUNTIF(PREENCHER!$AF21:$AH21,PREENCHER!I21)=0,CONCATENATE(PREENCHER!AU21,#REF!),PREENCHER!I21)) ->  | J21: =IF(PREENCHER!J21="","",IF(COUNTIF(PREENCHER!$AF21:$AH21,PREENCHER!J21)=0,CONCATENATE(PREENCHER!AV21,#REF!),PREENCHER!J21)) ->  | K21: =IF(PREENCHER!K21="","",IF(COUNTIF(PREENCHER!$AF21:$AH21,PREENCHER!K21)=0,CONCATENATE(PREENCHER!AW21,#REF!),PREENCHER!K21)) ->  | L21: =IF(PREENCHER!L21="","",IF(COUNTIF(PREENCHER!$AF21:$AH21,PREENCHER!L21)=0,CONCATENATE(PREENCHER!AX21,#REF!),PREENCHER!L21)) ->  | M21: =IF(PREENCHER!M21="","",IF(COUNTIF(PREENCHER!$AF21:$AH21,PREENCHER!M21)=0,CONCATENATE(PREENCHER!AY21,#REF!),PREENCHER!M21)) ->  | N21: =IF(PREENCHER!N21="","",IF(COUNTIF(PREENCHER!$AF21:$AH21,PREENCHER!N21)=0,CONCATENATE(PREENCHER!AZ21,#REF!),PREENCHER!N21)) ->  | O21: =IF(ISERROR(ROUND(AVERAGE(E21:N21),2)),"",ROUND(AVERAGE(E21:N21),2)) ->  | P21: =IF(ISERROR(ROUND(O21*D21,2)),"",ROUND(O21*D21,2)) ->  | S21: =IF(ISERROR(MEDIAN(E21:N21)),"",MEDIAN(E21:N21)) ->  | T21: =IF(ISERROR(STDEV(E21:N21)),"",STDEV(E21:N21)) ->  | U21: =IF(ISERROR(T21/O21),"",T21/O21) -> 
A22: =IF(PREENCHER!A22="","",PREENCHER!A22) ->  | B22: =IF(PREENCHER!B22="","",PREENCHER!B22) ->  | C22: =IF(PREENCHER!C22="","",PREENCHER!C22) ->  | D22: =IF(PREENCHER!D22="","",PREENCHER!D22) ->  | E22: =IF(PREENCHER!E22="","",IF(COUNTIF(PREENCHER!$AF22:$AH22,PREENCHER!E22)=0,CONCATENATE(PREENCHER!AQ22,#REF!),PREENCHER!E22)) ->  | F22: =IF(PREENCHER!F22="","",IF(COUNTIF(PREENCHER!$AF22:$AH22,PREENCHER!F22)=0,CONCATENATE(PREENCHER!AR22,#REF!),PREENCHER!F22)) ->  | G22: =IF(PREENCHER!G22="","",IF(COUNTIF(PREENCHER!$AF22:$AH22,PREENCHER!G22)=0,CONCATENATE(PREENCHER!AS22,#REF!),PREENCHER!G22)) ->  | H22: =IF(PREENCHER!H22="","",IF(COUNTIF(PREENCHER!$AF22:$AH22,PREENCHER!H22)=0,CONCATENATE(PREENCHER!AT22,#REF!),PREENCHER!H22)) ->  | I22: =IF(PREENCHER!I22="","",IF(COUNTIF(PREENCHER!$AF22:$AH22,PREENCHER!I22)=0,CONCATENATE(PREENCHER!AU22,#REF!),PREENCHER!I22)) ->  | J22: =IF(PREENCHER!J22="","",IF(COUNTIF(PREENCHER!$AF22:$AH22,PREENCHER!J22)=0,CONCATENATE(PREENCHER!AV22,#REF!),PREENCHER!J22)) ->  | K22: =IF(PREENCHER!K22="","",IF(COUNTIF(PREENCHER!$AF22:$AH22,PREENCHER!K22)=0,CONCATENATE(PREENCHER!AW22,#REF!),PREENCHER!K22)) ->  | L22: =IF(PREENCHER!L22="","",IF(COUNTIF(PREENCHER!$AF22:$AH22,PREENCHER!L22)=0,CONCATENATE(PREENCHER!AX22,#REF!),PREENCHER!L22)) ->  | M22: =IF(PREENCHER!M22="","",IF(COUNTIF(PREENCHER!$AF22:$AH22,PREENCHER!M22)=0,CONCATENATE(PREENCHER!AY22,#REF!),PREENCHER!M22)) ->  | N22: =IF(PREENCHER!N22="","",IF(COUNTIF(PREENCHER!$AF22:$AH22,PREENCHER!N22)=0,CONCATENATE(PREENCHER!AZ22,#REF!),PREENCHER!N22)) ->  | O22: =IF(ISERROR(ROUND(AVERAGE(E22:N22),2)),"",ROUND(AVERAGE(E22:N22),2)) ->  | P22: =IF(ISERROR(ROUND(O22*D22,2)),"",ROUND(O22*D22,2)) ->  | S22: =IF(ISERROR(MEDIAN(E22:N22)),"",MEDIAN(E22:N22)) ->  | T22: =IF(ISERROR(STDEV(E22:N22)),"",STDEV(E22:N22)) ->  | U22: =IF(ISERROR(T22/O22),"",T22/O22) -> 
A23: =IF(PREENCHER!A23="","",PREENCHER!A23) ->  | B23: =IF(PREENCHER!B23="","",PREENCHER!B23) ->  | C23: =IF(PREENCHER!C23="","",PREENCHER!C23) ->  | D23: =IF(PREENCHER!D23="","",PREENCHER!D23) ->  | E23: =IF(PREENCHER!E23="","",IF(COUNTIF(PREENCHER!$AF23:$AH23,PREENCHER!E23)=0,CONCATENATE(PREENCHER!AQ23,#REF!),PREENCHER!E23)) ->  | F23: =IF(PREENCHER!F23="","",IF(COUNTIF(PREENCHER!$AF23:$AH23,PREENCHER!F23)=0,CONCATENATE(PREENCHER!AR23,#REF!),PREENCHER!F23)) ->  | G23: =IF(PREENCHER!G23="","",IF(COUNTIF(PREENCHER!$AF23:$AH23,PREENCHER!G23)=0,CONCATENATE(PREENCHER!AS23,#REF!),PREENCHER!G23)) ->  | H23: =IF(PREENCHER!H23="","",IF(COUNTIF(PREENCHER!$AF23:$AH23,PREENCHER!H23)=0,CONCATENATE(PREENCHER!AT23,#REF!),PREENCHER!H23)) ->  | I23: =IF(PREENCHER!I23="","",IF(COUNTIF(PREENCHER!$AF23:$AH23,PREENCHER!I23)=0,CONCATENATE(PREENCHER!AU23,#REF!),PREENCHER!I23)) ->  | J23: =IF(PREENCHER!J23="","",IF(COUNTIF(PREENCHER!$AF23:$AH23,PREENCHER!J23)=0,CONCATENATE(PREENCHER!AV23,#REF!),PREENCHER!J23)) ->  | K23: =IF(PREENCHER!K23="","",IF(COUNTIF(PREENCHER!$AF23:$AH23,PREENCHER!K23)=0,CONCATENATE(PREENCHER!AW23,#REF!),PREENCHER!K23)) ->  | L23: =IF(PREENCHER!L23="","",IF(COUNTIF(PREENCHER!$AF23:$AH23,PREENCHER!L23)=0,CONCATENATE(PREENCHER!AX23,#REF!),PREENCHER!L23)) ->  | M23: =IF(PREENCHER!M23="","",IF(COUNTIF(PREENCHER!$AF23:$AH23,PREENCHER!M23)=0,CONCATENATE(PREENCHER!AY23,#REF!),PREENCHER!M23)) ->  | N23: =IF(PREENCHER!N23="","",IF(COUNTIF(PREENCHER!$AF23:$AH23,PREENCHER!N23)=0,CONCATENATE(PREENCHER!AZ23,#REF!),PREENCHER!N23)) ->  | O23: =IF(ISERROR(ROUND(AVERAGE(E23:N23),2)),"",ROUND(AVERAGE(E23:N23),2)) ->  | P23: =IF(ISERROR(ROUND(O23*D23,2)),"",ROUND(O23*D23,2)) ->  | S23: =IF(ISERROR(MEDIAN(E23:N23)),"",MEDIAN(E23:N23)) ->  | T23: =IF(ISERROR(STDEV(E23:N23)),"",STDEV(E23:N23)) ->  | U23: =IF(ISERROR(T23/O23),"",T23/O23) -> 
A24: =IF(PREENCHER!A24="","",PREENCHER!A24) ->  | B24: =IF(PREENCHER!B24="","",PREENCHER!B24) ->  | C24: =IF(PREENCHER!C24="","",PREENCHER!C24) ->  | D24: =IF(PREENCHER!D24="","",PREENCHER!D24) ->  | E24: =IF(PREENCHER!E24="","",IF(COUNTIF(PREENCHER!$AF24:$AH24,PREENCHER!E24)=0,CONCATENATE(PREENCHER!AQ24,#REF!),PREENCHER!E24)) ->  | F24: =IF(PREENCHER!F24="","",IF(COUNTIF(PREENCHER!$AF24:$AH24,PREENCHER!F24)=0,CONCATENATE(PREENCHER!AR24,#REF!),PREENCHER!F24)) ->  | G24: =IF(PREENCHER!G24="","",IF(COUNTIF(PREENCHER!$AF24:$AH24,PREENCHER!G24)=0,CONCATENATE(PREENCHER!AS24,#REF!),PREENCHER!G24)) ->  | H24: =IF(PREENCHER!H24="","",IF(COUNTIF(PREENCHER!$AF24:$AH24,PREENCHER!H24)=0,CONCATENATE(PREENCHER!AT24,#REF!),PREENCHER!H24)) ->  | I24: =IF(PREENCHER!I24="","",IF(COUNTIF(PREENCHER!$AF24:$AH24,PREENCHER!I24)=0,CONCATENATE(PREENCHER!AU24,#REF!),PREENCHER!I24)) ->  | J24: =IF(PREENCHER!J24="","",IF(COUNTIF(PREENCHER!$AF24:$AH24,PREENCHER!J24)=0,CONCATENATE(PREENCHER!AV24,#REF!),PREENCHER!J24)) ->  | K24: =IF(PREENCHER!K24="","",IF(COUNTIF(PREENCHER!$AF24:$AH24,PREENCHER!K24)=0,CONCATENATE(PREENCHER!AW24,#REF!),PREENCHER!K24)) ->  | L24: =IF(PREENCHER!L24="","",IF(COUNTIF(PREENCHER!$AF24:$AH24,PREENCHER!L24)=0,CONCATENATE(PREENCHER!AX24,#REF!),PREENCHER!L24)) ->  | M24: =IF(PREENCHER!M24="","",IF(COUNTIF(PREENCHER!$AF24:$AH24,PREENCHER!M24)=0,CONCATENATE(PREENCHER!AY24,#REF!),PREENCHER!M24)) ->  | N24: =IF(PREENCHER!N24="","",IF(COUNTIF(PREENCHER!$AF24:$AH24,PREENCHER!N24)=0,CONCATENATE(PREENCHER!AZ24,#REF!),PREENCHER!N24)) ->  | O24: =IF(ISERROR(ROUND(AVERAGE(E24:N24),2)),"",ROUND(AVERAGE(E24:N24),2)) ->  | P24: =IF(ISERROR(ROUND(O24*D24,2)),"",ROUND(O24*D24,2)) ->  | S24: =IF(ISERROR(MEDIAN(E24:N24)),"",MEDIAN(E24:N24)) ->  | T24: =IF(ISERROR(STDEV(E24:N24)),"",STDEV(E24:N24)) ->  | U24: =IF(ISERROR(T24/O24),"",T24/O24) -> 
A25: =IF(PREENCHER!A25="","",PREENCHER!A25) ->  | B25: =IF(PREENCHER!B25="","",PREENCHER!B25) ->  | C25: =IF(PREENCHER!C25="","",PREENCHER!C25) ->  | D25: =IF(PREENCHER!D25="","",PREENCHER!D25) ->  | E25: =IF(PREENCHER!E25="","",IF(COUNTIF(PREENCHER!$AF25:$AH25,PREENCHER!E25)=0,CONCATENATE(PREENCHER!AQ25,#REF!),PREENCHER!E25)) ->  | F25: =IF(PREENCHER!F25="","",IF(COUNTIF(PREENCHER!$AF25:$AH25,PREENCHER!F25)=0,CONCATENATE(PREENCHER!AR25,#REF!),PREENCHER!F25)) ->  | G25: =IF(PREENCHER!G25="","",IF(COUNTIF(PREENCHER!$AF25:$AH25,PREENCHER!G25)=0,CONCATENATE(PREENCHER!AS25,#REF!),PREENCHER!G25)) ->  | H25: =IF(PREENCHER!H25="","",IF(COUNTIF(PREENCHER!$AF25:$AH25,PREENCHER!H25)=0,CONCATENATE(PREENCHER!AT25,#REF!),PREENCHER!H25)) ->  | I25: =IF(PREENCHER!I25="","",IF(COUNTIF(PREENCHER!$AF25:$AH25,PREENCHER!I25)=0,CONCATENATE(PREENCHER!AU25,#REF!),PREENCHER!I25)) ->  | J25: =IF(PREENCHER!J25="","",IF(COUNTIF(PREENCHER!$AF25:$AH25,PREENCHER!J25)=0,CONCATENATE(PREENCHER!AV25,#REF!),PREENCHER!J25)) ->  | K25: =IF(PREENCHER!K25="","",IF(COUNTIF(PREENCHER!$AF25:$AH25,PREENCHER!K25)=0,CONCATENATE(PREENCHER!AW25,#REF!),PREENCHER!K25)) ->  | L25: =IF(PREENCHER!L25="","",IF(COUNTIF(PREENCHER!$AF25:$AH25,PREENCHER!L25)=0,CONCATENATE(PREENCHER!AX25,#REF!),PREENCHER!L25)) ->  | M25: =IF(PREENCHER!M25="","",IF(COUNTIF(PREENCHER!$AF25:$AH25,PREENCHER!M25)=0,CONCATENATE(PREENCHER!AY25,#REF!),PREENCHER!M25)) ->  | N25: =IF(PREENCHER!N25="","",IF(COUNTIF(PREENCHER!$AF25:$AH25,PREENCHER!N25)=0,CONCATENATE(PREENCHER!AZ25,#REF!),PREENCHER!N25)) ->  | O25: =IF(ISERROR(ROUND(AVERAGE(E25:N25),2)),"",ROUND(AVERAGE(E25:N25),2)) ->  | P25: =IF(ISERROR(ROUND(O25*D25,2)),"",ROUND(O25*D25,2)) ->  | S25: =IF(ISERROR(MEDIAN(E25:N25)),"",MEDIAN(E25:N25)) ->  | T25: =IF(ISERROR(STDEV(E25:N25)),"",STDEV(E25:N25)) ->  | U25: =IF(ISERROR(T25/O25),"",T25/O25) -> 
A26: =IF(PREENCHER!A26="","",PREENCHER!A26) ->  | B26: =IF(PREENCHER!B26="","",PREENCHER!B26) ->  | C26: =IF(PREENCHER!C26="","",PREENCHER!C26) ->  | D26: =IF(PREENCHER!D26="","",PREENCHER!D26) ->  | E26: =IF(PREENCHER!E26="","",IF(COUNTIF(PREENCHER!$AF26:$AH26,PREENCHER!E26)=0,CONCATENATE(PREENCHER!AQ26,#REF!),PREENCHER!E26)) ->  | F26: =IF(PREENCHER!F26="","",IF(COUNTIF(PREENCHER!$AF26:$AH26,PREENCHER!F26)=0,CONCATENATE(PREENCHER!AR26,#REF!),PREENCHER!F26)) ->  | G26: =IF(PREENCHER!G26="","",IF(COUNTIF(PREENCHER!$AF26:$AH26,PREENCHER!G26)=0,CONCATENATE(PREENCHER!AS26,#REF!),PREENCHER!G26)) ->  | H26: =IF(PREENCHER!H26="","",IF(COUNTIF(PREENCHER!$AF26:$AH26,PREENCHER!H26)=0,CONCATENATE(PREENCHER!AT26,#REF!),PREENCHER!H26)) ->  | I26: =IF(PREENCHER!I26="","",IF(COUNTIF(PREENCHER!$AF26:$AH26,PREENCHER!I26)=0,CONCATENATE(PREENCHER!AU26,#REF!),PREENCHER!I26)) ->  | J26: =IF(PREENCHER!J26="","",IF(COUNTIF(PREENCHER!$AF26:$AH26,PREENCHER!J26)=0,CONCATENATE(PREENCHER!AV26,#REF!),PREENCHER!J26)) ->  | K26: =IF(PREENCHER!K26="","",IF(COUNTIF(PREENCHER!$AF26:$AH26,PREENCHER!K26)=0,CONCATENATE(PREENCHER!AW26,#REF!),PREENCHER!K26)) ->  | L26: =IF(PREENCHER!L26="","",IF(COUNTIF(PREENCHER!$AF26:$AH26,PREENCHER!L26)=0,CONCATENATE(PREENCHER!AX26,#REF!),PREENCHER!L26)) ->  | M26: =IF(PREENCHER!M26="","",IF(COUNTIF(PREENCHER!$AF26:$AH26,PREENCHER!M26)=0,CONCATENATE(PREENCHER!AY26,#REF!),PREENCHER!M26)) ->  | N26: =IF(PREENCHER!N26="","",IF(COUNTIF(PREENCHER!$AF26:$AH26,PREENCHER!N26)=0,CONCATENATE(PREENCHER!AZ26,#REF!),PREENCHER!N26)) ->  | O26: =IF(ISERROR(ROUND(AVERAGE(E26:N26),2)),"",ROUND(AVERAGE(E26:N26),2)) ->  | P26: =IF(ISERROR(ROUND(O26*D26,2)),"",ROUND(O26*D26,2)) ->  | S26: =IF(ISERROR(MEDIAN(E26:N26)),"",MEDIAN(E26:N26)) ->  | T26: =IF(ISERROR(STDEV(E26:N26)),"",STDEV(E26:N26)) ->  | U26: =IF(ISERROR(T26/O26),"",T26/O26) -> 
A27: =IF(PREENCHER!A27="","",PREENCHER!A27) ->  | B27: =IF(PREENCHER!B27="","",PREENCHER!B27) ->  | C27: =IF(PREENCHER!C27="","",PREENCHER!C27) ->  | D27: =IF(PREENCHER!D27="","",PREENCHER!D27) ->  | E27: =IF(PREENCHER!E27="","",IF(COUNTIF(PREENCHER!$AF27:$AH27,PREENCHER!E27)=0,CONCATENATE(PREENCHER!AQ27,#REF!),PREENCHER!E27)) ->  | F27: =IF(PREENCHER!F27="","",IF(COUNTIF(PREENCHER!$AF27:$AH27,PREENCHER!F27)=0,CONCATENATE(PREENCHER!AR27,#REF!),PREENCHER!F27)) ->  | G27: =IF(PREENCHER!G27="","",IF(COUNTIF(PREENCHER!$AF27:$AH27,PREENCHER!G27)=0,CONCATENATE(PREENCHER!AS27,#REF!),PREENCHER!G27)) ->  | H27: =IF(PREENCHER!H27="","",IF(COUNTIF(PREENCHER!$AF27:$AH27,PREENCHER!H27)=0,CONCATENATE(PREENCHER!AT27,#REF!),PREENCHER!H27)) ->  | I27: =IF(PREENCHER!I27="","",IF(COUNTIF(PREENCHER!$AF27:$AH27,PREENCHER!I27)=0,CONCATENATE(PREENCHER!AU27,#REF!),PREENCHER!I27)) ->  | J27: =IF(PREENCHER!J27="","",IF(COUNTIF(PREENCHER!$AF27:$AH27,PREENCHER!J27)=0,CONCATENATE(PREENCHER!AV27,#REF!),PREENCHER!J27)) ->  | K27: =IF(PREENCHER!K27="","",IF(COUNTIF(PREENCHER!$AF27:$AH27,PREENCHER!K27)=0,CONCATENATE(PREENCHER!AW27,#REF!),PREENCHER!K27)) ->  | L27: =IF(PREENCHER!L27="","",IF(COUNTIF(PREENCHER!$AF27:$AH27,PREENCHER!L27)=0,CONCATENATE(PREENCHER!AX27,#REF!),PREENCHER!L27)) ->  | M27: =IF(PREENCHER!M27="","",IF(COUNTIF(PREENCHER!$AF27:$AH27,PREENCHER!M27)=0,CONCATENATE(PREENCHER!AY27,#REF!),PREENCHER!M27)) ->  | N27: =IF(PREENCHER!N27="","",IF(COUNTIF(PREENCHER!$AF27:$AH27,PREENCHER!N27)=0,CONCATENATE(PREENCHER!AZ27,#REF!),PREENCHER!N27)) ->  | O27: =IF(ISERROR(ROUND(AVERAGE(E27:N27),2)),"",ROUND(AVERAGE(E27:N27),2)) ->  | P27: =IF(ISERROR(ROUND(O27*D27,2)),"",ROUND(O27*D27,2)) ->  | S27: =IF(ISERROR(MEDIAN(E27:N27)),"",MEDIAN(E27:N27)) ->  | T27: =IF(ISERROR(STDEV(E27:N27)),"",STDEV(E27:N27)) ->  | U27: =IF(ISERROR(T27/O27),"",T27/O27) -> 
A28: =IF(PREENCHER!A28="","",PREENCHER!A28) ->  | B28: =IF(PREENCHER!B28="","",PREENCHER!B28) ->  | C28: =IF(PREENCHER!C28="","",PREENCHER!C28) ->  | D28: =IF(PREENCHER!D28="","",PREENCHER!D28) ->  | E28: =IF(PREENCHER!E28="","",IF(COUNTIF(PREENCHER!$AF28:$AH28,PREENCHER!E28)=0,CONCATENATE(PREENCHER!AQ28,#REF!),PREENCHER!E28)) ->  | F28: =IF(PREENCHER!F28="","",IF(COUNTIF(PREENCHER!$AF28:$AH28,PREENCHER!F28)=0,CONCATENATE(PREENCHER!AR28,#REF!),PREENCHER!F28)) ->  | G28: =IF(PREENCHER!G28="","",IF(COUNTIF(PREENCHER!$AF28:$AH28,PREENCHER!G28)=0,CONCATENATE(PREENCHER!AS28,#REF!),PREENCHER!G28)) ->  | H28: =IF(PREENCHER!H28="","",IF(COUNTIF(PREENCHER!$AF28:$AH28,PREENCHER!H28)=0,CONCATENATE(PREENCHER!AT28,#REF!),PREENCHER!H28)) ->  | I28: =IF(PREENCHER!I28="","",IF(COUNTIF(PREENCHER!$AF28:$AH28,PREENCHER!I28)=0,CONCATENATE(PREENCHER!AU28,#REF!),PREENCHER!I28)) ->  | J28: =IF(PREENCHER!J28="","",IF(COUNTIF(PREENCHER!$AF28:$AH28,PREENCHER!J28)=0,CONCATENATE(PREENCHER!AV28,#REF!),PREENCHER!J28)) ->  | K28: =IF(PREENCHER!K28="","",IF(COUNTIF(PREENCHER!$AF28:$AH28,PREENCHER!K28)=0,CONCATENATE(PREENCHER!AW28,#REF!),PREENCHER!K28)) ->  | L28: =IF(PREENCHER!L28="","",IF(COUNTIF(PREENCHER!$AF28:$AH28,PREENCHER!L28)=0,CONCATENATE(PREENCHER!AX28,#REF!),PREENCHER!L28)) ->  | M28: =IF(PREENCHER!M28="","",IF(COUNTIF(PREENCHER!$AF28:$AH28,PREENCHER!M28)=0,CONCATENATE(PREENCHER!AY28,#REF!),PREENCHER!M28)) ->  | N28: =IF(PREENCHER!N28="","",IF(COUNTIF(PREENCHER!$AF28:$AH28,PREENCHER!N28)=0,CONCATENATE(PREENCHER!AZ28,#REF!),PREENCHER!N28)) ->  | O28: =IF(ISERROR(ROUND(AVERAGE(E28:N28),2)),"",ROUND(AVERAGE(E28:N28),2)) ->  | P28: =IF(ISERROR(ROUND(O28*D28,2)),"",ROUND(O28*D28,2)) ->  | S28: =IF(ISERROR(MEDIAN(E28:N28)),"",MEDIAN(E28:N28)) ->  | T28: =IF(ISERROR(STDEV(E28:N28)),"",STDEV(E28:N28)) ->  | U28: =IF(ISERROR(T28/O28),"",T28/O28) -> 
A29: =IF(PREENCHER!A29="","",PREENCHER!A29) ->  | B29: =IF(PREENCHER!B29="","",PREENCHER!B29) ->  | C29: =IF(PREENCHER!C29="","",PREENCHER!C29) ->  | D29: =IF(PREENCHER!D29="","",PREENCHER!D29) ->  | E29: =IF(PREENCHER!E29="","",IF(COUNTIF(PREENCHER!$AF29:$AH29,PREENCHER!E29)=0,CONCATENATE(PREENCHER!AQ29,#REF!),PREENCHER!E29)) ->  | F29: =IF(PREENCHER!F29="","",IF(COUNTIF(PREENCHER!$AF29:$AH29,PREENCHER!F29)=0,CONCATENATE(PREENCHER!AR29,#REF!),PREENCHER!F29)) ->  | G29: =IF(PREENCHER!G29="","",IF(COUNTIF(PREENCHER!$AF29:$AH29,PREENCHER!G29)=0,CONCATENATE(PREENCHER!AS29,#REF!),PREENCHER!G29)) ->  | H29: =IF(PREENCHER!H29="","",IF(COUNTIF(PREENCHER!$AF29:$AH29,PREENCHER!H29)=0,CONCATENATE(PREENCHER!AT29,#REF!),PREENCHER!H29)) ->  | I29: =IF(PREENCHER!I29="","",IF(COUNTIF(PREENCHER!$AF29:$AH29,PREENCHER!I29)=0,CONCATENATE(PREENCHER!AU29,#REF!),PREENCHER!I29)) ->  | J29: =IF(PREENCHER!J29="","",IF(COUNTIF(PREENCHER!$AF29:$AH29,PREENCHER!J29)=0,CONCATENATE(PREENCHER!AV29,#REF!),PREENCHER!J29)) ->  | K29: =IF(PREENCHER!K29="","",IF(COUNTIF(PREENCHER!$AF29:$AH29,PREENCHER!K29)=0,CONCATENATE(PREENCHER!AW29,#REF!),PREENCHER!K29)) ->  | L29: =IF(PREENCHER!L29="","",IF(COUNTIF(PREENCHER!$AF29:$AH29,PREENCHER!L29)=0,CONCATENATE(PREENCHER!AX29,#REF!),PREENCHER!L29)) ->  | M29: =IF(PREENCHER!M29="","",IF(COUNTIF(PREENCHER!$AF29:$AH29,PREENCHER!M29)=0,CONCATENATE(PREENCHER!AY29,#REF!),PREENCHER!M29)) ->  | N29: =IF(PREENCHER!N29="","",IF(COUNTIF(PREENCHER!$AF29:$AH29,PREENCHER!N29)=0,CONCATENATE(PREENCHER!AZ29,#REF!),PREENCHER!N29)) ->  | O29: =IF(ISERROR(ROUND(AVERAGE(E29:N29),2)),"",ROUND(AVERAGE(E29:N29),2)) ->  | P29: =IF(ISERROR(ROUND(O29*D29,2)),"",ROUND(O29*D29,2)) ->  | S29: =IF(ISERROR(MEDIAN(E29:N29)),"",MEDIAN(E29:N29)) ->  | T29: =IF(ISERROR(STDEV(E29:N29)),"",STDEV(E29:N29)) ->  | U29: =IF(ISERROR(T29/O29),"",T29/O29) -> 
A30: =IF(PREENCHER!A30="","",PREENCHER!A30) ->  | B30: =IF(PREENCHER!B30="","",PREENCHER!B30) ->  | C30: =IF(PREENCHER!C30="","",PREENCHER!C30) ->  | D30: =IF(PREENCHER!D30="","",PREENCHER!D30) ->  | E30: =IF(PREENCHER!E30="","",IF(COUNTIF(PREENCHER!$AF30:$AH30,PREENCHER!E30)=0,CONCATENATE(PREENCHER!AQ30,#REF!),PREENCHER!E30)) ->  | F30: =IF(PREENCHER!F30="","",IF(COUNTIF(PREENCHER!$AF30:$AH30,PREENCHER!F30)=0,CONCATENATE(PREENCHER!AR30,#REF!),PREENCHER!F30)) ->  | G30: =IF(PREENCHER!G30="","",IF(COUNTIF(PREENCHER!$AF30:$AH30,PREENCHER!G30)=0,CONCATENATE(PREENCHER!AS30,#REF!),PREENCHER!G30)) ->  | H30: =IF(PREENCHER!H30="","",IF(COUNTIF(PREENCHER!$AF30:$AH30,PREENCHER!H30)=0,CONCATENATE(PREENCHER!AT30,#REF!),PREENCHER!H30)) ->  | I30: =IF(PREENCHER!I30="","",IF(COUNTIF(PREENCHER!$AF30:$AH30,PREENCHER!I30)=0,CONCATENATE(PREENCHER!AU30,#REF!),PREENCHER!I30)) ->  | J30: =IF(PREENCHER!J30="","",IF(COUNTIF(PREENCHER!$AF30:$AH30,PREENCHER!J30)=0,CONCATENATE(PREENCHER!AV30,#REF!),PREENCHER!J30)) ->  | K30: =IF(PREENCHER!K30="","",IF(COUNTIF(PREENCHER!$AF30:$AH30,PREENCHER!K30)=0,CONCATENATE(PREENCHER!AW30,#REF!),PREENCHER!K30)) ->  | L30: =IF(PREENCHER!L30="","",IF(COUNTIF(PREENCHER!$AF30:$AH30,PREENCHER!L30)=0,CONCATENATE(PREENCHER!AX30,#REF!),PREENCHER!L30)) ->  | M30: =IF(PREENCHER!M30="","",IF(COUNTIF(PREENCHER!$AF30:$AH30,PREENCHER!M30)=0,CONCATENATE(PREENCHER!AY30,#REF!),PREENCHER!M30)) ->  | N30: =IF(PREENCHER!N30="","",IF(COUNTIF(PREENCHER!$AF30:$AH30,PREENCHER!N30)=0,CONCATENATE(PREENCHER!AZ30,#REF!),PREENCHER!N30)) ->  | O30: =IF(ISERROR(ROUND(AVERAGE(E30:N30),2)),"",ROUND(AVERAGE(E30:N30),2)) ->  | P30: =IF(ISERROR(ROUND(O30*D30,2)),"",ROUND(O30*D30,2)) ->  | S30: =IF(ISERROR(MEDIAN(E30:N30)),"",MEDIAN(E30:N30)) ->  | T30: =IF(ISERROR(STDEV(E30:N30)),"",STDEV(E30:N30)) ->  | U30: =IF(ISERROR(T30/O30),"",T30/O30) -> 
A31: =IF(PREENCHER!A31="","",PREENCHER!A31) ->  | B31: =IF(PREENCHER!B31="","",PREENCHER!B31) ->  | C31: =IF(PREENCHER!C31="","",PREENCHER!C31) ->  | D31: =IF(PREENCHER!D31="","",PREENCHER!D31) ->  | E31: =IF(PREENCHER!E31="","",IF(COUNTIF(PREENCHER!$AF31:$AH31,PREENCHER!E31)=0,CONCATENATE(PREENCHER!AQ31,#REF!),PREENCHER!E31)) ->  | F31: =IF(PREENCHER!F31="","",IF(COUNTIF(PREENCHER!$AF31:$AH31,PREENCHER!F31)=0,CONCATENATE(PREENCHER!AR31,#REF!),PREENCHER!F31)) ->  | G31: =IF(PREENCHER!G31="","",IF(COUNTIF(PREENCHER!$AF31:$AH31,PREENCHER!G31)=0,CONCATENATE(PREENCHER!AS31,#REF!),PREENCHER!G31)) ->  | H31: =IF(PREENCHER!H31="","",IF(COUNTIF(PREENCHER!$AF31:$AH31,PREENCHER!H31)=0,CONCATENATE(PREENCHER!AT31,#REF!),PREENCHER!H31)) ->  | I31: =IF(PREENCHER!I31="","",IF(COUNTIF(PREENCHER!$AF31:$AH31,PREENCHER!I31)=0,CONCATENATE(PREENCHER!AU31,#REF!),PREENCHER!I31)) ->  | J31: =IF(PREENCHER!J31="","",IF(COUNTIF(PREENCHER!$AF31:$AH31,PREENCHER!J31)=0,CONCATENATE(PREENCHER!AV31,#REF!),PREENCHER!J31)) ->  | K31: =IF(PREENCHER!K31="","",IF(COUNTIF(PREENCHER!$AF31:$AH31,PREENCHER!K31)=0,CONCATENATE(PREENCHER!AW31,#REF!),PREENCHER!K31)) ->  | L31: =IF(PREENCHER!L31="","",IF(COUNTIF(PREENCHER!$AF31:$AH31,PREENCHER!L31)=0,CONCATENATE(PREENCHER!AX31,#REF!),PREENCHER!L31)) ->  | M31: =IF(PREENCHER!M31="","",IF(COUNTIF(PREENCHER!$AF31:$AH31,PREENCHER!M31)=0,CONCATENATE(PREENCHER!AY31,#REF!),PREENCHER!M31)) ->  | N31: =IF(PREENCHER!N31="","",IF(COUNTIF(PREENCHER!$AF31:$AH31,PREENCHER!N31)=0,CONCATENATE(PREENCHER!AZ31,#REF!),PREENCHER!N31)) ->  | O31: =IF(ISERROR(ROUND(AVERAGE(E31:N31),2)),"",ROUND(AVERAGE(E31:N31),2)) ->  | P31: =IF(ISERROR(ROUND(O31*D31,2)),"",ROUND(O31*D31,2)) ->  | S31: =IF(ISERROR(MEDIAN(E31:N31)),"",MEDIAN(E31:N31)) ->  | T31: =IF(ISERROR(STDEV(E31:N31)),"",STDEV(E31:N31)) ->  | U31: =IF(ISERROR(T31/O31),"",T31/O31) -> 
A32: =IF(PREENCHER!A32="","",PREENCHER!A32) ->  | B32: =IF(PREENCHER!B32="","",PREENCHER!B32) ->  | C32: =IF(PREENCHER!C32="","",PREENCHER!C32) ->  | D32: =IF(PREENCHER!D32="","",PREENCHER!D32) ->  | E32: =IF(PREENCHER!E32="","",IF(COUNTIF(PREENCHER!$AF32:$AH32,PREENCHER!E32)=0,CONCATENATE(PREENCHER!AQ32,#REF!),PREENCHER!E32)) ->  | F32: =IF(PREENCHER!F32="","",IF(COUNTIF(PREENCHER!$AF32:$AH32,PREENCHER!F32)=0,CONCATENATE(PREENCHER!AR32,#REF!),PREENCHER!F32)) ->  | G32: =IF(PREENCHER!G32="","",IF(COUNTIF(PREENCHER!$AF32:$AH32,PREENCHER!G32)=0,CONCATENATE(PREENCHER!AS32,#REF!),PREENCHER!G32)) ->  | H32: =IF(PREENCHER!H32="","",IF(COUNTIF(PREENCHER!$AF32:$AH32,PREENCHER!H32)=0,CONCATENATE(PREENCHER!AT32,#REF!),PREENCHER!H32)) ->  | I32: =IF(PREENCHER!I32="","",IF(COUNTIF(PREENCHER!$AF32:$AH32,PREENCHER!I32)=0,CONCATENATE(PREENCHER!AU32,#REF!),PREENCHER!I32)) ->  | J32: =IF(PREENCHER!J32="","",IF(COUNTIF(PREENCHER!$AF32:$AH32,PREENCHER!J32)=0,CONCATENATE(PREENCHER!AV32,#REF!),PREENCHER!J32)) ->  | K32: =IF(PREENCHER!K32="","",IF(COUNTIF(PREENCHER!$AF32:$AH32,PREENCHER!K32)=0,CONCATENATE(PREENCHER!AW32,#REF!),PREENCHER!K32)) ->  | L32: =IF(PREENCHER!L32="","",IF(COUNTIF(PREENCHER!$AF32:$AH32,PREENCHER!L32)=0,CONCATENATE(PREENCHER!AX32,#REF!),PREENCHER!L32)) ->  | M32: =IF(PREENCHER!M32="","",IF(COUNTIF(PREENCHER!$AF32:$AH32,PREENCHER!M32)=0,CONCATENATE(PREENCHER!AY32,#REF!),PREENCHER!M32)) ->  | N32: =IF(PREENCHER!N32="","",IF(COUNTIF(PREENCHER!$AF32:$AH32,PREENCHER!N32)=0,CONCATENATE(PREENCHER!AZ32,#REF!),PREENCHER!N32)) ->  | O32: =IF(ISERROR(ROUND(AVERAGE(E32:N32),2)),"",ROUND(AVERAGE(E32:N32),2)) ->  | P32: =IF(ISERROR(ROUND(O32*D32,2)),"",ROUND(O32*D32,2)) ->  | S32: =IF(ISERROR(MEDIAN(E32:N32)),"",MEDIAN(E32:N32)) ->  | T32: =IF(ISERROR(STDEV(E32:N32)),"",STDEV(E32:N32)) ->  | U32: =IF(ISERROR(T32/O32),"",T32/O32) -> 
A33: =IF(PREENCHER!A33="","",PREENCHER!A33) ->  | B33: =IF(PREENCHER!B33="","",PREENCHER!B33) ->  | C33: =IF(PREENCHER!C33="","",PREENCHER!C33) ->  | D33: =IF(PREENCHER!D33="","",PREENCHER!D33) ->  | E33: =IF(PREENCHER!E33="","",IF(COUNTIF(PREENCHER!$AF33:$AH33,PREENCHER!E33)=0,CONCATENATE(PREENCHER!AQ33,#REF!),PREENCHER!E33)) ->  | F33: =IF(PREENCHER!F33="","",IF(COUNTIF(PREENCHER!$AF33:$AH33,PREENCHER!F33)=0,CONCATENATE(PREENCHER!AR33,#REF!),PREENCHER!F33)) ->  | G33: =IF(PREENCHER!G33="","",IF(COUNTIF(PREENCHER!$AF33:$AH33,PREENCHER!G33)=0,CONCATENATE(PREENCHER!AS33,#REF!),PREENCHER!G33)) ->  | H33: =IF(PREENCHER!H33="","",IF(COUNTIF(PREENCHER!$AF33:$AH33,PREENCHER!H33)=0,CONCATENATE(PREENCHER!AT33,#REF!),PREENCHER!H33)) ->  | I33: =IF(PREENCHER!I33="","",IF(COUNTIF(PREENCHER!$AF33:$AH33,PREENCHER!I33)=0,CONCATENATE(PREENCHER!AU33,#REF!),PREENCHER!I33)) ->  | J33: =IF(PREENCHER!J33="","",IF(COUNTIF(PREENCHER!$AF33:$AH33,PREENCHER!J33)=0,CONCATENATE(PREENCHER!AV33,#REF!),PREENCHER!J33)) ->  | K33: =IF(PREENCHER!K33="","",IF(COUNTIF(PREENCHER!$AF33:$AH33,PREENCHER!K33)=0,CONCATENATE(PREENCHER!AW33,#REF!),PREENCHER!K33)) ->  | L33: =IF(PREENCHER!L33="","",IF(COUNTIF(PREENCHER!$AF33:$AH33,PREENCHER!L33)=0,CONCATENATE(PREENCHER!AX33,#REF!),PREENCHER!L33)) ->  | M33: =IF(PREENCHER!M33="","",IF(COUNTIF(PREENCHER!$AF33:$AH33,PREENCHER!M33)=0,CONCATENATE(PREENCHER!AY33,#REF!),PREENCHER!M33)) ->  | N33: =IF(PREENCHER!N33="","",IF(COUNTIF(PREENCHER!$AF33:$AH33,PREENCHER!N33)=0,CONCATENATE(PREENCHER!AZ33,#REF!),PREENCHER!N33)) ->  | O33: =IF(ISERROR(ROUND(AVERAGE(E33:N33),2)),"",ROUND(AVERAGE(E33:N33),2)) ->  | P33: =IF(ISERROR(ROUND(O33*D33,2)),"",ROUND(O33*D33,2)) ->  | S33: =IF(ISERROR(MEDIAN(E33:N33)),"",MEDIAN(E33:N33)) ->  | T33: =IF(ISERROR(STDEV(E33:N33)),"",STDEV(E33:N33)) ->  | U33: =IF(ISERROR(T33/O33),"",T33/O33) -> 
A34: =IF(PREENCHER!A34="","",PREENCHER!A34) ->  | B34: =IF(PREENCHER!B34="","",PREENCHER!B34) ->  | C34: =IF(PREENCHER!C34="","",PREENCHER!C34) ->  | D34: =IF(PREENCHER!D34="","",PREENCHER!D34) ->  | E34: =IF(PREENCHER!E34="","",IF(COUNTIF(PREENCHER!$AF34:$AH34,PREENCHER!E34)=0,CONCATENATE(PREENCHER!AQ34,#REF!),PREENCHER!E34)) ->  | F34: =IF(PREENCHER!F34="","",IF(COUNTIF(PREENCHER!$AF34:$AH34,PREENCHER!F34)=0,CONCATENATE(PREENCHER!AR34,#REF!),PREENCHER!F34)) ->  | G34: =IF(PREENCHER!G34="","",IF(COUNTIF(PREENCHER!$AF34:$AH34,PREENCHER!G34)=0,CONCATENATE(PREENCHER!AS34,#REF!),PREENCHER!G34)) ->  | H34: =IF(PREENCHER!H34="","",IF(COUNTIF(PREENCHER!$AF34:$AH34,PREENCHER!H34)=0,CONCATENATE(PREENCHER!AT34,#REF!),PREENCHER!H34)) ->  | I34: =IF(PREENCHER!I34="","",IF(COUNTIF(PREENCHER!$AF34:$AH34,PREENCHER!I34)=0,CONCATENATE(PREENCHER!AU34,#REF!),PREENCHER!I34)) ->  | J34: =IF(PREENCHER!J34="","",IF(COUNTIF(PREENCHER!$AF34:$AH34,PREENCHER!J34)=0,CONCATENATE(PREENCHER!AV34,#REF!),PREENCHER!J34)) ->  | K34: =IF(PREENCHER!K34="","",IF(COUNTIF(PREENCHER!$AF34:$AH34,PREENCHER!K34)=0,CONCATENATE(PREENCHER!AW34,#REF!),PREENCHER!K34)) ->  | L34: =IF(PREENCHER!L34="","",IF(COUNTIF(PREENCHER!$AF34:$AH34,PREENCHER!L34)=0,CONCATENATE(PREENCHER!AX34,#REF!),PREENCHER!L34)) ->  | M34: =IF(PREENCHER!M34="","",IF(COUNTIF(PREENCHER!$AF34:$AH34,PREENCHER!M34)=0,CONCATENATE(PREENCHER!AY34,#REF!),PREENCHER!M34)) ->  | N34: =IF(PREENCHER!N34="","",IF(COUNTIF(PREENCHER!$AF34:$AH34,PREENCHER!N34)=0,CONCATENATE(PREENCHER!AZ34,#REF!),PREENCHER!N34)) ->  | O34: =IF(ISERROR(ROUND(AVERAGE(E34:N34),2)),"",ROUND(AVERAGE(E34:N34),2)) ->  | P34: =IF(ISERROR(ROUND(O34*D34,2)),"",ROUND(O34*D34,2)) ->  | S34: =IF(ISERROR(MEDIAN(E34:N34)),"",MEDIAN(E34:N34)) ->  | T34: =IF(ISERROR(STDEV(E34:N34)),"",STDEV(E34:N34)) ->  | U34: =IF(ISERROR(T34/O34),"",T34/O34) -> 
A35: =IF(PREENCHER!A35="","",PREENCHER!A35) ->  | B35: =IF(PREENCHER!B35="","",PREENCHER!B35) ->  | C35: =IF(PREENCHER!C35="","",PREENCHER!C35) ->  | D35: =IF(PREENCHER!D35="","",PREENCHER!D35) ->  | E35: =IF(PREENCHER!E35="","",IF(COUNTIF(PREENCHER!$AF35:$AH35,PREENCHER!E35)=0,CONCATENATE(PREENCHER!AQ35,#REF!),PREENCHER!E35)) ->  | F35: =IF(PREENCHER!F35="","",IF(COUNTIF(PREENCHER!$AF35:$AH35,PREENCHER!F35)=0,CONCATENATE(PREENCHER!AR35,#REF!),PREENCHER!F35)) ->  | G35: =IF(PREENCHER!G35="","",IF(COUNTIF(PREENCHER!$AF35:$AH35,PREENCHER!G35)=0,CONCATENATE(PREENCHER!AS35,#REF!),PREENCHER!G35)) ->  | H35: =IF(PREENCHER!H35="","",IF(COUNTIF(PREENCHER!$AF35:$AH35,PREENCHER!H35)=0,CONCATENATE(PREENCHER!AT35,#REF!),PREENCHER!H35)) ->  | I35: =IF(PREENCHER!I35="","",IF(COUNTIF(PREENCHER!$AF35:$AH35,PREENCHER!I35)=0,CONCATENATE(PREENCHER!AU35,#REF!),PREENCHER!I35)) ->  | J35: =IF(PREENCHER!J35="","",IF(COUNTIF(PREENCHER!$AF35:$AH35,PREENCHER!J35)=0,CONCATENATE(PREENCHER!AV35,#REF!),PREENCHER!J35)) ->  | K35: =IF(PREENCHER!K35="","",IF(COUNTIF(PREENCHER!$AF35:$AH35,PREENCHER!K35)=0,CONCATENATE(PREENCHER!AW35,#REF!),PREENCHER!K35)) ->  | L35: =IF(PREENCHER!L35="","",IF(COUNTIF(PREENCHER!$AF35:$AH35,PREENCHER!L35)=0,CONCATENATE(PREENCHER!AX35,#REF!),PREENCHER!L35)) ->  | M35: =IF(PREENCHER!M35="","",IF(COUNTIF(PREENCHER!$AF35:$AH35,PREENCHER!M35)=0,CONCATENATE(PREENCHER!AY35,#REF!),PREENCHER!M35)) ->  | N35: =IF(PREENCHER!N35="","",IF(COUNTIF(PREENCHER!$AF35:$AH35,PREENCHER!N35)=0,CONCATENATE(PREENCHER!AZ35,#REF!),PREENCHER!N35)) ->  | O35: =IF(ISERROR(ROUND(AVERAGE(E35:N35),2)),"",ROUND(AVERAGE(E35:N35),2)) ->  | P35: =IF(ISERROR(ROUND(O35*D35,2)),"",ROUND(O35*D35,2)) ->  | S35: =IF(ISERROR(MEDIAN(E35:N35)),"",MEDIAN(E35:N35)) ->  | T35: =IF(ISERROR(STDEV(E35:N35)),"",STDEV(E35:N35)) ->  | U35: =IF(ISERROR(T35/O35),"",T35/O35) -> 
A36: =IF(PREENCHER!A36="","",PREENCHER!A36) ->  | B36: =IF(PREENCHER!B36="","",PREENCHER!B36) ->  | C36: =IF(PREENCHER!C36="","",PREENCHER!C36) ->  | D36: =IF(PREENCHER!D36="","",PREENCHER!D36) ->  | E36: =IF(PREENCHER!E36="","",IF(COUNTIF(PREENCHER!$AF36:$AH36,PREENCHER!E36)=0,CONCATENATE(PREENCHER!AQ36,#REF!),PREENCHER!E36)) ->  | F36: =IF(PREENCHER!F36="","",IF(COUNTIF(PREENCHER!$AF36:$AH36,PREENCHER!F36)=0,CONCATENATE(PREENCHER!AR36,#REF!),PREENCHER!F36)) ->  | G36: =IF(PREENCHER!G36="","",IF(COUNTIF(PREENCHER!$AF36:$AH36,PREENCHER!G36)=0,CONCATENATE(PREENCHER!AS36,#REF!),PREENCHER!G36)) ->  | H36: =IF(PREENCHER!H36="","",IF(COUNTIF(PREENCHER!$AF36:$AH36,PREENCHER!H36)=0,CONCATENATE(PREENCHER!AT36,#REF!),PREENCHER!H36)) ->  | I36: =IF(PREENCHER!I36="","",IF(COUNTIF(PREENCHER!$AF36:$AH36,PREENCHER!I36)=0,CONCATENATE(PREENCHER!AU36,#REF!),PREENCHER!I36)) ->  | J36: =IF(PREENCHER!J36="","",IF(COUNTIF(PREENCHER!$AF36:$AH36,PREENCHER!J36)=0,CONCATENATE(PREENCHER!AV36,#REF!),PREENCHER!J36)) ->  | K36: =IF(PREENCHER!K36="","",IF(COUNTIF(PREENCHER!$AF36:$AH36,PREENCHER!K36)=0,CONCATENATE(PREENCHER!AW36,#REF!),PREENCHER!K36)) ->  | L36: =IF(PREENCHER!L36="","",IF(COUNTIF(PREENCHER!$AF36:$AH36,PREENCHER!L36)=0,CONCATENATE(PREENCHER!AX36,#REF!),PREENCHER!L36)) ->  | M36: =IF(PREENCHER!M36="","",IF(COUNTIF(PREENCHER!$AF36:$AH36,PREENCHER!M36)=0,CONCATENATE(PREENCHER!AY36,#REF!),PREENCHER!M36)) ->  | N36: =IF(PREENCHER!N36="","",IF(COUNTIF(PREENCHER!$AF36:$AH36,PREENCHER!N36)=0,CONCATENATE(PREENCHER!AZ36,#REF!),PREENCHER!N36)) ->  | O36: =IF(ISERROR(ROUND(AVERAGE(E36:N36),2)),"",ROUND(AVERAGE(E36:N36),2)) ->  | P36: =IF(ISERROR(ROUND(O36*D36,2)),"",ROUND(O36*D36,2)) ->  | S36: =IF(ISERROR(MEDIAN(E36:N36)),"",MEDIAN(E36:N36)) ->  | T36: =IF(ISERROR(STDEV(E36:N36)),"",STDEV(E36:N36)) ->  | U36: =IF(ISERROR(T36/O36),"",T36/O36) -> 
A37: =IF(PREENCHER!A37="","",PREENCHER!A37) ->  | B37: =IF(PREENCHER!B37="","",PREENCHER!B37) ->  | C37: =IF(PREENCHER!C37="","",PREENCHER!C37) ->  | D37: =IF(PREENCHER!D37="","",PREENCHER!D37) ->  | E37: =IF(PREENCHER!E37="","",IF(COUNTIF(PREENCHER!$AF37:$AH37,PREENCHER!E37)=0,CONCATENATE(PREENCHER!AQ37,#REF!),PREENCHER!E37)) ->  | F37: =IF(PREENCHER!F37="","",IF(COUNTIF(PREENCHER!$AF37:$AH37,PREENCHER!F37)=0,CONCATENATE(PREENCHER!AR37,#REF!),PREENCHER!F37)) ->  | G37: =IF(PREENCHER!G37="","",IF(COUNTIF(PREENCHER!$AF37:$AH37,PREENCHER!G37)=0,CONCATENATE(PREENCHER!AS37,#REF!),PREENCHER!G37)) ->  | H37: =IF(PREENCHER!H37="","",IF(COUNTIF(PREENCHER!$AF37:$AH37,PREENCHER!H37)=0,CONCATENATE(PREENCHER!AT37,#REF!),PREENCHER!H37)) ->  | I37: =IF(PREENCHER!I37="","",IF(COUNTIF(PREENCHER!$AF37:$AH37,PREENCHER!I37)=0,CONCATENATE(PREENCHER!AU37,#REF!),PREENCHER!I37)) ->  | J37: =IF(PREENCHER!J37="","",IF(COUNTIF(PREENCHER!$AF37:$AH37,PREENCHER!J37)=0,CONCATENATE(PREENCHER!AV37,#REF!),PREENCHER!J37)) ->  | K37: =IF(PREENCHER!K37="","",IF(COUNTIF(PREENCHER!$AF37:$AH37,PREENCHER!K37)=0,CONCATENATE(PREENCHER!AW37,#REF!),PREENCHER!K37)) ->  | L37: =IF(PREENCHER!L37="","",IF(COUNTIF(PREENCHER!$AF37:$AH37,PREENCHER!L37)=0,CONCATENATE(PREENCHER!AX37,#REF!),PREENCHER!L37)) ->  | M37: =IF(PREENCHER!M37="","",IF(COUNTIF(PREENCHER!$AF37:$AH37,PREENCHER!M37)=0,CONCATENATE(PREENCHER!AY37,#REF!),PREENCHER!M37)) ->  | N37: =IF(PREENCHER!N37="","",IF(COUNTIF(PREENCHER!$AF37:$AH37,PREENCHER!N37)=0,CONCATENATE(PREENCHER!AZ37,#REF!),PREENCHER!N37)) ->  | O37: =IF(ISERROR(ROUND(AVERAGE(E37:N37),2)),"",ROUND(AVERAGE(E37:N37),2)) ->  | P37: =IF(ISERROR(ROUND(O37*D37,2)),"",ROUND(O37*D37,2)) ->  | S37: =IF(ISERROR(MEDIAN(E37:N37)),"",MEDIAN(E37:N37)) ->  | T37: =IF(ISERROR(STDEV(E37:N37)),"",STDEV(E37:N37)) ->  | U37: =IF(ISERROR(T37/O37),"",T37/O37) -> 
A38: =IF(PREENCHER!A38="","",PREENCHER!A38) ->  | B38: =IF(PREENCHER!B38="","",PREENCHER!B38) ->  | C38: =IF(PREENCHER!C38="","",PREENCHER!C38) ->  | D38: =IF(PREENCHER!D38="","",PREENCHER!D38) ->  | E38: =IF(PREENCHER!E38="","",IF(COUNTIF(PREENCHER!$AF38:$AH38,PREENCHER!E38)=0,CONCATENATE(PREENCHER!AQ38,#REF!),PREENCHER!E38)) ->  | F38: =IF(PREENCHER!F38="","",IF(COUNTIF(PREENCHER!$AF38:$AH38,PREENCHER!F38)=0,CONCATENATE(PREENCHER!AR38,#REF!),PREENCHER!F38)) ->  | G38: =IF(PREENCHER!G38="","",IF(COUNTIF(PREENCHER!$AF38:$AH38,PREENCHER!G38)=0,CONCATENATE(PREENCHER!AS38,#REF!),PREENCHER!G38)) ->  | H38: =IF(PREENCHER!H38="","",IF(COUNTIF(PREENCHER!$AF38:$AH38,PREENCHER!H38)=0,CONCATENATE(PREENCHER!AT38,#REF!),PREENCHER!H38)) ->  | I38: =IF(PREENCHER!I38="","",IF(COUNTIF(PREENCHER!$AF38:$AH38,PREENCHER!I38)=0,CONCATENATE(PREENCHER!AU38,#REF!),PREENCHER!I38)) ->  | J38: =IF(PREENCHER!J38="","",IF(COUNTIF(PREENCHER!$AF38:$AH38,PREENCHER!J38)=0,CONCATENATE(PREENCHER!AV38,#REF!),PREENCHER!J38)) ->  | K38: =IF(PREENCHER!K38="","",IF(COUNTIF(PREENCHER!$AF38:$AH38,PREENCHER!K38)=0,CONCATENATE(PREENCHER!AW38,#REF!),PREENCHER!K38)) ->  | L38: =IF(PREENCHER!L38="","",IF(COUNTIF(PREENCHER!$AF38:$AH38,PREENCHER!L38)=0,CONCATENATE(PREENCHER!AX38,#REF!),PREENCHER!L38)) ->  | M38: =IF(PREENCHER!M38="","",IF(COUNTIF(PREENCHER!$AF38:$AH38,PREENCHER!M38)=0,CONCATENATE(PREENCHER!AY38,#REF!),PREENCHER!M38)) ->  | N38: =IF(PREENCHER!N38="","",IF(COUNTIF(PREENCHER!$AF38:$AH38,PREENCHER!N38)=0,CONCATENATE(PREENCHER!AZ38,#REF!),PREENCHER!N38)) ->  | O38: =IF(ISERROR(ROUND(AVERAGE(E38:N38),2)),"",ROUND(AVERAGE(E38:N38),2)) ->  | P38: =IF(ISERROR(ROUND(O38*D38,2)),"",ROUND(O38*D38,2)) ->  | S38: =IF(ISERROR(MEDIAN(E38:N38)),"",MEDIAN(E38:N38)) ->  | T38: =IF(ISERROR(STDEV(E38:N38)),"",STDEV(E38:N38)) ->  | U38: =IF(ISERROR(T38/O38),"",T38/O38) -> 
A39: =IF(PREENCHER!A39="","",PREENCHER!A39) ->  | B39: =IF(PREENCHER!B39="","",PREENCHER!B39) ->  | C39: =IF(PREENCHER!C39="","",PREENCHER!C39) ->  | D39: =IF(PREENCHER!D39="","",PREENCHER!D39) ->  | E39: =IF(PREENCHER!E39="","",IF(COUNTIF(PREENCHER!$AF39:$AH39,PREENCHER!E39)=0,CONCATENATE(PREENCHER!AQ39,#REF!),PREENCHER!E39)) ->  | F39: =IF(PREENCHER!F39="","",IF(COUNTIF(PREENCHER!$AF39:$AH39,PREENCHER!F39)=0,CONCATENATE(PREENCHER!AR39,#REF!),PREENCHER!F39)) ->  | G39: =IF(PREENCHER!G39="","",IF(COUNTIF(PREENCHER!$AF39:$AH39,PREENCHER!G39)=0,CONCATENATE(PREENCHER!AS39,#REF!),PREENCHER!G39)) ->  | H39: =IF(PREENCHER!H39="","",IF(COUNTIF(PREENCHER!$AF39:$AH39,PREENCHER!H39)=0,CONCATENATE(PREENCHER!AT39,#REF!),PREENCHER!H39)) ->  | I39: =IF(PREENCHER!I39="","",IF(COUNTIF(PREENCHER!$AF39:$AH39,PREENCHER!I39)=0,CONCATENATE(PREENCHER!AU39,#REF!),PREENCHER!I39)) ->  | J39: =IF(PREENCHER!J39="","",IF(COUNTIF(PREENCHER!$AF39:$AH39,PREENCHER!J39)=0,CONCATENATE(PREENCHER!AV39,#REF!),PREENCHER!J39)) ->  | K39: =IF(PREENCHER!K39="","",IF(COUNTIF(PREENCHER!$AF39:$AH39,PREENCHER!K39)=0,CONCATENATE(PREENCHER!AW39,#REF!),PREENCHER!K39)) ->  | L39: =IF(PREENCHER!L39="","",IF(COUNTIF(PREENCHER!$AF39:$AH39,PREENCHER!L39)=0,CONCATENATE(PREENCHER!AX39,#REF!),PREENCHER!L39)) ->  | M39: =IF(PREENCHER!M39="","",IF(COUNTIF(PREENCHER!$AF39:$AH39,PREENCHER!M39)=0,CONCATENATE(PREENCHER!AY39,#REF!),PREENCHER!M39)) ->  | N39: =IF(PREENCHER!N39="","",IF(COUNTIF(PREENCHER!$AF39:$AH39,PREENCHER!N39)=0,CONCATENATE(PREENCHER!AZ39,#REF!),PREENCHER!N39)) ->  | O39: =IF(ISERROR(ROUND(AVERAGE(E39:N39),2)),"",ROUND(AVERAGE(E39:N39),2)) ->  | P39: =IF(ISERROR(ROUND(O39*D39,2)),"",ROUND(O39*D39,2)) ->  | S39: =IF(ISERROR(MEDIAN(E39:N39)),"",MEDIAN(E39:N39)) ->  | T39: =IF(ISERROR(STDEV(E39:N39)),"",STDEV(E39:N39)) ->  | U39: =IF(ISERROR(T39/O39),"",T39/O39) -> 
A40: =IF(PREENCHER!A40="","",PREENCHER!A40) ->  | B40: =IF(PREENCHER!B40="","",PREENCHER!B40) ->  | C40: =IF(PREENCHER!C40="","",PREENCHER!C40) ->  | D40: =IF(PREENCHER!D40="","",PREENCHER!D40) ->  | E40: =IF(PREENCHER!E40="","",IF(COUNTIF(PREENCHER!$AF40:$AH40,PREENCHER!E40)=0,CONCATENATE(PREENCHER!AQ40,#REF!),PREENCHER!E40)) ->  | F40: =IF(PREENCHER!F40="","",IF(COUNTIF(PREENCHER!$AF40:$AH40,PREENCHER!F40)=0,CONCATENATE(PREENCHER!AR40,#REF!),PREENCHER!F40)) ->  | G40: =IF(PREENCHER!G40="","",IF(COUNTIF(PREENCHER!$AF40:$AH40,PREENCHER!G40)=0,CONCATENATE(PREENCHER!AS40,#REF!),PREENCHER!G40)) ->  | H40: =IF(PREENCHER!H40="","",IF(COUNTIF(PREENCHER!$AF40:$AH40,PREENCHER!H40)=0,CONCATENATE(PREENCHER!AT40,#REF!),PREENCHER!H40)) ->  | I40: =IF(PREENCHER!I40="","",IF(COUNTIF(PREENCHER!$AF40:$AH40,PREENCHER!I40)=0,CONCATENATE(PREENCHER!AU40,#REF!),PREENCHER!I40)) ->  | J40: =IF(PREENCHER!J40="","",IF(COUNTIF(PREENCHER!$AF40:$AH40,PREENCHER!J40)=0,CONCATENATE(PREENCHER!AV40,#REF!),PREENCHER!J40)) ->  | K40: =IF(PREENCHER!K40="","",IF(COUNTIF(PREENCHER!$AF40:$AH40,PREENCHER!K40)=0,CONCATENATE(PREENCHER!AW40,#REF!),PREENCHER!K40)) ->  | L40: =IF(PREENCHER!L40="","",IF(COUNTIF(PREENCHER!$AF40:$AH40,PREENCHER!L40)=0,CONCATENATE(PREENCHER!AX40,#REF!),PREENCHER!L40)) ->  | M40: =IF(PREENCHER!M40="","",IF(COUNTIF(PREENCHER!$AF40:$AH40,PREENCHER!M40)=0,CONCATENATE(PREENCHER!AY40,#REF!),PREENCHER!M40)) ->  | N40: =IF(PREENCHER!N40="","",IF(COUNTIF(PREENCHER!$AF40:$AH40,PREENCHER!N40)=0,CONCATENATE(PREENCHER!AZ40,#REF!),PREENCHER!N40)) ->  | O40: =IF(ISERROR(ROUND(AVERAGE(E40:N40),2)),"",ROUND(AVERAGE(E40:N40),2)) ->  | P40: =IF(ISERROR(ROUND(O40*D40,2)),"",ROUND(O40*D40,2)) ->  | S40: =IF(ISERROR(MEDIAN(E40:N40)),"",MEDIAN(E40:N40)) ->  | T40: =IF(ISERROR(STDEV(E40:N40)),"",STDEV(E40:N40)) ->  | U40: =IF(ISERROR(T40/O40),"",T40/O40) -> 
A41: =IF(PREENCHER!A41="","",PREENCHER!A41) ->  | B41: =IF(PREENCHER!B41="","",PREENCHER!B41) ->  | C41: =IF(PREENCHER!C41="","",PREENCHER!C41) ->  | D41: =IF(PREENCHER!D41="","",PREENCHER!D41) ->  | E41: =IF(PREENCHER!E41="","",IF(COUNTIF(PREENCHER!$AF41:$AH41,PREENCHER!E41)=0,CONCATENATE(PREENCHER!AQ41,#REF!),PREENCHER!E41)) ->  | F41: =IF(PREENCHER!F41="","",IF(COUNTIF(PREENCHER!$AF41:$AH41,PREENCHER!F41)=0,CONCATENATE(PREENCHER!AR41,#REF!),PREENCHER!F41)) ->  | G41: =IF(PREENCHER!G41="","",IF(COUNTIF(PREENCHER!$AF41:$AH41,PREENCHER!G41)=0,CONCATENATE(PREENCHER!AS41,#REF!),PREENCHER!G41)) ->  | H41: =IF(PREENCHER!H41="","",IF(COUNTIF(PREENCHER!$AF41:$AH41,PREENCHER!H41)=0,CONCATENATE(PREENCHER!AT41,#REF!),PREENCHER!H41)) ->  | I41: =IF(PREENCHER!I41="","",IF(COUNTIF(PREENCHER!$AF41:$AH41,PREENCHER!I41)=0,CONCATENATE(PREENCHER!AU41,#REF!),PREENCHER!I41)) ->  | J41: =IF(PREENCHER!J41="","",IF(COUNTIF(PREENCHER!$AF41:$AH41,PREENCHER!J41)=0,CONCATENATE(PREENCHER!AV41,#REF!),PREENCHER!J41)) ->  | K41: =IF(PREENCHER!K41="","",IF(COUNTIF(PREENCHER!$AF41:$AH41,PREENCHER!K41)=0,CONCATENATE(PREENCHER!AW41,#REF!),PREENCHER!K41)) ->  | L41: =IF(PREENCHER!L41="","",IF(COUNTIF(PREENCHER!$AF41:$AH41,PREENCHER!L41)=0,CONCATENATE(PREENCHER!AX41,#REF!),PREENCHER!L41)) ->  | M41: =IF(PREENCHER!M41="","",IF(COUNTIF(PREENCHER!$AF41:$AH41,PREENCHER!M41)=0,CONCATENATE(PREENCHER!AY41,#REF!),PREENCHER!M41)) ->  | N41: =IF(PREENCHER!N41="","",IF(COUNTIF(PREENCHER!$AF41:$AH41,PREENCHER!N41)=0,CONCATENATE(PREENCHER!AZ41,#REF!),PREENCHER!N41)) ->  | O41: =IF(ISERROR(ROUND(AVERAGE(E41:N41),2)),"",ROUND(AVERAGE(E41:N41),2)) ->  | P41: =IF(ISERROR(ROUND(O41*D41,2)),"",ROUND(O41*D41,2)) ->  | S41: =IF(ISERROR(MEDIAN(E41:N41)),"",MEDIAN(E41:N41)) ->  | T41: =IF(ISERROR(STDEV(E41:N41)),"",STDEV(E41:N41)) ->  | U41: =IF(ISERROR(T41/O41),"",T41/O41) -> 
A42: =IF(PREENCHER!A42="","",PREENCHER!A42) ->  | B42: =IF(PREENCHER!B42="","",PREENCHER!B42) ->  | C42: =IF(PREENCHER!C42="","",PREENCHER!C42) ->  | D42: =IF(PREENCHER!D42="","",PREENCHER!D42) ->  | E42: =IF(PREENCHER!E42="","",IF(COUNTIF(PREENCHER!$AF42:$AH42,PREENCHER!E42)=0,CONCATENATE(PREENCHER!AQ42,#REF!),PREENCHER!E42)) ->  | F42: =IF(PREENCHER!F42="","",IF(COUNTIF(PREENCHER!$AF42:$AH42,PREENCHER!F42)=0,CONCATENATE(PREENCHER!AR42,#REF!),PREENCHER!F42)) ->  | G42: =IF(PREENCHER!G42="","",IF(COUNTIF(PREENCHER!$AF42:$AH42,PREENCHER!G42)=0,CONCATENATE(PREENCHER!AS42,#REF!),PREENCHER!G42)) ->  | H42: =IF(PREENCHER!H42="","",IF(COUNTIF(PREENCHER!$AF42:$AH42,PREENCHER!H42)=0,CONCATENATE(PREENCHER!AT42,#REF!),PREENCHER!H42)) ->  | I42: =IF(PREENCHER!I42="","",IF(COUNTIF(PREENCHER!$AF42:$AH42,PREENCHER!I42)=0,CONCATENATE(PREENCHER!AU42,#REF!),PREENCHER!I42)) ->  | J42: =IF(PREENCHER!J42="","",IF(COUNTIF(PREENCHER!$AF42:$AH42,PREENCHER!J42)=0,CONCATENATE(PREENCHER!AV42,#REF!),PREENCHER!J42)) ->  | K42: =IF(PREENCHER!K42="","",IF(COUNTIF(PREENCHER!$AF42:$AH42,PREENCHER!K42)=0,CONCATENATE(PREENCHER!AW42,#REF!),PREENCHER!K42)) ->  | L42: =IF(PREENCHER!L42="","",IF(COUNTIF(PREENCHER!$AF42:$AH42,PREENCHER!L42)=0,CONCATENATE(PREENCHER!AX42,#REF!),PREENCHER!L42)) ->  | M42: =IF(PREENCHER!M42="","",IF(COUNTIF(PREENCHER!$AF42:$AH42,PREENCHER!M42)=0,CONCATENATE(PREENCHER!AY42,#REF!),PREENCHER!M42)) ->  | N42: =IF(PREENCHER!N42="","",IF(COUNTIF(PREENCHER!$AF42:$AH42,PREENCHER!N42)=0,CONCATENATE(PREENCHER!AZ42,#REF!),PREENCHER!N42)) ->  | O42: =IF(ISERROR(ROUND(AVERAGE(E42:N42),2)),"",ROUND(AVERAGE(E42:N42),2)) ->  | P42: =IF(ISERROR(ROUND(O42*D42,2)),"",ROUND(O42*D42,2)) ->  | S42: =IF(ISERROR(MEDIAN(E42:N42)),"",MEDIAN(E42:N42)) ->  | T42: =IF(ISERROR(STDEV(E42:N42)),"",STDEV(E42:N42)) ->  | U42: =IF(ISERROR(T42/O42),"",T42/O42) -> 
A43: =IF(PREENCHER!A43="","",PREENCHER!A43) ->  | B43: =IF(PREENCHER!B43="","",PREENCHER!B43) ->  | C43: =IF(PREENCHER!C43="","",PREENCHER!C43) ->  | D43: =IF(PREENCHER!D43="","",PREENCHER!D43) ->  | E43: =IF(PREENCHER!E43="","",IF(COUNTIF(PREENCHER!$AF43:$AH43,PREENCHER!E43)=0,CONCATENATE(PREENCHER!AQ43,#REF!),PREENCHER!E43)) ->  | F43: =IF(PREENCHER!F43="","",IF(COUNTIF(PREENCHER!$AF43:$AH43,PREENCHER!F43)=0,CONCATENATE(PREENCHER!AR43,#REF!),PREENCHER!F43)) ->  | G43: =IF(PREENCHER!G43="","",IF(COUNTIF(PREENCHER!$AF43:$AH43,PREENCHER!G43)=0,CONCATENATE(PREENCHER!AS43,#REF!),PREENCHER!G43)) ->  | H43: =IF(PREENCHER!H43="","",IF(COUNTIF(PREENCHER!$AF43:$AH43,PREENCHER!H43)=0,CONCATENATE(PREENCHER!AT43,#REF!),PREENCHER!H43)) ->  | I43: =IF(PREENCHER!I43="","",IF(COUNTIF(PREENCHER!$AF43:$AH43,PREENCHER!I43)=0,CONCATENATE(PREENCHER!AU43,#REF!),PREENCHER!I43)) ->  | J43: =IF(PREENCHER!J43="","",IF(COUNTIF(PREENCHER!$AF43:$AH43,PREENCHER!J43)=0,CONCATENATE(PREENCHER!AV43,#REF!),PREENCHER!J43)) ->  | K43: =IF(PREENCHER!K43="","",IF(COUNTIF(PREENCHER!$AF43:$AH43,PREENCHER!K43)=0,CONCATENATE(PREENCHER!AW43,#REF!),PREENCHER!K43)) ->  | L43: =IF(PREENCHER!L43="","",IF(COUNTIF(PREENCHER!$AF43:$AH43,PREENCHER!L43)=0,CONCATENATE(PREENCHER!AX43,#REF!),PREENCHER!L43)) ->  | M43: =IF(PREENCHER!M43="","",IF(COUNTIF(PREENCHER!$AF43:$AH43,PREENCHER!M43)=0,CONCATENATE(PREENCHER!AY43,#REF!),PREENCHER!M43)) ->  | N43: =IF(PREENCHER!N43="","",IF(COUNTIF(PREENCHER!$AF43:$AH43,PREENCHER!N43)=0,CONCATENATE(PREENCHER!AZ43,#REF!),PREENCHER!N43)) ->  | O43: =IF(ISERROR(ROUND(AVERAGE(E43:N43),2)),"",ROUND(AVERAGE(E43:N43),2)) ->  | P43: =IF(ISERROR(ROUND(O43*D43,2)),"",ROUND(O43*D43,2)) ->  | S43: =IF(ISERROR(MEDIAN(E43:N43)),"",MEDIAN(E43:N43)) ->  | T43: =IF(ISERROR(STDEV(E43:N43)),"",STDEV(E43:N43)) ->  | U43: =IF(ISERROR(T43/O43),"",T43/O43) -> 
A44: =IF(PREENCHER!A44="","",PREENCHER!A44) ->  | B44: =IF(PREENCHER!B44="","",PREENCHER!B44) ->  | C44: =IF(PREENCHER!C44="","",PREENCHER!C44) ->  | D44: =IF(PREENCHER!D44="","",PREENCHER!D44) ->  | E44: =IF(PREENCHER!E44="","",IF(COUNTIF(PREENCHER!$AF44:$AH44,PREENCHER!E44)=0,CONCATENATE(PREENCHER!AQ44,#REF!),PREENCHER!E44)) ->  | F44: =IF(PREENCHER!F44="","",IF(COUNTIF(PREENCHER!$AF44:$AH44,PREENCHER!F44)=0,CONCATENATE(PREENCHER!AR44,#REF!),PREENCHER!F44)) ->  | G44: =IF(PREENCHER!G44="","",IF(COUNTIF(PREENCHER!$AF44:$AH44,PREENCHER!G44)=0,CONCATENATE(PREENCHER!AS44,#REF!),PREENCHER!G44)) ->  | H44: =IF(PREENCHER!H44="","",IF(COUNTIF(PREENCHER!$AF44:$AH44,PREENCHER!H44)=0,CONCATENATE(PREENCHER!AT44,#REF!),PREENCHER!H44)) ->  | I44: =IF(PREENCHER!I44="","",IF(COUNTIF(PREENCHER!$AF44:$AH44,PREENCHER!I44)=0,CONCATENATE(PREENCHER!AU44,#REF!),PREENCHER!I44)) ->  | J44: =IF(PREENCHER!J44="","",IF(COUNTIF(PREENCHER!$AF44:$AH44,PREENCHER!J44)=0,CONCATENATE(PREENCHER!AV44,#REF!),PREENCHER!J44)) ->  | K44: =IF(PREENCHER!K44="","",IF(COUNTIF(PREENCHER!$AF44:$AH44,PREENCHER!K44)=0,CONCATENATE(PREENCHER!AW44,#REF!),PREENCHER!K44)) ->  | L44: =IF(PREENCHER!L44="","",IF(COUNTIF(PREENCHER!$AF44:$AH44,PREENCHER!L44)=0,CONCATENATE(PREENCHER!AX44,#REF!),PREENCHER!L44)) ->  | M44: =IF(PREENCHER!M44="","",IF(COUNTIF(PREENCHER!$AF44:$AH44,PREENCHER!M44)=0,CONCATENATE(PREENCHER!AY44,#REF!),PREENCHER!M44)) ->  | N44: =IF(PREENCHER!N44="","",IF(COUNTIF(PREENCHER!$AF44:$AH44,PREENCHER!N44)=0,CONCATENATE(PREENCHER!AZ44,#REF!),PREENCHER!N44)) ->  | O44: =IF(ISERROR(ROUND(AVERAGE(E44:N44),2)),"",ROUND(AVERAGE(E44:N44),2)) ->  | P44: =IF(ISERROR(ROUND(O44*D44,2)),"",ROUND(O44*D44,2)) ->  | S44: =IF(ISERROR(MEDIAN(E44:N44)),"",MEDIAN(E44:N44)) ->  | T44: =IF(ISERROR(STDEV(E44:N44)),"",STDEV(E44:N44)) ->  | U44: =IF(ISERROR(T44/O44),"",T44/O44) -> 
A45: =IF(PREENCHER!A45="","",PREENCHER!A45) ->  | B45: =IF(PREENCHER!B45="","",PREENCHER!B45) ->  | C45: =IF(PREENCHER!C45="","",PREENCHER!C45) ->  | D45: =IF(PREENCHER!D45="","",PREENCHER!D45) ->  | E45: =IF(PREENCHER!E45="","",IF(COUNTIF(PREENCHER!$AF45:$AH45,PREENCHER!E45)=0,CONCATENATE(PREENCHER!AQ45,#REF!),PREENCHER!E45)) ->  | F45: =IF(PREENCHER!F45="","",IF(COUNTIF(PREENCHER!$AF45:$AH45,PREENCHER!F45)=0,CONCATENATE(PREENCHER!AR45,#REF!),PREENCHER!F45)) ->  | G45: =IF(PREENCHER!G45="","",IF(COUNTIF(PREENCHER!$AF45:$AH45,PREENCHER!G45)=0,CONCATENATE(PREENCHER!AS45,#REF!),PREENCHER!G45)) ->  | H45: =IF(PREENCHER!H45="","",IF(COUNTIF(PREENCHER!$AF45:$AH45,PREENCHER!H45)=0,CONCATENATE(PREENCHER!AT45,#REF!),PREENCHER!H45)) ->  | I45: =IF(PREENCHER!I45="","",IF(COUNTIF(PREENCHER!$AF45:$AH45,PREENCHER!I45)=0,CONCATENATE(PREENCHER!AU45,#REF!),PREENCHER!I45)) ->  | J45: =IF(PREENCHER!J45="","",IF(COUNTIF(PREENCHER!$AF45:$AH45,PREENCHER!J45)=0,CONCATENATE(PREENCHER!AV45,#REF!),PREENCHER!J45)) ->  | K45: =IF(PREENCHER!K45="","",IF(COUNTIF(PREENCHER!$AF45:$AH45,PREENCHER!K45)=0,CONCATENATE(PREENCHER!AW45,#REF!),PREENCHER!K45)) ->  | L45: =IF(PREENCHER!L45="","",IF(COUNTIF(PREENCHER!$AF45:$AH45,PREENCHER!L45)=0,CONCATENATE(PREENCHER!AX45,#REF!),PREENCHER!L45)) ->  | M45: =IF(PREENCHER!M45="","",IF(COUNTIF(PREENCHER!$AF45:$AH45,PREENCHER!M45)=0,CONCATENATE(PREENCHER!AY45,#REF!),PREENCHER!M45)) ->  | N45: =IF(PREENCHER!N45="","",IF(COUNTIF(PREENCHER!$AF45:$AH45,PREENCHER!N45)=0,CONCATENATE(PREENCHER!AZ45,#REF!),PREENCHER!N45)) ->  | O45: =IF(ISERROR(ROUND(AVERAGE(E45:N45),2)),"",ROUND(AVERAGE(E45:N45),2)) ->  | P45: =IF(ISERROR(ROUND(O45*D45,2)),"",ROUND(O45*D45,2)) ->  | S45: =IF(ISERROR(MEDIAN(E45:N45)),"",MEDIAN(E45:N45)) ->  | T45: =IF(ISERROR(STDEV(E45:N45)),"",STDEV(E45:N45)) ->  | U45: =IF(ISERROR(T45/O45),"",T45/O45) -> 
A46: =IF(PREENCHER!A46="","",PREENCHER!A46) ->  | B46: =IF(PREENCHER!B46="","",PREENCHER!B46) ->  | C46: =IF(PREENCHER!C46="","",PREENCHER!C46) ->  | D46: =IF(PREENCHER!D46="","",PREENCHER!D46) ->  | E46: =IF(PREENCHER!E46="","",IF(COUNTIF(PREENCHER!$AF46:$AH46,PREENCHER!E46)=0,CONCATENATE(PREENCHER!AQ46,#REF!),PREENCHER!E46)) ->  | F46: =IF(PREENCHER!F46="","",IF(COUNTIF(PREENCHER!$AF46:$AH46,PREENCHER!F46)=0,CONCATENATE(PREENCHER!AR46,#REF!),PREENCHER!F46)) ->  | G46: =IF(PREENCHER!G46="","",IF(COUNTIF(PREENCHER!$AF46:$AH46,PREENCHER!G46)=0,CONCATENATE(PREENCHER!AS46,#REF!),PREENCHER!G46)) ->  | H46: =IF(PREENCHER!H46="","",IF(COUNTIF(PREENCHER!$AF46:$AH46,PREENCHER!H46)=0,CONCATENATE(PREENCHER!AT46,#REF!),PREENCHER!H46)) ->  | I46: =IF(PREENCHER!I46="","",IF(COUNTIF(PREENCHER!$AF46:$AH46,PREENCHER!I46)=0,CONCATENATE(PREENCHER!AU46,#REF!),PREENCHER!I46)) ->  | J46: =IF(PREENCHER!J46="","",IF(COUNTIF(PREENCHER!$AF46:$AH46,PREENCHER!J46)=0,CONCATENATE(PREENCHER!AV46,#REF!),PREENCHER!J46)) ->  | K46: =IF(PREENCHER!K46="","",IF(COUNTIF(PREENCHER!$AF46:$AH46,PREENCHER!K46)=0,CONCATENATE(PREENCHER!AW46,#REF!),PREENCHER!K46)) ->  | L46: =IF(PREENCHER!L46="","",IF(COUNTIF(PREENCHER!$AF46:$AH46,PREENCHER!L46)=0,CONCATENATE(PREENCHER!AX46,#REF!),PREENCHER!L46)) ->  | M46: =IF(PREENCHER!M46="","",IF(COUNTIF(PREENCHER!$AF46:$AH46,PREENCHER!M46)=0,CONCATENATE(PREENCHER!AY46,#REF!),PREENCHER!M46)) ->  | N46: =IF(PREENCHER!N46="","",IF(COUNTIF(PREENCHER!$AF46:$AH46,PREENCHER!N46)=0,CONCATENATE(PREENCHER!AZ46,#REF!),PREENCHER!N46)) ->  | O46: =IF(ISERROR(ROUND(AVERAGE(E46:N46),2)),"",ROUND(AVERAGE(E46:N46),2)) ->  | P46: =IF(ISERROR(ROUND(O46*D46,2)),"",ROUND(O46*D46,2)) ->  | S46: =IF(ISERROR(MEDIAN(E46:N46)),"",MEDIAN(E46:N46)) ->  | T46: =IF(ISERROR(STDEV(E46:N46)),"",STDEV(E46:N46)) ->  | U46: =IF(ISERROR(T46/O46),"",T46/O46) -> 
A47: =IF(PREENCHER!A47="","",PREENCHER!A47) ->  | B47: =IF(PREENCHER!B47="","",PREENCHER!B47) ->  | C47: =IF(PREENCHER!C47="","",PREENCHER!C47) ->  | D47: =IF(PREENCHER!D47="","",PREENCHER!D47) ->  | E47: =IF(PREENCHER!E47="","",IF(COUNTIF(PREENCHER!$AF47:$AH47,PREENCHER!E47)=0,CONCATENATE(PREENCHER!AQ47,#REF!),PREENCHER!E47)) ->  | F47: =IF(PREENCHER!F47="","",IF(COUNTIF(PREENCHER!$AF47:$AH47,PREENCHER!F47)=0,CONCATENATE(PREENCHER!AR47,#REF!),PREENCHER!F47)) ->  | G47: =IF(PREENCHER!G47="","",IF(COUNTIF(PREENCHER!$AF47:$AH47,PREENCHER!G47)=0,CONCATENATE(PREENCHER!AS47,#REF!),PREENCHER!G47)) ->  | H47: =IF(PREENCHER!H47="","",IF(COUNTIF(PREENCHER!$AF47:$AH47,PREENCHER!H47)=0,CONCATENATE(PREENCHER!AT47,#REF!),PREENCHER!H47)) ->  | I47: =IF(PREENCHER!I47="","",IF(COUNTIF(PREENCHER!$AF47:$AH47,PREENCHER!I47)=0,CONCATENATE(PREENCHER!AU47,#REF!),PREENCHER!I47)) ->  | J47: =IF(PREENCHER!J47="","",IF(COUNTIF(PREENCHER!$AF47:$AH47,PREENCHER!J47)=0,CONCATENATE(PREENCHER!AV47,#REF!),PREENCHER!J47)) ->  | K47: =IF(PREENCHER!K47="","",IF(COUNTIF(PREENCHER!$AF47:$AH47,PREENCHER!K47)=0,CONCATENATE(PREENCHER!AW47,#REF!),PREENCHER!K47)) ->  | L47: =IF(PREENCHER!L47="","",IF(COUNTIF(PREENCHER!$AF47:$AH47,PREENCHER!L47)=0,CONCATENATE(PREENCHER!AX47,#REF!),PREENCHER!L47)) ->  | M47: =IF(PREENCHER!M47="","",IF(COUNTIF(PREENCHER!$AF47:$AH47,PREENCHER!M47)=0,CONCATENATE(PREENCHER!AY47,#REF!),PREENCHER!M47)) ->  | N47: =IF(PREENCHER!N47="","",IF(COUNTIF(PREENCHER!$AF47:$AH47,PREENCHER!N47)=0,CONCATENATE(PREENCHER!AZ47,#REF!),PREENCHER!N47)) ->  | O47: =IF(ISERROR(ROUND(AVERAGE(E47:N47),2)),"",ROUND(AVERAGE(E47:N47),2)) ->  | P47: =IF(ISERROR(ROUND(O47*D47,2)),"",ROUND(O47*D47,2)) ->  | S47: =IF(ISERROR(MEDIAN(E47:N47)),"",MEDIAN(E47:N47)) ->  | T47: =IF(ISERROR(STDEV(E47:N47)),"",STDEV(E47:N47)) ->  | U47: =IF(ISERROR(T47/O47),"",T47/O47) -> 
A48: =IF(PREENCHER!A48="","",PREENCHER!A48) ->  | B48: =IF(PREENCHER!B48="","",PREENCHER!B48) ->  | C48: =IF(PREENCHER!C48="","",PREENCHER!C48) ->  | D48: =IF(PREENCHER!D48="","",PREENCHER!D48) ->  | E48: =IF(PREENCHER!E48="","",IF(COUNTIF(PREENCHER!$AF48:$AH48,PREENCHER!E48)=0,CONCATENATE(PREENCHER!AQ48,#REF!),PREENCHER!E48)) ->  | F48: =IF(PREENCHER!F48="","",IF(COUNTIF(PREENCHER!$AF48:$AH48,PREENCHER!F48)=0,CONCATENATE(PREENCHER!AR48,#REF!),PREENCHER!F48)) ->  | G48: =IF(PREENCHER!G48="","",IF(COUNTIF(PREENCHER!$AF48:$AH48,PREENCHER!G48)=0,CONCATENATE(PREENCHER!AS48,#REF!),PREENCHER!G48)) ->  | H48: =IF(PREENCHER!H48="","",IF(COUNTIF(PREENCHER!$AF48:$AH48,PREENCHER!H48)=0,CONCATENATE(PREENCHER!AT48,#REF!),PREENCHER!H48)) ->  | I48: =IF(PREENCHER!I48="","",IF(COUNTIF(PREENCHER!$AF48:$AH48,PREENCHER!I48)=0,CONCATENATE(PREENCHER!AU48,#REF!),PREENCHER!I48)) ->  | J48: =IF(PREENCHER!J48="","",IF(COUNTIF(PREENCHER!$AF48:$AH48,PREENCHER!J48)=0,CONCATENATE(PREENCHER!AV48,#REF!),PREENCHER!J48)) ->  | K48: =IF(PREENCHER!K48="","",IF(COUNTIF(PREENCHER!$AF48:$AH48,PREENCHER!K48)=0,CONCATENATE(PREENCHER!AW48,#REF!),PREENCHER!K48)) ->  | L48: =IF(PREENCHER!L48="","",IF(COUNTIF(PREENCHER!$AF48:$AH48,PREENCHER!L48)=0,CONCATENATE(PREENCHER!AX48,#REF!),PREENCHER!L48)) ->  | M48: =IF(PREENCHER!M48="","",IF(COUNTIF(PREENCHER!$AF48:$AH48,PREENCHER!M48)=0,CONCATENATE(PREENCHER!AY48,#REF!),PREENCHER!M48)) ->  | N48: =IF(PREENCHER!N48="","",IF(COUNTIF(PREENCHER!$AF48:$AH48,PREENCHER!N48)=0,CONCATENATE(PREENCHER!AZ48,#REF!),PREENCHER!N48)) ->  | O48: =IF(ISERROR(ROUND(AVERAGE(E48:N48),2)),"",ROUND(AVERAGE(E48:N48),2)) ->  | P48: =IF(ISERROR(ROUND(O48*D48,2)),"",ROUND(O48*D48,2)) ->  | S48: =IF(ISERROR(MEDIAN(E48:N48)),"",MEDIAN(E48:N48)) ->  | T48: =IF(ISERROR(STDEV(E48:N48)),"",STDEV(E48:N48)) ->  | U48: =IF(ISERROR(T48/O48),"",T48/O48) -> 
A49: =IF(PREENCHER!A49="","",PREENCHER!A49) ->  | B49: =IF(PREENCHER!B49="","",PREENCHER!B49) ->  | C49: =IF(PREENCHER!C49="","",PREENCHER!C49) ->  | D49: =IF(PREENCHER!D49="","",PREENCHER!D49) ->  | E49: =IF(PREENCHER!E49="","",IF(COUNTIF(PREENCHER!$AF49:$AH49,PREENCHER!E49)=0,CONCATENATE(PREENCHER!AQ49,#REF!),PREENCHER!E49)) ->  | F49: =IF(PREENCHER!F49="","",IF(COUNTIF(PREENCHER!$AF49:$AH49,PREENCHER!F49)=0,CONCATENATE(PREENCHER!AR49,#REF!),PREENCHER!F49)) ->  | G49: =IF(PREENCHER!G49="","",IF(COUNTIF(PREENCHER!$AF49:$AH49,PREENCHER!G49)=0,CONCATENATE(PREENCHER!AS49,#REF!),PREENCHER!G49)) ->  | H49: =IF(PREENCHER!H49="","",IF(COUNTIF(PREENCHER!$AF49:$AH49,PREENCHER!H49)=0,CONCATENATE(PREENCHER!AT49,#REF!),PREENCHER!H49)) ->  | I49: =IF(PREENCHER!I49="","",IF(COUNTIF(PREENCHER!$AF49:$AH49,PREENCHER!I49)=0,CONCATENATE(PREENCHER!AU49,#REF!),PREENCHER!I49)) ->  | J49: =IF(PREENCHER!J49="","",IF(COUNTIF(PREENCHER!$AF49:$AH49,PREENCHER!J49)=0,CONCATENATE(PREENCHER!AV49,#REF!),PREENCHER!J49)) ->  | K49: =IF(PREENCHER!K49="","",IF(COUNTIF(PREENCHER!$AF49:$AH49,PREENCHER!K49)=0,CONCATENATE(PREENCHER!AW49,#REF!),PREENCHER!K49)) ->  | L49: =IF(PREENCHER!L49="","",IF(COUNTIF(PREENCHER!$AF49:$AH49,PREENCHER!L49)=0,CONCATENATE(PREENCHER!AX49,#REF!),PREENCHER!L49)) ->  | M49: =IF(PREENCHER!M49="","",IF(COUNTIF(PREENCHER!$AF49:$AH49,PREENCHER!M49)=0,CONCATENATE(PREENCHER!AY49,#REF!),PREENCHER!M49)) ->  | N49: =IF(PREENCHER!N49="","",IF(COUNTIF(PREENCHER!$AF49:$AH49,PREENCHER!N49)=0,CONCATENATE(PREENCHER!AZ49,#REF!),PREENCHER!N49)) ->  | O49: =IF(ISERROR(ROUND(AVERAGE(E49:N49),2)),"",ROUND(AVERAGE(E49:N49),2)) ->  | P49: =IF(ISERROR(ROUND(O49*D49,2)),"",ROUND(O49*D49,2)) ->  | S49: =IF(ISERROR(MEDIAN(E49:N49)),"",MEDIAN(E49:N49)) ->  | T49: =IF(ISERROR(STDEV(E49:N49)),"",STDEV(E49:N49)) ->  | U49: =IF(ISERROR(T49/O49),"",T49/O49) -> 
A50: =IF(PREENCHER!A50="","",PREENCHER!A50) ->  | B50: =IF(PREENCHER!B50="","",PREENCHER!B50) ->  | C50: =IF(PREENCHER!C50="","",PREENCHER!C50) ->  | D50: =IF(PREENCHER!D50="","",PREENCHER!D50) ->  | E50: =IF(PREENCHER!E50="","",IF(COUNTIF(PREENCHER!$AF50:$AH50,PREENCHER!E50)=0,CONCATENATE(PREENCHER!AQ50,#REF!),PREENCHER!E50)) ->  | F50: =IF(PREENCHER!F50="","",IF(COUNTIF(PREENCHER!$AF50:$AH50,PREENCHER!F50)=0,CONCATENATE(PREENCHER!AR50,#REF!),PREENCHER!F50)) ->  | G50: =IF(PREENCHER!G50="","",IF(COUNTIF(PREENCHER!$AF50:$AH50,PREENCHER!G50)=0,CONCATENATE(PREENCHER!AS50,#REF!),PREENCHER!G50)) ->  | H50: =IF(PREENCHER!H50="","",IF(COUNTIF(PREENCHER!$AF50:$AH50,PREENCHER!H50)=0,CONCATENATE(PREENCHER!AT50,#REF!),PREENCHER!H50)) ->  | I50: =IF(PREENCHER!I50="","",IF(COUNTIF(PREENCHER!$AF50:$AH50,PREENCHER!I50)=0,CONCATENATE(PREENCHER!AU50,#REF!),PREENCHER!I50)) ->  | J50: =IF(PREENCHER!J50="","",IF(COUNTIF(PREENCHER!$AF50:$AH50,PREENCHER!J50)=0,CONCATENATE(PREENCHER!AV50,#REF!),PREENCHER!J50)) ->  | K50: =IF(PREENCHER!K50="","",IF(COUNTIF(PREENCHER!$AF50:$AH50,PREENCHER!K50)=0,CONCATENATE(PREENCHER!AW50,#REF!),PREENCHER!K50)) ->  | L50: =IF(PREENCHER!L50="","",IF(COUNTIF(PREENCHER!$AF50:$AH50,PREENCHER!L50)=0,CONCATENATE(PREENCHER!AX50,#REF!),PREENCHER!L50)) ->  | M50: =IF(PREENCHER!M50="","",IF(COUNTIF(PREENCHER!$AF50:$AH50,PREENCHER!M50)=0,CONCATENATE(PREENCHER!AY50,#REF!),PREENCHER!M50)) ->  | N50: =IF(PREENCHER!N50="","",IF(COUNTIF(PREENCHER!$AF50:$AH50,PREENCHER!N50)=0,CONCATENATE(PREENCHER!AZ50,#REF!),PREENCHER!N50)) ->  | O50: =IF(ISERROR(ROUND(AVERAGE(E50:N50),2)),"",ROUND(AVERAGE(E50:N50),2)) ->  | P50: =IF(ISERROR(ROUND(O50*D50,2)),"",ROUND(O50*D50,2)) ->  | S50: =IF(ISERROR(MEDIAN(E50:N50)),"",MEDIAN(E50:N50)) ->  | T50: =IF(ISERROR(STDEV(E50:N50)),"",STDEV(E50:N50)) ->  | U50: =IF(ISERROR(T50/O50),"",T50/O50) -> 
A51: =IF(PREENCHER!A51="","",PREENCHER!A51) ->  | B51: =IF(PREENCHER!B51="","",PREENCHER!B51) ->  | C51: =IF(PREENCHER!C51="","",PREENCHER!C51) ->  | D51: =IF(PREENCHER!D51="","",PREENCHER!D51) ->  | E51: =IF(PREENCHER!E51="","",IF(COUNTIF(PREENCHER!$AF51:$AH51,PREENCHER!E51)=0,CONCATENATE(PREENCHER!AQ51,#REF!),PREENCHER!E51)) ->  | F51: =IF(PREENCHER!F51="","",IF(COUNTIF(PREENCHER!$AF51:$AH51,PREENCHER!F51)=0,CONCATENATE(PREENCHER!AR51,#REF!),PREENCHER!F51)) ->  | G51: =IF(PREENCHER!G51="","",IF(COUNTIF(PREENCHER!$AF51:$AH51,PREENCHER!G51)=0,CONCATENATE(PREENCHER!AS51,#REF!),PREENCHER!G51)) ->  | H51: =IF(PREENCHER!H51="","",IF(COUNTIF(PREENCHER!$AF51:$AH51,PREENCHER!H51)=0,CONCATENATE(PREENCHER!AT51,#REF!),PREENCHER!H51)) ->  | I51: =IF(PREENCHER!I51="","",IF(COUNTIF(PREENCHER!$AF51:$AH51,PREENCHER!I51)=0,CONCATENATE(PREENCHER!AU51,#REF!),PREENCHER!I51)) ->  | J51: =IF(PREENCHER!J51="","",IF(COUNTIF(PREENCHER!$AF51:$AH51,PREENCHER!J51)=0,CONCATENATE(PREENCHER!AV51,#REF!),PREENCHER!J51)) ->  | K51: =IF(PREENCHER!K51="","",IF(COUNTIF(PREENCHER!$AF51:$AH51,PREENCHER!K51)=0,CONCATENATE(PREENCHER!AW51,#REF!),PREENCHER!K51)) ->  | L51: =IF(PREENCHER!L51="","",IF(COUNTIF(PREENCHER!$AF51:$AH51,PREENCHER!L51)=0,CONCATENATE(PREENCHER!AX51,#REF!),PREENCHER!L51)) ->  | M51: =IF(PREENCHER!M51="","",IF(COUNTIF(PREENCHER!$AF51:$AH51,PREENCHER!M51)=0,CONCATENATE(PREENCHER!AY51,#REF!),PREENCHER!M51)) ->  | N51: =IF(PREENCHER!N51="","",IF(COUNTIF(PREENCHER!$AF51:$AH51,PREENCHER!N51)=0,CONCATENATE(PREENCHER!AZ51,#REF!),PREENCHER!N51)) ->  | O51: =IF(ISERROR(ROUND(AVERAGE(E51:N51),2)),"",ROUND(AVERAGE(E51:N51),2)) ->  | P51: =IF(ISERROR(ROUND(O51*D51,2)),"",ROUND(O51*D51,2)) ->  | S51: =IF(ISERROR(MEDIAN(E51:N51)),"",MEDIAN(E51:N51)) ->  | T51: =IF(ISERROR(STDEV(E51:N51)),"",STDEV(E51:N51)) ->  | U51: =IF(ISERROR(T51/O51),"",T51/O51) -> 
A52: =IF(PREENCHER!A52="","",PREENCHER!A52) ->  | B52: =IF(PREENCHER!B52="","",PREENCHER!B52) ->  | C52: =IF(PREENCHER!C52="","",PREENCHER!C52) ->  | D52: =IF(PREENCHER!D52="","",PREENCHER!D52) ->  | E52: =IF(PREENCHER!E52="","",IF(COUNTIF(PREENCHER!$AF52:$AH52,PREENCHER!E52)=0,CONCATENATE(PREENCHER!AQ52,#REF!),PREENCHER!E52)) ->  | F52: =IF(PREENCHER!F52="","",IF(COUNTIF(PREENCHER!$AF52:$AH52,PREENCHER!F52)=0,CONCATENATE(PREENCHER!AR52,#REF!),PREENCHER!F52)) ->  | G52: =IF(PREENCHER!G52="","",IF(COUNTIF(PREENCHER!$AF52:$AH52,PREENCHER!G52)=0,CONCATENATE(PREENCHER!AS52,#REF!),PREENCHER!G52)) ->  | H52: =IF(PREENCHER!H52="","",IF(COUNTIF(PREENCHER!$AF52:$AH52,PREENCHER!H52)=0,CONCATENATE(PREENCHER!AT52,#REF!),PREENCHER!H52)) ->  | I52: =IF(PREENCHER!I52="","",IF(COUNTIF(PREENCHER!$AF52:$AH52,PREENCHER!I52)=0,CONCATENATE(PREENCHER!AU52,#REF!),PREENCHER!I52)) ->  | J52: =IF(PREENCHER!J52="","",IF(COUNTIF(PREENCHER!$AF52:$AH52,PREENCHER!J52)=0,CONCATENATE(PREENCHER!AV52,#REF!),PREENCHER!J52)) ->  | K52: =IF(PREENCHER!K52="","",IF(COUNTIF(PREENCHER!$AF52:$AH52,PREENCHER!K52)=0,CONCATENATE(PREENCHER!AW52,#REF!),PREENCHER!K52)) ->  | L52: =IF(PREENCHER!L52="","",IF(COUNTIF(PREENCHER!$AF52:$AH52,PREENCHER!L52)=0,CONCATENATE(PREENCHER!AX52,#REF!),PREENCHER!L52)) ->  | M52: =IF(PREENCHER!M52="","",IF(COUNTIF(PREENCHER!$AF52:$AH52,PREENCHER!M52)=0,CONCATENATE(PREENCHER!AY52,#REF!),PREENCHER!M52)) ->  | N52: =IF(PREENCHER!N52="","",IF(COUNTIF(PREENCHER!$AF52:$AH52,PREENCHER!N52)=0,CONCATENATE(PREENCHER!AZ52,#REF!),PREENCHER!N52)) ->  | O52: =IF(ISERROR(ROUND(AVERAGE(E52:N52),2)),"",ROUND(AVERAGE(E52:N52),2)) ->  | P52: =IF(ISERROR(ROUND(O52*D52,2)),"",ROUND(O52*D52,2)) ->  | S52: =IF(ISERROR(MEDIAN(E52:N52)),"",MEDIAN(E52:N52)) ->  | T52: =IF(ISERROR(STDEV(E52:N52)),"",STDEV(E52:N52)) ->  | U52: =IF(ISERROR(T52/O52),"",T52/O52) -> 
A53: =IF(PREENCHER!A53="","",PREENCHER!A53) ->  | B53: =IF(PREENCHER!B53="","",PREENCHER!B53) ->  | C53: =IF(PREENCHER!C53="","",PREENCHER!C53) ->  | D53: =IF(PREENCHER!D53="","",PREENCHER!D53) ->  | E53: =IF(PREENCHER!E53="","",IF(COUNTIF(PREENCHER!$AF53:$AH53,PREENCHER!E53)=0,CONCATENATE(PREENCHER!AQ53,#REF!),PREENCHER!E53)) ->  | F53: =IF(PREENCHER!F53="","",IF(COUNTIF(PREENCHER!$AF53:$AH53,PREENCHER!F53)=0,CONCATENATE(PREENCHER!AR53,#REF!),PREENCHER!F53)) ->  | G53: =IF(PREENCHER!G53="","",IF(COUNTIF(PREENCHER!$AF53:$AH53,PREENCHER!G53)=0,CONCATENATE(PREENCHER!AS53,#REF!),PREENCHER!G53)) ->  | H53: =IF(PREENCHER!H53="","",IF(COUNTIF(PREENCHER!$AF53:$AH53,PREENCHER!H53)=0,CONCATENATE(PREENCHER!AT53,#REF!),PREENCHER!H53)) ->  | I53: =IF(PREENCHER!I53="","",IF(COUNTIF(PREENCHER!$AF53:$AH53,PREENCHER!I53)=0,CONCATENATE(PREENCHER!AU53,#REF!),PREENCHER!I53)) ->  | J53: =IF(PREENCHER!J53="","",IF(COUNTIF(PREENCHER!$AF53:$AH53,PREENCHER!J53)=0,CONCATENATE(PREENCHER!AV53,#REF!),PREENCHER!J53)) ->  | K53: =IF(PREENCHER!K53="","",IF(COUNTIF(PREENCHER!$AF53:$AH53,PREENCHER!K53)=0,CONCATENATE(PREENCHER!AW53,#REF!),PREENCHER!K53)) ->  | L53: =IF(PREENCHER!L53="","",IF(COUNTIF(PREENCHER!$AF53:$AH53,PREENCHER!L53)=0,CONCATENATE(PREENCHER!AX53,#REF!),PREENCHER!L53)) ->  | M53: =IF(PREENCHER!M53="","",IF(COUNTIF(PREENCHER!$AF53:$AH53,PREENCHER!M53)=0,CONCATENATE(PREENCHER!AY53,#REF!),PREENCHER!M53)) ->  | N53: =IF(PREENCHER!N53="","",IF(COUNTIF(PREENCHER!$AF53:$AH53,PREENCHER!N53)=0,CONCATENATE(PREENCHER!AZ53,#REF!),PREENCHER!N53)) ->  | O53: =IF(ISERROR(ROUND(AVERAGE(E53:N53),2)),"",ROUND(AVERAGE(E53:N53),2)) ->  | P53: =IF(ISERROR(ROUND(O53*D53,2)),"",ROUND(O53*D53,2)) ->  | S53: =IF(ISERROR(MEDIAN(E53:N53)),"",MEDIAN(E53:N53)) ->  | T53: =IF(ISERROR(STDEV(E53:N53)),"",STDEV(E53:N53)) ->  | U53: =IF(ISERROR(T53/O53),"",T53/O53) -> 
A54: =IF(PREENCHER!A54="","",PREENCHER!A54) ->  | B54: =IF(PREENCHER!B54="","",PREENCHER!B54) ->  | C54: =IF(PREENCHER!C54="","",PREENCHER!C54) ->  | D54: =IF(PREENCHER!D54="","",PREENCHER!D54) ->  | E54: =IF(PREENCHER!E54="","",IF(COUNTIF(PREENCHER!$AF54:$AH54,PREENCHER!E54)=0,CONCATENATE(PREENCHER!AQ54,#REF!),PREENCHER!E54)) ->  | F54: =IF(PREENCHER!F54="","",IF(COUNTIF(PREENCHER!$AF54:$AH54,PREENCHER!F54)=0,CONCATENATE(PREENCHER!AR54,#REF!),PREENCHER!F54)) ->  | G54: =IF(PREENCHER!G54="","",IF(COUNTIF(PREENCHER!$AF54:$AH54,PREENCHER!G54)=0,CONCATENATE(PREENCHER!AS54,#REF!),PREENCHER!G54)) ->  | H54: =IF(PREENCHER!H54="","",IF(COUNTIF(PREENCHER!$AF54:$AH54,PREENCHER!H54)=0,CONCATENATE(PREENCHER!AT54,#REF!),PREENCHER!H54)) ->  | I54: =IF(PREENCHER!I54="","",IF(COUNTIF(PREENCHER!$AF54:$AH54,PREENCHER!I54)=0,CONCATENATE(PREENCHER!AU54,#REF!),PREENCHER!I54)) ->  | J54: =IF(PREENCHER!J54="","",IF(COUNTIF(PREENCHER!$AF54:$AH54,PREENCHER!J54)=0,CONCATENATE(PREENCHER!AV54,#REF!),PREENCHER!J54)) ->  | K54: =IF(PREENCHER!K54="","",IF(COUNTIF(PREENCHER!$AF54:$AH54,PREENCHER!K54)=0,CONCATENATE(PREENCHER!AW54,#REF!),PREENCHER!K54)) ->  | L54: =IF(PREENCHER!L54="","",IF(COUNTIF(PREENCHER!$AF54:$AH54,PREENCHER!L54)=0,CONCATENATE(PREENCHER!AX54,#REF!),PREENCHER!L54)) ->  | M54: =IF(PREENCHER!M54="","",IF(COUNTIF(PREENCHER!$AF54:$AH54,PREENCHER!M54)=0,CONCATENATE(PREENCHER!AY54,#REF!),PREENCHER!M54)) ->  | N54: =IF(PREENCHER!N54="","",IF(COUNTIF(PREENCHER!$AF54:$AH54,PREENCHER!N54)=0,CONCATENATE(PREENCHER!AZ54,#REF!),PREENCHER!N54)) ->  | O54: =IF(ISERROR(ROUND(AVERAGE(E54:N54),2)),"",ROUND(AVERAGE(E54:N54),2)) ->  | P54: =IF(ISERROR(ROUND(O54*D54,2)),"",ROUND(O54*D54,2)) ->  | S54: =IF(ISERROR(MEDIAN(E54:N54)),"",MEDIAN(E54:N54)) ->  | T54: =IF(ISERROR(STDEV(E54:N54)),"",STDEV(E54:N54)) ->  | U54: =IF(ISERROR(T54/O54),"",T54/O54) -> 
A55: =IF(PREENCHER!A55="","",PREENCHER!A55) ->  | B55: =IF(PREENCHER!B55="","",PREENCHER!B55) ->  | C55: =IF(PREENCHER!C55="","",PREENCHER!C55) ->  | D55: =IF(PREENCHER!D55="","",PREENCHER!D55) ->  | E55: =IF(PREENCHER!E55="","",IF(COUNTIF(PREENCHER!$AF55:$AH55,PREENCHER!E55)=0,CONCATENATE(PREENCHER!AQ55,#REF!),PREENCHER!E55)) ->  | F55: =IF(PREENCHER!F55="","",IF(COUNTIF(PREENCHER!$AF55:$AH55,PREENCHER!F55)=0,CONCATENATE(PREENCHER!AR55,#REF!),PREENCHER!F55)) ->  | G55: =IF(PREENCHER!G55="","",IF(COUNTIF(PREENCHER!$AF55:$AH55,PREENCHER!G55)=0,CONCATENATE(PREENCHER!AS55,#REF!),PREENCHER!G55)) ->  | H55: =IF(PREENCHER!H55="","",IF(COUNTIF(PREENCHER!$AF55:$AH55,PREENCHER!H55)=0,CONCATENATE(PREENCHER!AT55,#REF!),PREENCHER!H55)) ->  | I55: =IF(PREENCHER!I55="","",IF(COUNTIF(PREENCHER!$AF55:$AH55,PREENCHER!I55)=0,CONCATENATE(PREENCHER!AU55,#REF!),PREENCHER!I55)) ->  | J55: =IF(PREENCHER!J55="","",IF(COUNTIF(PREENCHER!$AF55:$AH55,PREENCHER!J55)=0,CONCATENATE(PREENCHER!AV55,#REF!),PREENCHER!J55)) ->  | K55: =IF(PREENCHER!K55="","",IF(COUNTIF(PREENCHER!$AF55:$AH55,PREENCHER!K55)=0,CONCATENATE(PREENCHER!AW55,#REF!),PREENCHER!K55)) ->  | L55: =IF(PREENCHER!L55="","",IF(COUNTIF(PREENCHER!$AF55:$AH55,PREENCHER!L55)=0,CONCATENATE(PREENCHER!AX55,#REF!),PREENCHER!L55)) ->  | M55: =IF(PREENCHER!M55="","",IF(COUNTIF(PREENCHER!$AF55:$AH55,PREENCHER!M55)=0,CONCATENATE(PREENCHER!AY55,#REF!),PREENCHER!M55)) ->  | N55: =IF(PREENCHER!N55="","",IF(COUNTIF(PREENCHER!$AF55:$AH55,PREENCHER!N55)=0,CONCATENATE(PREENCHER!AZ55,#REF!),PREENCHER!N55)) ->  | O55: =IF(ISERROR(ROUND(AVERAGE(E55:N55),2)),"",ROUND(AVERAGE(E55:N55),2)) ->  | P55: =IF(ISERROR(ROUND(O55*D55,2)),"",ROUND(O55*D55,2)) ->  | S55: =IF(ISERROR(MEDIAN(E55:N55)),"",MEDIAN(E55:N55)) ->  | T55: =IF(ISERROR(STDEV(E55:N55)),"",STDEV(E55:N55)) ->  | U55: =IF(ISERROR(T55/O55),"",T55/O55) -> 
A56: =IF(PREENCHER!A56="","",PREENCHER!A56) ->  | B56: =IF(PREENCHER!B56="","",PREENCHER!B56) ->  | C56: =IF(PREENCHER!C56="","",PREENCHER!C56) ->  | D56: =IF(PREENCHER!D56="","",PREENCHER!D56) ->  | E56: =IF(PREENCHER!E56="","",IF(COUNTIF(PREENCHER!$AF56:$AH56,PREENCHER!E56)=0,CONCATENATE(PREENCHER!AQ56,#REF!),PREENCHER!E56)) ->  | F56: =IF(PREENCHER!F56="","",IF(COUNTIF(PREENCHER!$AF56:$AH56,PREENCHER!F56)=0,CONCATENATE(PREENCHER!AR56,#REF!),PREENCHER!F56)) ->  | G56: =IF(PREENCHER!G56="","",IF(COUNTIF(PREENCHER!$AF56:$AH56,PREENCHER!G56)=0,CONCATENATE(PREENCHER!AS56,#REF!),PREENCHER!G56)) ->  | H56: =IF(PREENCHER!H56="","",IF(COUNTIF(PREENCHER!$AF56:$AH56,PREENCHER!H56)=0,CONCATENATE(PREENCHER!AT56,#REF!),PREENCHER!H56)) ->  | I56: =IF(PREENCHER!I56="","",IF(COUNTIF(PREENCHER!$AF56:$AH56,PREENCHER!I56)=0,CONCATENATE(PREENCHER!AU56,#REF!),PREENCHER!I56)) ->  | J56: =IF(PREENCHER!J56="","",IF(COUNTIF(PREENCHER!$AF56:$AH56,PREENCHER!J56)=0,CONCATENATE(PREENCHER!AV56,#REF!),PREENCHER!J56)) ->  | K56: =IF(PREENCHER!K56="","",IF(COUNTIF(PREENCHER!$AF56:$AH56,PREENCHER!K56)=0,CONCATENATE(PREENCHER!AW56,#REF!),PREENCHER!K56)) ->  | L56: =IF(PREENCHER!L56="","",IF(COUNTIF(PREENCHER!$AF56:$AH56,PREENCHER!L56)=0,CONCATENATE(PREENCHER!AX56,#REF!),PREENCHER!L56)) ->  | M56: =IF(PREENCHER!M56="","",IF(COUNTIF(PREENCHER!$AF56:$AH56,PREENCHER!M56)=0,CONCATENATE(PREENCHER!AY56,#REF!),PREENCHER!M56)) ->  | N56: =IF(PREENCHER!N56="","",IF(COUNTIF(PREENCHER!$AF56:$AH56,PREENCHER!N56)=0,CONCATENATE(PREENCHER!AZ56,#REF!),PREENCHER!N56)) ->  | O56: =IF(ISERROR(ROUND(AVERAGE(E56:N56),2)),"",ROUND(AVERAGE(E56:N56),2)) ->  | P56: =IF(ISERROR(ROUND(O56*D56,2)),"",ROUND(O56*D56,2)) ->  | S56: =IF(ISERROR(MEDIAN(E56:N56)),"",MEDIAN(E56:N56)) ->  | T56: =IF(ISERROR(STDEV(E56:N56)),"",STDEV(E56:N56)) ->  | U56: =IF(ISERROR(T56/O56),"",T56/O56) -> 
A57: =IF(PREENCHER!A57="","",PREENCHER!A57) ->  | B57: =IF(PREENCHER!B57="","",PREENCHER!B57) ->  | C57: =IF(PREENCHER!C57="","",PREENCHER!C57) ->  | D57: =IF(PREENCHER!D57="","",PREENCHER!D57) ->  | E57: =IF(PREENCHER!E57="","",IF(COUNTIF(PREENCHER!$AF57:$AH57,PREENCHER!E57)=0,CONCATENATE(PREENCHER!AQ57,#REF!),PREENCHER!E57)) ->  | F57: =IF(PREENCHER!F57="","",IF(COUNTIF(PREENCHER!$AF57:$AH57,PREENCHER!F57)=0,CONCATENATE(PREENCHER!AR57,#REF!),PREENCHER!F57)) ->  | G57: =IF(PREENCHER!G57="","",IF(COUNTIF(PREENCHER!$AF57:$AH57,PREENCHER!G57)=0,CONCATENATE(PREENCHER!AS57,#REF!),PREENCHER!G57)) ->  | H57: =IF(PREENCHER!H57="","",IF(COUNTIF(PREENCHER!$AF57:$AH57,PREENCHER!H57)=0,CONCATENATE(PREENCHER!AT57,#REF!),PREENCHER!H57)) ->  | I57: =IF(PREENCHER!I57="","",IF(COUNTIF(PREENCHER!$AF57:$AH57,PREENCHER!I57)=0,CONCATENATE(PREENCHER!AU57,#REF!),PREENCHER!I57)) ->  | J57: =IF(PREENCHER!J57="","",IF(COUNTIF(PREENCHER!$AF57:$AH57,PREENCHER!J57)=0,CONCATENATE(PREENCHER!AV57,#REF!),PREENCHER!J57)) ->  | K57: =IF(PREENCHER!K57="","",IF(COUNTIF(PREENCHER!$AF57:$AH57,PREENCHER!K57)=0,CONCATENATE(PREENCHER!AW57,#REF!),PREENCHER!K57)) ->  | L57: =IF(PREENCHER!L57="","",IF(COUNTIF(PREENCHER!$AF57:$AH57,PREENCHER!L57)=0,CONCATENATE(PREENCHER!AX57,#REF!),PREENCHER!L57)) ->  | M57: =IF(PREENCHER!M57="","",IF(COUNTIF(PREENCHER!$AF57:$AH57,PREENCHER!M57)=0,CONCATENATE(PREENCHER!AY57,#REF!),PREENCHER!M57)) ->  | N57: =IF(PREENCHER!N57="","",IF(COUNTIF(PREENCHER!$AF57:$AH57,PREENCHER!N57)=0,CONCATENATE(PREENCHER!AZ57,#REF!),PREENCHER!N57)) ->  | O57: =IF(ISERROR(ROUND(AVERAGE(E57:N57),2)),"",ROUND(AVERAGE(E57:N57),2)) ->  | P57: =IF(ISERROR(ROUND(O57*D57,2)),"",ROUND(O57*D57,2)) ->  | S57: =IF(ISERROR(MEDIAN(E57:N57)),"",MEDIAN(E57:N57)) ->  | T57: =IF(ISERROR(STDEV(E57:N57)),"",STDEV(E57:N57)) ->  | U57: =IF(ISERROR(T57/O57),"",T57/O57) -> 
